Workbook

Sheet Instructions
A1: Colorado-Big Thompson Zebra and Quagga Mussel Dispersal and Damage Cost Simulation Model
A2: Created by Cathy Thomas
A3: Colorado State University, 2010
A4: Questions or Comments: email ccullinanethomas@usgs.gov
A6: Model Purpose and Objective:
A13: Underlying Theory:
A37: Using the Model:
A52: Tab Contents:

Sheet Model Input
A1: Colorado-Big Thompson Zebra and Quagga Mussel Dispersal and Damage Cost Simulation Model
A2: Created by Cathy Thomas
B3: Version | C3: 10
B4: Last Updated: | C4: 2010-06-21
A6: Instructions
A7: 1. Choose values for all of the input cells. Input cells are highlighted in blue. User defined inputs are optional.
A8: *Blue cells in Column B are pull down menus that allow you to choose between low, base, high, and user-defined parameter values.
A9: *Enter user-defined values in Column H
A10: 2. Once you have chosen input values, press the Run Simulation button.
A12: Cell Types | M12: Lists for Drop Down Menus
A13: Input | M13: Index | N13: Horizon | O13: Level | P13: Calcium switch | Q13: Yes/No | R13: Water Treatment Costs
A14: Parameter Estimate from Literature | M14: 1 | N14: 10 | O14: low | P14: Model as very low calcium | Q14: yes | R14: Connelly only
A15: Parameter Estimate estimated from data | M15: 2 | N15: 30 | O15: base | P15: Model as low calcium | Q15: no | R15: Connelly and Westminster
A16: Uncertain Parameter Estimate | M16: 3 | N16: 50 | O16: high | P16: Model as moderate calcium
A17: Calculation | M17: 4
A19: Assumptions
A20: 1. The number of boat inspections in 2009 is equal to the number of boat visits per year for the preventative management scenario. The number of boat visits is constant over time.
A21: 2. Assume that all structures directly downstream from an infested water body will incur costs after a lag period.
A22: 3. Facilities do not incur any costs prior to settlement in their facility (i.e. pre-infestation monitoring costs are assumed to be 0).
A23: 4. Assume that veliger mortality declines exponentially with distance "down pipe", as it does with distance downstream in Horvath1999.
A24: 5. Assume that veligers can survive passage through hydropower plants. Also assume that passage through hydropower plants does not increase veliger mortality beyond that already described by the exponential decay based on distance.
A25: 6. Year 0 is 2009
A27: Initial Establishment (Establishment in 2009)
E28: History
A29: Reservoir | B29: Established in 2009? | C29: {InvasionRecord_0} | E29: Reservoir | F29: Inspection Record in 2008 | G29: Inspection Record in 2009
A30: Windy Gap Reservoir | B30: no | C30: =IF(B30="no",0,1) -> 0 | E30: Windy Gap Reservoir | F30: none found | G30: none found
A31: Willow Creek Reservoir | B31: no | C31: =IF(B31="no",0,1) -> 0 | E31: Willow Creek Reservoir | F31: veligers found | G31: none found
A32: Lake Granby | B32: no | C32: 0 | E32: Lake Granby | F32: veligers found | G32: none found
A33: Shadow Mountain Reservoir | B33: no | C33: 0 | E33: Shadow Mountain Reservoir | F33: veligers found | G33: none found
A34: Grand Lake | B34: no | C34: 0 | E34: Grand Lake | F34: veligers found | G34: none found
A35: East Portal Reservoir | B35: no | C35: 0 | E35: East Portal Reservoir | F35: none found | G35: none found
A36: Mary's Lake | B36: no | C36: =IF(B36="no",0,1) -> 0 | E36: Mary's Lake | F36: none found | G36: none found
A37: Lake Estes | B37: no | C37: 0 | E37: Lake Estes | F37: none found | G37: none found
A38: Pinewood Reservoir | B38: no | C38: 0 | E38: Pinewood Reservoir | F38: none found | G38: none found
A39: Flatiron Reservoir | B39: no | C39: 0 | E39: Flatiron Reservoir | F39: none found | G39: none found
A40: Horsetooth Reservoir | B40: no | C40: 0 | E40: Horsetooth Reservoir | F40: none found | G40: none found
A41: Carter Lake | B41: no | C41: 0 | E41: Carter Lake | F41: none found | G41: none found
A42: Boulder Reservoir | B42: no | C42: 0 | E42: Boulder Reservoir | F42: none found | G42: none found
A45: Probability of Invasibility
B47: Index (1=low, 2=base, 3=high, 4=user defined) | C47: Name | D47: Value | E47: Low | F47: Base | G47: High | H47: User Defined | I47: Source
A48: Probability that a very low calcium reservoir is invasible | B48: 2 | C48: prob_invas_verylowC | D48: =INDEX(E48:H48,B48) -> 0.02 | E48: 0 | F48: 0.02 | G48: 0.05 | H48: 0.8 | I48: This value is uncertain
A49: Probability that a low calcium reservoir is invasible | B49: 2 | C49: prob_invas_lowC | D49: =INDEX(E49:H49,B49) -> 0.05 | E49: 0.01 | F49: 0.05 | G49: 0.1 | H49: 0.8 | I49: This value is uncertain
A50: Probability that a moderate calcium reservoir is invasible | B50: 2 | C50: prob_invas_modC | D50: =INDEX(E50:H50,B50) -> 0.25 | E50: 0.1 | F50: 0.25 | G50: 0.5 | H50: 0.8 | I50: This value is uncertain
A51: Probability that a high calcium reservoir is invasible | B51: 2 | C51: prob_invas_highC | D51: =INDEX(E51:H51,B51) -> 0.75 | E51: 0.5 | F51: 0.75 | G51: 1 | H51: 0.8 | I51: This value is uncertain
A52: Switch for unknown calcium reservoirs | B52: Model as very low calcium | C52: prob_invas_unknownC | D52: =IF(B52="Model as very low calcium",prob_invas_verylowC,IF(B52="Model as low calcium",prob_invas_lowC,prob_invas_modC)) -> 0.02 | I52: Calcium classification are from Whittier2008
A54: Water Body ID | B54: Calcium Level {CalciumLevel} | C54: Probability that the reservoir is invasible {Invasibility}
A55: 0 | B55: low | C55: =IF(B55="very low",prob_invas_verylowC,IF(B55="low",prob_invas_lowC,IF(B55="moderate",prob_invas_modC,IF(B55="high",prob_invas_highC,IF(B55="unknown",prob_invas_unknownC,"error"))))) -> 0.05
A56: 1 | B56: low | C56: 0.05
A57: 2 | B57: very low | C57: 0.02
A58: 3 | B58: very low | C58: 0.02
A59: 4 | B59: very low | C59: 0.02
A60: 5 | B60: unknown | C60: 0.02
A61: 6 | B61: unknown | C61: =IF(B61="very low",prob_invas_verylowC,IF(B61="low",prob_invas_lowC,IF(B61="moderate",prob_invas_modC,IF(B61="high",prob_invas_highC,IF(B61="unknown",prob_invas_unknownC,"error"))))) -> 0.02
A62: 7 | B62: unknown | C62: 0.02
A63: 8 | B63: unknown | C63: 0.02
A64: 9 | B64: unknown | C64: 0.02
A65: 10 | B65: very low | C65: 0.02
A66: 11 | B66: very low | C66: 0.02
A67: 12 | B67: high | C67: 0.75
A69: Propagule Pressure from Infested Boats
B71: Index (1=low, 2=base, 3=high, 4=user defined) | C71: Name | D71: Value In-Use | E71: Low | F71: Base | G71: High | H71: User Defined | I71: Source
A72: Initial Percent of Visiting Boats that are infested | B72: 2 | C72: per_infest_0 | D72: =INDEX(E72:H72,B72) -> 0.018 | E72: 0.011 | F72: 0.018 | G72: 0.029 | H72: 0.2 | I72: From CDOW 2009 boat inspection data: The base case is the percent of entrance inspections that were high risk inspections. The low case is the percent of inspected boats that were required to be decontaminated. The high case is the percent of inspection that were high risk or decontaminations.
A73: Percent of Infested Boats that are caught by inspection and get cleaned | B73: 2 | C73: per_cleaned | D73: =INDEX(E73:H73,B73) -> 0.95 | E73: 0.9 | F73: 0.95 | G73: 1 | H73: 0.96 | I73: Elizabeth Brown with CDOW thinks that this percent is likely to be close to 100%
A74: alpha shape parameter | B74: 2 | C74: a_boat | D74: =INDEX(E74:H74,B74) -> 0.000103 | E74: 5e-05 | F74: 0.000103 | G74: 0.0005 | I74: Leung2004
A75: c shape parameter | B75: 2 | C75: c_boat | D75: =INDEX(E75:H75,B75) -> 1.86 | E75: 1 | F75: 1.86 | I75: Leung2004
A76: Percent decline in number of boat visits attributable to the boat inspection program | B76: 2 | C76: per_decline | D76: =INDEX(E76:H76,B76) -> 0.01 | E76: 0 | F76: 0.01 | G76: 0.03 | H76: 0.01 | I76: 2008 Boater Survey Data. Based on Q27 and Q12.
A78: Water Body ID | B78: No. of Boat Visits per Year (with inspection program) {BoatVisits_1} | C78: No. of Boat Visits per Year (no inspection program) {BoatVisits_0} | D78: Decline in No. of Boat Visits | E78: Source
A79: 0 | B79: 0 | C79: =B79/(1-per_decline) -> 0 | D79: =C79-B79 -> 0 | E79: CDOW boat inspection data
A80: 1 | B80: 0 | C80: 0 | D80: 0 | E80: *Visit data for Lake Estes provided by Estes Valley Recreation and Park District
A81: 2 | B81: 7404 | C81: 7478.787879 | D81: 74.78787879
A82: 3 | B82: 3562 | C82: 3597.979798 | D82: 35.97979798
A83: 4 | B83: 3263 | C83: 3295.959596 | D83: 32.95959596
A84: 5 | B84: 0 | C84: 0 | D84: 0
A85: 6 | B85: 0 | C85: =B85/(1-per_decline) -> 0 | D85: =C85-B85 -> 0
A86: 7 | B86: 420 | C86: 424.2424242 | D86: 4.242424242
A87: 8 | B87: 0 | C87: 0 | D87: 0
A88: 9 | B88: 0 | C88: 0 | D88: 0
A89: 10 | B89: 48518 | C89: 49008.08081 | D89: 490.0808081
A90: 11 | B90: 7982 | C90: 8062.626263 | D90: 80.62626263
A91: 12 | B91: 1700 | C91: 1717.171717 | D91: 17.17171717
A93: Source, Formula, and Assumption Information for this Section
A94: *Bossenbroek and Leung use gravity models to estimate propagule pressure from boats. I don't have this information. I have estimated propagule pressure from boats by assuming that a certain percent of boats are infested.
A95: *The formula for the probability of establishment comes from Leung2004: prob_E=1-EXP(-1*(a_boat*num_infested)^c_boat)
A96: *The a and c values from Leung2004 are based on a gravity model that predict the number of boats traveling to an uninfested water body from an infested water body. The number of boats traveling to a water body from an infested water body is not actually a measure of the number of infested boats that arrive at a water body, it is an overestimate. A similar estimate is used here. The percent of potentially infested boats is an overestimate of the actual percent of infested boats.
A97: Simulation of Increase in Infested Boats Over Time
B99: Index (1=low, 2=base, 3=high, 4=user defined) | C99: Name | D99: Value In-Use | E99: Low | F99: Base | G99: High | H99: User Defined | I99: Source
A100: Max percent infested boats | B100: 2 | C100: per_max | D100: =INDEX(E100:H100,B100) -> 0.0589 | E100: 0.0295 | F100: 0.0589 | G100: 0.589 | I100: Whittier2008. The high value is the percent of ecoregions that are at high risk of invasion based on calcium concentrations. The low value is 5% of this value. The base value is set at 10% of high risk ecoregions.
A101: Maximum percent increase in infested boats per year, base-case scenario | B101: 2 | C101: R_max | D101: =B101 -> 2 | E101: =0 -> 0 | F101: 0.005 | G101: 0.056 | H101: =0.001 -> 0.001 | I101: Kraft2000. The base value is set low to reflect a slow invasion. Johnson2006. | J101: Note: Value in-use cell displays the index value rather than the actual value in use.
A102: Percent reduction in the maximum percent increase in infested boats per year, preventative management scenario | B102: 2 | C102: B_ | D102: =INDEX(E102:H102,B102) -> 0.5 | E102: 0.25 | F102: 0.5 | G102: 0.75 | I102: The affects of the boat inspection program on the rate of infestation are unknown.
A104: *The idea to randomly increase the percent of infested boats each year with a random walk comes from Leung2004: Percent infested at time t+1 = percent infested at time t plus a bounded uniform random value. Leung randomly increases the number of infested boats each year. I have modified this to randomly increase the percent of infested boats each year.
A106: Propagule Pressure from Invaded Upstream Water Body
B107: Index (1=low, 2=base, 3=high, 4=user defined) | C107: Name | D107: Value In-Use | E107: Low | F107: Base | G107: High | H107: User Defined | I107: Source
A108: y-intercept parameter | B108: 2 | C108: P_ | D108: =INDEX(E108:H108,B108) -> 0.801 | F108: 0.801 | I108: Horvath1999
A109: decay rate | B109: 2 | C109: r_ | D109: -0.45 | E109: -0.67 | F109: -0.45 | G109: -0.33 | H109: -0.2 | I109: Horvath1999. Based on density falling to 20% after 10, 15 and 20 km respectively. From Bobeldke2005, lakes greater than 20km downstream had a lower chance of being invaded. From Horvath1996 found isolated veligers 12km downstream. The smaller r is, the lower mortality is.
A110: Lag time (number of years after upstream establishment before downstream establishment is possible: m=1 means establishment is possible in the following year) | B110: 2 | C110: m_ | D110: 8 | E110: 6 | F110: 8 | G110: 10 | H110: 2 | I110: Using values 2 years less than those estimated by Burlakova2006.
A111: alpha shape parameter | B111: 2 | C111: a_stream | D111: 0.05 | E111: 0.005 | F111: 0.05 | G111: 0.2 | I111: There is much uncertainty in how veligers survive and are transported through conveyance systems. The larger a_stream is, the greater the probability of downstream establishment.
A112: c shape parameter | B112: 2 | C112: c_stream | D112: =INDEX(E112:H112,B112) -> 1 | E112: 0.5 | F112: 1 | G112: 1.86 | I112: The high value is from Leung2004; however, this value was used for boat pressure, not stream pressure. This parameter concerns the presence or absence of an Allee effect, and it is assumed that the value is the same for pressure from flows as it is for pressure from boats. The larger c_stream is, the quicker the probability of establishment falls from 1 to 0.
A113: Mussel density for a very low calcium reservoir | B113: 1 | C113: density_vl | D113: 22 | E113: 22 | F113: 800 | G113: 7500 | I113: Ramcharan1992. These are the min, mean, and max densities of mussels in European Lakes.
A114: Mussel density for a low calcium reservoir | B114: 1 | C114: density_l | D114: 22 | E114: 22 | F114: 800 | G114: 7500 | I114: Ramcharan1992. These are the min, mean, and max densities of mussels in European Lakes.
A115: Mussel density for a moderate calcium reservoir | B115: 2 | C115: density_m | D115: 800 | E115: 22 | F115: 800 | G115: 7500 | I115: Ramcharan1992. These are the min, mean, and max densities of mussels in European Lakes.
A116: Mussel density for a high calcium reservoir | B116: 3 | C116: density_h | D116: 7500 | E116: 22 | F116: 800 | G116: 7500 | I116: Ramcharan1992. These are the min, mean, and max densities of mussels in European Lakes.
A118: Water Body ID | B118: Upstream Water Body (1) {UpConnect1} | C118: Distance Downstream from Upstream Water Body (1) in km {DistUpConnect1} | D118: Density in Upstream Water Body (1) | E118: Propagule pressure from upstream water body (1) {DensityAlive1} | F118: Upstream Water Body (2) {UpConnect2} | G118: Distance Downstream from Upstream Water Body (2) in km {DistUpConnect2} | H118: Density in Upstream Water Body (2) | I118: Propagule pressure from upstream water body (2) {DensityAlive2}
A119: 0 | B119: -999 | C119: -999 | D119: =IF(C119=-999,0,IF(INDEX(CalciumLevel,B119+1)="very low",density_vl,IF(INDEX(CalciumLevel,B119+1)="low",density_l,IF(INDEX(CalciumLevel,B119+1)="moderate",density_m,IF(INDEX(CalciumLevel,B119+1)="high",density_h,IF(AND(INDEX(CalciumLevel,B119+1)="unknown",$B$52="Model as very low calcium"),density_vl,IF(AND(INDEX(CalciumLevel,B119+1)="unknown",$B$52="Model as low calcium"),density_l,IF(AND(INDEX(CalciumLevel,B119+1)="unknown",$B$52="Model as moderate calcium"),density_m,"error")))))))) -> 0 | E119: =IF(C119=-999,-999,P_*EXP(r_*C119)*D119) -> -999 | F119: -999 | G119: -999 | H119: =IF(G119=-999,0,IF(INDEX(CalciumLevel,F119+1)="very low",density_vl,IF(INDEX(CalciumLevel,F119+1)="low",density_l,IF(INDEX(CalciumLevel,F119+1)="moderate",density_m,IF(INDEX(CalciumLevel,F119+1)="high",density_h,IF(AND(INDEX(CalciumLevel,F119+1)="unknown",$B$52="Model as very low calcium"),density_vl,IF(AND(INDEX(CalciumLevel,F119+1)="unknown",$B$52="Model as low calcium"),density_l,IF(AND(INDEX(CalciumLevel,F119+1)="unknown",$B$52="Model as moderate calcium"),density_m,"error")))))))) -> 0 | I119: =IF(G119=-999,-999,P_*EXP(r_*G119)*H119) -> -999
A120: 1 | B120: -999 | C120: -999 | D120: 0 | E120: -999 | F120: -999 | G120: -999 | H120: 0 | I120: -999
A121: 2 | B121: 0 | C121: 9.5 | D121: 22 | E121: 0.2451581225 | F121: 1 | G121: 5.5 | H121: 22 | I121: 1.483120214
A122: 3 | B122: 2 | C122: 2.9 | D122: 22 | E122: 4.778602413 | F122: -999 | G122: -999 | H122: 0 | I122: -999
A123: 4 | B123: 3 | C123: 0 | D123: 22 | E123: 17.622 | F123: -999 | G123: -999 | H123: 0 | I123: -999
A124: 5 | B124: 4 | C124: 21.1 | D124: 22 | E124: 0.001325650657 | F124: -999 | G124: -999 | H124: 0 | I124: -999
A125: 6 | B125: 5 | C125: 2.1 | D125: 22 | E125: 6.849311398 | F125: -999 | G125: -999 | H125: 0 | I125: -999
A126: 7 | B126: 6 | C126: 2.7 | D126: 22 | E126: 5.228623872 | F126: -999 | G126: -999 | H126: 0 | I126: -999
A127: 8 | B127: 7 | C127: 15.6 | D127: 22 | E127: 0.01575099283 | F127: -999 | G127: -999 | H127: 0 | I127: -999
A128: 9 | B128: 8 | C128: 2.1 | D128: 22 | E128: 6.849311398 | F128: 11 | G128: 2.3 | H128: 22 | I128: 6.259799285
A129: 10 | B129: 9 | C129: 21.3 | D129: 22 | E129: 0.001211553476 | F129: -999 | G129: -999 | H129: 0 | I129: -999
A130: 11 | B130: 8 | C130: 1.8 | D130: 22 | E130: 7.839288843 | F130: 9 | G130: 2.3 | H130: 22 | I130: 6.259799285
A131: 12 | B131: 11 | C131: 36.7 | D131: 22 | E131: 1.184900351e-06 | F131: -999 | G131: -999 | H131: 0 | I131: -999
A132: *Note:-999 means no upstream reservoir, no distance downstream, no propagule pressure
A134: Source, Formula, and Assumption Information for this Section
A135: *The formula for percent living veligers is from Horvath1999: Percent Living=P_*exp(r_*distance downstream)
A136: *Propagule pressure from flows is measured as the density of living veligers entering a downstream reservoir.
A137: *The formula for the probability of establishment as a function of propagule pressure comes from Leung2004: prob_E=1-EXP(-1*(a_*DensityAlive)^c_). In the Leung paper, this formula was used for boat pressure, so the parameter estimates they estimate will be different than those for propagule pressure from flows.
A139: Time Horizon
B141: Index (10, 30 or 50 years) | C141: Name | D141: Value In-Use
A142: Time Horizon | B142: 50 | C142: horizon | D142: =B142 -> 50
A144: Source, Formula, and Assumption Information for this Section
A145: * The simulation is run via a macro. The process is thoroughly described in the accompanying paper.
A146: * The joint probability of establishment formula comes from Leung2007: prob of establishment=(prob of invasibility * (1- the product of (1-prob of establishment for location l in period t))
A147: *For each scenario (i.e. no inspection program, with inspection program), 3 Bernouill trials are conducted for each water body. The first trial is based on the joint probability of establishment from propagules introduced by boats. The second trial is based on the joint probability of establishment from propagules introduced from upstream water body (1). The third is based on the joint probability of establishment from propagules introduced from upstream water body (2). A water body is deemed established if at least one of the Bernoulli Trials results in establishment. Established upstream water bodies become possible sources of invasion m years after establishment. Once established, a water body remains established in all subsequent years.
A149: Damage Costs
A150: *Structures are assumes to incur costs n years after the water body directly up stream is established.
A151: *All structures downstream of an infested water body are assumed to incur costs. This may not be a good assumption, because some of the structures are well downstream.
B153: Index (1=low, 2=base, 3=high, 4=user defined) | C153: Name | D153: Value In-Use | E153: Low | F153: Base | G153: High | H153: User Defined | I153: Source
A154: Lag Time (Number of years post establishment when damages are first incurred for downstream structures) | B154: 2 | C154: n_ | D154: =INDEX(E154:H154,B154) -> 8 | E154: 6 | F154: 8 | G154: 10 | H154: 2 | I154: Burlakova2006
A155: Discount Rate | B155: 2 | C155: d_rate | D155: =INDEX(E155:H155,B155) -> 0.0265 | E155: 0 | F155: 0.0265 | G155: 0.053 | H155: 0 | I155: Based on discount factor of .95 to .99
A156: Interest Rate | B156: 2 | C156: i_rate | D156: =INDEX(E156:H156,B156) -> 0.0475 | E156: 0.04 | F156: 0.0475 | G156: 0.05 | I156: http://emma.msrb.org Based on a sample of 100 bond trades from 6/8/2010. Low, base, and high values are Q1, median, and Q3, respectively.
A157: Loan term length for capital expenditures (years) | B157: 2 | C157: term_length | D157: =INDEX(E157:H157,B157) -> 20 | E157: 15 | F157: 20 | G157: 30
A158: Water treatment costs: use Connelly estimates or a combination of Connelly estimates and Westminster Estimates? | B158: Connelly and Westminster
E159: Total Costs {ControlCostSchedules}
E160: Year of incurred costs (0 means costs incurred in the first affected year)
A161: Structure/Facility Name | B161: Structure/Facility ID | C161: Structure/Facility Classification {StructureType} | D161: Upstream Water Body {UpConnectStructure} | E161: 0 | F161: 1 | G161: 2 | H161: 3 | I161: 4 | J161: 5 | K161: 6 | L161: 7 | M161: 8 | N161: 9 | O161: 10 | P161: 11 | Q161: 12 | R161: 13 | S161: 14 | T161: 15 | U161: 16 | V161: 17 | W161: 18 | X161: 19 | Y161: 20 | Z161: 21 | AA161: 22 | AB161: 23 | AC161: 24 | AD161: 25 | AE161: 26 | AF161: 27 | AG161: 28 | AH161: 29 | AI161: 30 | AJ161: 31 | AK161: 32 | AL161: 33 | AM161: 34 | AN161: 35 | AO161: 36 | AP161: 37 | AQ161: 38 | AR161: 39 | AS161: 40 | AT161: 41 | AU161: 42 | AV161: 43 | AW161: 44 | AX161: 45 | AY161: 46 | AZ161: 47 | BA161: 48 | BB161: 49
A162: Windy Gap Pump Plant | B162: 0 | C162: pump plant | D162: 0 | E162: ='Control Cost Schedules'!D174 -> 8677.15654 | F162: ='Control Cost Schedules'!E174 -> 8677.15654 | G162: ='Control Cost Schedules'!F174 -> 8677.15654 | H162: ='Control Cost Schedules'!G174 -> 8677.15654 | I162: ='Control Cost Schedules'!H174 -> 8677.15654 | J162: ='Control Cost Schedules'!I174 -> 8677.15654 | K162: ='Control Cost Schedules'!J174 -> 8677.15654 | L162: ='Control Cost Schedules'!K174 -> 8677.15654 | M162: ='Control Cost Schedules'!L174 -> 8677.15654 | N162: ='Control Cost Schedules'!M174 -> 8677.15654 | O162: ='Control Cost Schedules'!N174 -> 8677.15654 | P162: ='Control Cost Schedules'!O174 -> 8677.15654 | Q162: ='Control Cost Schedules'!P174 -> 8677.15654 | R162: ='Control Cost Schedules'!Q174 -> 8677.15654 | S162: ='Control Cost Schedules'!R174 -> 8677.15654 | T162: ='Control Cost Schedules'!S174 -> 8677.15654 | U162: ='Control Cost Schedules'!T174 -> 8677.15654 | V162: ='Control Cost Schedules'!U174 -> 8677.15654 | W162: ='Control Cost Schedules'!V174 -> 8677.15654 | X162: ='Control Cost Schedules'!W174 -> 8677.15654 | Y162: ='Control Cost Schedules'!X174 -> 8677.15654 | Z162: ='Control Cost Schedules'!Y174 -> 3375 | AA162: ='Control Cost Schedules'!Z174 -> 3375 | AB162: ='Control Cost Schedules'!AA174 -> 3375 | AC162: ='Control Cost Schedules'!AB174 -> 3375 | AD162: ='Control Cost Schedules'!AC174 -> 3375 | AE162: ='Control Cost Schedules'!AD174 -> 3375 | AF162: ='Control Cost Schedules'!AE174 -> 3375 | AG162: ='Control Cost Schedules'!AF174 -> 3375 | AH162: ='Control Cost Schedules'!AG174 -> 3375 | AI162: ='Control Cost Schedules'!AH174 -> 3375 | AJ162: ='Control Cost Schedules'!AI174 -> 3375 | AK162: ='Control Cost Schedules'!AJ174 -> 3375 | AL162: ='Control Cost Schedules'!AK174 -> 3375 | AM162: ='Control Cost Schedules'!AL174 -> 3375 | AN162: ='Control Cost Schedules'!AM174 -> 3375 | AO162: ='Control Cost Schedules'!AN174 -> 3375 | AP162: ='Control Cost Schedules'!AO174 -> 3375 | AQ162: ='Control Cost Schedules'!AP174 -> 3375 | AR162: ='Control Cost Schedules'!AQ174 -> 3375 | AS162: ='Control Cost Schedules'!AR174 -> 3375 | AT162: ='Control Cost Schedules'!AS174 -> 3375 | AU162: ='Control Cost Schedules'!AT174 -> 3375 | AV162: ='Control Cost Schedules'!AU174 -> 3375 | AW162: ='Control Cost Schedules'!AV174 -> 3375 | AX162: ='Control Cost Schedules'!AW174 -> 3375 | AY162: ='Control Cost Schedules'!AX174 -> 3375 | AZ162: ='Control Cost Schedules'!AY174 -> 3375 | BA162: ='Control Cost Schedules'!AZ174 -> 3375 | BB162: ='Control Cost Schedules'!BA174 -> 0
A163: Windy Gap Pipeline | B163: 1 | C163: pipeline | D163: 0 | E163: ='Control Cost Schedules'!D175 -> 0 | F163: ='Control Cost Schedules'!E175 -> 0 | G163: ='Control Cost Schedules'!F175 -> 0 | H163: ='Control Cost Schedules'!G175 -> 0 | I163: ='Control Cost Schedules'!H175 -> 0 | J163: ='Control Cost Schedules'!I175 -> 0 | K163: ='Control Cost Schedules'!J175 -> 0 | L163: ='Control Cost Schedules'!K175 -> 0 | M163: ='Control Cost Schedules'!L175 -> 0 | N163: ='Control Cost Schedules'!M175 -> 0 | O163: ='Control Cost Schedules'!N175 -> 0 | P163: ='Control Cost Schedules'!O175 -> 0 | Q163: ='Control Cost Schedules'!P175 -> 0 | R163: ='Control Cost Schedules'!Q175 -> 0 | S163: ='Control Cost Schedules'!R175 -> 0 | T163: ='Control Cost Schedules'!S175 -> 0 | U163: ='Control Cost Schedules'!T175 -> 0 | V163: ='Control Cost Schedules'!U175 -> 0 | W163: ='Control Cost Schedules'!V175 -> 0 | X163: ='Control Cost Schedules'!W175 -> 0 | Y163: ='Control Cost Schedules'!X175 -> 0 | Z163: ='Control Cost Schedules'!Y175 -> 0 | AA163: ='Control Cost Schedules'!Z175 -> 0 | AB163: ='Control Cost Schedules'!AA175 -> 0 | AC163: ='Control Cost Schedules'!AB175 -> 0 | AD163: ='Control Cost Schedules'!AC175 -> 0 | AE163: ='Control Cost Schedules'!AD175 -> 0 | AF163: ='Control Cost Schedules'!AE175 -> 0 | AG163: ='Control Cost Schedules'!AF175 -> 0 | AH163: ='Control Cost Schedules'!AG175 -> 0 | AI163: ='Control Cost Schedules'!AH175 -> 0 | AJ163: ='Control Cost Schedules'!AI175 -> 0 | AK163: ='Control Cost Schedules'!AJ175 -> 0 | AL163: ='Control Cost Schedules'!AK175 -> 0 | AM163: ='Control Cost Schedules'!AL175 -> 0 | AN163: ='Control Cost Schedules'!AM175 -> 0 | AO163: ='Control Cost Schedules'!AN175 -> 0 | AP163: ='Control Cost Schedules'!AO175 -> 0 | AQ163: ='Control Cost Schedules'!AP175 -> 0 | AR163: ='Control Cost Schedules'!AQ175 -> 0 | AS163: ='Control Cost Schedules'!AR175 -> 0 | AT163: ='Control Cost Schedules'!AS175 -> 0 | AU163: ='Control Cost Schedules'!AT175 -> 0 | AV163: ='Control Cost Schedules'!AU175 -> 0 | AW163: ='Control Cost Schedules'!AV175 -> 0 | AX163: ='Control Cost Schedules'!AW175 -> 0 | AY163: ='Control Cost Schedules'!AX175 -> 0 | AZ163: ='Control Cost Schedules'!AY175 -> 0 | BA163: ='Control Cost Schedules'!AZ175 -> 0 | BB163: ='Control Cost Schedules'!BA175 -> 0
A164: Willow Creek Dam | B164: 2 | C164: dam | D164: 1 | E164: ='Control Cost Schedules'!D176 -> 125000 | F164: ='Control Cost Schedules'!E176 -> 0 | G164: ='Control Cost Schedules'!F176 -> 0 | H164: ='Control Cost Schedules'!G176 -> 0 | I164: ='Control Cost Schedules'!H176 -> 0 | J164: ='Control Cost Schedules'!I176 -> 125000 | K164: ='Control Cost Schedules'!J176 -> 0 | L164: ='Control Cost Schedules'!K176 -> 0 | M164: ='Control Cost Schedules'!L176 -> 0 | N164: ='Control Cost Schedules'!M176 -> 0 | O164: ='Control Cost Schedules'!N176 -> 125000 | P164: ='Control Cost Schedules'!O176 -> 0 | Q164: ='Control Cost Schedules'!P176 -> 0 | R164: ='Control Cost Schedules'!Q176 -> 0 | S164: ='Control Cost Schedules'!R176 -> 0 | T164: ='Control Cost Schedules'!S176 -> 125000 | U164: ='Control Cost Schedules'!T176 -> 0 | V164: ='Control Cost Schedules'!U176 -> 0 | W164: ='Control Cost Schedules'!V176 -> 0 | X164: ='Control Cost Schedules'!W176 -> 0 | Y164: ='Control Cost Schedules'!X176 -> 125000 | Z164: ='Control Cost Schedules'!Y176 -> 0 | AA164: ='Control Cost Schedules'!Z176 -> 0 | AB164: ='Control Cost Schedules'!AA176 -> 0 | AC164: ='Control Cost Schedules'!AB176 -> 0 | AD164: ='Control Cost Schedules'!AC176 -> 125000 | AE164: ='Control Cost Schedules'!AD176 -> 0 | AF164: ='Control Cost Schedules'!AE176 -> 0 | AG164: ='Control Cost Schedules'!AF176 -> 0 | AH164: ='Control Cost Schedules'!AG176 -> 0 | AI164: ='Control Cost Schedules'!AH176 -> 125000 | AJ164: ='Control Cost Schedules'!AI176 -> 0 | AK164: ='Control Cost Schedules'!AJ176 -> 0 | AL164: ='Control Cost Schedules'!AK176 -> 0 | AM164: ='Control Cost Schedules'!AL176 -> 0 | AN164: ='Control Cost Schedules'!AM176 -> 125000 | AO164: ='Control Cost Schedules'!AN176 -> 0 | AP164: ='Control Cost Schedules'!AO176 -> 0 | AQ164: ='Control Cost Schedules'!AP176 -> 0 | AR164: ='Control Cost Schedules'!AQ176 -> 0 | AS164: ='Control Cost Schedules'!AR176 -> 125000 | AT164: ='Control Cost Schedules'!AS176 -> 0 | AU164: ='Control Cost Schedules'!AT176 -> 0 | AV164: ='Control Cost Schedules'!AU176 -> 0 | AW164: ='Control Cost Schedules'!AV176 -> 0 | AX164: ='Control Cost Schedules'!AW176 -> 125000 | AY164: ='Control Cost Schedules'!AX176 -> 0 | AZ164: ='Control Cost Schedules'!AY176 -> 0 | BA164: ='Control Cost Schedules'!AZ176 -> 0 | BB164: ='Control Cost Schedules'!BA176 -> 0
A165: Willow Creek Pump Canal | B165: 3 | C165: canal | D165: 1 | E165: ='Control Cost Schedules'!D177 -> 0 | F165: ='Control Cost Schedules'!E177 -> 0 | G165: ='Control Cost Schedules'!F177 -> 0 | H165: ='Control Cost Schedules'!G177 -> 0 | I165: ='Control Cost Schedules'!H177 -> 0 | J165: ='Control Cost Schedules'!I177 -> 0 | K165: ='Control Cost Schedules'!J177 -> 0 | L165: ='Control Cost Schedules'!K177 -> 0 | M165: ='Control Cost Schedules'!L177 -> 0 | N165: ='Control Cost Schedules'!M177 -> 0 | O165: ='Control Cost Schedules'!N177 -> 0 | P165: ='Control Cost Schedules'!O177 -> 0 | Q165: ='Control Cost Schedules'!P177 -> 0 | R165: ='Control Cost Schedules'!Q177 -> 0 | S165: ='Control Cost Schedules'!R177 -> 0 | T165: ='Control Cost Schedules'!S177 -> 0 | U165: ='Control Cost Schedules'!T177 -> 0 | V165: ='Control Cost Schedules'!U177 -> 0 | W165: ='Control Cost Schedules'!V177 -> 0 | X165: ='Control Cost Schedules'!W177 -> 0 | Y165: ='Control Cost Schedules'!X177 -> 0 | Z165: ='Control Cost Schedules'!Y177 -> 0 | AA165: ='Control Cost Schedules'!Z177 -> 0 | AB165: ='Control Cost Schedules'!AA177 -> 0 | AC165: ='Control Cost Schedules'!AB177 -> 0 | AD165: ='Control Cost Schedules'!AC177 -> 0 | AE165: ='Control Cost Schedules'!AD177 -> 0 | AF165: ='Control Cost Schedules'!AE177 -> 0 | AG165: ='Control Cost Schedules'!AF177 -> 0 | AH165: ='Control Cost Schedules'!AG177 -> 0 | AI165: ='Control Cost Schedules'!AH177 -> 0 | AJ165: ='Control Cost Schedules'!AI177 -> 0 | AK165: ='Control Cost Schedules'!AJ177 -> 0 | AL165: ='Control Cost Schedules'!AK177 -> 0 | AM165: ='Control Cost Schedules'!AL177 -> 0 | AN165: ='Control Cost Schedules'!AM177 -> 0 | AO165: ='Control Cost Schedules'!AN177 -> 0 | AP165: ='Control Cost Schedules'!AO177 -> 0 | AQ165: ='Control Cost Schedules'!AP177 -> 0 | AR165: ='Control Cost Schedules'!AQ177 -> 0 | AS165: ='Control Cost Schedules'!AR177 -> 0 | AT165: ='Control Cost Schedules'!AS177 -> 0 | AU165: ='Control Cost Schedules'!AT177 -> 0 | AV165: ='Control Cost Schedules'!AU177 -> 0 | AW165: ='Control Cost Schedules'!AV177 -> 0 | AX165: ='Control Cost Schedules'!AW177 -> 0 | AY165: ='Control Cost Schedules'!AX177 -> 0 | AZ165: ='Control Cost Schedules'!AY177 -> 0 | BA165: ='Control Cost Schedules'!AZ177 -> 0 | BB165: ='Control Cost Schedules'!BA177 -> 0
A166: Willow Creek Pump Plant | B166: 4 | C166: pump plant | D166: 1 | E166: ='Control Cost Schedules'!D178 -> 0 | F166: ='Control Cost Schedules'!E178 -> 0 | G166: ='Control Cost Schedules'!F178 -> 0 | H166: ='Control Cost Schedules'!G178 -> 0 | I166: ='Control Cost Schedules'!H178 -> 0 | J166: ='Control Cost Schedules'!I178 -> 0 | K166: ='Control Cost Schedules'!J178 -> 0 | L166: ='Control Cost Schedules'!K178 -> 0 | M166: ='Control Cost Schedules'!L178 -> 0 | N166: ='Control Cost Schedules'!M178 -> 0 | O166: ='Control Cost Schedules'!N178 -> 0 | P166: ='Control Cost Schedules'!O178 -> 0 | Q166: ='Control Cost Schedules'!P178 -> 0 | R166: ='Control Cost Schedules'!Q178 -> 0 | S166: ='Control Cost Schedules'!R178 -> 0 | T166: ='Control Cost Schedules'!S178 -> 0 | U166: ='Control Cost Schedules'!T178 -> 0 | V166: ='Control Cost Schedules'!U178 -> 0 | W166: ='Control Cost Schedules'!V178 -> 0 | X166: ='Control Cost Schedules'!W178 -> 0 | Y166: ='Control Cost Schedules'!X178 -> 0 | Z166: ='Control Cost Schedules'!Y178 -> 0 | AA166: ='Control Cost Schedules'!Z178 -> 0 | AB166: ='Control Cost Schedules'!AA178 -> 0 | AC166: ='Control Cost Schedules'!AB178 -> 0 | AD166: ='Control Cost Schedules'!AC178 -> 0 | AE166: ='Control Cost Schedules'!AD178 -> 0 | AF166: ='Control Cost Schedules'!AE178 -> 0 | AG166: ='Control Cost Schedules'!AF178 -> 0 | AH166: ='Control Cost Schedules'!AG178 -> 0 | AI166: ='Control Cost Schedules'!AH178 -> 0 | AJ166: ='Control Cost Schedules'!AI178 -> 0 | AK166: ='Control Cost Schedules'!AJ178 -> 0 | AL166: ='Control Cost Schedules'!AK178 -> 0 | AM166: ='Control Cost Schedules'!AL178 -> 0 | AN166: ='Control Cost Schedules'!AM178 -> 0 | AO166: ='Control Cost Schedules'!AN178 -> 0 | AP166: ='Control Cost Schedules'!AO178 -> 0 | AQ166: ='Control Cost Schedules'!AP178 -> 0 | AR166: ='Control Cost Schedules'!AQ178 -> 0 | AS166: ='Control Cost Schedules'!AR178 -> 0 | AT166: ='Control Cost Schedules'!AS178 -> 0 | AU166: ='Control Cost Schedules'!AT178 -> 0 | AV166: ='Control Cost Schedules'!AU178 -> 0 | AW166: ='Control Cost Schedules'!AV178 -> 0 | AX166: ='Control Cost Schedules'!AW178 -> 0 | AY166: ='Control Cost Schedules'!AX178 -> 0 | AZ166: ='Control Cost Schedules'!AY178 -> 0 | BA166: ='Control Cost Schedules'!AZ178 -> 0 | BB166: ='Control Cost Schedules'!BA178 -> 0
A167: Granby Dam | B167: 5 | C167: dam | D167: 2 | E167: ='Control Cost Schedules'!D179 -> 125000 | F167: ='Control Cost Schedules'!E179 -> 0 | G167: ='Control Cost Schedules'!F179 -> 0 | H167: ='Control Cost Schedules'!G179 -> 0 | I167: ='Control Cost Schedules'!H179 -> 0 | J167: ='Control Cost Schedules'!I179 -> 125000 | K167: ='Control Cost Schedules'!J179 -> 0 | L167: ='Control Cost Schedules'!K179 -> 0 | M167: ='Control Cost Schedules'!L179 -> 0 | N167: ='Control Cost Schedules'!M179 -> 0 | O167: ='Control Cost Schedules'!N179 -> 125000 | P167: ='Control Cost Schedules'!O179 -> 0 | Q167: ='Control Cost Schedules'!P179 -> 0 | R167: ='Control Cost Schedules'!Q179 -> 0 | S167: ='Control Cost Schedules'!R179 -> 0 | T167: ='Control Cost Schedules'!S179 -> 125000 | U167: ='Control Cost Schedules'!T179 -> 0 | V167: ='Control Cost Schedules'!U179 -> 0 | W167: ='Control Cost Schedules'!V179 -> 0 | X167: ='Control Cost Schedules'!W179 -> 0 | Y167: ='Control Cost Schedules'!X179 -> 125000 | Z167: ='Control Cost Schedules'!Y179 -> 0 | AA167: ='Control Cost Schedules'!Z179 -> 0 | AB167: ='Control Cost Schedules'!AA179 -> 0 | AC167: ='Control Cost Schedules'!AB179 -> 0 | AD167: ='Control Cost Schedules'!AC179 -> 125000 | AE167: ='Control Cost Schedules'!AD179 -> 0 | AF167: ='Control Cost Schedules'!AE179 -> 0 | AG167: ='Control Cost Schedules'!AF179 -> 0 | AH167: ='Control Cost Schedules'!AG179 -> 0 | AI167: ='Control Cost Schedules'!AH179 -> 125000 | AJ167: ='Control Cost Schedules'!AI179 -> 0 | AK167: ='Control Cost Schedules'!AJ179 -> 0 | AL167: ='Control Cost Schedules'!AK179 -> 0 | AM167: ='Control Cost Schedules'!AL179 -> 0 | AN167: ='Control Cost Schedules'!AM179 -> 125000 | AO167: ='Control Cost Schedules'!AN179 -> 0 | AP167: ='Control Cost Schedules'!AO179 -> 0 | AQ167: ='Control Cost Schedules'!AP179 -> 0 | AR167: ='Control Cost Schedules'!AQ179 -> 0 | AS167: ='Control Cost Schedules'!AR179 -> 125000 | AT167: ='Control Cost Schedules'!AS179 -> 0 | AU167: ='Control Cost Schedules'!AT179 -> 0 | AV167: ='Control Cost Schedules'!AU179 -> 0 | AW167: ='Control Cost Schedules'!AV179 -> 0 | AX167: ='Control Cost Schedules'!AW179 -> 125000 | AY167: ='Control Cost Schedules'!AX179 -> 0 | AZ167: ='Control Cost Schedules'!AY179 -> 0 | BA167: ='Control Cost Schedules'!AZ179 -> 0 | BB167: ='Control Cost Schedules'!BA179 -> 0
A168: Farr Pumping Plant | B168: 6 | C168: pump plant | D168: 2 | E168: ='Control Cost Schedules'!D180 -> 8677.15654 | F168: ='Control Cost Schedules'!E180 -> 8677.15654 | G168: ='Control Cost Schedules'!F180 -> 8677.15654 | H168: ='Control Cost Schedules'!G180 -> 8677.15654 | I168: ='Control Cost Schedules'!H180 -> 8677.15654 | J168: ='Control Cost Schedules'!I180 -> 8677.15654 | K168: ='Control Cost Schedules'!J180 -> 8677.15654 | L168: ='Control Cost Schedules'!K180 -> 8677.15654 | M168: ='Control Cost Schedules'!L180 -> 8677.15654 | N168: ='Control Cost Schedules'!M180 -> 8677.15654 | O168: ='Control Cost Schedules'!N180 -> 8677.15654 | P168: ='Control Cost Schedules'!O180 -> 8677.15654 | Q168: ='Control Cost Schedules'!P180 -> 8677.15654 | R168: ='Control Cost Schedules'!Q180 -> 8677.15654 | S168: ='Control Cost Schedules'!R180 -> 8677.15654 | T168: ='Control Cost Schedules'!S180 -> 8677.15654 | U168: ='Control Cost Schedules'!T180 -> 8677.15654 | V168: ='Control Cost Schedules'!U180 -> 8677.15654 | W168: ='Control Cost Schedules'!V180 -> 8677.15654 | X168: ='Control Cost Schedules'!W180 -> 8677.15654 | Y168: ='Control Cost Schedules'!X180 -> 8677.15654 | Z168: ='Control Cost Schedules'!Y180 -> 3375 | AA168: ='Control Cost Schedules'!Z180 -> 3375 | AB168: ='Control Cost Schedules'!AA180 -> 3375 | AC168: ='Control Cost Schedules'!AB180 -> 3375 | AD168: ='Control Cost Schedules'!AC180 -> 3375 | AE168: ='Control Cost Schedules'!AD180 -> 3375 | AF168: ='Control Cost Schedules'!AE180 -> 3375 | AG168: ='Control Cost Schedules'!AF180 -> 3375 | AH168: ='Control Cost Schedules'!AG180 -> 3375 | AI168: ='Control Cost Schedules'!AH180 -> 3375 | AJ168: ='Control Cost Schedules'!AI180 -> 3375 | AK168: ='Control Cost Schedules'!AJ180 -> 3375 | AL168: ='Control Cost Schedules'!AK180 -> 3375 | AM168: ='Control Cost Schedules'!AL180 -> 3375 | AN168: ='Control Cost Schedules'!AM180 -> 3375 | AO168: ='Control Cost Schedules'!AN180 -> 3375 | AP168: ='Control Cost Schedules'!AO180 -> 3375 | AQ168: ='Control Cost Schedules'!AP180 -> 3375 | AR168: ='Control Cost Schedules'!AQ180 -> 3375 | AS168: ='Control Cost Schedules'!AR180 -> 3375 | AT168: ='Control Cost Schedules'!AS180 -> 3375 | AU168: ='Control Cost Schedules'!AT180 -> 3375 | AV168: ='Control Cost Schedules'!AU180 -> 3375 | AW168: ='Control Cost Schedules'!AV180 -> 3375 | AX168: ='Control Cost Schedules'!AW180 -> 3375 | AY168: ='Control Cost Schedules'!AX180 -> 3375 | AZ168: ='Control Cost Schedules'!AY180 -> 3375 | BA168: ='Control Cost Schedules'!AZ180 -> 3375 | BB168: ='Control Cost Schedules'!BA180 -> 0
A169: Granby Pump Canal | B169: 7 | C169: canal | D169: 2 | E169: ='Control Cost Schedules'!D181 -> 0 | F169: ='Control Cost Schedules'!E181 -> 0 | G169: ='Control Cost Schedules'!F181 -> 0 | H169: ='Control Cost Schedules'!G181 -> 0 | I169: ='Control Cost Schedules'!H181 -> 0 | J169: ='Control Cost Schedules'!I181 -> 0 | K169: ='Control Cost Schedules'!J181 -> 0 | L169: ='Control Cost Schedules'!K181 -> 0 | M169: ='Control Cost Schedules'!L181 -> 0 | N169: ='Control Cost Schedules'!M181 -> 0 | O169: ='Control Cost Schedules'!N181 -> 0 | P169: ='Control Cost Schedules'!O181 -> 0 | Q169: ='Control Cost Schedules'!P181 -> 0 | R169: ='Control Cost Schedules'!Q181 -> 0 | S169: ='Control Cost Schedules'!R181 -> 0 | T169: ='Control Cost Schedules'!S181 -> 0 | U169: ='Control Cost Schedules'!T181 -> 0 | V169: ='Control Cost Schedules'!U181 -> 0 | W169: ='Control Cost Schedules'!V181 -> 0 | X169: ='Control Cost Schedules'!W181 -> 0 | Y169: ='Control Cost Schedules'!X181 -> 0 | Z169: ='Control Cost Schedules'!Y181 -> 0 | AA169: ='Control Cost Schedules'!Z181 -> 0 | AB169: ='Control Cost Schedules'!AA181 -> 0 | AC169: ='Control Cost Schedules'!AB181 -> 0 | AD169: ='Control Cost Schedules'!AC181 -> 0 | AE169: ='Control Cost Schedules'!AD181 -> 0 | AF169: ='Control Cost Schedules'!AE181 -> 0 | AG169: ='Control Cost Schedules'!AF181 -> 0 | AH169: ='Control Cost Schedules'!AG181 -> 0 | AI169: ='Control Cost Schedules'!AH181 -> 0 | AJ169: ='Control Cost Schedules'!AI181 -> 0 | AK169: ='Control Cost Schedules'!AJ181 -> 0 | AL169: ='Control Cost Schedules'!AK181 -> 0 | AM169: ='Control Cost Schedules'!AL181 -> 0 | AN169: ='Control Cost Schedules'!AM181 -> 0 | AO169: ='Control Cost Schedules'!AN181 -> 0 | AP169: ='Control Cost Schedules'!AO181 -> 0 | AQ169: ='Control Cost Schedules'!AP181 -> 0 | AR169: ='Control Cost Schedules'!AQ181 -> 0 | AS169: ='Control Cost Schedules'!AR181 -> 0 | AT169: ='Control Cost Schedules'!AS181 -> 0 | AU169: ='Control Cost Schedules'!AT181 -> 0 | AV169: ='Control Cost Schedules'!AU181 -> 0 | AW169: ='Control Cost Schedules'!AV181 -> 0 | AX169: ='Control Cost Schedules'!AW181 -> 0 | AY169: ='Control Cost Schedules'!AX181 -> 0 | AZ169: ='Control Cost Schedules'!AY181 -> 0 | BA169: ='Control Cost Schedules'!AZ181 -> 0 | BB169: ='Control Cost Schedules'!BA181 -> 0
A170: Shadow Mountain Dam | B170: 8 | C170: dam | D170: 3 | E170: ='Control Cost Schedules'!D182 -> 0 | F170: ='Control Cost Schedules'!E182 -> 0 | G170: ='Control Cost Schedules'!F182 -> 0 | H170: ='Control Cost Schedules'!G182 -> 0 | I170: ='Control Cost Schedules'!H182 -> 0 | J170: ='Control Cost Schedules'!I182 -> 0 | K170: ='Control Cost Schedules'!J182 -> 0 | L170: ='Control Cost Schedules'!K182 -> 0 | M170: ='Control Cost Schedules'!L182 -> 0 | N170: ='Control Cost Schedules'!M182 -> 0 | O170: ='Control Cost Schedules'!N182 -> 0 | P170: ='Control Cost Schedules'!O182 -> 0 | Q170: ='Control Cost Schedules'!P182 -> 0 | R170: ='Control Cost Schedules'!Q182 -> 0 | S170: ='Control Cost Schedules'!R182 -> 0 | T170: ='Control Cost Schedules'!S182 -> 0 | U170: ='Control Cost Schedules'!T182 -> 0 | V170: ='Control Cost Schedules'!U182 -> 0 | W170: ='Control Cost Schedules'!V182 -> 0 | X170: ='Control Cost Schedules'!W182 -> 0 | Y170: ='Control Cost Schedules'!X182 -> 0 | Z170: ='Control Cost Schedules'!Y182 -> 0 | AA170: ='Control Cost Schedules'!Z182 -> 0 | AB170: ='Control Cost Schedules'!AA182 -> 0 | AC170: ='Control Cost Schedules'!AB182 -> 0 | AD170: ='Control Cost Schedules'!AC182 -> 0 | AE170: ='Control Cost Schedules'!AD182 -> 0 | AF170: ='Control Cost Schedules'!AE182 -> 0 | AG170: ='Control Cost Schedules'!AF182 -> 0 | AH170: ='Control Cost Schedules'!AG182 -> 0 | AI170: ='Control Cost Schedules'!AH182 -> 0 | AJ170: ='Control Cost Schedules'!AI182 -> 0 | AK170: ='Control Cost Schedules'!AJ182 -> 0 | AL170: ='Control Cost Schedules'!AK182 -> 0 | AM170: ='Control Cost Schedules'!AL182 -> 0 | AN170: ='Control Cost Schedules'!AM182 -> 0 | AO170: ='Control Cost Schedules'!AN182 -> 0 | AP170: ='Control Cost Schedules'!AO182 -> 0 | AQ170: ='Control Cost Schedules'!AP182 -> 0 | AR170: ='Control Cost Schedules'!AQ182 -> 0 | AS170: ='Control Cost Schedules'!AR182 -> 0 | AT170: ='Control Cost Schedules'!AS182 -> 0 | AU170: ='Control Cost Schedules'!AT182 -> 0 | AV170: ='Control Cost Schedules'!AU182 -> 0 | AW170: ='Control Cost Schedules'!AV182 -> 0 | AX170: ='Control Cost Schedules'!AW182 -> 0 | AY170: ='Control Cost Schedules'!AX182 -> 0 | AZ170: ='Control Cost Schedules'!AY182 -> 0 | BA170: ='Control Cost Schedules'!AZ182 -> 0 | BB170: ='Control Cost Schedules'!BA182 -> 0
A171: Adams Tunnel | B171: 9 | C171: tunnel | D171: 4 | E171: ='Control Cost Schedules'!D183 -> 250000 | F171: ='Control Cost Schedules'!E183 -> 0 | G171: ='Control Cost Schedules'!F183 -> 0 | H171: ='Control Cost Schedules'!G183 -> 0 | I171: ='Control Cost Schedules'!H183 -> 0 | J171: ='Control Cost Schedules'!I183 -> 250000 | K171: ='Control Cost Schedules'!J183 -> 0 | L171: ='Control Cost Schedules'!K183 -> 0 | M171: ='Control Cost Schedules'!L183 -> 0 | N171: ='Control Cost Schedules'!M183 -> 0 | O171: ='Control Cost Schedules'!N183 -> 250000 | P171: ='Control Cost Schedules'!O183 -> 0 | Q171: ='Control Cost Schedules'!P183 -> 0 | R171: ='Control Cost Schedules'!Q183 -> 0 | S171: ='Control Cost Schedules'!R183 -> 0 | T171: ='Control Cost Schedules'!S183 -> 250000 | U171: ='Control Cost Schedules'!T183 -> 0 | V171: ='Control Cost Schedules'!U183 -> 0 | W171: ='Control Cost Schedules'!V183 -> 0 | X171: ='Control Cost Schedules'!W183 -> 0 | Y171: ='Control Cost Schedules'!X183 -> 250000 | Z171: ='Control Cost Schedules'!Y183 -> 0 | AA171: ='Control Cost Schedules'!Z183 -> 0 | AB171: ='Control Cost Schedules'!AA183 -> 0 | AC171: ='Control Cost Schedules'!AB183 -> 0 | AD171: ='Control Cost Schedules'!AC183 -> 250000 | AE171: ='Control Cost Schedules'!AD183 -> 0 | AF171: ='Control Cost Schedules'!AE183 -> 0 | AG171: ='Control Cost Schedules'!AF183 -> 0 | AH171: ='Control Cost Schedules'!AG183 -> 0 | AI171: ='Control Cost Schedules'!AH183 -> 250000 | AJ171: ='Control Cost Schedules'!AI183 -> 0 | AK171: ='Control Cost Schedules'!AJ183 -> 0 | AL171: ='Control Cost Schedules'!AK183 -> 0 | AM171: ='Control Cost Schedules'!AL183 -> 0 | AN171: ='Control Cost Schedules'!AM183 -> 250000 | AO171: ='Control Cost Schedules'!AN183 -> 0 | AP171: ='Control Cost Schedules'!AO183 -> 0 | AQ171: ='Control Cost Schedules'!AP183 -> 0 | AR171: ='Control Cost Schedules'!AQ183 -> 0 | AS171: ='Control Cost Schedules'!AR183 -> 250000 | AT171: ='Control Cost Schedules'!AS183 -> 0 | AU171: ='Control Cost Schedules'!AT183 -> 0 | AV171: ='Control Cost Schedules'!AU183 -> 0 | AW171: ='Control Cost Schedules'!AV183 -> 0 | AX171: ='Control Cost Schedules'!AW183 -> 250000 | AY171: ='Control Cost Schedules'!AX183 -> 0 | AZ171: ='Control Cost Schedules'!AY183 -> 0 | BA171: ='Control Cost Schedules'!AZ183 -> 0 | BB171: ='Control Cost Schedules'!BA183 -> 0
A172: East Portal Dam | B172: 10 | C172: dam | D172: 5 | E172: ='Control Cost Schedules'!D184 -> 125000 | F172: ='Control Cost Schedules'!E184 -> 0 | G172: ='Control Cost Schedules'!F184 -> 0 | H172: ='Control Cost Schedules'!G184 -> 0 | I172: ='Control Cost Schedules'!H184 -> 0 | J172: ='Control Cost Schedules'!I184 -> 125000 | K172: ='Control Cost Schedules'!J184 -> 0 | L172: ='Control Cost Schedules'!K184 -> 0 | M172: ='Control Cost Schedules'!L184 -> 0 | N172: ='Control Cost Schedules'!M184 -> 0 | O172: ='Control Cost Schedules'!N184 -> 125000 | P172: ='Control Cost Schedules'!O184 -> 0 | Q172: ='Control Cost Schedules'!P184 -> 0 | R172: ='Control Cost Schedules'!Q184 -> 0 | S172: ='Control Cost Schedules'!R184 -> 0 | T172: ='Control Cost Schedules'!S184 -> 125000 | U172: ='Control Cost Schedules'!T184 -> 0 | V172: ='Control Cost Schedules'!U184 -> 0 | W172: ='Control Cost Schedules'!V184 -> 0 | X172: ='Control Cost Schedules'!W184 -> 0 | Y172: ='Control Cost Schedules'!X184 -> 125000 | Z172: ='Control Cost Schedules'!Y184 -> 0 | AA172: ='Control Cost Schedules'!Z184 -> 0 | AB172: ='Control Cost Schedules'!AA184 -> 0 | AC172: ='Control Cost Schedules'!AB184 -> 0 | AD172: ='Control Cost Schedules'!AC184 -> 125000 | AE172: ='Control Cost Schedules'!AD184 -> 0 | AF172: ='Control Cost Schedules'!AE184 -> 0 | AG172: ='Control Cost Schedules'!AF184 -> 0 | AH172: ='Control Cost Schedules'!AG184 -> 0 | AI172: ='Control Cost Schedules'!AH184 -> 125000 | AJ172: ='Control Cost Schedules'!AI184 -> 0 | AK172: ='Control Cost Schedules'!AJ184 -> 0 | AL172: ='Control Cost Schedules'!AK184 -> 0 | AM172: ='Control Cost Schedules'!AL184 -> 0 | AN172: ='Control Cost Schedules'!AM184 -> 125000 | AO172: ='Control Cost Schedules'!AN184 -> 0 | AP172: ='Control Cost Schedules'!AO184 -> 0 | AQ172: ='Control Cost Schedules'!AP184 -> 0 | AR172: ='Control Cost Schedules'!AQ184 -> 0 | AS172: ='Control Cost Schedules'!AR184 -> 125000 | AT172: ='Control Cost Schedules'!AS184 -> 0 | AU172: ='Control Cost Schedules'!AT184 -> 0 | AV172: ='Control Cost Schedules'!AU184 -> 0 | AW172: ='Control Cost Schedules'!AV184 -> 0 | AX172: ='Control Cost Schedules'!AW184 -> 125000 | AY172: ='Control Cost Schedules'!AX184 -> 0 | AZ172: ='Control Cost Schedules'!AY184 -> 0 | BA172: ='Control Cost Schedules'!AZ184 -> 0 | BB172: ='Control Cost Schedules'!BA184 -> 0
A173: Rams Horn Tunnel | B173: 11 | C173: tunnel | D173: 5 | E173: ='Control Cost Schedules'!D185 -> 0 | F173: ='Control Cost Schedules'!E185 -> 0 | G173: ='Control Cost Schedules'!F185 -> 0 | H173: ='Control Cost Schedules'!G185 -> 0 | I173: ='Control Cost Schedules'!H185 -> 0 | J173: ='Control Cost Schedules'!I185 -> 0 | K173: ='Control Cost Schedules'!J185 -> 0 | L173: ='Control Cost Schedules'!K185 -> 0 | M173: ='Control Cost Schedules'!L185 -> 0 | N173: ='Control Cost Schedules'!M185 -> 0 | O173: ='Control Cost Schedules'!N185 -> 0 | P173: ='Control Cost Schedules'!O185 -> 0 | Q173: ='Control Cost Schedules'!P185 -> 0 | R173: ='Control Cost Schedules'!Q185 -> 0 | S173: ='Control Cost Schedules'!R185 -> 0 | T173: ='Control Cost Schedules'!S185 -> 0 | U173: ='Control Cost Schedules'!T185 -> 0 | V173: ='Control Cost Schedules'!U185 -> 0 | W173: ='Control Cost Schedules'!V185 -> 0 | X173: ='Control Cost Schedules'!W185 -> 0 | Y173: ='Control Cost Schedules'!X185 -> 0 | Z173: ='Control Cost Schedules'!Y185 -> 0 | AA173: ='Control Cost Schedules'!Z185 -> 0 | AB173: ='Control Cost Schedules'!AA185 -> 0 | AC173: ='Control Cost Schedules'!AB185 -> 0 | AD173: ='Control Cost Schedules'!AC185 -> 0 | AE173: ='Control Cost Schedules'!AD185 -> 0 | AF173: ='Control Cost Schedules'!AE185 -> 0 | AG173: ='Control Cost Schedules'!AF185 -> 0 | AH173: ='Control Cost Schedules'!AG185 -> 0 | AI173: ='Control Cost Schedules'!AH185 -> 0 | AJ173: ='Control Cost Schedules'!AI185 -> 0 | AK173: ='Control Cost Schedules'!AJ185 -> 0 | AL173: ='Control Cost Schedules'!AK185 -> 0 | AM173: ='Control Cost Schedules'!AL185 -> 0 | AN173: ='Control Cost Schedules'!AM185 -> 0 | AO173: ='Control Cost Schedules'!AN185 -> 0 | AP173: ='Control Cost Schedules'!AO185 -> 0 | AQ173: ='Control Cost Schedules'!AP185 -> 0 | AR173: ='Control Cost Schedules'!AQ185 -> 0 | AS173: ='Control Cost Schedules'!AR185 -> 0 | AT173: ='Control Cost Schedules'!AS185 -> 0 | AU173: ='Control Cost Schedules'!AT185 -> 0 | AV173: ='Control Cost Schedules'!AU185 -> 0 | AW173: ='Control Cost Schedules'!AV185 -> 0 | AX173: ='Control Cost Schedules'!AW185 -> 0 | AY173: ='Control Cost Schedules'!AX185 -> 0 | AZ173: ='Control Cost Schedules'!AY185 -> 0 | BA173: ='Control Cost Schedules'!AZ185 -> 0 | BB173: ='Control Cost Schedules'!BA185 -> 0
A174: Mary's Lake Hydropower Plant | B174: 12 | C174: hydropower | D174: 5 | E174: ='Control Cost Schedules'!D186 -> 1561.888177 | F174: ='Control Cost Schedules'!E186 -> 1561.888177 | G174: ='Control Cost Schedules'!F186 -> 1561.888177 | H174: ='Control Cost Schedules'!G186 -> 1561.888177 | I174: ='Control Cost Schedules'!H186 -> 1561.888177 | J174: ='Control Cost Schedules'!I186 -> 1561.888177 | K174: ='Control Cost Schedules'!J186 -> 1561.888177 | L174: ='Control Cost Schedules'!K186 -> 1561.888177 | M174: ='Control Cost Schedules'!L186 -> 1561.888177 | N174: ='Control Cost Schedules'!M186 -> 1561.888177 | O174: ='Control Cost Schedules'!N186 -> 1561.888177 | P174: ='Control Cost Schedules'!O186 -> 1561.888177 | Q174: ='Control Cost Schedules'!P186 -> 1561.888177 | R174: ='Control Cost Schedules'!Q186 -> 1561.888177 | S174: ='Control Cost Schedules'!R186 -> 1561.888177 | T174: ='Control Cost Schedules'!S186 -> 1561.888177 | U174: ='Control Cost Schedules'!T186 -> 1561.888177 | V174: ='Control Cost Schedules'!U186 -> 1561.888177 | W174: ='Control Cost Schedules'!V186 -> 1561.888177 | X174: ='Control Cost Schedules'!W186 -> 1561.888177 | Y174: ='Control Cost Schedules'!X186 -> 1561.888177 | Z174: ='Control Cost Schedules'!Y186 -> 607.5 | AA174: ='Control Cost Schedules'!Z186 -> 607.5 | AB174: ='Control Cost Schedules'!AA186 -> 607.5 | AC174: ='Control Cost Schedules'!AB186 -> 607.5 | AD174: ='Control Cost Schedules'!AC186 -> 607.5 | AE174: ='Control Cost Schedules'!AD186 -> 607.5 | AF174: ='Control Cost Schedules'!AE186 -> 607.5 | AG174: ='Control Cost Schedules'!AF186 -> 607.5 | AH174: ='Control Cost Schedules'!AG186 -> 607.5 | AI174: ='Control Cost Schedules'!AH186 -> 607.5 | AJ174: ='Control Cost Schedules'!AI186 -> 607.5 | AK174: ='Control Cost Schedules'!AJ186 -> 607.5 | AL174: ='Control Cost Schedules'!AK186 -> 607.5 | AM174: ='Control Cost Schedules'!AL186 -> 607.5 | AN174: ='Control Cost Schedules'!AM186 -> 607.5 | AO174: ='Control Cost Schedules'!AN186 -> 607.5 | AP174: ='Control Cost Schedules'!AO186 -> 607.5 | AQ174: ='Control Cost Schedules'!AP186 -> 607.5 | AR174: ='Control Cost Schedules'!AQ186 -> 607.5 | AS174: ='Control Cost Schedules'!AR186 -> 607.5 | AT174: ='Control Cost Schedules'!AS186 -> 607.5 | AU174: ='Control Cost Schedules'!AT186 -> 607.5 | AV174: ='Control Cost Schedules'!AU186 -> 607.5 | AW174: ='Control Cost Schedules'!AV186 -> 607.5 | AX174: ='Control Cost Schedules'!AW186 -> 607.5 | AY174: ='Control Cost Schedules'!AX186 -> 607.5 | AZ174: ='Control Cost Schedules'!AY186 -> 607.5 | BA174: ='Control Cost Schedules'!AZ186 -> 607.5 | BB174: ='Control Cost Schedules'!BA186 -> 0
A175: Prospect Mountain Tunnel | B175: 13 | C175: tunnel | D175: 6 | E175: ='Control Cost Schedules'!D187 -> 0 | F175: ='Control Cost Schedules'!E187 -> 0 | G175: ='Control Cost Schedules'!F187 -> 0 | H175: ='Control Cost Schedules'!G187 -> 0 | I175: ='Control Cost Schedules'!H187 -> 0 | J175: ='Control Cost Schedules'!I187 -> 0 | K175: ='Control Cost Schedules'!J187 -> 0 | L175: ='Control Cost Schedules'!K187 -> 0 | M175: ='Control Cost Schedules'!L187 -> 0 | N175: ='Control Cost Schedules'!M187 -> 0 | O175: ='Control Cost Schedules'!N187 -> 0 | P175: ='Control Cost Schedules'!O187 -> 0 | Q175: ='Control Cost Schedules'!P187 -> 0 | R175: ='Control Cost Schedules'!Q187 -> 0 | S175: ='Control Cost Schedules'!R187 -> 0 | T175: ='Control Cost Schedules'!S187 -> 0 | U175: ='Control Cost Schedules'!T187 -> 0 | V175: ='Control Cost Schedules'!U187 -> 0 | W175: ='Control Cost Schedules'!V187 -> 0 | X175: ='Control Cost Schedules'!W187 -> 0 | Y175: ='Control Cost Schedules'!X187 -> 0 | Z175: ='Control Cost Schedules'!Y187 -> 0 | AA175: ='Control Cost Schedules'!Z187 -> 0 | AB175: ='Control Cost Schedules'!AA187 -> 0 | AC175: ='Control Cost Schedules'!AB187 -> 0 | AD175: ='Control Cost Schedules'!AC187 -> 0 | AE175: ='Control Cost Schedules'!AD187 -> 0 | AF175: ='Control Cost Schedules'!AE187 -> 0 | AG175: ='Control Cost Schedules'!AF187 -> 0 | AH175: ='Control Cost Schedules'!AG187 -> 0 | AI175: ='Control Cost Schedules'!AH187 -> 0 | AJ175: ='Control Cost Schedules'!AI187 -> 0 | AK175: ='Control Cost Schedules'!AJ187 -> 0 | AL175: ='Control Cost Schedules'!AK187 -> 0 | AM175: ='Control Cost Schedules'!AL187 -> 0 | AN175: ='Control Cost Schedules'!AM187 -> 0 | AO175: ='Control Cost Schedules'!AN187 -> 0 | AP175: ='Control Cost Schedules'!AO187 -> 0 | AQ175: ='Control Cost Schedules'!AP187 -> 0 | AR175: ='Control Cost Schedules'!AQ187 -> 0 | AS175: ='Control Cost Schedules'!AR187 -> 0 | AT175: ='Control Cost Schedules'!AS187 -> 0 | AU175: ='Control Cost Schedules'!AT187 -> 0 | AV175: ='Control Cost Schedules'!AU187 -> 0 | AW175: ='Control Cost Schedules'!AV187 -> 0 | AX175: ='Control Cost Schedules'!AW187 -> 0 | AY175: ='Control Cost Schedules'!AX187 -> 0 | AZ175: ='Control Cost Schedules'!AY187 -> 0 | BA175: ='Control Cost Schedules'!AZ187 -> 0 | BB175: ='Control Cost Schedules'!BA187 -> 0
A176: Estes Hydropower Plant | B176: 14 | C176: hydropower | D176: 6 | E176: ='Control Cost Schedules'!D188 -> 8677.15654 | F176: ='Control Cost Schedules'!E188 -> 8677.15654 | G176: ='Control Cost Schedules'!F188 -> 8677.15654 | H176: ='Control Cost Schedules'!G188 -> 8677.15654 | I176: ='Control Cost Schedules'!H188 -> 8677.15654 | J176: ='Control Cost Schedules'!I188 -> 8677.15654 | K176: ='Control Cost Schedules'!J188 -> 8677.15654 | L176: ='Control Cost Schedules'!K188 -> 8677.15654 | M176: ='Control Cost Schedules'!L188 -> 8677.15654 | N176: ='Control Cost Schedules'!M188 -> 8677.15654 | O176: ='Control Cost Schedules'!N188 -> 8677.15654 | P176: ='Control Cost Schedules'!O188 -> 8677.15654 | Q176: ='Control Cost Schedules'!P188 -> 8677.15654 | R176: ='Control Cost Schedules'!Q188 -> 8677.15654 | S176: ='Control Cost Schedules'!R188 -> 8677.15654 | T176: ='Control Cost Schedules'!S188 -> 8677.15654 | U176: ='Control Cost Schedules'!T188 -> 8677.15654 | V176: ='Control Cost Schedules'!U188 -> 8677.15654 | W176: ='Control Cost Schedules'!V188 -> 8677.15654 | X176: ='Control Cost Schedules'!W188 -> 8677.15654 | Y176: ='Control Cost Schedules'!X188 -> 8677.15654 | Z176: ='Control Cost Schedules'!Y188 -> 3375 | AA176: ='Control Cost Schedules'!Z188 -> 3375 | AB176: ='Control Cost Schedules'!AA188 -> 3375 | AC176: ='Control Cost Schedules'!AB188 -> 3375 | AD176: ='Control Cost Schedules'!AC188 -> 3375 | AE176: ='Control Cost Schedules'!AD188 -> 3375 | AF176: ='Control Cost Schedules'!AE188 -> 3375 | AG176: ='Control Cost Schedules'!AF188 -> 3375 | AH176: ='Control Cost Schedules'!AG188 -> 3375 | AI176: ='Control Cost Schedules'!AH188 -> 3375 | AJ176: ='Control Cost Schedules'!AI188 -> 3375 | AK176: ='Control Cost Schedules'!AJ188 -> 3375 | AL176: ='Control Cost Schedules'!AK188 -> 3375 | AM176: ='Control Cost Schedules'!AL188 -> 3375 | AN176: ='Control Cost Schedules'!AM188 -> 3375 | AO176: ='Control Cost Schedules'!AN188 -> 3375 | AP176: ='Control Cost Schedules'!AO188 -> 3375 | AQ176: ='Control Cost Schedules'!AP188 -> 3375 | AR176: ='Control Cost Schedules'!AQ188 -> 3375 | AS176: ='Control Cost Schedules'!AR188 -> 3375 | AT176: ='Control Cost Schedules'!AS188 -> 3375 | AU176: ='Control Cost Schedules'!AT188 -> 3375 | AV176: ='Control Cost Schedules'!AU188 -> 3375 | AW176: ='Control Cost Schedules'!AV188 -> 3375 | AX176: ='Control Cost Schedules'!AW188 -> 3375 | AY176: ='Control Cost Schedules'!AX188 -> 3375 | AZ176: ='Control Cost Schedules'!AY188 -> 3375 | BA176: ='Control Cost Schedules'!AZ188 -> 3375 | BB176: ='Control Cost Schedules'!BA188 -> 0
A177: Town of Estes | B177: 15 | C177: water filter plant | D177: 6 | E177: ='Control Cost Schedules'!D189 -> 8249.304771 | F177: ='Control Cost Schedules'!E189 -> 8249.304771 | G177: ='Control Cost Schedules'!F189 -> 8249.304771 | H177: ='Control Cost Schedules'!G189 -> 8249.304771 | I177: ='Control Cost Schedules'!H189 -> 8249.304771 | J177: ='Control Cost Schedules'!I189 -> 8249.304771 | K177: ='Control Cost Schedules'!J189 -> 8249.304771 | L177: ='Control Cost Schedules'!K189 -> 8249.304771 | M177: ='Control Cost Schedules'!L189 -> 8249.304771 | N177: ='Control Cost Schedules'!M189 -> 8249.304771 | O177: ='Control Cost Schedules'!N189 -> 8249.304771 | P177: ='Control Cost Schedules'!O189 -> 8249.304771 | Q177: ='Control Cost Schedules'!P189 -> 8249.304771 | R177: ='Control Cost Schedules'!Q189 -> 8249.304771 | S177: ='Control Cost Schedules'!R189 -> 8249.304771 | T177: ='Control Cost Schedules'!S189 -> 8249.304771 | U177: ='Control Cost Schedules'!T189 -> 8249.304771 | V177: ='Control Cost Schedules'!U189 -> 8249.304771 | W177: ='Control Cost Schedules'!V189 -> 8249.304771 | X177: ='Control Cost Schedules'!W189 -> 8249.304771 | Y177: ='Control Cost Schedules'!X189 -> 8249.304771 | Z177: ='Control Cost Schedules'!Y189 -> 3690 | AA177: ='Control Cost Schedules'!Z189 -> 3690 | AB177: ='Control Cost Schedules'!AA189 -> 3690 | AC177: ='Control Cost Schedules'!AB189 -> 3690 | AD177: ='Control Cost Schedules'!AC189 -> 3690 | AE177: ='Control Cost Schedules'!AD189 -> 3690 | AF177: ='Control Cost Schedules'!AE189 -> 3690 | AG177: ='Control Cost Schedules'!AF189 -> 3690 | AH177: ='Control Cost Schedules'!AG189 -> 3690 | AI177: ='Control Cost Schedules'!AH189 -> 3690 | AJ177: ='Control Cost Schedules'!AI189 -> 3690 | AK177: ='Control Cost Schedules'!AJ189 -> 3690 | AL177: ='Control Cost Schedules'!AK189 -> 3690 | AM177: ='Control Cost Schedules'!AL189 -> 3690 | AN177: ='Control Cost Schedules'!AM189 -> 3690 | AO177: ='Control Cost Schedules'!AN189 -> 3690 | AP177: ='Control Cost Schedules'!AO189 -> 3690 | AQ177: ='Control Cost Schedules'!AP189 -> 3690 | AR177: ='Control Cost Schedules'!AQ189 -> 3690 | AS177: ='Control Cost Schedules'!AR189 -> 3690 | AT177: ='Control Cost Schedules'!AS189 -> 3690 | AU177: ='Control Cost Schedules'!AT189 -> 3690 | AV177: ='Control Cost Schedules'!AU189 -> 3690 | AW177: ='Control Cost Schedules'!AV189 -> 3690 | AX177: ='Control Cost Schedules'!AW189 -> 3690 | AY177: ='Control Cost Schedules'!AX189 -> 3690 | AZ177: ='Control Cost Schedules'!AY189 -> 3690 | BA177: ='Control Cost Schedules'!AZ189 -> 3690 | BB177: ='Control Cost Schedules'!BA189 -> 0
A178: Mary's Lake (Town) | B178: 16 | C178: water filter plant | D178: 6 | E178: ='Control Cost Schedules'!D190 -> 8249.304771 | F178: ='Control Cost Schedules'!E190 -> 8249.304771 | G178: ='Control Cost Schedules'!F190 -> 8249.304771 | H178: ='Control Cost Schedules'!G190 -> 8249.304771 | I178: ='Control Cost Schedules'!H190 -> 8249.304771 | J178: ='Control Cost Schedules'!I190 -> 8249.304771 | K178: ='Control Cost Schedules'!J190 -> 8249.304771 | L178: ='Control Cost Schedules'!K190 -> 8249.304771 | M178: ='Control Cost Schedules'!L190 -> 8249.304771 | N178: ='Control Cost Schedules'!M190 -> 8249.304771 | O178: ='Control Cost Schedules'!N190 -> 8249.304771 | P178: ='Control Cost Schedules'!O190 -> 8249.304771 | Q178: ='Control Cost Schedules'!P190 -> 8249.304771 | R178: ='Control Cost Schedules'!Q190 -> 8249.304771 | S178: ='Control Cost Schedules'!R190 -> 8249.304771 | T178: ='Control Cost Schedules'!S190 -> 8249.304771 | U178: ='Control Cost Schedules'!T190 -> 8249.304771 | V178: ='Control Cost Schedules'!U190 -> 8249.304771 | W178: ='Control Cost Schedules'!V190 -> 8249.304771 | X178: ='Control Cost Schedules'!W190 -> 8249.304771 | Y178: ='Control Cost Schedules'!X190 -> 8249.304771 | Z178: ='Control Cost Schedules'!Y190 -> 3690 | AA178: ='Control Cost Schedules'!Z190 -> 3690 | AB178: ='Control Cost Schedules'!AA190 -> 3690 | AC178: ='Control Cost Schedules'!AB190 -> 3690 | AD178: ='Control Cost Schedules'!AC190 -> 3690 | AE178: ='Control Cost Schedules'!AD190 -> 3690 | AF178: ='Control Cost Schedules'!AE190 -> 3690 | AG178: ='Control Cost Schedules'!AF190 -> 3690 | AH178: ='Control Cost Schedules'!AG190 -> 3690 | AI178: ='Control Cost Schedules'!AH190 -> 3690 | AJ178: ='Control Cost Schedules'!AI190 -> 3690 | AK178: ='Control Cost Schedules'!AJ190 -> 3690 | AL178: ='Control Cost Schedules'!AK190 -> 3690 | AM178: ='Control Cost Schedules'!AL190 -> 3690 | AN178: ='Control Cost Schedules'!AM190 -> 3690 | AO178: ='Control Cost Schedules'!AN190 -> 3690 | AP178: ='Control Cost Schedules'!AO190 -> 3690 | AQ178: ='Control Cost Schedules'!AP190 -> 3690 | AR178: ='Control Cost Schedules'!AQ190 -> 3690 | AS178: ='Control Cost Schedules'!AR190 -> 3690 | AT178: ='Control Cost Schedules'!AS190 -> 3690 | AU178: ='Control Cost Schedules'!AT190 -> 3690 | AV178: ='Control Cost Schedules'!AU190 -> 3690 | AW178: ='Control Cost Schedules'!AV190 -> 3690 | AX178: ='Control Cost Schedules'!AW190 -> 3690 | AY178: ='Control Cost Schedules'!AX190 -> 3690 | AZ178: ='Control Cost Schedules'!AY190 -> 3690 | BA178: ='Control Cost Schedules'!AZ190 -> 3690 | BB178: ='Control Cost Schedules'!BA190 -> 0
A179: Olympus Dam | B179: 17 | C179: dam | D179: 7 | E179: ='Control Cost Schedules'!D191 -> 125000 | F179: ='Control Cost Schedules'!E191 -> 0 | G179: ='Control Cost Schedules'!F191 -> 0 | H179: ='Control Cost Schedules'!G191 -> 0 | I179: ='Control Cost Schedules'!H191 -> 0 | J179: ='Control Cost Schedules'!I191 -> 125000 | K179: ='Control Cost Schedules'!J191 -> 0 | L179: ='Control Cost Schedules'!K191 -> 0 | M179: ='Control Cost Schedules'!L191 -> 0 | N179: ='Control Cost Schedules'!M191 -> 0 | O179: ='Control Cost Schedules'!N191 -> 125000 | P179: ='Control Cost Schedules'!O191 -> 0 | Q179: ='Control Cost Schedules'!P191 -> 0 | R179: ='Control Cost Schedules'!Q191 -> 0 | S179: ='Control Cost Schedules'!R191 -> 0 | T179: ='Control Cost Schedules'!S191 -> 125000 | U179: ='Control Cost Schedules'!T191 -> 0 | V179: ='Control Cost Schedules'!U191 -> 0 | W179: ='Control Cost Schedules'!V191 -> 0 | X179: ='Control Cost Schedules'!W191 -> 0 | Y179: ='Control Cost Schedules'!X191 -> 125000 | Z179: ='Control Cost Schedules'!Y191 -> 0 | AA179: ='Control Cost Schedules'!Z191 -> 0 | AB179: ='Control Cost Schedules'!AA191 -> 0 | AC179: ='Control Cost Schedules'!AB191 -> 0 | AD179: ='Control Cost Schedules'!AC191 -> 125000 | AE179: ='Control Cost Schedules'!AD191 -> 0 | AF179: ='Control Cost Schedules'!AE191 -> 0 | AG179: ='Control Cost Schedules'!AF191 -> 0 | AH179: ='Control Cost Schedules'!AG191 -> 0 | AI179: ='Control Cost Schedules'!AH191 -> 125000 | AJ179: ='Control Cost Schedules'!AI191 -> 0 | AK179: ='Control Cost Schedules'!AJ191 -> 0 | AL179: ='Control Cost Schedules'!AK191 -> 0 | AM179: ='Control Cost Schedules'!AL191 -> 0 | AN179: ='Control Cost Schedules'!AM191 -> 125000 | AO179: ='Control Cost Schedules'!AN191 -> 0 | AP179: ='Control Cost Schedules'!AO191 -> 0 | AQ179: ='Control Cost Schedules'!AP191 -> 0 | AR179: ='Control Cost Schedules'!AQ191 -> 0 | AS179: ='Control Cost Schedules'!AR191 -> 125000 | AT179: ='Control Cost Schedules'!AS191 -> 0 | AU179: ='Control Cost Schedules'!AT191 -> 0 | AV179: ='Control Cost Schedules'!AU191 -> 0 | AW179: ='Control Cost Schedules'!AV191 -> 0 | AX179: ='Control Cost Schedules'!AW191 -> 125000 | AY179: ='Control Cost Schedules'!AX191 -> 0 | AZ179: ='Control Cost Schedules'!AY191 -> 0 | BA179: ='Control Cost Schedules'!AZ191 -> 0 | BB179: ='Control Cost Schedules'!BA191 -> 0
A180: Olympus Tunnel | B180: 18 | C180: tunnel | D180: 7 | E180: ='Control Cost Schedules'!D192 -> 0 | F180: ='Control Cost Schedules'!E192 -> 0 | G180: ='Control Cost Schedules'!F192 -> 0 | H180: ='Control Cost Schedules'!G192 -> 0 | I180: ='Control Cost Schedules'!H192 -> 0 | J180: ='Control Cost Schedules'!I192 -> 0 | K180: ='Control Cost Schedules'!J192 -> 0 | L180: ='Control Cost Schedules'!K192 -> 0 | M180: ='Control Cost Schedules'!L192 -> 0 | N180: ='Control Cost Schedules'!M192 -> 0 | O180: ='Control Cost Schedules'!N192 -> 0 | P180: ='Control Cost Schedules'!O192 -> 0 | Q180: ='Control Cost Schedules'!P192 -> 0 | R180: ='Control Cost Schedules'!Q192 -> 0 | S180: ='Control Cost Schedules'!R192 -> 0 | T180: ='Control Cost Schedules'!S192 -> 0 | U180: ='Control Cost Schedules'!T192 -> 0 | V180: ='Control Cost Schedules'!U192 -> 0 | W180: ='Control Cost Schedules'!V192 -> 0 | X180: ='Control Cost Schedules'!W192 -> 0 | Y180: ='Control Cost Schedules'!X192 -> 0 | Z180: ='Control Cost Schedules'!Y192 -> 0 | AA180: ='Control Cost Schedules'!Z192 -> 0 | AB180: ='Control Cost Schedules'!AA192 -> 0 | AC180: ='Control Cost Schedules'!AB192 -> 0 | AD180: ='Control Cost Schedules'!AC192 -> 0 | AE180: ='Control Cost Schedules'!AD192 -> 0 | AF180: ='Control Cost Schedules'!AE192 -> 0 | AG180: ='Control Cost Schedules'!AF192 -> 0 | AH180: ='Control Cost Schedules'!AG192 -> 0 | AI180: ='Control Cost Schedules'!AH192 -> 0 | AJ180: ='Control Cost Schedules'!AI192 -> 0 | AK180: ='Control Cost Schedules'!AJ192 -> 0 | AL180: ='Control Cost Schedules'!AK192 -> 0 | AM180: ='Control Cost Schedules'!AL192 -> 0 | AN180: ='Control Cost Schedules'!AM192 -> 0 | AO180: ='Control Cost Schedules'!AN192 -> 0 | AP180: ='Control Cost Schedules'!AO192 -> 0 | AQ180: ='Control Cost Schedules'!AP192 -> 0 | AR180: ='Control Cost Schedules'!AQ192 -> 0 | AS180: ='Control Cost Schedules'!AR192 -> 0 | AT180: ='Control Cost Schedules'!AS192 -> 0 | AU180: ='Control Cost Schedules'!AT192 -> 0 | AV180: ='Control Cost Schedules'!AU192 -> 0 | AW180: ='Control Cost Schedules'!AV192 -> 0 | AX180: ='Control Cost Schedules'!AW192 -> 0 | AY180: ='Control Cost Schedules'!AX192 -> 0 | AZ180: ='Control Cost Schedules'!AY192 -> 0 | BA180: ='Control Cost Schedules'!AZ192 -> 0 | BB180: ='Control Cost Schedules'!BA192 -> 0
A181: Pole Hill Tunnel | B181: 19 | C181: tunnel | D181: 7 | E181: ='Control Cost Schedules'!D193 -> 0 | F181: ='Control Cost Schedules'!E193 -> 0 | G181: ='Control Cost Schedules'!F193 -> 0 | H181: ='Control Cost Schedules'!G193 -> 0 | I181: ='Control Cost Schedules'!H193 -> 0 | J181: ='Control Cost Schedules'!I193 -> 0 | K181: ='Control Cost Schedules'!J193 -> 0 | L181: ='Control Cost Schedules'!K193 -> 0 | M181: ='Control Cost Schedules'!L193 -> 0 | N181: ='Control Cost Schedules'!M193 -> 0 | O181: ='Control Cost Schedules'!N193 -> 0 | P181: ='Control Cost Schedules'!O193 -> 0 | Q181: ='Control Cost Schedules'!P193 -> 0 | R181: ='Control Cost Schedules'!Q193 -> 0 | S181: ='Control Cost Schedules'!R193 -> 0 | T181: ='Control Cost Schedules'!S193 -> 0 | U181: ='Control Cost Schedules'!T193 -> 0 | V181: ='Control Cost Schedules'!U193 -> 0 | W181: ='Control Cost Schedules'!V193 -> 0 | X181: ='Control Cost Schedules'!W193 -> 0 | Y181: ='Control Cost Schedules'!X193 -> 0 | Z181: ='Control Cost Schedules'!Y193 -> 0 | AA181: ='Control Cost Schedules'!Z193 -> 0 | AB181: ='Control Cost Schedules'!AA193 -> 0 | AC181: ='Control Cost Schedules'!AB193 -> 0 | AD181: ='Control Cost Schedules'!AC193 -> 0 | AE181: ='Control Cost Schedules'!AD193 -> 0 | AF181: ='Control Cost Schedules'!AE193 -> 0 | AG181: ='Control Cost Schedules'!AF193 -> 0 | AH181: ='Control Cost Schedules'!AG193 -> 0 | AI181: ='Control Cost Schedules'!AH193 -> 0 | AJ181: ='Control Cost Schedules'!AI193 -> 0 | AK181: ='Control Cost Schedules'!AJ193 -> 0 | AL181: ='Control Cost Schedules'!AK193 -> 0 | AM181: ='Control Cost Schedules'!AL193 -> 0 | AN181: ='Control Cost Schedules'!AM193 -> 0 | AO181: ='Control Cost Schedules'!AN193 -> 0 | AP181: ='Control Cost Schedules'!AO193 -> 0 | AQ181: ='Control Cost Schedules'!AP193 -> 0 | AR181: ='Control Cost Schedules'!AQ193 -> 0 | AS181: ='Control Cost Schedules'!AR193 -> 0 | AT181: ='Control Cost Schedules'!AS193 -> 0 | AU181: ='Control Cost Schedules'!AT193 -> 0 | AV181: ='Control Cost Schedules'!AU193 -> 0 | AW181: ='Control Cost Schedules'!AV193 -> 0 | AX181: ='Control Cost Schedules'!AW193 -> 0 | AY181: ='Control Cost Schedules'!AX193 -> 0 | AZ181: ='Control Cost Schedules'!AY193 -> 0 | BA181: ='Control Cost Schedules'!AZ193 -> 0 | BB181: ='Control Cost Schedules'!BA193 -> 0
A182: Pole Hill Hydropower Plant | B182: 20 | C182: hydropower | D182: 7 | E182: ='Control Cost Schedules'!D194 -> 7365.941774 | F182: ='Control Cost Schedules'!E194 -> 7365.941774 | G182: ='Control Cost Schedules'!F194 -> 7365.941774 | H182: ='Control Cost Schedules'!G194 -> 7365.941774 | I182: ='Control Cost Schedules'!H194 -> 7365.941774 | J182: ='Control Cost Schedules'!I194 -> 7365.941774 | K182: ='Control Cost Schedules'!J194 -> 7365.941774 | L182: ='Control Cost Schedules'!K194 -> 7365.941774 | M182: ='Control Cost Schedules'!L194 -> 7365.941774 | N182: ='Control Cost Schedules'!M194 -> 7365.941774 | O182: ='Control Cost Schedules'!N194 -> 7365.941774 | P182: ='Control Cost Schedules'!O194 -> 7365.941774 | Q182: ='Control Cost Schedules'!P194 -> 7365.941774 | R182: ='Control Cost Schedules'!Q194 -> 7365.941774 | S182: ='Control Cost Schedules'!R194 -> 7365.941774 | T182: ='Control Cost Schedules'!S194 -> 7365.941774 | U182: ='Control Cost Schedules'!T194 -> 7365.941774 | V182: ='Control Cost Schedules'!U194 -> 7365.941774 | W182: ='Control Cost Schedules'!V194 -> 7365.941774 | X182: ='Control Cost Schedules'!W194 -> 7365.941774 | Y182: ='Control Cost Schedules'!X194 -> 7365.941774 | Z182: ='Control Cost Schedules'!Y194 -> 2865 | AA182: ='Control Cost Schedules'!Z194 -> 2865 | AB182: ='Control Cost Schedules'!AA194 -> 2865 | AC182: ='Control Cost Schedules'!AB194 -> 2865 | AD182: ='Control Cost Schedules'!AC194 -> 2865 | AE182: ='Control Cost Schedules'!AD194 -> 2865 | AF182: ='Control Cost Schedules'!AE194 -> 2865 | AG182: ='Control Cost Schedules'!AF194 -> 2865 | AH182: ='Control Cost Schedules'!AG194 -> 2865 | AI182: ='Control Cost Schedules'!AH194 -> 2865 | AJ182: ='Control Cost Schedules'!AI194 -> 2865 | AK182: ='Control Cost Schedules'!AJ194 -> 2865 | AL182: ='Control Cost Schedules'!AK194 -> 2865 | AM182: ='Control Cost Schedules'!AL194 -> 2865 | AN182: ='Control Cost Schedules'!AM194 -> 2865 | AO182: ='Control Cost Schedules'!AN194 -> 2865 | AP182: ='Control Cost Schedules'!AO194 -> 2865 | AQ182: ='Control Cost Schedules'!AP194 -> 2865 | AR182: ='Control Cost Schedules'!AQ194 -> 2865 | AS182: ='Control Cost Schedules'!AR194 -> 2865 | AT182: ='Control Cost Schedules'!AS194 -> 2865 | AU182: ='Control Cost Schedules'!AT194 -> 2865 | AV182: ='Control Cost Schedules'!AU194 -> 2865 | AW182: ='Control Cost Schedules'!AV194 -> 2865 | AX182: ='Control Cost Schedules'!AW194 -> 2865 | AY182: ='Control Cost Schedules'!AX194 -> 2865 | AZ182: ='Control Cost Schedules'!AY194 -> 2865 | BA182: ='Control Cost Schedules'!AZ194 -> 2865 | BB182: ='Control Cost Schedules'!BA194 -> 0
A183: Rattlesnake Tunnel | B183: 21 | C183: tunnel | D183: 7 | E183: ='Control Cost Schedules'!D195 -> 0 | F183: ='Control Cost Schedules'!E195 -> 0 | G183: ='Control Cost Schedules'!F195 -> 0 | H183: ='Control Cost Schedules'!G195 -> 0 | I183: ='Control Cost Schedules'!H195 -> 0 | J183: ='Control Cost Schedules'!I195 -> 0 | K183: ='Control Cost Schedules'!J195 -> 0 | L183: ='Control Cost Schedules'!K195 -> 0 | M183: ='Control Cost Schedules'!L195 -> 0 | N183: ='Control Cost Schedules'!M195 -> 0 | O183: ='Control Cost Schedules'!N195 -> 0 | P183: ='Control Cost Schedules'!O195 -> 0 | Q183: ='Control Cost Schedules'!P195 -> 0 | R183: ='Control Cost Schedules'!Q195 -> 0 | S183: ='Control Cost Schedules'!R195 -> 0 | T183: ='Control Cost Schedules'!S195 -> 0 | U183: ='Control Cost Schedules'!T195 -> 0 | V183: ='Control Cost Schedules'!U195 -> 0 | W183: ='Control Cost Schedules'!V195 -> 0 | X183: ='Control Cost Schedules'!W195 -> 0 | Y183: ='Control Cost Schedules'!X195 -> 0 | Z183: ='Control Cost Schedules'!Y195 -> 0 | AA183: ='Control Cost Schedules'!Z195 -> 0 | AB183: ='Control Cost Schedules'!AA195 -> 0 | AC183: ='Control Cost Schedules'!AB195 -> 0 | AD183: ='Control Cost Schedules'!AC195 -> 0 | AE183: ='Control Cost Schedules'!AD195 -> 0 | AF183: ='Control Cost Schedules'!AE195 -> 0 | AG183: ='Control Cost Schedules'!AF195 -> 0 | AH183: ='Control Cost Schedules'!AG195 -> 0 | AI183: ='Control Cost Schedules'!AH195 -> 0 | AJ183: ='Control Cost Schedules'!AI195 -> 0 | AK183: ='Control Cost Schedules'!AJ195 -> 0 | AL183: ='Control Cost Schedules'!AK195 -> 0 | AM183: ='Control Cost Schedules'!AL195 -> 0 | AN183: ='Control Cost Schedules'!AM195 -> 0 | AO183: ='Control Cost Schedules'!AN195 -> 0 | AP183: ='Control Cost Schedules'!AO195 -> 0 | AQ183: ='Control Cost Schedules'!AP195 -> 0 | AR183: ='Control Cost Schedules'!AQ195 -> 0 | AS183: ='Control Cost Schedules'!AR195 -> 0 | AT183: ='Control Cost Schedules'!AS195 -> 0 | AU183: ='Control Cost Schedules'!AT195 -> 0 | AV183: ='Control Cost Schedules'!AU195 -> 0 | AW183: ='Control Cost Schedules'!AV195 -> 0 | AX183: ='Control Cost Schedules'!AW195 -> 0 | AY183: ='Control Cost Schedules'!AX195 -> 0 | AZ183: ='Control Cost Schedules'!AY195 -> 0 | BA183: ='Control Cost Schedules'!AZ195 -> 0 | BB183: ='Control Cost Schedules'!BA195 -> 0
A184: Rattlesnake Dam | B184: 22 | C184: dam | D184: 8 | E184: ='Control Cost Schedules'!D196 -> 125000 | F184: ='Control Cost Schedules'!E196 -> 0 | G184: ='Control Cost Schedules'!F196 -> 0 | H184: ='Control Cost Schedules'!G196 -> 0 | I184: ='Control Cost Schedules'!H196 -> 0 | J184: ='Control Cost Schedules'!I196 -> 125000 | K184: ='Control Cost Schedules'!J196 -> 0 | L184: ='Control Cost Schedules'!K196 -> 0 | M184: ='Control Cost Schedules'!L196 -> 0 | N184: ='Control Cost Schedules'!M196 -> 0 | O184: ='Control Cost Schedules'!N196 -> 125000 | P184: ='Control Cost Schedules'!O196 -> 0 | Q184: ='Control Cost Schedules'!P196 -> 0 | R184: ='Control Cost Schedules'!Q196 -> 0 | S184: ='Control Cost Schedules'!R196 -> 0 | T184: ='Control Cost Schedules'!S196 -> 125000 | U184: ='Control Cost Schedules'!T196 -> 0 | V184: ='Control Cost Schedules'!U196 -> 0 | W184: ='Control Cost Schedules'!V196 -> 0 | X184: ='Control Cost Schedules'!W196 -> 0 | Y184: ='Control Cost Schedules'!X196 -> 125000 | Z184: ='Control Cost Schedules'!Y196 -> 0 | AA184: ='Control Cost Schedules'!Z196 -> 0 | AB184: ='Control Cost Schedules'!AA196 -> 0 | AC184: ='Control Cost Schedules'!AB196 -> 0 | AD184: ='Control Cost Schedules'!AC196 -> 125000 | AE184: ='Control Cost Schedules'!AD196 -> 0 | AF184: ='Control Cost Schedules'!AE196 -> 0 | AG184: ='Control Cost Schedules'!AF196 -> 0 | AH184: ='Control Cost Schedules'!AG196 -> 0 | AI184: ='Control Cost Schedules'!AH196 -> 125000 | AJ184: ='Control Cost Schedules'!AI196 -> 0 | AK184: ='Control Cost Schedules'!AJ196 -> 0 | AL184: ='Control Cost Schedules'!AK196 -> 0 | AM184: ='Control Cost Schedules'!AL196 -> 0 | AN184: ='Control Cost Schedules'!AM196 -> 125000 | AO184: ='Control Cost Schedules'!AN196 -> 0 | AP184: ='Control Cost Schedules'!AO196 -> 0 | AQ184: ='Control Cost Schedules'!AP196 -> 0 | AR184: ='Control Cost Schedules'!AQ196 -> 0 | AS184: ='Control Cost Schedules'!AR196 -> 125000 | AT184: ='Control Cost Schedules'!AS196 -> 0 | AU184: ='Control Cost Schedules'!AT196 -> 0 | AV184: ='Control Cost Schedules'!AU196 -> 0 | AW184: ='Control Cost Schedules'!AV196 -> 0 | AX184: ='Control Cost Schedules'!AW196 -> 125000 | AY184: ='Control Cost Schedules'!AX196 -> 0 | AZ184: ='Control Cost Schedules'!AY196 -> 0 | BA184: ='Control Cost Schedules'!AZ196 -> 0 | BB184: ='Control Cost Schedules'!BA196 -> 0
A185: Bald Mountain Tunnel | B185: 23 | C185: tunnel | D185: 8 | E185: ='Control Cost Schedules'!D197 -> 0 | F185: ='Control Cost Schedules'!E197 -> 0 | G185: ='Control Cost Schedules'!F197 -> 0 | H185: ='Control Cost Schedules'!G197 -> 0 | I185: ='Control Cost Schedules'!H197 -> 0 | J185: ='Control Cost Schedules'!I197 -> 0 | K185: ='Control Cost Schedules'!J197 -> 0 | L185: ='Control Cost Schedules'!K197 -> 0 | M185: ='Control Cost Schedules'!L197 -> 0 | N185: ='Control Cost Schedules'!M197 -> 0 | O185: ='Control Cost Schedules'!N197 -> 0 | P185: ='Control Cost Schedules'!O197 -> 0 | Q185: ='Control Cost Schedules'!P197 -> 0 | R185: ='Control Cost Schedules'!Q197 -> 0 | S185: ='Control Cost Schedules'!R197 -> 0 | T185: ='Control Cost Schedules'!S197 -> 0 | U185: ='Control Cost Schedules'!T197 -> 0 | V185: ='Control Cost Schedules'!U197 -> 0 | W185: ='Control Cost Schedules'!V197 -> 0 | X185: ='Control Cost Schedules'!W197 -> 0 | Y185: ='Control Cost Schedules'!X197 -> 0 | Z185: ='Control Cost Schedules'!Y197 -> 0 | AA185: ='Control Cost Schedules'!Z197 -> 0 | AB185: ='Control Cost Schedules'!AA197 -> 0 | AC185: ='Control Cost Schedules'!AB197 -> 0 | AD185: ='Control Cost Schedules'!AC197 -> 0 | AE185: ='Control Cost Schedules'!AD197 -> 0 | AF185: ='Control Cost Schedules'!AE197 -> 0 | AG185: ='Control Cost Schedules'!AF197 -> 0 | AH185: ='Control Cost Schedules'!AG197 -> 0 | AI185: ='Control Cost Schedules'!AH197 -> 0 | AJ185: ='Control Cost Schedules'!AI197 -> 0 | AK185: ='Control Cost Schedules'!AJ197 -> 0 | AL185: ='Control Cost Schedules'!AK197 -> 0 | AM185: ='Control Cost Schedules'!AL197 -> 0 | AN185: ='Control Cost Schedules'!AM197 -> 0 | AO185: ='Control Cost Schedules'!AN197 -> 0 | AP185: ='Control Cost Schedules'!AO197 -> 0 | AQ185: ='Control Cost Schedules'!AP197 -> 0 | AR185: ='Control Cost Schedules'!AQ197 -> 0 | AS185: ='Control Cost Schedules'!AR197 -> 0 | AT185: ='Control Cost Schedules'!AS197 -> 0 | AU185: ='Control Cost Schedules'!AT197 -> 0 | AV185: ='Control Cost Schedules'!AU197 -> 0 | AW185: ='Control Cost Schedules'!AV197 -> 0 | AX185: ='Control Cost Schedules'!AW197 -> 0 | AY185: ='Control Cost Schedules'!AX197 -> 0 | AZ185: ='Control Cost Schedules'!AY197 -> 0 | BA185: ='Control Cost Schedules'!AZ197 -> 0 | BB185: ='Control Cost Schedules'!BA197 -> 0
A186: Flatiron Hydropower Plant | B186: 24 | C186: hydropower | D186: 8 | E186: ='Control Cost Schedules'!D198 -> 18222.02873 | F186: ='Control Cost Schedules'!E198 -> 18222.02873 | G186: ='Control Cost Schedules'!F198 -> 18222.02873 | H186: ='Control Cost Schedules'!G198 -> 18222.02873 | I186: ='Control Cost Schedules'!H198 -> 18222.02873 | J186: ='Control Cost Schedules'!I198 -> 18222.02873 | K186: ='Control Cost Schedules'!J198 -> 18222.02873 | L186: ='Control Cost Schedules'!K198 -> 18222.02873 | M186: ='Control Cost Schedules'!L198 -> 18222.02873 | N186: ='Control Cost Schedules'!M198 -> 18222.02873 | O186: ='Control Cost Schedules'!N198 -> 18222.02873 | P186: ='Control Cost Schedules'!O198 -> 18222.02873 | Q186: ='Control Cost Schedules'!P198 -> 18222.02873 | R186: ='Control Cost Schedules'!Q198 -> 18222.02873 | S186: ='Control Cost Schedules'!R198 -> 18222.02873 | T186: ='Control Cost Schedules'!S198 -> 18222.02873 | U186: ='Control Cost Schedules'!T198 -> 18222.02873 | V186: ='Control Cost Schedules'!U198 -> 18222.02873 | W186: ='Control Cost Schedules'!V198 -> 18222.02873 | X186: ='Control Cost Schedules'!W198 -> 18222.02873 | Y186: ='Control Cost Schedules'!X198 -> 18222.02873 | Z186: ='Control Cost Schedules'!Y198 -> 7087.5 | AA186: ='Control Cost Schedules'!Z198 -> 7087.5 | AB186: ='Control Cost Schedules'!AA198 -> 7087.5 | AC186: ='Control Cost Schedules'!AB198 -> 7087.5 | AD186: ='Control Cost Schedules'!AC198 -> 7087.5 | AE186: ='Control Cost Schedules'!AD198 -> 7087.5 | AF186: ='Control Cost Schedules'!AE198 -> 7087.5 | AG186: ='Control Cost Schedules'!AF198 -> 7087.5 | AH186: ='Control Cost Schedules'!AG198 -> 7087.5 | AI186: ='Control Cost Schedules'!AH198 -> 7087.5 | AJ186: ='Control Cost Schedules'!AI198 -> 7087.5 | AK186: ='Control Cost Schedules'!AJ198 -> 7087.5 | AL186: ='Control Cost Schedules'!AK198 -> 7087.5 | AM186: ='Control Cost Schedules'!AL198 -> 7087.5 | AN186: ='Control Cost Schedules'!AM198 -> 7087.5 | AO186: ='Control Cost Schedules'!AN198 -> 7087.5 | AP186: ='Control Cost Schedules'!AO198 -> 7087.5 | AQ186: ='Control Cost Schedules'!AP198 -> 7087.5 | AR186: ='Control Cost Schedules'!AQ198 -> 7087.5 | AS186: ='Control Cost Schedules'!AR198 -> 7087.5 | AT186: ='Control Cost Schedules'!AS198 -> 7087.5 | AU186: ='Control Cost Schedules'!AT198 -> 7087.5 | AV186: ='Control Cost Schedules'!AU198 -> 7087.5 | AW186: ='Control Cost Schedules'!AV198 -> 7087.5 | AX186: ='Control Cost Schedules'!AW198 -> 7087.5 | AY186: ='Control Cost Schedules'!AX198 -> 7087.5 | AZ186: ='Control Cost Schedules'!AY198 -> 7087.5 | BA186: ='Control Cost Schedules'!AZ198 -> 7087.5 | BB186: ='Control Cost Schedules'!BA198 -> 0
A187: Newell Warnock | B187: 25 | C187: water filter plant | D187: 8 | E187: ='Control Cost Schedules'!D199 -> 8610.489645 | F187: ='Control Cost Schedules'!E199 -> 8610.489645 | G187: ='Control Cost Schedules'!F199 -> 8610.489645 | H187: ='Control Cost Schedules'!G199 -> 8610.489645 | I187: ='Control Cost Schedules'!H199 -> 8610.489645 | J187: ='Control Cost Schedules'!I199 -> 8610.489645 | K187: ='Control Cost Schedules'!J199 -> 8610.489645 | L187: ='Control Cost Schedules'!K199 -> 8610.489645 | M187: ='Control Cost Schedules'!L199 -> 8610.489645 | N187: ='Control Cost Schedules'!M199 -> 8610.489645 | O187: ='Control Cost Schedules'!N199 -> 8610.489645 | P187: ='Control Cost Schedules'!O199 -> 8610.489645 | Q187: ='Control Cost Schedules'!P199 -> 8610.489645 | R187: ='Control Cost Schedules'!Q199 -> 8610.489645 | S187: ='Control Cost Schedules'!R199 -> 8610.489645 | T187: ='Control Cost Schedules'!S199 -> 8610.489645 | U187: ='Control Cost Schedules'!T199 -> 8610.489645 | V187: ='Control Cost Schedules'!U199 -> 8610.489645 | W187: ='Control Cost Schedules'!V199 -> 8610.489645 | X187: ='Control Cost Schedules'!W199 -> 8610.489645 | Y187: ='Control Cost Schedules'!X199 -> 8610.489645 | Z187: ='Control Cost Schedules'!Y199 -> 4576.6875 | AA187: ='Control Cost Schedules'!Z199 -> 4576.6875 | AB187: ='Control Cost Schedules'!AA199 -> 4576.6875 | AC187: ='Control Cost Schedules'!AB199 -> 4576.6875 | AD187: ='Control Cost Schedules'!AC199 -> 4576.6875 | AE187: ='Control Cost Schedules'!AD199 -> 4576.6875 | AF187: ='Control Cost Schedules'!AE199 -> 4576.6875 | AG187: ='Control Cost Schedules'!AF199 -> 4576.6875 | AH187: ='Control Cost Schedules'!AG199 -> 4576.6875 | AI187: ='Control Cost Schedules'!AH199 -> 4576.6875 | AJ187: ='Control Cost Schedules'!AI199 -> 4576.6875 | AK187: ='Control Cost Schedules'!AJ199 -> 4576.6875 | AL187: ='Control Cost Schedules'!AK199 -> 4576.6875 | AM187: ='Control Cost Schedules'!AL199 -> 4576.6875 | AN187: ='Control Cost Schedules'!AM199 -> 4576.6875 | AO187: ='Control Cost Schedules'!AN199 -> 4576.6875 | AP187: ='Control Cost Schedules'!AO199 -> 4576.6875 | AQ187: ='Control Cost Schedules'!AP199 -> 4576.6875 | AR187: ='Control Cost Schedules'!AQ199 -> 4576.6875 | AS187: ='Control Cost Schedules'!AR199 -> 4576.6875 | AT187: ='Control Cost Schedules'!AS199 -> 4576.6875 | AU187: ='Control Cost Schedules'!AT199 -> 4576.6875 | AV187: ='Control Cost Schedules'!AU199 -> 4576.6875 | AW187: ='Control Cost Schedules'!AV199 -> 4576.6875 | AX187: ='Control Cost Schedules'!AW199 -> 4576.6875 | AY187: ='Control Cost Schedules'!AX199 -> 4576.6875 | AZ187: ='Control Cost Schedules'!AY199 -> 4576.6875 | BA187: ='Control Cost Schedules'!AZ199 -> 4576.6875 | BB187: ='Control Cost Schedules'!BA199 -> 0
A188: Flatiron Reversible Pump | B188: 26 | C188: pump plant | D188: 9 | E188: ='Control Cost Schedules'!D200 -> 0 | F188: ='Control Cost Schedules'!E200 -> 0 | G188: ='Control Cost Schedules'!F200 -> 0 | H188: ='Control Cost Schedules'!G200 -> 0 | I188: ='Control Cost Schedules'!H200 -> 0 | J188: ='Control Cost Schedules'!I200 -> 0 | K188: ='Control Cost Schedules'!J200 -> 0 | L188: ='Control Cost Schedules'!K200 -> 0 | M188: ='Control Cost Schedules'!L200 -> 0 | N188: ='Control Cost Schedules'!M200 -> 0 | O188: ='Control Cost Schedules'!N200 -> 0 | P188: ='Control Cost Schedules'!O200 -> 0 | Q188: ='Control Cost Schedules'!P200 -> 0 | R188: ='Control Cost Schedules'!Q200 -> 0 | S188: ='Control Cost Schedules'!R200 -> 0 | T188: ='Control Cost Schedules'!S200 -> 0 | U188: ='Control Cost Schedules'!T200 -> 0 | V188: ='Control Cost Schedules'!U200 -> 0 | W188: ='Control Cost Schedules'!V200 -> 0 | X188: ='Control Cost Schedules'!W200 -> 0 | Y188: ='Control Cost Schedules'!X200 -> 0 | Z188: ='Control Cost Schedules'!Y200 -> 0 | AA188: ='Control Cost Schedules'!Z200 -> 0 | AB188: ='Control Cost Schedules'!AA200 -> 0 | AC188: ='Control Cost Schedules'!AB200 -> 0 | AD188: ='Control Cost Schedules'!AC200 -> 0 | AE188: ='Control Cost Schedules'!AD200 -> 0 | AF188: ='Control Cost Schedules'!AE200 -> 0 | AG188: ='Control Cost Schedules'!AF200 -> 0 | AH188: ='Control Cost Schedules'!AG200 -> 0 | AI188: ='Control Cost Schedules'!AH200 -> 0 | AJ188: ='Control Cost Schedules'!AI200 -> 0 | AK188: ='Control Cost Schedules'!AJ200 -> 0 | AL188: ='Control Cost Schedules'!AK200 -> 0 | AM188: ='Control Cost Schedules'!AL200 -> 0 | AN188: ='Control Cost Schedules'!AM200 -> 0 | AO188: ='Control Cost Schedules'!AN200 -> 0 | AP188: ='Control Cost Schedules'!AO200 -> 0 | AQ188: ='Control Cost Schedules'!AP200 -> 0 | AR188: ='Control Cost Schedules'!AQ200 -> 0 | AS188: ='Control Cost Schedules'!AR200 -> 0 | AT188: ='Control Cost Schedules'!AS200 -> 0 | AU188: ='Control Cost Schedules'!AT200 -> 0 | AV188: ='Control Cost Schedules'!AU200 -> 0 | AW188: ='Control Cost Schedules'!AV200 -> 0 | AX188: ='Control Cost Schedules'!AW200 -> 0 | AY188: ='Control Cost Schedules'!AX200 -> 0 | AZ188: ='Control Cost Schedules'!AY200 -> 0 | BA188: ='Control Cost Schedules'!AZ200 -> 0 | BB188: ='Control Cost Schedules'!BA200 -> 0
A189: Flatiron Dam | B189: 27 | C189: dam | D189: 9 | E189: ='Control Cost Schedules'!D201 -> 125000 | F189: ='Control Cost Schedules'!E201 -> 0 | G189: ='Control Cost Schedules'!F201 -> 0 | H189: ='Control Cost Schedules'!G201 -> 0 | I189: ='Control Cost Schedules'!H201 -> 0 | J189: ='Control Cost Schedules'!I201 -> 125000 | K189: ='Control Cost Schedules'!J201 -> 0 | L189: ='Control Cost Schedules'!K201 -> 0 | M189: ='Control Cost Schedules'!L201 -> 0 | N189: ='Control Cost Schedules'!M201 -> 0 | O189: ='Control Cost Schedules'!N201 -> 125000 | P189: ='Control Cost Schedules'!O201 -> 0 | Q189: ='Control Cost Schedules'!P201 -> 0 | R189: ='Control Cost Schedules'!Q201 -> 0 | S189: ='Control Cost Schedules'!R201 -> 0 | T189: ='Control Cost Schedules'!S201 -> 125000 | U189: ='Control Cost Schedules'!T201 -> 0 | V189: ='Control Cost Schedules'!U201 -> 0 | W189: ='Control Cost Schedules'!V201 -> 0 | X189: ='Control Cost Schedules'!W201 -> 0 | Y189: ='Control Cost Schedules'!X201 -> 125000 | Z189: ='Control Cost Schedules'!Y201 -> 0 | AA189: ='Control Cost Schedules'!Z201 -> 0 | AB189: ='Control Cost Schedules'!AA201 -> 0 | AC189: ='Control Cost Schedules'!AB201 -> 0 | AD189: ='Control Cost Schedules'!AC201 -> 125000 | AE189: ='Control Cost Schedules'!AD201 -> 0 | AF189: ='Control Cost Schedules'!AE201 -> 0 | AG189: ='Control Cost Schedules'!AF201 -> 0 | AH189: ='Control Cost Schedules'!AG201 -> 0 | AI189: ='Control Cost Schedules'!AH201 -> 125000 | AJ189: ='Control Cost Schedules'!AI201 -> 0 | AK189: ='Control Cost Schedules'!AJ201 -> 0 | AL189: ='Control Cost Schedules'!AK201 -> 0 | AM189: ='Control Cost Schedules'!AL201 -> 0 | AN189: ='Control Cost Schedules'!AM201 -> 125000 | AO189: ='Control Cost Schedules'!AN201 -> 0 | AP189: ='Control Cost Schedules'!AO201 -> 0 | AQ189: ='Control Cost Schedules'!AP201 -> 0 | AR189: ='Control Cost Schedules'!AQ201 -> 0 | AS189: ='Control Cost Schedules'!AR201 -> 125000 | AT189: ='Control Cost Schedules'!AS201 -> 0 | AU189: ='Control Cost Schedules'!AT201 -> 0 | AV189: ='Control Cost Schedules'!AU201 -> 0 | AW189: ='Control Cost Schedules'!AV201 -> 0 | AX189: ='Control Cost Schedules'!AW201 -> 125000 | AY189: ='Control Cost Schedules'!AX201 -> 0 | AZ189: ='Control Cost Schedules'!AY201 -> 0 | BA189: ='Control Cost Schedules'!AZ201 -> 0 | BB189: ='Control Cost Schedules'!BA201 -> 0
A190: Carter Lake Pressure Tunnel | B190: 28 | C190: tunnel | D190: 9 | E190: ='Control Cost Schedules'!D202 -> 0 | F190: ='Control Cost Schedules'!E202 -> 0 | G190: ='Control Cost Schedules'!F202 -> 0 | H190: ='Control Cost Schedules'!G202 -> 0 | I190: ='Control Cost Schedules'!H202 -> 0 | J190: ='Control Cost Schedules'!I202 -> 0 | K190: ='Control Cost Schedules'!J202 -> 0 | L190: ='Control Cost Schedules'!K202 -> 0 | M190: ='Control Cost Schedules'!L202 -> 0 | N190: ='Control Cost Schedules'!M202 -> 0 | O190: ='Control Cost Schedules'!N202 -> 0 | P190: ='Control Cost Schedules'!O202 -> 0 | Q190: ='Control Cost Schedules'!P202 -> 0 | R190: ='Control Cost Schedules'!Q202 -> 0 | S190: ='Control Cost Schedules'!R202 -> 0 | T190: ='Control Cost Schedules'!S202 -> 0 | U190: ='Control Cost Schedules'!T202 -> 0 | V190: ='Control Cost Schedules'!U202 -> 0 | W190: ='Control Cost Schedules'!V202 -> 0 | X190: ='Control Cost Schedules'!W202 -> 0 | Y190: ='Control Cost Schedules'!X202 -> 0 | Z190: ='Control Cost Schedules'!Y202 -> 0 | AA190: ='Control Cost Schedules'!Z202 -> 0 | AB190: ='Control Cost Schedules'!AA202 -> 0 | AC190: ='Control Cost Schedules'!AB202 -> 0 | AD190: ='Control Cost Schedules'!AC202 -> 0 | AE190: ='Control Cost Schedules'!AD202 -> 0 | AF190: ='Control Cost Schedules'!AE202 -> 0 | AG190: ='Control Cost Schedules'!AF202 -> 0 | AH190: ='Control Cost Schedules'!AG202 -> 0 | AI190: ='Control Cost Schedules'!AH202 -> 0 | AJ190: ='Control Cost Schedules'!AI202 -> 0 | AK190: ='Control Cost Schedules'!AJ202 -> 0 | AL190: ='Control Cost Schedules'!AK202 -> 0 | AM190: ='Control Cost Schedules'!AL202 -> 0 | AN190: ='Control Cost Schedules'!AM202 -> 0 | AO190: ='Control Cost Schedules'!AN202 -> 0 | AP190: ='Control Cost Schedules'!AO202 -> 0 | AQ190: ='Control Cost Schedules'!AP202 -> 0 | AR190: ='Control Cost Schedules'!AQ202 -> 0 | AS190: ='Control Cost Schedules'!AR202 -> 0 | AT190: ='Control Cost Schedules'!AS202 -> 0 | AU190: ='Control Cost Schedules'!AT202 -> 0 | AV190: ='Control Cost Schedules'!AU202 -> 0 | AW190: ='Control Cost Schedules'!AV202 -> 0 | AX190: ='Control Cost Schedules'!AW202 -> 0 | AY190: ='Control Cost Schedules'!AX202 -> 0 | AZ190: ='Control Cost Schedules'!AY202 -> 0 | BA190: ='Control Cost Schedules'!AZ202 -> 0 | BB190: ='Control Cost Schedules'!BA202 -> 0
A191: Big Thompson Hydropower Plant | B191: 29 | C191: hydropower | D191: 9 | E191: ='Control Cost Schedules'!D203 -> 867.715654 | F191: ='Control Cost Schedules'!E203 -> 867.715654 | G191: ='Control Cost Schedules'!F203 -> 867.715654 | H191: ='Control Cost Schedules'!G203 -> 867.715654 | I191: ='Control Cost Schedules'!H203 -> 867.715654 | J191: ='Control Cost Schedules'!I203 -> 867.715654 | K191: ='Control Cost Schedules'!J203 -> 867.715654 | L191: ='Control Cost Schedules'!K203 -> 867.715654 | M191: ='Control Cost Schedules'!L203 -> 867.715654 | N191: ='Control Cost Schedules'!M203 -> 867.715654 | O191: ='Control Cost Schedules'!N203 -> 867.715654 | P191: ='Control Cost Schedules'!O203 -> 867.715654 | Q191: ='Control Cost Schedules'!P203 -> 867.715654 | R191: ='Control Cost Schedules'!Q203 -> 867.715654 | S191: ='Control Cost Schedules'!R203 -> 867.715654 | T191: ='Control Cost Schedules'!S203 -> 867.715654 | U191: ='Control Cost Schedules'!T203 -> 867.715654 | V191: ='Control Cost Schedules'!U203 -> 867.715654 | W191: ='Control Cost Schedules'!V203 -> 867.715654 | X191: ='Control Cost Schedules'!W203 -> 867.715654 | Y191: ='Control Cost Schedules'!X203 -> 867.715654 | Z191: ='Control Cost Schedules'!Y203 -> 337.5 | AA191: ='Control Cost Schedules'!Z203 -> 337.5 | AB191: ='Control Cost Schedules'!AA203 -> 337.5 | AC191: ='Control Cost Schedules'!AB203 -> 337.5 | AD191: ='Control Cost Schedules'!AC203 -> 337.5 | AE191: ='Control Cost Schedules'!AD203 -> 337.5 | AF191: ='Control Cost Schedules'!AE203 -> 337.5 | AG191: ='Control Cost Schedules'!AF203 -> 337.5 | AH191: ='Control Cost Schedules'!AG203 -> 337.5 | AI191: ='Control Cost Schedules'!AH203 -> 337.5 | AJ191: ='Control Cost Schedules'!AI203 -> 337.5 | AK191: ='Control Cost Schedules'!AJ203 -> 337.5 | AL191: ='Control Cost Schedules'!AK203 -> 337.5 | AM191: ='Control Cost Schedules'!AL203 -> 337.5 | AN191: ='Control Cost Schedules'!AM203 -> 337.5 | AO191: ='Control Cost Schedules'!AN203 -> 337.5 | AP191: ='Control Cost Schedules'!AO203 -> 337.5 | AQ191: ='Control Cost Schedules'!AP203 -> 337.5 | AR191: ='Control Cost Schedules'!AQ203 -> 337.5 | AS191: ='Control Cost Schedules'!AR203 -> 337.5 | AT191: ='Control Cost Schedules'!AS203 -> 337.5 | AU191: ='Control Cost Schedules'!AT203 -> 337.5 | AV191: ='Control Cost Schedules'!AU203 -> 337.5 | AW191: ='Control Cost Schedules'!AV203 -> 337.5 | AX191: ='Control Cost Schedules'!AW203 -> 337.5 | AY191: ='Control Cost Schedules'!AX203 -> 337.5 | AZ191: ='Control Cost Schedules'!AY203 -> 337.5 | BA191: ='Control Cost Schedules'!AZ203 -> 337.5 | BB191: ='Control Cost Schedules'!BA203 -> 0
A192: Hansen Feeder Canal | B192: 30 | C192: canal | D192: 9 | E192: ='Control Cost Schedules'!D204 -> 0 | F192: ='Control Cost Schedules'!E204 -> 0 | G192: ='Control Cost Schedules'!F204 -> 0 | H192: ='Control Cost Schedules'!G204 -> 0 | I192: ='Control Cost Schedules'!H204 -> 0 | J192: ='Control Cost Schedules'!I204 -> 0 | K192: ='Control Cost Schedules'!J204 -> 0 | L192: ='Control Cost Schedules'!K204 -> 0 | M192: ='Control Cost Schedules'!L204 -> 0 | N192: ='Control Cost Schedules'!M204 -> 0 | O192: ='Control Cost Schedules'!N204 -> 0 | P192: ='Control Cost Schedules'!O204 -> 0 | Q192: ='Control Cost Schedules'!P204 -> 0 | R192: ='Control Cost Schedules'!Q204 -> 0 | S192: ='Control Cost Schedules'!R204 -> 0 | T192: ='Control Cost Schedules'!S204 -> 0 | U192: ='Control Cost Schedules'!T204 -> 0 | V192: ='Control Cost Schedules'!U204 -> 0 | W192: ='Control Cost Schedules'!V204 -> 0 | X192: ='Control Cost Schedules'!W204 -> 0 | Y192: ='Control Cost Schedules'!X204 -> 0 | Z192: ='Control Cost Schedules'!Y204 -> 0 | AA192: ='Control Cost Schedules'!Z204 -> 0 | AB192: ='Control Cost Schedules'!AA204 -> 0 | AC192: ='Control Cost Schedules'!AB204 -> 0 | AD192: ='Control Cost Schedules'!AC204 -> 0 | AE192: ='Control Cost Schedules'!AD204 -> 0 | AF192: ='Control Cost Schedules'!AE204 -> 0 | AG192: ='Control Cost Schedules'!AF204 -> 0 | AH192: ='Control Cost Schedules'!AG204 -> 0 | AI192: ='Control Cost Schedules'!AH204 -> 0 | AJ192: ='Control Cost Schedules'!AI204 -> 0 | AK192: ='Control Cost Schedules'!AJ204 -> 0 | AL192: ='Control Cost Schedules'!AK204 -> 0 | AM192: ='Control Cost Schedules'!AL204 -> 0 | AN192: ='Control Cost Schedules'!AM204 -> 0 | AO192: ='Control Cost Schedules'!AN204 -> 0 | AP192: ='Control Cost Schedules'!AO204 -> 0 | AQ192: ='Control Cost Schedules'!AP204 -> 0 | AR192: ='Control Cost Schedules'!AQ204 -> 0 | AS192: ='Control Cost Schedules'!AR204 -> 0 | AT192: ='Control Cost Schedules'!AS204 -> 0 | AU192: ='Control Cost Schedules'!AT204 -> 0 | AV192: ='Control Cost Schedules'!AU204 -> 0 | AW192: ='Control Cost Schedules'!AV204 -> 0 | AX192: ='Control Cost Schedules'!AW204 -> 0 | AY192: ='Control Cost Schedules'!AX204 -> 0 | AZ192: ='Control Cost Schedules'!AY204 -> 0 | BA192: ='Control Cost Schedules'!AZ204 -> 0 | BB192: ='Control Cost Schedules'!BA204 -> 0
A193: City of Loveland | B193: 31 | C193: water filter plant | D193: 9 | E193: ='Control Cost Schedules'!D205 -> 32491.75305 | F193: ='Control Cost Schedules'!E205 -> 32491.75305 | G193: ='Control Cost Schedules'!F205 -> 32491.75305 | H193: ='Control Cost Schedules'!G205 -> 32491.75305 | I193: ='Control Cost Schedules'!H205 -> 32491.75305 | J193: ='Control Cost Schedules'!I205 -> 32491.75305 | K193: ='Control Cost Schedules'!J205 -> 32491.75305 | L193: ='Control Cost Schedules'!K205 -> 32491.75305 | M193: ='Control Cost Schedules'!L205 -> 32491.75305 | N193: ='Control Cost Schedules'!M205 -> 32491.75305 | O193: ='Control Cost Schedules'!N205 -> 32491.75305 | P193: ='Control Cost Schedules'!O205 -> 32491.75305 | Q193: ='Control Cost Schedules'!P205 -> 32491.75305 | R193: ='Control Cost Schedules'!Q205 -> 32491.75305 | S193: ='Control Cost Schedules'!R205 -> 32491.75305 | T193: ='Control Cost Schedules'!S205 -> 32491.75305 | U193: ='Control Cost Schedules'!T205 -> 32491.75305 | V193: ='Control Cost Schedules'!U205 -> 32491.75305 | W193: ='Control Cost Schedules'!V205 -> 32491.75305 | X193: ='Control Cost Schedules'!W205 -> 32491.75305 | Y193: ='Control Cost Schedules'!X205 -> 32491.75305 | Z193: ='Control Cost Schedules'!Y205 -> 17808 | AA193: ='Control Cost Schedules'!Z205 -> 17808 | AB193: ='Control Cost Schedules'!AA205 -> 17808 | AC193: ='Control Cost Schedules'!AB205 -> 17808 | AD193: ='Control Cost Schedules'!AC205 -> 17808 | AE193: ='Control Cost Schedules'!AD205 -> 17808 | AF193: ='Control Cost Schedules'!AE205 -> 17808 | AG193: ='Control Cost Schedules'!AF205 -> 17808 | AH193: ='Control Cost Schedules'!AG205 -> 17808 | AI193: ='Control Cost Schedules'!AH205 -> 17808 | AJ193: ='Control Cost Schedules'!AI205 -> 17808 | AK193: ='Control Cost Schedules'!AJ205 -> 17808 | AL193: ='Control Cost Schedules'!AK205 -> 17808 | AM193: ='Control Cost Schedules'!AL205 -> 17808 | AN193: ='Control Cost Schedules'!AM205 -> 17808 | AO193: ='Control Cost Schedules'!AN205 -> 17808 | AP193: ='Control Cost Schedules'!AO205 -> 17808 | AQ193: ='Control Cost Schedules'!AP205 -> 17808 | AR193: ='Control Cost Schedules'!AQ205 -> 17808 | AS193: ='Control Cost Schedules'!AR205 -> 17808 | AT193: ='Control Cost Schedules'!AS205 -> 17808 | AU193: ='Control Cost Schedules'!AT205 -> 17808 | AV193: ='Control Cost Schedules'!AU205 -> 17808 | AW193: ='Control Cost Schedules'!AV205 -> 17808 | AX193: ='Control Cost Schedules'!AW205 -> 17808 | AY193: ='Control Cost Schedules'!AX205 -> 17808 | AZ193: ='Control Cost Schedules'!AY205 -> 17808 | BA193: ='Control Cost Schedules'!AZ205 -> 17808 | BB193: ='Control Cost Schedules'!BA205 -> 0
A194: Emissaries of Divine Light | B194: 32 | C194: water filter plant | D194: 9 | E194: ='Control Cost Schedules'!D206 -> 8610.489645 | F194: ='Control Cost Schedules'!E206 -> 8610.489645 | G194: ='Control Cost Schedules'!F206 -> 8610.489645 | H194: ='Control Cost Schedules'!G206 -> 8610.489645 | I194: ='Control Cost Schedules'!H206 -> 8610.489645 | J194: ='Control Cost Schedules'!I206 -> 8610.489645 | K194: ='Control Cost Schedules'!J206 -> 8610.489645 | L194: ='Control Cost Schedules'!K206 -> 8610.489645 | M194: ='Control Cost Schedules'!L206 -> 8610.489645 | N194: ='Control Cost Schedules'!M206 -> 8610.489645 | O194: ='Control Cost Schedules'!N206 -> 8610.489645 | P194: ='Control Cost Schedules'!O206 -> 8610.489645 | Q194: ='Control Cost Schedules'!P206 -> 8610.489645 | R194: ='Control Cost Schedules'!Q206 -> 8610.489645 | S194: ='Control Cost Schedules'!R206 -> 8610.489645 | T194: ='Control Cost Schedules'!S206 -> 8610.489645 | U194: ='Control Cost Schedules'!T206 -> 8610.489645 | V194: ='Control Cost Schedules'!U206 -> 8610.489645 | W194: ='Control Cost Schedules'!V206 -> 8610.489645 | X194: ='Control Cost Schedules'!W206 -> 8610.489645 | Y194: ='Control Cost Schedules'!X206 -> 8610.489645 | Z194: ='Control Cost Schedules'!Y206 -> 4576.6875 | AA194: ='Control Cost Schedules'!Z206 -> 4576.6875 | AB194: ='Control Cost Schedules'!AA206 -> 4576.6875 | AC194: ='Control Cost Schedules'!AB206 -> 4576.6875 | AD194: ='Control Cost Schedules'!AC206 -> 4576.6875 | AE194: ='Control Cost Schedules'!AD206 -> 4576.6875 | AF194: ='Control Cost Schedules'!AE206 -> 4576.6875 | AG194: ='Control Cost Schedules'!AF206 -> 4576.6875 | AH194: ='Control Cost Schedules'!AG206 -> 4576.6875 | AI194: ='Control Cost Schedules'!AH206 -> 4576.6875 | AJ194: ='Control Cost Schedules'!AI206 -> 4576.6875 | AK194: ='Control Cost Schedules'!AJ206 -> 4576.6875 | AL194: ='Control Cost Schedules'!AK206 -> 4576.6875 | AM194: ='Control Cost Schedules'!AL206 -> 4576.6875 | AN194: ='Control Cost Schedules'!AM206 -> 4576.6875 | AO194: ='Control Cost Schedules'!AN206 -> 4576.6875 | AP194: ='Control Cost Schedules'!AO206 -> 4576.6875 | AQ194: ='Control Cost Schedules'!AP206 -> 4576.6875 | AR194: ='Control Cost Schedules'!AQ206 -> 4576.6875 | AS194: ='Control Cost Schedules'!AR206 -> 4576.6875 | AT194: ='Control Cost Schedules'!AS206 -> 4576.6875 | AU194: ='Control Cost Schedules'!AT206 -> 4576.6875 | AV194: ='Control Cost Schedules'!AU206 -> 4576.6875 | AW194: ='Control Cost Schedules'!AV206 -> 4576.6875 | AX194: ='Control Cost Schedules'!AW206 -> 4576.6875 | AY194: ='Control Cost Schedules'!AX206 -> 4576.6875 | AZ194: ='Control Cost Schedules'!AY206 -> 4576.6875 | BA194: ='Control Cost Schedules'!AZ206 -> 4576.6875 | BB194: ='Control Cost Schedules'!BA206 -> 0
A195: Eden Valley | B195: 33 | C195: water filter plant | D195: 9 | E195: ='Control Cost Schedules'!D207 -> 8610.489645 | F195: ='Control Cost Schedules'!E207 -> 8610.489645 | G195: ='Control Cost Schedules'!F207 -> 8610.489645 | H195: ='Control Cost Schedules'!G207 -> 8610.489645 | I195: ='Control Cost Schedules'!H207 -> 8610.489645 | J195: ='Control Cost Schedules'!I207 -> 8610.489645 | K195: ='Control Cost Schedules'!J207 -> 8610.489645 | L195: ='Control Cost Schedules'!K207 -> 8610.489645 | M195: ='Control Cost Schedules'!L207 -> 8610.489645 | N195: ='Control Cost Schedules'!M207 -> 8610.489645 | O195: ='Control Cost Schedules'!N207 -> 8610.489645 | P195: ='Control Cost Schedules'!O207 -> 8610.489645 | Q195: ='Control Cost Schedules'!P207 -> 8610.489645 | R195: ='Control Cost Schedules'!Q207 -> 8610.489645 | S195: ='Control Cost Schedules'!R207 -> 8610.489645 | T195: ='Control Cost Schedules'!S207 -> 8610.489645 | U195: ='Control Cost Schedules'!T207 -> 8610.489645 | V195: ='Control Cost Schedules'!U207 -> 8610.489645 | W195: ='Control Cost Schedules'!V207 -> 8610.489645 | X195: ='Control Cost Schedules'!W207 -> 8610.489645 | Y195: ='Control Cost Schedules'!X207 -> 8610.489645 | Z195: ='Control Cost Schedules'!Y207 -> 4576.6875 | AA195: ='Control Cost Schedules'!Z207 -> 4576.6875 | AB195: ='Control Cost Schedules'!AA207 -> 4576.6875 | AC195: ='Control Cost Schedules'!AB207 -> 4576.6875 | AD195: ='Control Cost Schedules'!AC207 -> 4576.6875 | AE195: ='Control Cost Schedules'!AD207 -> 4576.6875 | AF195: ='Control Cost Schedules'!AE207 -> 4576.6875 | AG195: ='Control Cost Schedules'!AF207 -> 4576.6875 | AH195: ='Control Cost Schedules'!AG207 -> 4576.6875 | AI195: ='Control Cost Schedules'!AH207 -> 4576.6875 | AJ195: ='Control Cost Schedules'!AI207 -> 4576.6875 | AK195: ='Control Cost Schedules'!AJ207 -> 4576.6875 | AL195: ='Control Cost Schedules'!AK207 -> 4576.6875 | AM195: ='Control Cost Schedules'!AL207 -> 4576.6875 | AN195: ='Control Cost Schedules'!AM207 -> 4576.6875 | AO195: ='Control Cost Schedules'!AN207 -> 4576.6875 | AP195: ='Control Cost Schedules'!AO207 -> 4576.6875 | AQ195: ='Control Cost Schedules'!AP207 -> 4576.6875 | AR195: ='Control Cost Schedules'!AQ207 -> 4576.6875 | AS195: ='Control Cost Schedules'!AR207 -> 4576.6875 | AT195: ='Control Cost Schedules'!AS207 -> 4576.6875 | AU195: ='Control Cost Schedules'!AT207 -> 4576.6875 | AV195: ='Control Cost Schedules'!AU207 -> 4576.6875 | AW195: ='Control Cost Schedules'!AV207 -> 4576.6875 | AX195: ='Control Cost Schedules'!AW207 -> 4576.6875 | AY195: ='Control Cost Schedules'!AX207 -> 4576.6875 | AZ195: ='Control Cost Schedules'!AY207 -> 4576.6875 | BA195: ='Control Cost Schedules'!AZ207 -> 4576.6875 | BB195: ='Control Cost Schedules'!BA207 -> 0
A196: Spring Canyon | B196: 34 | C196: water filter plant | D196: 9 | E196: ='Control Cost Schedules'!D208 -> 8610.489645 | F196: ='Control Cost Schedules'!E208 -> 8610.489645 | G196: ='Control Cost Schedules'!F208 -> 8610.489645 | H196: ='Control Cost Schedules'!G208 -> 8610.489645 | I196: ='Control Cost Schedules'!H208 -> 8610.489645 | J196: ='Control Cost Schedules'!I208 -> 8610.489645 | K196: ='Control Cost Schedules'!J208 -> 8610.489645 | L196: ='Control Cost Schedules'!K208 -> 8610.489645 | M196: ='Control Cost Schedules'!L208 -> 8610.489645 | N196: ='Control Cost Schedules'!M208 -> 8610.489645 | O196: ='Control Cost Schedules'!N208 -> 8610.489645 | P196: ='Control Cost Schedules'!O208 -> 8610.489645 | Q196: ='Control Cost Schedules'!P208 -> 8610.489645 | R196: ='Control Cost Schedules'!Q208 -> 8610.489645 | S196: ='Control Cost Schedules'!R208 -> 8610.489645 | T196: ='Control Cost Schedules'!S208 -> 8610.489645 | U196: ='Control Cost Schedules'!T208 -> 8610.489645 | V196: ='Control Cost Schedules'!U208 -> 8610.489645 | W196: ='Control Cost Schedules'!V208 -> 8610.489645 | X196: ='Control Cost Schedules'!W208 -> 8610.489645 | Y196: ='Control Cost Schedules'!X208 -> 8610.489645 | Z196: ='Control Cost Schedules'!Y208 -> 4576.6875 | AA196: ='Control Cost Schedules'!Z208 -> 4576.6875 | AB196: ='Control Cost Schedules'!AA208 -> 4576.6875 | AC196: ='Control Cost Schedules'!AB208 -> 4576.6875 | AD196: ='Control Cost Schedules'!AC208 -> 4576.6875 | AE196: ='Control Cost Schedules'!AD208 -> 4576.6875 | AF196: ='Control Cost Schedules'!AE208 -> 4576.6875 | AG196: ='Control Cost Schedules'!AF208 -> 4576.6875 | AH196: ='Control Cost Schedules'!AG208 -> 4576.6875 | AI196: ='Control Cost Schedules'!AH208 -> 4576.6875 | AJ196: ='Control Cost Schedules'!AI208 -> 4576.6875 | AK196: ='Control Cost Schedules'!AJ208 -> 4576.6875 | AL196: ='Control Cost Schedules'!AK208 -> 4576.6875 | AM196: ='Control Cost Schedules'!AL208 -> 4576.6875 | AN196: ='Control Cost Schedules'!AM208 -> 4576.6875 | AO196: ='Control Cost Schedules'!AN208 -> 4576.6875 | AP196: ='Control Cost Schedules'!AO208 -> 4576.6875 | AQ196: ='Control Cost Schedules'!AP208 -> 4576.6875 | AR196: ='Control Cost Schedules'!AQ208 -> 4576.6875 | AS196: ='Control Cost Schedules'!AR208 -> 4576.6875 | AT196: ='Control Cost Schedules'!AS208 -> 4576.6875 | AU196: ='Control Cost Schedules'!AT208 -> 4576.6875 | AV196: ='Control Cost Schedules'!AU208 -> 4576.6875 | AW196: ='Control Cost Schedules'!AV208 -> 4576.6875 | AX196: ='Control Cost Schedules'!AW208 -> 4576.6875 | AY196: ='Control Cost Schedules'!AX208 -> 4576.6875 | AZ196: ='Control Cost Schedules'!AY208 -> 4576.6875 | BA196: ='Control Cost Schedules'!AZ208 -> 4576.6875 | BB196: ='Control Cost Schedules'!BA208 -> 0
A197: Horsetooth Dam | B197: 35 | C197: dam | D197: 10 | E197: ='Control Cost Schedules'!D209 -> 125000 | F197: ='Control Cost Schedules'!E209 -> 0 | G197: ='Control Cost Schedules'!F209 -> 0 | H197: ='Control Cost Schedules'!G209 -> 0 | I197: ='Control Cost Schedules'!H209 -> 0 | J197: ='Control Cost Schedules'!I209 -> 125000 | K197: ='Control Cost Schedules'!J209 -> 0 | L197: ='Control Cost Schedules'!K209 -> 0 | M197: ='Control Cost Schedules'!L209 -> 0 | N197: ='Control Cost Schedules'!M209 -> 0 | O197: ='Control Cost Schedules'!N209 -> 125000 | P197: ='Control Cost Schedules'!O209 -> 0 | Q197: ='Control Cost Schedules'!P209 -> 0 | R197: ='Control Cost Schedules'!Q209 -> 0 | S197: ='Control Cost Schedules'!R209 -> 0 | T197: ='Control Cost Schedules'!S209 -> 125000 | U197: ='Control Cost Schedules'!T209 -> 0 | V197: ='Control Cost Schedules'!U209 -> 0 | W197: ='Control Cost Schedules'!V209 -> 0 | X197: ='Control Cost Schedules'!W209 -> 0 | Y197: ='Control Cost Schedules'!X209 -> 125000 | Z197: ='Control Cost Schedules'!Y209 -> 0 | AA197: ='Control Cost Schedules'!Z209 -> 0 | AB197: ='Control Cost Schedules'!AA209 -> 0 | AC197: ='Control Cost Schedules'!AB209 -> 0 | AD197: ='Control Cost Schedules'!AC209 -> 125000 | AE197: ='Control Cost Schedules'!AD209 -> 0 | AF197: ='Control Cost Schedules'!AE209 -> 0 | AG197: ='Control Cost Schedules'!AF209 -> 0 | AH197: ='Control Cost Schedules'!AG209 -> 0 | AI197: ='Control Cost Schedules'!AH209 -> 125000 | AJ197: ='Control Cost Schedules'!AI209 -> 0 | AK197: ='Control Cost Schedules'!AJ209 -> 0 | AL197: ='Control Cost Schedules'!AK209 -> 0 | AM197: ='Control Cost Schedules'!AL209 -> 0 | AN197: ='Control Cost Schedules'!AM209 -> 125000 | AO197: ='Control Cost Schedules'!AN209 -> 0 | AP197: ='Control Cost Schedules'!AO209 -> 0 | AQ197: ='Control Cost Schedules'!AP209 -> 0 | AR197: ='Control Cost Schedules'!AQ209 -> 0 | AS197: ='Control Cost Schedules'!AR209 -> 125000 | AT197: ='Control Cost Schedules'!AS209 -> 0 | AU197: ='Control Cost Schedules'!AT209 -> 0 | AV197: ='Control Cost Schedules'!AU209 -> 0 | AW197: ='Control Cost Schedules'!AV209 -> 0 | AX197: ='Control Cost Schedules'!AW209 -> 125000 | AY197: ='Control Cost Schedules'!AX209 -> 0 | AZ197: ='Control Cost Schedules'!AY209 -> 0 | BA197: ='Control Cost Schedules'!AZ209 -> 0 | BB197: ='Control Cost Schedules'!BA209 -> 0
A198: Soldier Dam | B198: 36 | C198: dam | D198: 10 | E198: ='Control Cost Schedules'!D210 -> 125000 | F198: ='Control Cost Schedules'!E210 -> 0 | G198: ='Control Cost Schedules'!F210 -> 0 | H198: ='Control Cost Schedules'!G210 -> 0 | I198: ='Control Cost Schedules'!H210 -> 0 | J198: ='Control Cost Schedules'!I210 -> 125000 | K198: ='Control Cost Schedules'!J210 -> 0 | L198: ='Control Cost Schedules'!K210 -> 0 | M198: ='Control Cost Schedules'!L210 -> 0 | N198: ='Control Cost Schedules'!M210 -> 0 | O198: ='Control Cost Schedules'!N210 -> 125000 | P198: ='Control Cost Schedules'!O210 -> 0 | Q198: ='Control Cost Schedules'!P210 -> 0 | R198: ='Control Cost Schedules'!Q210 -> 0 | S198: ='Control Cost Schedules'!R210 -> 0 | T198: ='Control Cost Schedules'!S210 -> 125000 | U198: ='Control Cost Schedules'!T210 -> 0 | V198: ='Control Cost Schedules'!U210 -> 0 | W198: ='Control Cost Schedules'!V210 -> 0 | X198: ='Control Cost Schedules'!W210 -> 0 | Y198: ='Control Cost Schedules'!X210 -> 125000 | Z198: ='Control Cost Schedules'!Y210 -> 0 | AA198: ='Control Cost Schedules'!Z210 -> 0 | AB198: ='Control Cost Schedules'!AA210 -> 0 | AC198: ='Control Cost Schedules'!AB210 -> 0 | AD198: ='Control Cost Schedules'!AC210 -> 125000 | AE198: ='Control Cost Schedules'!AD210 -> 0 | AF198: ='Control Cost Schedules'!AE210 -> 0 | AG198: ='Control Cost Schedules'!AF210 -> 0 | AH198: ='Control Cost Schedules'!AG210 -> 0 | AI198: ='Control Cost Schedules'!AH210 -> 125000 | AJ198: ='Control Cost Schedules'!AI210 -> 0 | AK198: ='Control Cost Schedules'!AJ210 -> 0 | AL198: ='Control Cost Schedules'!AK210 -> 0 | AM198: ='Control Cost Schedules'!AL210 -> 0 | AN198: ='Control Cost Schedules'!AM210 -> 125000 | AO198: ='Control Cost Schedules'!AN210 -> 0 | AP198: ='Control Cost Schedules'!AO210 -> 0 | AQ198: ='Control Cost Schedules'!AP210 -> 0 | AR198: ='Control Cost Schedules'!AQ210 -> 0 | AS198: ='Control Cost Schedules'!AR210 -> 125000 | AT198: ='Control Cost Schedules'!AS210 -> 0 | AU198: ='Control Cost Schedules'!AT210 -> 0 | AV198: ='Control Cost Schedules'!AU210 -> 0 | AW198: ='Control Cost Schedules'!AV210 -> 0 | AX198: ='Control Cost Schedules'!AW210 -> 125000 | AY198: ='Control Cost Schedules'!AX210 -> 0 | AZ198: ='Control Cost Schedules'!AY210 -> 0 | BA198: ='Control Cost Schedules'!AZ210 -> 0 | BB198: ='Control Cost Schedules'!BA210 -> 0
A199: Dixon Dam | B199: 37 | C199: dam | D199: 10 | E199: ='Control Cost Schedules'!D211 -> 0 | F199: ='Control Cost Schedules'!E211 -> 0 | G199: ='Control Cost Schedules'!F211 -> 0 | H199: ='Control Cost Schedules'!G211 -> 0 | I199: ='Control Cost Schedules'!H211 -> 0 | J199: ='Control Cost Schedules'!I211 -> 0 | K199: ='Control Cost Schedules'!J211 -> 0 | L199: ='Control Cost Schedules'!K211 -> 0 | M199: ='Control Cost Schedules'!L211 -> 0 | N199: ='Control Cost Schedules'!M211 -> 0 | O199: ='Control Cost Schedules'!N211 -> 0 | P199: ='Control Cost Schedules'!O211 -> 0 | Q199: ='Control Cost Schedules'!P211 -> 0 | R199: ='Control Cost Schedules'!Q211 -> 0 | S199: ='Control Cost Schedules'!R211 -> 0 | T199: ='Control Cost Schedules'!S211 -> 0 | U199: ='Control Cost Schedules'!T211 -> 0 | V199: ='Control Cost Schedules'!U211 -> 0 | W199: ='Control Cost Schedules'!V211 -> 0 | X199: ='Control Cost Schedules'!W211 -> 0 | Y199: ='Control Cost Schedules'!X211 -> 0 | Z199: ='Control Cost Schedules'!Y211 -> 0 | AA199: ='Control Cost Schedules'!Z211 -> 0 | AB199: ='Control Cost Schedules'!AA211 -> 0 | AC199: ='Control Cost Schedules'!AB211 -> 0 | AD199: ='Control Cost Schedules'!AC211 -> 0 | AE199: ='Control Cost Schedules'!AD211 -> 0 | AF199: ='Control Cost Schedules'!AE211 -> 0 | AG199: ='Control Cost Schedules'!AF211 -> 0 | AH199: ='Control Cost Schedules'!AG211 -> 0 | AI199: ='Control Cost Schedules'!AH211 -> 0 | AJ199: ='Control Cost Schedules'!AI211 -> 0 | AK199: ='Control Cost Schedules'!AJ211 -> 0 | AL199: ='Control Cost Schedules'!AK211 -> 0 | AM199: ='Control Cost Schedules'!AL211 -> 0 | AN199: ='Control Cost Schedules'!AM211 -> 0 | AO199: ='Control Cost Schedules'!AN211 -> 0 | AP199: ='Control Cost Schedules'!AO211 -> 0 | AQ199: ='Control Cost Schedules'!AP211 -> 0 | AR199: ='Control Cost Schedules'!AQ211 -> 0 | AS199: ='Control Cost Schedules'!AR211 -> 0 | AT199: ='Control Cost Schedules'!AS211 -> 0 | AU199: ='Control Cost Schedules'!AT211 -> 0 | AV199: ='Control Cost Schedules'!AU211 -> 0 | AW199: ='Control Cost Schedules'!AV211 -> 0 | AX199: ='Control Cost Schedules'!AW211 -> 0 | AY199: ='Control Cost Schedules'!AX211 -> 0 | AZ199: ='Control Cost Schedules'!AY211 -> 0 | BA199: ='Control Cost Schedules'!AZ211 -> 0 | BB199: ='Control Cost Schedules'!BA211 -> 0
A200: Spring Canyon Dam | B200: 38 | C200: dam | D200: 10 | E200: ='Control Cost Schedules'!D212 -> 0 | F200: ='Control Cost Schedules'!E212 -> 0 | G200: ='Control Cost Schedules'!F212 -> 0 | H200: ='Control Cost Schedules'!G212 -> 0 | I200: ='Control Cost Schedules'!H212 -> 0 | J200: ='Control Cost Schedules'!I212 -> 0 | K200: ='Control Cost Schedules'!J212 -> 0 | L200: ='Control Cost Schedules'!K212 -> 0 | M200: ='Control Cost Schedules'!L212 -> 0 | N200: ='Control Cost Schedules'!M212 -> 0 | O200: ='Control Cost Schedules'!N212 -> 0 | P200: ='Control Cost Schedules'!O212 -> 0 | Q200: ='Control Cost Schedules'!P212 -> 0 | R200: ='Control Cost Schedules'!Q212 -> 0 | S200: ='Control Cost Schedules'!R212 -> 0 | T200: ='Control Cost Schedules'!S212 -> 0 | U200: ='Control Cost Schedules'!T212 -> 0 | V200: ='Control Cost Schedules'!U212 -> 0 | W200: ='Control Cost Schedules'!V212 -> 0 | X200: ='Control Cost Schedules'!W212 -> 0 | Y200: ='Control Cost Schedules'!X212 -> 0 | Z200: ='Control Cost Schedules'!Y212 -> 0 | AA200: ='Control Cost Schedules'!Z212 -> 0 | AB200: ='Control Cost Schedules'!AA212 -> 0 | AC200: ='Control Cost Schedules'!AB212 -> 0 | AD200: ='Control Cost Schedules'!AC212 -> 0 | AE200: ='Control Cost Schedules'!AD212 -> 0 | AF200: ='Control Cost Schedules'!AE212 -> 0 | AG200: ='Control Cost Schedules'!AF212 -> 0 | AH200: ='Control Cost Schedules'!AG212 -> 0 | AI200: ='Control Cost Schedules'!AH212 -> 0 | AJ200: ='Control Cost Schedules'!AI212 -> 0 | AK200: ='Control Cost Schedules'!AJ212 -> 0 | AL200: ='Control Cost Schedules'!AK212 -> 0 | AM200: ='Control Cost Schedules'!AL212 -> 0 | AN200: ='Control Cost Schedules'!AM212 -> 0 | AO200: ='Control Cost Schedules'!AN212 -> 0 | AP200: ='Control Cost Schedules'!AO212 -> 0 | AQ200: ='Control Cost Schedules'!AP212 -> 0 | AR200: ='Control Cost Schedules'!AQ212 -> 0 | AS200: ='Control Cost Schedules'!AR212 -> 0 | AT200: ='Control Cost Schedules'!AS212 -> 0 | AU200: ='Control Cost Schedules'!AT212 -> 0 | AV200: ='Control Cost Schedules'!AU212 -> 0 | AW200: ='Control Cost Schedules'!AV212 -> 0 | AX200: ='Control Cost Schedules'!AW212 -> 0 | AY200: ='Control Cost Schedules'!AX212 -> 0 | AZ200: ='Control Cost Schedules'!AY212 -> 0 | BA200: ='Control Cost Schedules'!AZ212 -> 0 | BB200: ='Control Cost Schedules'!BA212 -> 0
A201: Charles Hansen Supply Canal | B201: 39 | C201: canal | D201: 10 | E201: ='Control Cost Schedules'!D213 -> 0 | F201: ='Control Cost Schedules'!E213 -> 0 | G201: ='Control Cost Schedules'!F213 -> 0 | H201: ='Control Cost Schedules'!G213 -> 0 | I201: ='Control Cost Schedules'!H213 -> 0 | J201: ='Control Cost Schedules'!I213 -> 0 | K201: ='Control Cost Schedules'!J213 -> 0 | L201: ='Control Cost Schedules'!K213 -> 0 | M201: ='Control Cost Schedules'!L213 -> 0 | N201: ='Control Cost Schedules'!M213 -> 0 | O201: ='Control Cost Schedules'!N213 -> 0 | P201: ='Control Cost Schedules'!O213 -> 0 | Q201: ='Control Cost Schedules'!P213 -> 0 | R201: ='Control Cost Schedules'!Q213 -> 0 | S201: ='Control Cost Schedules'!R213 -> 0 | T201: ='Control Cost Schedules'!S213 -> 0 | U201: ='Control Cost Schedules'!T213 -> 0 | V201: ='Control Cost Schedules'!U213 -> 0 | W201: ='Control Cost Schedules'!V213 -> 0 | X201: ='Control Cost Schedules'!W213 -> 0 | Y201: ='Control Cost Schedules'!X213 -> 0 | Z201: ='Control Cost Schedules'!Y213 -> 0 | AA201: ='Control Cost Schedules'!Z213 -> 0 | AB201: ='Control Cost Schedules'!AA213 -> 0 | AC201: ='Control Cost Schedules'!AB213 -> 0 | AD201: ='Control Cost Schedules'!AC213 -> 0 | AE201: ='Control Cost Schedules'!AD213 -> 0 | AF201: ='Control Cost Schedules'!AE213 -> 0 | AG201: ='Control Cost Schedules'!AF213 -> 0 | AH201: ='Control Cost Schedules'!AG213 -> 0 | AI201: ='Control Cost Schedules'!AH213 -> 0 | AJ201: ='Control Cost Schedules'!AI213 -> 0 | AK201: ='Control Cost Schedules'!AJ213 -> 0 | AL201: ='Control Cost Schedules'!AK213 -> 0 | AM201: ='Control Cost Schedules'!AL213 -> 0 | AN201: ='Control Cost Schedules'!AM213 -> 0 | AO201: ='Control Cost Schedules'!AN213 -> 0 | AP201: ='Control Cost Schedules'!AO213 -> 0 | AQ201: ='Control Cost Schedules'!AP213 -> 0 | AR201: ='Control Cost Schedules'!AQ213 -> 0 | AS201: ='Control Cost Schedules'!AR213 -> 0 | AT201: ='Control Cost Schedules'!AS213 -> 0 | AU201: ='Control Cost Schedules'!AT213 -> 0 | AV201: ='Control Cost Schedules'!AU213 -> 0 | AW201: ='Control Cost Schedules'!AV213 -> 0 | AX201: ='Control Cost Schedules'!AW213 -> 0 | AY201: ='Control Cost Schedules'!AX213 -> 0 | AZ201: ='Control Cost Schedules'!AY213 -> 0 | BA201: ='Control Cost Schedules'!AZ213 -> 0 | BB201: ='Control Cost Schedules'!BA213 -> 0
A202: Northern Poudre Supply Canal | B202: 40 | C202: canal | D202: 10 | E202: ='Control Cost Schedules'!D214 -> 0 | F202: ='Control Cost Schedules'!E214 -> 0 | G202: ='Control Cost Schedules'!F214 -> 0 | H202: ='Control Cost Schedules'!G214 -> 0 | I202: ='Control Cost Schedules'!H214 -> 0 | J202: ='Control Cost Schedules'!I214 -> 0 | K202: ='Control Cost Schedules'!J214 -> 0 | L202: ='Control Cost Schedules'!K214 -> 0 | M202: ='Control Cost Schedules'!L214 -> 0 | N202: ='Control Cost Schedules'!M214 -> 0 | O202: ='Control Cost Schedules'!N214 -> 0 | P202: ='Control Cost Schedules'!O214 -> 0 | Q202: ='Control Cost Schedules'!P214 -> 0 | R202: ='Control Cost Schedules'!Q214 -> 0 | S202: ='Control Cost Schedules'!R214 -> 0 | T202: ='Control Cost Schedules'!S214 -> 0 | U202: ='Control Cost Schedules'!T214 -> 0 | V202: ='Control Cost Schedules'!U214 -> 0 | W202: ='Control Cost Schedules'!V214 -> 0 | X202: ='Control Cost Schedules'!W214 -> 0 | Y202: ='Control Cost Schedules'!X214 -> 0 | Z202: ='Control Cost Schedules'!Y214 -> 0 | AA202: ='Control Cost Schedules'!Z214 -> 0 | AB202: ='Control Cost Schedules'!AA214 -> 0 | AC202: ='Control Cost Schedules'!AB214 -> 0 | AD202: ='Control Cost Schedules'!AC214 -> 0 | AE202: ='Control Cost Schedules'!AD214 -> 0 | AF202: ='Control Cost Schedules'!AE214 -> 0 | AG202: ='Control Cost Schedules'!AF214 -> 0 | AH202: ='Control Cost Schedules'!AG214 -> 0 | AI202: ='Control Cost Schedules'!AH214 -> 0 | AJ202: ='Control Cost Schedules'!AI214 -> 0 | AK202: ='Control Cost Schedules'!AJ214 -> 0 | AL202: ='Control Cost Schedules'!AK214 -> 0 | AM202: ='Control Cost Schedules'!AL214 -> 0 | AN202: ='Control Cost Schedules'!AM214 -> 0 | AO202: ='Control Cost Schedules'!AN214 -> 0 | AP202: ='Control Cost Schedules'!AO214 -> 0 | AQ202: ='Control Cost Schedules'!AP214 -> 0 | AR202: ='Control Cost Schedules'!AQ214 -> 0 | AS202: ='Control Cost Schedules'!AR214 -> 0 | AT202: ='Control Cost Schedules'!AS214 -> 0 | AU202: ='Control Cost Schedules'!AT214 -> 0 | AV202: ='Control Cost Schedules'!AU214 -> 0 | AW202: ='Control Cost Schedules'!AV214 -> 0 | AX202: ='Control Cost Schedules'!AW214 -> 0 | AY202: ='Control Cost Schedules'!AX214 -> 0 | AZ202: ='Control Cost Schedules'!AY214 -> 0 | BA202: ='Control Cost Schedules'!AZ214 -> 0 | BB202: ='Control Cost Schedules'!BA214 -> 0
A203: Fort Collins | B203: 41 | C203: water filter plant | D203: 10 | E203: ='Control Cost Schedules'!D215 -> 1049608.953 | F203: ='Control Cost Schedules'!E215 -> 1049608.953 | G203: ='Control Cost Schedules'!F215 -> 1049608.953 | H203: ='Control Cost Schedules'!G215 -> 1049608.953 | I203: ='Control Cost Schedules'!H215 -> 1049608.953 | J203: ='Control Cost Schedules'!I215 -> 1049608.953 | K203: ='Control Cost Schedules'!J215 -> 1049608.953 | L203: ='Control Cost Schedules'!K215 -> 1049608.953 | M203: ='Control Cost Schedules'!L215 -> 1049608.953 | N203: ='Control Cost Schedules'!M215 -> 1049608.953 | O203: ='Control Cost Schedules'!N215 -> 1049608.953 | P203: ='Control Cost Schedules'!O215 -> 1049608.953 | Q203: ='Control Cost Schedules'!P215 -> 1049608.953 | R203: ='Control Cost Schedules'!Q215 -> 1049608.953 | S203: ='Control Cost Schedules'!R215 -> 1049608.953 | T203: ='Control Cost Schedules'!S215 -> 1049608.953 | U203: ='Control Cost Schedules'!T215 -> 1049608.953 | V203: ='Control Cost Schedules'!U215 -> 1049608.953 | W203: ='Control Cost Schedules'!V215 -> 1049608.953 | X203: ='Control Cost Schedules'!W215 -> 1049608.953 | Y203: ='Control Cost Schedules'!X215 -> 1049608.953 | Z203: ='Control Cost Schedules'!Y215 -> 833333.3333 | AA203: ='Control Cost Schedules'!Z215 -> 833333.3333 | AB203: ='Control Cost Schedules'!AA215 -> 833333.3333 | AC203: ='Control Cost Schedules'!AB215 -> 833333.3333 | AD203: ='Control Cost Schedules'!AC215 -> 833333.3333 | AE203: ='Control Cost Schedules'!AD215 -> 833333.3333 | AF203: ='Control Cost Schedules'!AE215 -> 833333.3333 | AG203: ='Control Cost Schedules'!AF215 -> 833333.3333 | AH203: ='Control Cost Schedules'!AG215 -> 833333.3333 | AI203: ='Control Cost Schedules'!AH215 -> 833333.3333 | AJ203: ='Control Cost Schedules'!AI215 -> 833333.3333 | AK203: ='Control Cost Schedules'!AJ215 -> 833333.3333 | AL203: ='Control Cost Schedules'!AK215 -> 833333.3333 | AM203: ='Control Cost Schedules'!AL215 -> 833333.3333 | AN203: ='Control Cost Schedules'!AM215 -> 833333.3333 | AO203: ='Control Cost Schedules'!AN215 -> 833333.3333 | AP203: ='Control Cost Schedules'!AO215 -> 833333.3333 | AQ203: ='Control Cost Schedules'!AP215 -> 833333.3333 | AR203: ='Control Cost Schedules'!AQ215 -> 833333.3333 | AS203: ='Control Cost Schedules'!AR215 -> 833333.3333 | AT203: ='Control Cost Schedules'!AS215 -> 833333.3333 | AU203: ='Control Cost Schedules'!AT215 -> 833333.3333 | AV203: ='Control Cost Schedules'!AU215 -> 833333.3333 | AW203: ='Control Cost Schedules'!AV215 -> 833333.3333 | AX203: ='Control Cost Schedules'!AW215 -> 833333.3333 | AY203: ='Control Cost Schedules'!AX215 -> 833333.3333 | AZ203: ='Control Cost Schedules'!AY215 -> 833333.3333 | BA203: ='Control Cost Schedules'!AZ215 -> 833333.3333 | BB203: ='Control Cost Schedules'!BA215 -> 0
A204: Soldier Canyon | B204: 42 | C204: water filter plant | D204: 10 | E204: ='Control Cost Schedules'!D216 -> 1049608.953 | F204: ='Control Cost Schedules'!E216 -> 1049608.953 | G204: ='Control Cost Schedules'!F216 -> 1049608.953 | H204: ='Control Cost Schedules'!G216 -> 1049608.953 | I204: ='Control Cost Schedules'!H216 -> 1049608.953 | J204: ='Control Cost Schedules'!I216 -> 1049608.953 | K204: ='Control Cost Schedules'!J216 -> 1049608.953 | L204: ='Control Cost Schedules'!K216 -> 1049608.953 | M204: ='Control Cost Schedules'!L216 -> 1049608.953 | N204: ='Control Cost Schedules'!M216 -> 1049608.953 | O204: ='Control Cost Schedules'!N216 -> 1049608.953 | P204: ='Control Cost Schedules'!O216 -> 1049608.953 | Q204: ='Control Cost Schedules'!P216 -> 1049608.953 | R204: ='Control Cost Schedules'!Q216 -> 1049608.953 | S204: ='Control Cost Schedules'!R216 -> 1049608.953 | T204: ='Control Cost Schedules'!S216 -> 1049608.953 | U204: ='Control Cost Schedules'!T216 -> 1049608.953 | V204: ='Control Cost Schedules'!U216 -> 1049608.953 | W204: ='Control Cost Schedules'!V216 -> 1049608.953 | X204: ='Control Cost Schedules'!W216 -> 1049608.953 | Y204: ='Control Cost Schedules'!X216 -> 1049608.953 | Z204: ='Control Cost Schedules'!Y216 -> 833333.3333 | AA204: ='Control Cost Schedules'!Z216 -> 833333.3333 | AB204: ='Control Cost Schedules'!AA216 -> 833333.3333 | AC204: ='Control Cost Schedules'!AB216 -> 833333.3333 | AD204: ='Control Cost Schedules'!AC216 -> 833333.3333 | AE204: ='Control Cost Schedules'!AD216 -> 833333.3333 | AF204: ='Control Cost Schedules'!AE216 -> 833333.3333 | AG204: ='Control Cost Schedules'!AF216 -> 833333.3333 | AH204: ='Control Cost Schedules'!AG216 -> 833333.3333 | AI204: ='Control Cost Schedules'!AH216 -> 833333.3333 | AJ204: ='Control Cost Schedules'!AI216 -> 833333.3333 | AK204: ='Control Cost Schedules'!AJ216 -> 833333.3333 | AL204: ='Control Cost Schedules'!AK216 -> 833333.3333 | AM204: ='Control Cost Schedules'!AL216 -> 833333.3333 | AN204: ='Control Cost Schedules'!AM216 -> 833333.3333 | AO204: ='Control Cost Schedules'!AN216 -> 833333.3333 | AP204: ='Control Cost Schedules'!AO216 -> 833333.3333 | AQ204: ='Control Cost Schedules'!AP216 -> 833333.3333 | AR204: ='Control Cost Schedules'!AQ216 -> 833333.3333 | AS204: ='Control Cost Schedules'!AR216 -> 833333.3333 | AT204: ='Control Cost Schedules'!AS216 -> 833333.3333 | AU204: ='Control Cost Schedules'!AT216 -> 833333.3333 | AV204: ='Control Cost Schedules'!AU216 -> 833333.3333 | AW204: ='Control Cost Schedules'!AV216 -> 833333.3333 | AX204: ='Control Cost Schedules'!AW216 -> 833333.3333 | AY204: ='Control Cost Schedules'!AX216 -> 833333.3333 | AZ204: ='Control Cost Schedules'!AY216 -> 833333.3333 | BA204: ='Control Cost Schedules'!AZ216 -> 833333.3333 | BB204: ='Control Cost Schedules'!BA216 -> 0
A205: Greeley | B205: 43 | C205: water filter plant | D205: 10 | E205: ='Control Cost Schedules'!D217 -> 1049608.953 | F205: ='Control Cost Schedules'!E217 -> 1049608.953 | G205: ='Control Cost Schedules'!F217 -> 1049608.953 | H205: ='Control Cost Schedules'!G217 -> 1049608.953 | I205: ='Control Cost Schedules'!H217 -> 1049608.953 | J205: ='Control Cost Schedules'!I217 -> 1049608.953 | K205: ='Control Cost Schedules'!J217 -> 1049608.953 | L205: ='Control Cost Schedules'!K217 -> 1049608.953 | M205: ='Control Cost Schedules'!L217 -> 1049608.953 | N205: ='Control Cost Schedules'!M217 -> 1049608.953 | O205: ='Control Cost Schedules'!N217 -> 1049608.953 | P205: ='Control Cost Schedules'!O217 -> 1049608.953 | Q205: ='Control Cost Schedules'!P217 -> 1049608.953 | R205: ='Control Cost Schedules'!Q217 -> 1049608.953 | S205: ='Control Cost Schedules'!R217 -> 1049608.953 | T205: ='Control Cost Schedules'!S217 -> 1049608.953 | U205: ='Control Cost Schedules'!T217 -> 1049608.953 | V205: ='Control Cost Schedules'!U217 -> 1049608.953 | W205: ='Control Cost Schedules'!V217 -> 1049608.953 | X205: ='Control Cost Schedules'!W217 -> 1049608.953 | Y205: ='Control Cost Schedules'!X217 -> 1049608.953 | Z205: ='Control Cost Schedules'!Y217 -> 833333.3333 | AA205: ='Control Cost Schedules'!Z217 -> 833333.3333 | AB205: ='Control Cost Schedules'!AA217 -> 833333.3333 | AC205: ='Control Cost Schedules'!AB217 -> 833333.3333 | AD205: ='Control Cost Schedules'!AC217 -> 833333.3333 | AE205: ='Control Cost Schedules'!AD217 -> 833333.3333 | AF205: ='Control Cost Schedules'!AE217 -> 833333.3333 | AG205: ='Control Cost Schedules'!AF217 -> 833333.3333 | AH205: ='Control Cost Schedules'!AG217 -> 833333.3333 | AI205: ='Control Cost Schedules'!AH217 -> 833333.3333 | AJ205: ='Control Cost Schedules'!AI217 -> 833333.3333 | AK205: ='Control Cost Schedules'!AJ217 -> 833333.3333 | AL205: ='Control Cost Schedules'!AK217 -> 833333.3333 | AM205: ='Control Cost Schedules'!AL217 -> 833333.3333 | AN205: ='Control Cost Schedules'!AM217 -> 833333.3333 | AO205: ='Control Cost Schedules'!AN217 -> 833333.3333 | AP205: ='Control Cost Schedules'!AO217 -> 833333.3333 | AQ205: ='Control Cost Schedules'!AP217 -> 833333.3333 | AR205: ='Control Cost Schedules'!AQ217 -> 833333.3333 | AS205: ='Control Cost Schedules'!AR217 -> 833333.3333 | AT205: ='Control Cost Schedules'!AS217 -> 833333.3333 | AU205: ='Control Cost Schedules'!AT217 -> 833333.3333 | AV205: ='Control Cost Schedules'!AU217 -> 833333.3333 | AW205: ='Control Cost Schedules'!AV217 -> 833333.3333 | AX205: ='Control Cost Schedules'!AW217 -> 833333.3333 | AY205: ='Control Cost Schedules'!AX217 -> 833333.3333 | AZ205: ='Control Cost Schedules'!AY217 -> 833333.3333 | BA205: ='Control Cost Schedules'!AZ217 -> 833333.3333 | BB205: ='Control Cost Schedules'!BA217 -> 0
A206: Carter Lake Dam 1 | B206: 44 | C206: dam | D206: 11 | E206: ='Control Cost Schedules'!D218 -> 125000 | F206: ='Control Cost Schedules'!E218 -> 0 | G206: ='Control Cost Schedules'!F218 -> 0 | H206: ='Control Cost Schedules'!G218 -> 0 | I206: ='Control Cost Schedules'!H218 -> 0 | J206: ='Control Cost Schedules'!I218 -> 125000 | K206: ='Control Cost Schedules'!J218 -> 0 | L206: ='Control Cost Schedules'!K218 -> 0 | M206: ='Control Cost Schedules'!L218 -> 0 | N206: ='Control Cost Schedules'!M218 -> 0 | O206: ='Control Cost Schedules'!N218 -> 125000 | P206: ='Control Cost Schedules'!O218 -> 0 | Q206: ='Control Cost Schedules'!P218 -> 0 | R206: ='Control Cost Schedules'!Q218 -> 0 | S206: ='Control Cost Schedules'!R218 -> 0 | T206: ='Control Cost Schedules'!S218 -> 125000 | U206: ='Control Cost Schedules'!T218 -> 0 | V206: ='Control Cost Schedules'!U218 -> 0 | W206: ='Control Cost Schedules'!V218 -> 0 | X206: ='Control Cost Schedules'!W218 -> 0 | Y206: ='Control Cost Schedules'!X218 -> 125000 | Z206: ='Control Cost Schedules'!Y218 -> 0 | AA206: ='Control Cost Schedules'!Z218 -> 0 | AB206: ='Control Cost Schedules'!AA218 -> 0 | AC206: ='Control Cost Schedules'!AB218 -> 0 | AD206: ='Control Cost Schedules'!AC218 -> 125000 | AE206: ='Control Cost Schedules'!AD218 -> 0 | AF206: ='Control Cost Schedules'!AE218 -> 0 | AG206: ='Control Cost Schedules'!AF218 -> 0 | AH206: ='Control Cost Schedules'!AG218 -> 0 | AI206: ='Control Cost Schedules'!AH218 -> 125000 | AJ206: ='Control Cost Schedules'!AI218 -> 0 | AK206: ='Control Cost Schedules'!AJ218 -> 0 | AL206: ='Control Cost Schedules'!AK218 -> 0 | AM206: ='Control Cost Schedules'!AL218 -> 0 | AN206: ='Control Cost Schedules'!AM218 -> 125000 | AO206: ='Control Cost Schedules'!AN218 -> 0 | AP206: ='Control Cost Schedules'!AO218 -> 0 | AQ206: ='Control Cost Schedules'!AP218 -> 0 | AR206: ='Control Cost Schedules'!AQ218 -> 0 | AS206: ='Control Cost Schedules'!AR218 -> 125000 | AT206: ='Control Cost Schedules'!AS218 -> 0 | AU206: ='Control Cost Schedules'!AT218 -> 0 | AV206: ='Control Cost Schedules'!AU218 -> 0 | AW206: ='Control Cost Schedules'!AV218 -> 0 | AX206: ='Control Cost Schedules'!AW218 -> 125000 | AY206: ='Control Cost Schedules'!AX218 -> 0 | AZ206: ='Control Cost Schedules'!AY218 -> 0 | BA206: ='Control Cost Schedules'!AZ218 -> 0 | BB206: ='Control Cost Schedules'!BA218 -> 0
A207: Carter Lake Dam 2 | B207: 45 | C207: dam | D207: 11 | E207: ='Control Cost Schedules'!D219 -> 0 | F207: ='Control Cost Schedules'!E219 -> 0 | G207: ='Control Cost Schedules'!F219 -> 0 | H207: ='Control Cost Schedules'!G219 -> 0 | I207: ='Control Cost Schedules'!H219 -> 0 | J207: ='Control Cost Schedules'!I219 -> 0 | K207: ='Control Cost Schedules'!J219 -> 0 | L207: ='Control Cost Schedules'!K219 -> 0 | M207: ='Control Cost Schedules'!L219 -> 0 | N207: ='Control Cost Schedules'!M219 -> 0 | O207: ='Control Cost Schedules'!N219 -> 0 | P207: ='Control Cost Schedules'!O219 -> 0 | Q207: ='Control Cost Schedules'!P219 -> 0 | R207: ='Control Cost Schedules'!Q219 -> 0 | S207: ='Control Cost Schedules'!R219 -> 0 | T207: ='Control Cost Schedules'!S219 -> 0 | U207: ='Control Cost Schedules'!T219 -> 0 | V207: ='Control Cost Schedules'!U219 -> 0 | W207: ='Control Cost Schedules'!V219 -> 0 | X207: ='Control Cost Schedules'!W219 -> 0 | Y207: ='Control Cost Schedules'!X219 -> 0 | Z207: ='Control Cost Schedules'!Y219 -> 0 | AA207: ='Control Cost Schedules'!Z219 -> 0 | AB207: ='Control Cost Schedules'!AA219 -> 0 | AC207: ='Control Cost Schedules'!AB219 -> 0 | AD207: ='Control Cost Schedules'!AC219 -> 0 | AE207: ='Control Cost Schedules'!AD219 -> 0 | AF207: ='Control Cost Schedules'!AE219 -> 0 | AG207: ='Control Cost Schedules'!AF219 -> 0 | AH207: ='Control Cost Schedules'!AG219 -> 0 | AI207: ='Control Cost Schedules'!AH219 -> 0 | AJ207: ='Control Cost Schedules'!AI219 -> 0 | AK207: ='Control Cost Schedules'!AJ219 -> 0 | AL207: ='Control Cost Schedules'!AK219 -> 0 | AM207: ='Control Cost Schedules'!AL219 -> 0 | AN207: ='Control Cost Schedules'!AM219 -> 0 | AO207: ='Control Cost Schedules'!AN219 -> 0 | AP207: ='Control Cost Schedules'!AO219 -> 0 | AQ207: ='Control Cost Schedules'!AP219 -> 0 | AR207: ='Control Cost Schedules'!AQ219 -> 0 | AS207: ='Control Cost Schedules'!AR219 -> 0 | AT207: ='Control Cost Schedules'!AS219 -> 0 | AU207: ='Control Cost Schedules'!AT219 -> 0 | AV207: ='Control Cost Schedules'!AU219 -> 0 | AW207: ='Control Cost Schedules'!AV219 -> 0 | AX207: ='Control Cost Schedules'!AW219 -> 0 | AY207: ='Control Cost Schedules'!AX219 -> 0 | AZ207: ='Control Cost Schedules'!AY219 -> 0 | BA207: ='Control Cost Schedules'!AZ219 -> 0 | BB207: ='Control Cost Schedules'!BA219 -> 0
A208: Carter Lake Dam 3 | B208: 46 | C208: dam | D208: 11 | E208: ='Control Cost Schedules'!D220 -> 0 | F208: ='Control Cost Schedules'!E220 -> 0 | G208: ='Control Cost Schedules'!F220 -> 0 | H208: ='Control Cost Schedules'!G220 -> 0 | I208: ='Control Cost Schedules'!H220 -> 0 | J208: ='Control Cost Schedules'!I220 -> 0 | K208: ='Control Cost Schedules'!J220 -> 0 | L208: ='Control Cost Schedules'!K220 -> 0 | M208: ='Control Cost Schedules'!L220 -> 0 | N208: ='Control Cost Schedules'!M220 -> 0 | O208: ='Control Cost Schedules'!N220 -> 0 | P208: ='Control Cost Schedules'!O220 -> 0 | Q208: ='Control Cost Schedules'!P220 -> 0 | R208: ='Control Cost Schedules'!Q220 -> 0 | S208: ='Control Cost Schedules'!R220 -> 0 | T208: ='Control Cost Schedules'!S220 -> 0 | U208: ='Control Cost Schedules'!T220 -> 0 | V208: ='Control Cost Schedules'!U220 -> 0 | W208: ='Control Cost Schedules'!V220 -> 0 | X208: ='Control Cost Schedules'!W220 -> 0 | Y208: ='Control Cost Schedules'!X220 -> 0 | Z208: ='Control Cost Schedules'!Y220 -> 0 | AA208: ='Control Cost Schedules'!Z220 -> 0 | AB208: ='Control Cost Schedules'!AA220 -> 0 | AC208: ='Control Cost Schedules'!AB220 -> 0 | AD208: ='Control Cost Schedules'!AC220 -> 0 | AE208: ='Control Cost Schedules'!AD220 -> 0 | AF208: ='Control Cost Schedules'!AE220 -> 0 | AG208: ='Control Cost Schedules'!AF220 -> 0 | AH208: ='Control Cost Schedules'!AG220 -> 0 | AI208: ='Control Cost Schedules'!AH220 -> 0 | AJ208: ='Control Cost Schedules'!AI220 -> 0 | AK208: ='Control Cost Schedules'!AJ220 -> 0 | AL208: ='Control Cost Schedules'!AK220 -> 0 | AM208: ='Control Cost Schedules'!AL220 -> 0 | AN208: ='Control Cost Schedules'!AM220 -> 0 | AO208: ='Control Cost Schedules'!AN220 -> 0 | AP208: ='Control Cost Schedules'!AO220 -> 0 | AQ208: ='Control Cost Schedules'!AP220 -> 0 | AR208: ='Control Cost Schedules'!AQ220 -> 0 | AS208: ='Control Cost Schedules'!AR220 -> 0 | AT208: ='Control Cost Schedules'!AS220 -> 0 | AU208: ='Control Cost Schedules'!AT220 -> 0 | AV208: ='Control Cost Schedules'!AU220 -> 0 | AW208: ='Control Cost Schedules'!AV220 -> 0 | AX208: ='Control Cost Schedules'!AW220 -> 0 | AY208: ='Control Cost Schedules'!AX220 -> 0 | AZ208: ='Control Cost Schedules'!AY220 -> 0 | BA208: ='Control Cost Schedules'!AZ220 -> 0 | BB208: ='Control Cost Schedules'!BA220 -> 0
A209: Carter Lake Filter Plant 1 | B209: 47 | C209: water filter plant | D209: 11 | E209: ='Control Cost Schedules'!D221 -> 32491.75305 | F209: ='Control Cost Schedules'!E221 -> 32491.75305 | G209: ='Control Cost Schedules'!F221 -> 32491.75305 | H209: ='Control Cost Schedules'!G221 -> 32491.75305 | I209: ='Control Cost Schedules'!H221 -> 32491.75305 | J209: ='Control Cost Schedules'!I221 -> 32491.75305 | K209: ='Control Cost Schedules'!J221 -> 32491.75305 | L209: ='Control Cost Schedules'!K221 -> 32491.75305 | M209: ='Control Cost Schedules'!L221 -> 32491.75305 | N209: ='Control Cost Schedules'!M221 -> 32491.75305 | O209: ='Control Cost Schedules'!N221 -> 32491.75305 | P209: ='Control Cost Schedules'!O221 -> 32491.75305 | Q209: ='Control Cost Schedules'!P221 -> 32491.75305 | R209: ='Control Cost Schedules'!Q221 -> 32491.75305 | S209: ='Control Cost Schedules'!R221 -> 32491.75305 | T209: ='Control Cost Schedules'!S221 -> 32491.75305 | U209: ='Control Cost Schedules'!T221 -> 32491.75305 | V209: ='Control Cost Schedules'!U221 -> 32491.75305 | W209: ='Control Cost Schedules'!V221 -> 32491.75305 | X209: ='Control Cost Schedules'!W221 -> 32491.75305 | Y209: ='Control Cost Schedules'!X221 -> 32491.75305 | Z209: ='Control Cost Schedules'!Y221 -> 17808 | AA209: ='Control Cost Schedules'!Z221 -> 17808 | AB209: ='Control Cost Schedules'!AA221 -> 17808 | AC209: ='Control Cost Schedules'!AB221 -> 17808 | AD209: ='Control Cost Schedules'!AC221 -> 17808 | AE209: ='Control Cost Schedules'!AD221 -> 17808 | AF209: ='Control Cost Schedules'!AE221 -> 17808 | AG209: ='Control Cost Schedules'!AF221 -> 17808 | AH209: ='Control Cost Schedules'!AG221 -> 17808 | AI209: ='Control Cost Schedules'!AH221 -> 17808 | AJ209: ='Control Cost Schedules'!AI221 -> 17808 | AK209: ='Control Cost Schedules'!AJ221 -> 17808 | AL209: ='Control Cost Schedules'!AK221 -> 17808 | AM209: ='Control Cost Schedules'!AL221 -> 17808 | AN209: ='Control Cost Schedules'!AM221 -> 17808 | AO209: ='Control Cost Schedules'!AN221 -> 17808 | AP209: ='Control Cost Schedules'!AO221 -> 17808 | AQ209: ='Control Cost Schedules'!AP221 -> 17808 | AR209: ='Control Cost Schedules'!AQ221 -> 17808 | AS209: ='Control Cost Schedules'!AR221 -> 17808 | AT209: ='Control Cost Schedules'!AS221 -> 17808 | AU209: ='Control Cost Schedules'!AT221 -> 17808 | AV209: ='Control Cost Schedules'!AU221 -> 17808 | AW209: ='Control Cost Schedules'!AV221 -> 17808 | AX209: ='Control Cost Schedules'!AW221 -> 17808 | AY209: ='Control Cost Schedules'!AX221 -> 17808 | AZ209: ='Control Cost Schedules'!AY221 -> 17808 | BA209: ='Control Cost Schedules'!AZ221 -> 17808 | BB209: ='Control Cost Schedules'!BA221 -> 0
A210: Carter Lake Filter Plant 2 | B210: 48 | C210: water filter plant | D210: 11 | E210: ='Control Cost Schedules'!D222 -> 32491.75305 | F210: ='Control Cost Schedules'!E222 -> 32491.75305 | G210: ='Control Cost Schedules'!F222 -> 32491.75305 | H210: ='Control Cost Schedules'!G222 -> 32491.75305 | I210: ='Control Cost Schedules'!H222 -> 32491.75305 | J210: ='Control Cost Schedules'!I222 -> 32491.75305 | K210: ='Control Cost Schedules'!J222 -> 32491.75305 | L210: ='Control Cost Schedules'!K222 -> 32491.75305 | M210: ='Control Cost Schedules'!L222 -> 32491.75305 | N210: ='Control Cost Schedules'!M222 -> 32491.75305 | O210: ='Control Cost Schedules'!N222 -> 32491.75305 | P210: ='Control Cost Schedules'!O222 -> 32491.75305 | Q210: ='Control Cost Schedules'!P222 -> 32491.75305 | R210: ='Control Cost Schedules'!Q222 -> 32491.75305 | S210: ='Control Cost Schedules'!R222 -> 32491.75305 | T210: ='Control Cost Schedules'!S222 -> 32491.75305 | U210: ='Control Cost Schedules'!T222 -> 32491.75305 | V210: ='Control Cost Schedules'!U222 -> 32491.75305 | W210: ='Control Cost Schedules'!V222 -> 32491.75305 | X210: ='Control Cost Schedules'!W222 -> 32491.75305 | Y210: ='Control Cost Schedules'!X222 -> 32491.75305 | Z210: ='Control Cost Schedules'!Y222 -> 17808 | AA210: ='Control Cost Schedules'!Z222 -> 17808 | AB210: ='Control Cost Schedules'!AA222 -> 17808 | AC210: ='Control Cost Schedules'!AB222 -> 17808 | AD210: ='Control Cost Schedules'!AC222 -> 17808 | AE210: ='Control Cost Schedules'!AD222 -> 17808 | AF210: ='Control Cost Schedules'!AE222 -> 17808 | AG210: ='Control Cost Schedules'!AF222 -> 17808 | AH210: ='Control Cost Schedules'!AG222 -> 17808 | AI210: ='Control Cost Schedules'!AH222 -> 17808 | AJ210: ='Control Cost Schedules'!AI222 -> 17808 | AK210: ='Control Cost Schedules'!AJ222 -> 17808 | AL210: ='Control Cost Schedules'!AK222 -> 17808 | AM210: ='Control Cost Schedules'!AL222 -> 17808 | AN210: ='Control Cost Schedules'!AM222 -> 17808 | AO210: ='Control Cost Schedules'!AN222 -> 17808 | AP210: ='Control Cost Schedules'!AO222 -> 17808 | AQ210: ='Control Cost Schedules'!AP222 -> 17808 | AR210: ='Control Cost Schedules'!AQ222 -> 17808 | AS210: ='Control Cost Schedules'!AR222 -> 17808 | AT210: ='Control Cost Schedules'!AS222 -> 17808 | AU210: ='Control Cost Schedules'!AT222 -> 17808 | AV210: ='Control Cost Schedules'!AU222 -> 17808 | AW210: ='Control Cost Schedules'!AV222 -> 17808 | AX210: ='Control Cost Schedules'!AW222 -> 17808 | AY210: ='Control Cost Schedules'!AX222 -> 17808 | AZ210: ='Control Cost Schedules'!AY222 -> 17808 | BA210: ='Control Cost Schedules'!AZ222 -> 17808 | BB210: ='Control Cost Schedules'!BA222 -> 0
A211: St. Vrain Supply Canal | B211: 49 | C211: canal | D211: 11 | E211: ='Control Cost Schedules'!D223 -> 0 | F211: ='Control Cost Schedules'!E223 -> 0 | G211: ='Control Cost Schedules'!F223 -> 0 | H211: ='Control Cost Schedules'!G223 -> 0 | I211: ='Control Cost Schedules'!H223 -> 0 | J211: ='Control Cost Schedules'!I223 -> 0 | K211: ='Control Cost Schedules'!J223 -> 0 | L211: ='Control Cost Schedules'!K223 -> 0 | M211: ='Control Cost Schedules'!L223 -> 0 | N211: ='Control Cost Schedules'!M223 -> 0 | O211: ='Control Cost Schedules'!N223 -> 0 | P211: ='Control Cost Schedules'!O223 -> 0 | Q211: ='Control Cost Schedules'!P223 -> 0 | R211: ='Control Cost Schedules'!Q223 -> 0 | S211: ='Control Cost Schedules'!R223 -> 0 | T211: ='Control Cost Schedules'!S223 -> 0 | U211: ='Control Cost Schedules'!T223 -> 0 | V211: ='Control Cost Schedules'!U223 -> 0 | W211: ='Control Cost Schedules'!V223 -> 0 | X211: ='Control Cost Schedules'!W223 -> 0 | Y211: ='Control Cost Schedules'!X223 -> 0 | Z211: ='Control Cost Schedules'!Y223 -> 0 | AA211: ='Control Cost Schedules'!Z223 -> 0 | AB211: ='Control Cost Schedules'!AA223 -> 0 | AC211: ='Control Cost Schedules'!AB223 -> 0 | AD211: ='Control Cost Schedules'!AC223 -> 0 | AE211: ='Control Cost Schedules'!AD223 -> 0 | AF211: ='Control Cost Schedules'!AE223 -> 0 | AG211: ='Control Cost Schedules'!AF223 -> 0 | AH211: ='Control Cost Schedules'!AG223 -> 0 | AI211: ='Control Cost Schedules'!AH223 -> 0 | AJ211: ='Control Cost Schedules'!AI223 -> 0 | AK211: ='Control Cost Schedules'!AJ223 -> 0 | AL211: ='Control Cost Schedules'!AK223 -> 0 | AM211: ='Control Cost Schedules'!AL223 -> 0 | AN211: ='Control Cost Schedules'!AM223 -> 0 | AO211: ='Control Cost Schedules'!AN223 -> 0 | AP211: ='Control Cost Schedules'!AO223 -> 0 | AQ211: ='Control Cost Schedules'!AP223 -> 0 | AR211: ='Control Cost Schedules'!AQ223 -> 0 | AS211: ='Control Cost Schedules'!AR223 -> 0 | AT211: ='Control Cost Schedules'!AS223 -> 0 | AU211: ='Control Cost Schedules'!AT223 -> 0 | AV211: ='Control Cost Schedules'!AU223 -> 0 | AW211: ='Control Cost Schedules'!AV223 -> 0 | AX211: ='Control Cost Schedules'!AW223 -> 0 | AY211: ='Control Cost Schedules'!AX223 -> 0 | AZ211: ='Control Cost Schedules'!AY223 -> 0 | BA211: ='Control Cost Schedules'!AZ223 -> 0 | BB211: ='Control Cost Schedules'!BA223 -> 0
A212: Boulder Feeder Canal | B212: 50 | C212: canal | D212: 11 | E212: ='Control Cost Schedules'!D224 -> 0 | F212: ='Control Cost Schedules'!E224 -> 0 | G212: ='Control Cost Schedules'!F224 -> 0 | H212: ='Control Cost Schedules'!G224 -> 0 | I212: ='Control Cost Schedules'!H224 -> 0 | J212: ='Control Cost Schedules'!I224 -> 0 | K212: ='Control Cost Schedules'!J224 -> 0 | L212: ='Control Cost Schedules'!K224 -> 0 | M212: ='Control Cost Schedules'!L224 -> 0 | N212: ='Control Cost Schedules'!M224 -> 0 | O212: ='Control Cost Schedules'!N224 -> 0 | P212: ='Control Cost Schedules'!O224 -> 0 | Q212: ='Control Cost Schedules'!P224 -> 0 | R212: ='Control Cost Schedules'!Q224 -> 0 | S212: ='Control Cost Schedules'!R224 -> 0 | T212: ='Control Cost Schedules'!S224 -> 0 | U212: ='Control Cost Schedules'!T224 -> 0 | V212: ='Control Cost Schedules'!U224 -> 0 | W212: ='Control Cost Schedules'!V224 -> 0 | X212: ='Control Cost Schedules'!W224 -> 0 | Y212: ='Control Cost Schedules'!X224 -> 0 | Z212: ='Control Cost Schedules'!Y224 -> 0 | AA212: ='Control Cost Schedules'!Z224 -> 0 | AB212: ='Control Cost Schedules'!AA224 -> 0 | AC212: ='Control Cost Schedules'!AB224 -> 0 | AD212: ='Control Cost Schedules'!AC224 -> 0 | AE212: ='Control Cost Schedules'!AD224 -> 0 | AF212: ='Control Cost Schedules'!AE224 -> 0 | AG212: ='Control Cost Schedules'!AF224 -> 0 | AH212: ='Control Cost Schedules'!AG224 -> 0 | AI212: ='Control Cost Schedules'!AH224 -> 0 | AJ212: ='Control Cost Schedules'!AI224 -> 0 | AK212: ='Control Cost Schedules'!AJ224 -> 0 | AL212: ='Control Cost Schedules'!AK224 -> 0 | AM212: ='Control Cost Schedules'!AL224 -> 0 | AN212: ='Control Cost Schedules'!AM224 -> 0 | AO212: ='Control Cost Schedules'!AN224 -> 0 | AP212: ='Control Cost Schedules'!AO224 -> 0 | AQ212: ='Control Cost Schedules'!AP224 -> 0 | AR212: ='Control Cost Schedules'!AQ224 -> 0 | AS212: ='Control Cost Schedules'!AR224 -> 0 | AT212: ='Control Cost Schedules'!AS224 -> 0 | AU212: ='Control Cost Schedules'!AT224 -> 0 | AV212: ='Control Cost Schedules'!AU224 -> 0 | AW212: ='Control Cost Schedules'!AV224 -> 0 | AX212: ='Control Cost Schedules'!AW224 -> 0 | AY212: ='Control Cost Schedules'!AX224 -> 0 | AZ212: ='Control Cost Schedules'!AY224 -> 0 | BA212: ='Control Cost Schedules'!AZ224 -> 0 | BB212: ='Control Cost Schedules'!BA224 -> 0
A213: Southern Water Supply Project Pipeline | B213: 51 | C213: pipeline | D213: 11 | E213: ='Control Cost Schedules'!D225 -> 0 | F213: ='Control Cost Schedules'!E225 -> 0 | G213: ='Control Cost Schedules'!F225 -> 0 | H213: ='Control Cost Schedules'!G225 -> 0 | I213: ='Control Cost Schedules'!H225 -> 0 | J213: ='Control Cost Schedules'!I225 -> 0 | K213: ='Control Cost Schedules'!J225 -> 0 | L213: ='Control Cost Schedules'!K225 -> 0 | M213: ='Control Cost Schedules'!L225 -> 0 | N213: ='Control Cost Schedules'!M225 -> 0 | O213: ='Control Cost Schedules'!N225 -> 0 | P213: ='Control Cost Schedules'!O225 -> 0 | Q213: ='Control Cost Schedules'!P225 -> 0 | R213: ='Control Cost Schedules'!Q225 -> 0 | S213: ='Control Cost Schedules'!R225 -> 0 | T213: ='Control Cost Schedules'!S225 -> 0 | U213: ='Control Cost Schedules'!T225 -> 0 | V213: ='Control Cost Schedules'!U225 -> 0 | W213: ='Control Cost Schedules'!V225 -> 0 | X213: ='Control Cost Schedules'!W225 -> 0 | Y213: ='Control Cost Schedules'!X225 -> 0 | Z213: ='Control Cost Schedules'!Y225 -> 0 | AA213: ='Control Cost Schedules'!Z225 -> 0 | AB213: ='Control Cost Schedules'!AA225 -> 0 | AC213: ='Control Cost Schedules'!AB225 -> 0 | AD213: ='Control Cost Schedules'!AC225 -> 0 | AE213: ='Control Cost Schedules'!AD225 -> 0 | AF213: ='Control Cost Schedules'!AE225 -> 0 | AG213: ='Control Cost Schedules'!AF225 -> 0 | AH213: ='Control Cost Schedules'!AG225 -> 0 | AI213: ='Control Cost Schedules'!AH225 -> 0 | AJ213: ='Control Cost Schedules'!AI225 -> 0 | AK213: ='Control Cost Schedules'!AJ225 -> 0 | AL213: ='Control Cost Schedules'!AK225 -> 0 | AM213: ='Control Cost Schedules'!AL225 -> 0 | AN213: ='Control Cost Schedules'!AM225 -> 0 | AO213: ='Control Cost Schedules'!AN225 -> 0 | AP213: ='Control Cost Schedules'!AO225 -> 0 | AQ213: ='Control Cost Schedules'!AP225 -> 0 | AR213: ='Control Cost Schedules'!AQ225 -> 0 | AS213: ='Control Cost Schedules'!AR225 -> 0 | AT213: ='Control Cost Schedules'!AS225 -> 0 | AU213: ='Control Cost Schedules'!AT225 -> 0 | AV213: ='Control Cost Schedules'!AU225 -> 0 | AW213: ='Control Cost Schedules'!AV225 -> 0 | AX213: ='Control Cost Schedules'!AW225 -> 0 | AY213: ='Control Cost Schedules'!AX225 -> 0 | AZ213: ='Control Cost Schedules'!AY225 -> 0 | BA213: ='Control Cost Schedules'!AZ225 -> 0 | BB213: ='Control Cost Schedules'!BA225 -> 0
A214: West Longmont Pumping Plant | B214: 52 | C214: pump plant | D214: 11 | E214: ='Control Cost Schedules'!D226 -> 8677.15654 | F214: ='Control Cost Schedules'!E226 -> 8677.15654 | G214: ='Control Cost Schedules'!F226 -> 8677.15654 | H214: ='Control Cost Schedules'!G226 -> 8677.15654 | I214: ='Control Cost Schedules'!H226 -> 8677.15654 | J214: ='Control Cost Schedules'!I226 -> 8677.15654 | K214: ='Control Cost Schedules'!J226 -> 8677.15654 | L214: ='Control Cost Schedules'!K226 -> 8677.15654 | M214: ='Control Cost Schedules'!L226 -> 8677.15654 | N214: ='Control Cost Schedules'!M226 -> 8677.15654 | O214: ='Control Cost Schedules'!N226 -> 8677.15654 | P214: ='Control Cost Schedules'!O226 -> 8677.15654 | Q214: ='Control Cost Schedules'!P226 -> 8677.15654 | R214: ='Control Cost Schedules'!Q226 -> 8677.15654 | S214: ='Control Cost Schedules'!R226 -> 8677.15654 | T214: ='Control Cost Schedules'!S226 -> 8677.15654 | U214: ='Control Cost Schedules'!T226 -> 8677.15654 | V214: ='Control Cost Schedules'!U226 -> 8677.15654 | W214: ='Control Cost Schedules'!V226 -> 8677.15654 | X214: ='Control Cost Schedules'!W226 -> 8677.15654 | Y214: ='Control Cost Schedules'!X226 -> 8677.15654 | Z214: ='Control Cost Schedules'!Y226 -> 3375 | AA214: ='Control Cost Schedules'!Z226 -> 3375 | AB214: ='Control Cost Schedules'!AA226 -> 3375 | AC214: ='Control Cost Schedules'!AB226 -> 3375 | AD214: ='Control Cost Schedules'!AC226 -> 3375 | AE214: ='Control Cost Schedules'!AD226 -> 3375 | AF214: ='Control Cost Schedules'!AE226 -> 3375 | AG214: ='Control Cost Schedules'!AF226 -> 3375 | AH214: ='Control Cost Schedules'!AG226 -> 3375 | AI214: ='Control Cost Schedules'!AH226 -> 3375 | AJ214: ='Control Cost Schedules'!AI226 -> 3375 | AK214: ='Control Cost Schedules'!AJ226 -> 3375 | AL214: ='Control Cost Schedules'!AK226 -> 3375 | AM214: ='Control Cost Schedules'!AL226 -> 3375 | AN214: ='Control Cost Schedules'!AM226 -> 3375 | AO214: ='Control Cost Schedules'!AN226 -> 3375 | AP214: ='Control Cost Schedules'!AO226 -> 3375 | AQ214: ='Control Cost Schedules'!AP226 -> 3375 | AR214: ='Control Cost Schedules'!AQ226 -> 3375 | AS214: ='Control Cost Schedules'!AR226 -> 3375 | AT214: ='Control Cost Schedules'!AS226 -> 3375 | AU214: ='Control Cost Schedules'!AT226 -> 3375 | AV214: ='Control Cost Schedules'!AU226 -> 3375 | AW214: ='Control Cost Schedules'!AV226 -> 3375 | AX214: ='Control Cost Schedules'!AW226 -> 3375 | AY214: ='Control Cost Schedules'!AX226 -> 3375 | AZ214: ='Control Cost Schedules'!AY226 -> 3375 | BA214: ='Control Cost Schedules'!AZ226 -> 3375 | BB214: ='Control Cost Schedules'!BA226 -> 0
A215: Louisville/Superior Pumping Plant | B215: 53 | C215: pump plant | D215: 11 | E215: ='Control Cost Schedules'!D227 -> 8677.15654 | F215: ='Control Cost Schedules'!E227 -> 8677.15654 | G215: ='Control Cost Schedules'!F227 -> 8677.15654 | H215: ='Control Cost Schedules'!G227 -> 8677.15654 | I215: ='Control Cost Schedules'!H227 -> 8677.15654 | J215: ='Control Cost Schedules'!I227 -> 8677.15654 | K215: ='Control Cost Schedules'!J227 -> 8677.15654 | L215: ='Control Cost Schedules'!K227 -> 8677.15654 | M215: ='Control Cost Schedules'!L227 -> 8677.15654 | N215: ='Control Cost Schedules'!M227 -> 8677.15654 | O215: ='Control Cost Schedules'!N227 -> 8677.15654 | P215: ='Control Cost Schedules'!O227 -> 8677.15654 | Q215: ='Control Cost Schedules'!P227 -> 8677.15654 | R215: ='Control Cost Schedules'!Q227 -> 8677.15654 | S215: ='Control Cost Schedules'!R227 -> 8677.15654 | T215: ='Control Cost Schedules'!S227 -> 8677.15654 | U215: ='Control Cost Schedules'!T227 -> 8677.15654 | V215: ='Control Cost Schedules'!U227 -> 8677.15654 | W215: ='Control Cost Schedules'!V227 -> 8677.15654 | X215: ='Control Cost Schedules'!W227 -> 8677.15654 | Y215: ='Control Cost Schedules'!X227 -> 8677.15654 | Z215: ='Control Cost Schedules'!Y227 -> 3375 | AA215: ='Control Cost Schedules'!Z227 -> 3375 | AB215: ='Control Cost Schedules'!AA227 -> 3375 | AC215: ='Control Cost Schedules'!AB227 -> 3375 | AD215: ='Control Cost Schedules'!AC227 -> 3375 | AE215: ='Control Cost Schedules'!AD227 -> 3375 | AF215: ='Control Cost Schedules'!AE227 -> 3375 | AG215: ='Control Cost Schedules'!AF227 -> 3375 | AH215: ='Control Cost Schedules'!AG227 -> 3375 | AI215: ='Control Cost Schedules'!AH227 -> 3375 | AJ215: ='Control Cost Schedules'!AI227 -> 3375 | AK215: ='Control Cost Schedules'!AJ227 -> 3375 | AL215: ='Control Cost Schedules'!AK227 -> 3375 | AM215: ='Control Cost Schedules'!AL227 -> 3375 | AN215: ='Control Cost Schedules'!AM227 -> 3375 | AO215: ='Control Cost Schedules'!AN227 -> 3375 | AP215: ='Control Cost Schedules'!AO227 -> 3375 | AQ215: ='Control Cost Schedules'!AP227 -> 3375 | AR215: ='Control Cost Schedules'!AQ227 -> 3375 | AS215: ='Control Cost Schedules'!AR227 -> 3375 | AT215: ='Control Cost Schedules'!AS227 -> 3375 | AU215: ='Control Cost Schedules'!AT227 -> 3375 | AV215: ='Control Cost Schedules'!AU227 -> 3375 | AW215: ='Control Cost Schedules'!AV227 -> 3375 | AX215: ='Control Cost Schedules'!AW227 -> 3375 | AY215: ='Control Cost Schedules'!AX227 -> 3375 | AZ215: ='Control Cost Schedules'!AY227 -> 3375 | BA215: ='Control Cost Schedules'!AZ227 -> 3375 | BB215: ='Control Cost Schedules'!BA227 -> 0
A216: Town of Berthoud | B216: 54 | C216: water filter plant | D216: 11 | E216: ='Control Cost Schedules'!D228 -> 314882.686 | F216: ='Control Cost Schedules'!E228 -> 314882.686 | G216: ='Control Cost Schedules'!F228 -> 314882.686 | H216: ='Control Cost Schedules'!G228 -> 314882.686 | I216: ='Control Cost Schedules'!H228 -> 314882.686 | J216: ='Control Cost Schedules'!I228 -> 314882.686 | K216: ='Control Cost Schedules'!J228 -> 314882.686 | L216: ='Control Cost Schedules'!K228 -> 314882.686 | M216: ='Control Cost Schedules'!L228 -> 314882.686 | N216: ='Control Cost Schedules'!M228 -> 314882.686 | O216: ='Control Cost Schedules'!N228 -> 314882.686 | P216: ='Control Cost Schedules'!O228 -> 314882.686 | Q216: ='Control Cost Schedules'!P228 -> 314882.686 | R216: ='Control Cost Schedules'!Q228 -> 314882.686 | S216: ='Control Cost Schedules'!R228 -> 314882.686 | T216: ='Control Cost Schedules'!S228 -> 314882.686 | U216: ='Control Cost Schedules'!T228 -> 314882.686 | V216: ='Control Cost Schedules'!U228 -> 314882.686 | W216: ='Control Cost Schedules'!V228 -> 314882.686 | X216: ='Control Cost Schedules'!W228 -> 314882.686 | Y216: ='Control Cost Schedules'!X228 -> 314882.686 | Z216: ='Control Cost Schedules'!Y228 -> 250000 | AA216: ='Control Cost Schedules'!Z228 -> 250000 | AB216: ='Control Cost Schedules'!AA228 -> 250000 | AC216: ='Control Cost Schedules'!AB228 -> 250000 | AD216: ='Control Cost Schedules'!AC228 -> 250000 | AE216: ='Control Cost Schedules'!AD228 -> 250000 | AF216: ='Control Cost Schedules'!AE228 -> 250000 | AG216: ='Control Cost Schedules'!AF228 -> 250000 | AH216: ='Control Cost Schedules'!AG228 -> 250000 | AI216: ='Control Cost Schedules'!AH228 -> 250000 | AJ216: ='Control Cost Schedules'!AI228 -> 250000 | AK216: ='Control Cost Schedules'!AJ228 -> 250000 | AL216: ='Control Cost Schedules'!AK228 -> 250000 | AM216: ='Control Cost Schedules'!AL228 -> 250000 | AN216: ='Control Cost Schedules'!AM228 -> 250000 | AO216: ='Control Cost Schedules'!AN228 -> 250000 | AP216: ='Control Cost Schedules'!AO228 -> 250000 | AQ216: ='Control Cost Schedules'!AP228 -> 250000 | AR216: ='Control Cost Schedules'!AQ228 -> 250000 | AS216: ='Control Cost Schedules'!AR228 -> 250000 | AT216: ='Control Cost Schedules'!AS228 -> 250000 | AU216: ='Control Cost Schedules'!AT228 -> 250000 | AV216: ='Control Cost Schedules'!AU228 -> 250000 | AW216: ='Control Cost Schedules'!AV228 -> 250000 | AX216: ='Control Cost Schedules'!AW228 -> 250000 | AY216: ='Control Cost Schedules'!AX228 -> 250000 | AZ216: ='Control Cost Schedules'!AY228 -> 250000 | BA216: ='Control Cost Schedules'!AZ228 -> 250000 | BB216: ='Control Cost Schedules'!BA228 -> 0
A217: City of Longmont 1 | B217: 55 | C217: water filter plant | D217: 11 | E217: ='Control Cost Schedules'!D229 -> 314882.686 | F217: ='Control Cost Schedules'!E229 -> 314882.686 | G217: ='Control Cost Schedules'!F229 -> 314882.686 | H217: ='Control Cost Schedules'!G229 -> 314882.686 | I217: ='Control Cost Schedules'!H229 -> 314882.686 | J217: ='Control Cost Schedules'!I229 -> 314882.686 | K217: ='Control Cost Schedules'!J229 -> 314882.686 | L217: ='Control Cost Schedules'!K229 -> 314882.686 | M217: ='Control Cost Schedules'!L229 -> 314882.686 | N217: ='Control Cost Schedules'!M229 -> 314882.686 | O217: ='Control Cost Schedules'!N229 -> 314882.686 | P217: ='Control Cost Schedules'!O229 -> 314882.686 | Q217: ='Control Cost Schedules'!P229 -> 314882.686 | R217: ='Control Cost Schedules'!Q229 -> 314882.686 | S217: ='Control Cost Schedules'!R229 -> 314882.686 | T217: ='Control Cost Schedules'!S229 -> 314882.686 | U217: ='Control Cost Schedules'!T229 -> 314882.686 | V217: ='Control Cost Schedules'!U229 -> 314882.686 | W217: ='Control Cost Schedules'!V229 -> 314882.686 | X217: ='Control Cost Schedules'!W229 -> 314882.686 | Y217: ='Control Cost Schedules'!X229 -> 314882.686 | Z217: ='Control Cost Schedules'!Y229 -> 250000 | AA217: ='Control Cost Schedules'!Z229 -> 250000 | AB217: ='Control Cost Schedules'!AA229 -> 250000 | AC217: ='Control Cost Schedules'!AB229 -> 250000 | AD217: ='Control Cost Schedules'!AC229 -> 250000 | AE217: ='Control Cost Schedules'!AD229 -> 250000 | AF217: ='Control Cost Schedules'!AE229 -> 250000 | AG217: ='Control Cost Schedules'!AF229 -> 250000 | AH217: ='Control Cost Schedules'!AG229 -> 250000 | AI217: ='Control Cost Schedules'!AH229 -> 250000 | AJ217: ='Control Cost Schedules'!AI229 -> 250000 | AK217: ='Control Cost Schedules'!AJ229 -> 250000 | AL217: ='Control Cost Schedules'!AK229 -> 250000 | AM217: ='Control Cost Schedules'!AL229 -> 250000 | AN217: ='Control Cost Schedules'!AM229 -> 250000 | AO217: ='Control Cost Schedules'!AN229 -> 250000 | AP217: ='Control Cost Schedules'!AO229 -> 250000 | AQ217: ='Control Cost Schedules'!AP229 -> 250000 | AR217: ='Control Cost Schedules'!AQ229 -> 250000 | AS217: ='Control Cost Schedules'!AR229 -> 250000 | AT217: ='Control Cost Schedules'!AS229 -> 250000 | AU217: ='Control Cost Schedules'!AT229 -> 250000 | AV217: ='Control Cost Schedules'!AU229 -> 250000 | AW217: ='Control Cost Schedules'!AV229 -> 250000 | AX217: ='Control Cost Schedules'!AW229 -> 250000 | AY217: ='Control Cost Schedules'!AX229 -> 250000 | AZ217: ='Control Cost Schedules'!AY229 -> 250000 | BA217: ='Control Cost Schedules'!AZ229 -> 250000 | BB217: ='Control Cost Schedules'!BA229 -> 0
A218: City of Longmont 2 | B218: 56 | C218: water filter plant | D218: 11 | E218: ='Control Cost Schedules'!D230 -> 314882.686 | F218: ='Control Cost Schedules'!E230 -> 314882.686 | G218: ='Control Cost Schedules'!F230 -> 314882.686 | H218: ='Control Cost Schedules'!G230 -> 314882.686 | I218: ='Control Cost Schedules'!H230 -> 314882.686 | J218: ='Control Cost Schedules'!I230 -> 314882.686 | K218: ='Control Cost Schedules'!J230 -> 314882.686 | L218: ='Control Cost Schedules'!K230 -> 314882.686 | M218: ='Control Cost Schedules'!L230 -> 314882.686 | N218: ='Control Cost Schedules'!M230 -> 314882.686 | O218: ='Control Cost Schedules'!N230 -> 314882.686 | P218: ='Control Cost Schedules'!O230 -> 314882.686 | Q218: ='Control Cost Schedules'!P230 -> 314882.686 | R218: ='Control Cost Schedules'!Q230 -> 314882.686 | S218: ='Control Cost Schedules'!R230 -> 314882.686 | T218: ='Control Cost Schedules'!S230 -> 314882.686 | U218: ='Control Cost Schedules'!T230 -> 314882.686 | V218: ='Control Cost Schedules'!U230 -> 314882.686 | W218: ='Control Cost Schedules'!V230 -> 314882.686 | X218: ='Control Cost Schedules'!W230 -> 314882.686 | Y218: ='Control Cost Schedules'!X230 -> 314882.686 | Z218: ='Control Cost Schedules'!Y230 -> 250000 | AA218: ='Control Cost Schedules'!Z230 -> 250000 | AB218: ='Control Cost Schedules'!AA230 -> 250000 | AC218: ='Control Cost Schedules'!AB230 -> 250000 | AD218: ='Control Cost Schedules'!AC230 -> 250000 | AE218: ='Control Cost Schedules'!AD230 -> 250000 | AF218: ='Control Cost Schedules'!AE230 -> 250000 | AG218: ='Control Cost Schedules'!AF230 -> 250000 | AH218: ='Control Cost Schedules'!AG230 -> 250000 | AI218: ='Control Cost Schedules'!AH230 -> 250000 | AJ218: ='Control Cost Schedules'!AI230 -> 250000 | AK218: ='Control Cost Schedules'!AJ230 -> 250000 | AL218: ='Control Cost Schedules'!AK230 -> 250000 | AM218: ='Control Cost Schedules'!AL230 -> 250000 | AN218: ='Control Cost Schedules'!AM230 -> 250000 | AO218: ='Control Cost Schedules'!AN230 -> 250000 | AP218: ='Control Cost Schedules'!AO230 -> 250000 | AQ218: ='Control Cost Schedules'!AP230 -> 250000 | AR218: ='Control Cost Schedules'!AQ230 -> 250000 | AS218: ='Control Cost Schedules'!AR230 -> 250000 | AT218: ='Control Cost Schedules'!AS230 -> 250000 | AU218: ='Control Cost Schedules'!AT230 -> 250000 | AV218: ='Control Cost Schedules'!AU230 -> 250000 | AW218: ='Control Cost Schedules'!AV230 -> 250000 | AX218: ='Control Cost Schedules'!AW230 -> 250000 | AY218: ='Control Cost Schedules'!AX230 -> 250000 | AZ218: ='Control Cost Schedules'!AY230 -> 250000 | BA218: ='Control Cost Schedules'!AZ230 -> 250000 | BB218: ='Control Cost Schedules'!BA230 -> 0
A219: Louisville 1 | B219: 57 | C219: water filter plant | D219: 11 | E219: ='Control Cost Schedules'!D231 -> 314882.686 | F219: ='Control Cost Schedules'!E231 -> 314882.686 | G219: ='Control Cost Schedules'!F231 -> 314882.686 | H219: ='Control Cost Schedules'!G231 -> 314882.686 | I219: ='Control Cost Schedules'!H231 -> 314882.686 | J219: ='Control Cost Schedules'!I231 -> 314882.686 | K219: ='Control Cost Schedules'!J231 -> 314882.686 | L219: ='Control Cost Schedules'!K231 -> 314882.686 | M219: ='Control Cost Schedules'!L231 -> 314882.686 | N219: ='Control Cost Schedules'!M231 -> 314882.686 | O219: ='Control Cost Schedules'!N231 -> 314882.686 | P219: ='Control Cost Schedules'!O231 -> 314882.686 | Q219: ='Control Cost Schedules'!P231 -> 314882.686 | R219: ='Control Cost Schedules'!Q231 -> 314882.686 | S219: ='Control Cost Schedules'!R231 -> 314882.686 | T219: ='Control Cost Schedules'!S231 -> 314882.686 | U219: ='Control Cost Schedules'!T231 -> 314882.686 | V219: ='Control Cost Schedules'!U231 -> 314882.686 | W219: ='Control Cost Schedules'!V231 -> 314882.686 | X219: ='Control Cost Schedules'!W231 -> 314882.686 | Y219: ='Control Cost Schedules'!X231 -> 314882.686 | Z219: ='Control Cost Schedules'!Y231 -> 250000 | AA219: ='Control Cost Schedules'!Z231 -> 250000 | AB219: ='Control Cost Schedules'!AA231 -> 250000 | AC219: ='Control Cost Schedules'!AB231 -> 250000 | AD219: ='Control Cost Schedules'!AC231 -> 250000 | AE219: ='Control Cost Schedules'!AD231 -> 250000 | AF219: ='Control Cost Schedules'!AE231 -> 250000 | AG219: ='Control Cost Schedules'!AF231 -> 250000 | AH219: ='Control Cost Schedules'!AG231 -> 250000 | AI219: ='Control Cost Schedules'!AH231 -> 250000 | AJ219: ='Control Cost Schedules'!AI231 -> 250000 | AK219: ='Control Cost Schedules'!AJ231 -> 250000 | AL219: ='Control Cost Schedules'!AK231 -> 250000 | AM219: ='Control Cost Schedules'!AL231 -> 250000 | AN219: ='Control Cost Schedules'!AM231 -> 250000 | AO219: ='Control Cost Schedules'!AN231 -> 250000 | AP219: ='Control Cost Schedules'!AO231 -> 250000 | AQ219: ='Control Cost Schedules'!AP231 -> 250000 | AR219: ='Control Cost Schedules'!AQ231 -> 250000 | AS219: ='Control Cost Schedules'!AR231 -> 250000 | AT219: ='Control Cost Schedules'!AS231 -> 250000 | AU219: ='Control Cost Schedules'!AT231 -> 250000 | AV219: ='Control Cost Schedules'!AU231 -> 250000 | AW219: ='Control Cost Schedules'!AV231 -> 250000 | AX219: ='Control Cost Schedules'!AW231 -> 250000 | AY219: ='Control Cost Schedules'!AX231 -> 250000 | AZ219: ='Control Cost Schedules'!AY231 -> 250000 | BA219: ='Control Cost Schedules'!AZ231 -> 250000 | BB219: ='Control Cost Schedules'!BA231 -> 0
A220: Louisville 2 | B220: 58 | D220: 11 | E220: ='Control Cost Schedules'!D232 -> 314882.686 | F220: ='Control Cost Schedules'!E232 -> 314882.686 | G220: ='Control Cost Schedules'!F232 -> 314882.686 | H220: ='Control Cost Schedules'!G232 -> 314882.686 | I220: ='Control Cost Schedules'!H232 -> 314882.686 | J220: ='Control Cost Schedules'!I232 -> 314882.686 | K220: ='Control Cost Schedules'!J232 -> 314882.686 | L220: ='Control Cost Schedules'!K232 -> 314882.686 | M220: ='Control Cost Schedules'!L232 -> 314882.686 | N220: ='Control Cost Schedules'!M232 -> 314882.686 | O220: ='Control Cost Schedules'!N232 -> 314882.686 | P220: ='Control Cost Schedules'!O232 -> 314882.686 | Q220: ='Control Cost Schedules'!P232 -> 314882.686 | R220: ='Control Cost Schedules'!Q232 -> 314882.686 | S220: ='Control Cost Schedules'!R232 -> 314882.686 | T220: ='Control Cost Schedules'!S232 -> 314882.686 | U220: ='Control Cost Schedules'!T232 -> 314882.686 | V220: ='Control Cost Schedules'!U232 -> 314882.686 | W220: ='Control Cost Schedules'!V232 -> 314882.686 | X220: ='Control Cost Schedules'!W232 -> 314882.686 | Y220: ='Control Cost Schedules'!X232 -> 314882.686 | Z220: ='Control Cost Schedules'!Y232 -> 250000 | AA220: ='Control Cost Schedules'!Z232 -> 250000 | AB220: ='Control Cost Schedules'!AA232 -> 250000 | AC220: ='Control Cost Schedules'!AB232 -> 250000 | AD220: ='Control Cost Schedules'!AC232 -> 250000 | AE220: ='Control Cost Schedules'!AD232 -> 250000 | AF220: ='Control Cost Schedules'!AE232 -> 250000 | AG220: ='Control Cost Schedules'!AF232 -> 250000 | AH220: ='Control Cost Schedules'!AG232 -> 250000 | AI220: ='Control Cost Schedules'!AH232 -> 250000 | AJ220: ='Control Cost Schedules'!AI232 -> 250000 | AK220: ='Control Cost Schedules'!AJ232 -> 250000 | AL220: ='Control Cost Schedules'!AK232 -> 250000 | AM220: ='Control Cost Schedules'!AL232 -> 250000 | AN220: ='Control Cost Schedules'!AM232 -> 250000 | AO220: ='Control Cost Schedules'!AN232 -> 250000 | AP220: ='Control Cost Schedules'!AO232 -> 250000 | AQ220: ='Control Cost Schedules'!AP232 -> 250000 | AR220: ='Control Cost Schedules'!AQ232 -> 250000 | AS220: ='Control Cost Schedules'!AR232 -> 250000 | AT220: ='Control Cost Schedules'!AS232 -> 250000 | AU220: ='Control Cost Schedules'!AT232 -> 250000 | AV220: ='Control Cost Schedules'!AU232 -> 250000 | AW220: ='Control Cost Schedules'!AV232 -> 250000 | AX220: ='Control Cost Schedules'!AW232 -> 250000 | AY220: ='Control Cost Schedules'!AX232 -> 250000 | AZ220: ='Control Cost Schedules'!AY232 -> 250000 | BA220: ='Control Cost Schedules'!AZ232 -> 250000 | BB220: ='Control Cost Schedules'!BA232 -> 0
A221: Superior | B221: 59 | C221: water filter plant | D221: 11 | E221: ='Control Cost Schedules'!D233 -> 314882.686 | F221: ='Control Cost Schedules'!E233 -> 314882.686 | G221: ='Control Cost Schedules'!F233 -> 314882.686 | H221: ='Control Cost Schedules'!G233 -> 314882.686 | I221: ='Control Cost Schedules'!H233 -> 314882.686 | J221: ='Control Cost Schedules'!I233 -> 314882.686 | K221: ='Control Cost Schedules'!J233 -> 314882.686 | L221: ='Control Cost Schedules'!K233 -> 314882.686 | M221: ='Control Cost Schedules'!L233 -> 314882.686 | N221: ='Control Cost Schedules'!M233 -> 314882.686 | O221: ='Control Cost Schedules'!N233 -> 314882.686 | P221: ='Control Cost Schedules'!O233 -> 314882.686 | Q221: ='Control Cost Schedules'!P233 -> 314882.686 | R221: ='Control Cost Schedules'!Q233 -> 314882.686 | S221: ='Control Cost Schedules'!R233 -> 314882.686 | T221: ='Control Cost Schedules'!S233 -> 314882.686 | U221: ='Control Cost Schedules'!T233 -> 314882.686 | V221: ='Control Cost Schedules'!U233 -> 314882.686 | W221: ='Control Cost Schedules'!V233 -> 314882.686 | X221: ='Control Cost Schedules'!W233 -> 314882.686 | Y221: ='Control Cost Schedules'!X233 -> 314882.686 | Z221: ='Control Cost Schedules'!Y233 -> 250000 | AA221: ='Control Cost Schedules'!Z233 -> 250000 | AB221: ='Control Cost Schedules'!AA233 -> 250000 | AC221: ='Control Cost Schedules'!AB233 -> 250000 | AD221: ='Control Cost Schedules'!AC233 -> 250000 | AE221: ='Control Cost Schedules'!AD233 -> 250000 | AF221: ='Control Cost Schedules'!AE233 -> 250000 | AG221: ='Control Cost Schedules'!AF233 -> 250000 | AH221: ='Control Cost Schedules'!AG233 -> 250000 | AI221: ='Control Cost Schedules'!AH233 -> 250000 | AJ221: ='Control Cost Schedules'!AI233 -> 250000 | AK221: ='Control Cost Schedules'!AJ233 -> 250000 | AL221: ='Control Cost Schedules'!AK233 -> 250000 | AM221: ='Control Cost Schedules'!AL233 -> 250000 | AN221: ='Control Cost Schedules'!AM233 -> 250000 | AO221: ='Control Cost Schedules'!AN233 -> 250000 | AP221: ='Control Cost Schedules'!AO233 -> 250000 | AQ221: ='Control Cost Schedules'!AP233 -> 250000 | AR221: ='Control Cost Schedules'!AQ233 -> 250000 | AS221: ='Control Cost Schedules'!AR233 -> 250000 | AT221: ='Control Cost Schedules'!AS233 -> 250000 | AU221: ='Control Cost Schedules'!AT233 -> 250000 | AV221: ='Control Cost Schedules'!AU233 -> 250000 | AW221: ='Control Cost Schedules'!AV233 -> 250000 | AX221: ='Control Cost Schedules'!AW233 -> 250000 | AY221: ='Control Cost Schedules'!AX233 -> 250000 | AZ221: ='Control Cost Schedules'!AY233 -> 250000 | BA221: ='Control Cost Schedules'!AZ233 -> 250000 | BB221: ='Control Cost Schedules'!BA233 -> 0
A222: Town of Erie | B222: 60 | C222: water filter plant | D222: 11 | E222: ='Control Cost Schedules'!D234 -> 314882.686 | F222: ='Control Cost Schedules'!E234 -> 314882.686 | G222: ='Control Cost Schedules'!F234 -> 314882.686 | H222: ='Control Cost Schedules'!G234 -> 314882.686 | I222: ='Control Cost Schedules'!H234 -> 314882.686 | J222: ='Control Cost Schedules'!I234 -> 314882.686 | K222: ='Control Cost Schedules'!J234 -> 314882.686 | L222: ='Control Cost Schedules'!K234 -> 314882.686 | M222: ='Control Cost Schedules'!L234 -> 314882.686 | N222: ='Control Cost Schedules'!M234 -> 314882.686 | O222: ='Control Cost Schedules'!N234 -> 314882.686 | P222: ='Control Cost Schedules'!O234 -> 314882.686 | Q222: ='Control Cost Schedules'!P234 -> 314882.686 | R222: ='Control Cost Schedules'!Q234 -> 314882.686 | S222: ='Control Cost Schedules'!R234 -> 314882.686 | T222: ='Control Cost Schedules'!S234 -> 314882.686 | U222: ='Control Cost Schedules'!T234 -> 314882.686 | V222: ='Control Cost Schedules'!U234 -> 314882.686 | W222: ='Control Cost Schedules'!V234 -> 314882.686 | X222: ='Control Cost Schedules'!W234 -> 314882.686 | Y222: ='Control Cost Schedules'!X234 -> 314882.686 | Z222: ='Control Cost Schedules'!Y234 -> 250000 | AA222: ='Control Cost Schedules'!Z234 -> 250000 | AB222: ='Control Cost Schedules'!AA234 -> 250000 | AC222: ='Control Cost Schedules'!AB234 -> 250000 | AD222: ='Control Cost Schedules'!AC234 -> 250000 | AE222: ='Control Cost Schedules'!AD234 -> 250000 | AF222: ='Control Cost Schedules'!AE234 -> 250000 | AG222: ='Control Cost Schedules'!AF234 -> 250000 | AH222: ='Control Cost Schedules'!AG234 -> 250000 | AI222: ='Control Cost Schedules'!AH234 -> 250000 | AJ222: ='Control Cost Schedules'!AI234 -> 250000 | AK222: ='Control Cost Schedules'!AJ234 -> 250000 | AL222: ='Control Cost Schedules'!AK234 -> 250000 | AM222: ='Control Cost Schedules'!AL234 -> 250000 | AN222: ='Control Cost Schedules'!AM234 -> 250000 | AO222: ='Control Cost Schedules'!AN234 -> 250000 | AP222: ='Control Cost Schedules'!AO234 -> 250000 | AQ222: ='Control Cost Schedules'!AP234 -> 250000 | AR222: ='Control Cost Schedules'!AQ234 -> 250000 | AS222: ='Control Cost Schedules'!AR234 -> 250000 | AT222: ='Control Cost Schedules'!AS234 -> 250000 | AU222: ='Control Cost Schedules'!AT234 -> 250000 | AV222: ='Control Cost Schedules'!AU234 -> 250000 | AW222: ='Control Cost Schedules'!AV234 -> 250000 | AX222: ='Control Cost Schedules'!AW234 -> 250000 | AY222: ='Control Cost Schedules'!AX234 -> 250000 | AZ222: ='Control Cost Schedules'!AY234 -> 250000 | BA222: ='Control Cost Schedules'!AZ234 -> 250000 | BB222: ='Control Cost Schedules'!BA234 -> 0
... 38 more rows

Sheet System Flow
A1: Major Structures in the Colorado-Big Thompson System
A24: System Reservoirs
A25: Reservoir | B25: Reservoir ID
A26: Windy Gap Reservoir | B26: 0
A27: Willow Creek Reservoir | B27: 1
A28: Lake Granby | B28: 2
A29: Shadow Mountain Reservoir | B29: 3
A30: Grand Lake | B30: 4
A31: East Portal Reservoir | B31: 5
A32: Mary's Lake | B32: 6
A33: Lake Estes | B33: 7
A34: Pinewood Reservoir | B34: 8
A35: Flatiron Reservoir | B35: 9
A36: Horsetooth Reservoir | B36: 10
A37: Carter Lake | B37: 11
A38: Boulder Reservoir | B38: 12
A40: Major System Facilities and Structures
A41: Structure/Facility Name | B41: Structure/Facility ID | C41: Structure/Facility Classification | D41: Upstream Water Body
A42: Windy Gap Pump Plant | B42: 0 | C42: pump plant | D42: 0
A43: Windy Gap Pipeline | B43: 1 | C43: pipeline | D43: 0
A44: Willow Creek Dam | B44: 2 | C44: dam | D44: 1
A45: Willow Creek Pump Canal | B45: 3 | C45: canal | D45: 1
A46: Willow Creek Pump Plant | B46: 4 | C46: pump plant | D46: 1
A47: Granby Dam | B47: 5 | C47: dam | D47: 2
A48: Farr Pumping Plant | B48: 6 | C48: pump plant | D48: 2
A49: Grandby Pump Canal | B49: 7 | C49: canal | D49: 2
A50: Shadow Mountain Dam | B50: 8 | C50: dam | D50: 3
A51: Adams Tunnel | B51: 9 | C51: tunnel | D51: 4
A52: East Portal Dam | B52: 10 | C52: dam | D52: 5
A53: Rams Horn Tunnel | B53: 11 | C53: tunnel | D53: 5
A54: Mary's Lake Hydropower Plant | B54: 12 | C54: hydropower | D54: 5
A55: Prospect Mountain Tunnel | B55: 13 | C55: tunnel | D55: 6
A56: Estes Hydropower Plant | B56: 14 | C56: hydropower | D56: 6
A57: Town of Estes | B57: 15 | C57: water filter plant | D57: 6
A58: Mary's Lake (Town) | B58: 16 | C58: water filter plant | D58: 6
A59: Olympus Dam | B59: 17 | C59: dam | D59: 7
A60: Olympus Tunnel | B60: 18 | C60: tunnel | D60: 7
A61: Pole Hill Tunnel | B61: 19 | C61: tunnel | D61: 7
A62: Pole Hill Hydropower Plant | B62: 20 | C62: hydropower | D62: 7
A63: Rattlesnake Tunnel | B63: 21 | C63: tunnel | D63: 7
A64: Rattlesnake Dam | B64: 22 | C64: dam | D64: 8
A65: Bald Mountain Tunnel | B65: 23 | C65: tunnel | D65: 8
A66: Flatiron Hydropower Plant | B66: 24 | C66: hydropower | D66: 8
A67: Newell Warnock | B67: 25 | C67: water filter plant | D67: 8
A68: Flatiron Reversible Pump | B68: 26 | C68: pump plant | D68: 9
A69: Flatiron Dam | B69: 27 | C69: dam | D69: 9
A70: Carter Lake Pressure Tunnel | B70: 28 | C70: tunnel | D70: 9
A71: Big Thompson Hydropower Plant | B71: 29 | C71: hydropower | D71: 9
A72: Hansen Feeder Canal | B72: 30 | C72: canal | D72: 9
A73: City of Loveland | B73: 31 | C73: water filter plant | D73: 9
A74: Emissaries of Divine Light | B74: 32 | C74: water filter plant | D74: 9
A75: Eden Valley | B75: 33 | C75: water filter plant | D75: 9
A76: Spring Canyon | B76: 34 | C76: water filter plant | D76: 9
A77: Horsetooth Dam | B77: 35 | C77: dam | D77: 10
A78: Soldier Dam | B78: 36 | C78: dam | D78: 10
A79: Dixon Dam | B79: 37 | C79: dam | D79: 10
A80: Spring Canyon Dam | B80: 38 | C80: dam | D80: 10
A81: Charles Hansen Supply Canal | B81: 39 | C81: canal | D81: 10
A82: Northern Poudre Supply Canal | B82: 40 | C82: canal | D82: 10
A83: Fort Collins | B83: 41 | C83: water filter plant | D83: 10
A84: Soldier Canyon | B84: 42 | C84: water filter plant | D84: 10
A85: Greeley | B85: 43 | C85: water filter plant | D85: 10
A86: Carter Lake Dam 1 | B86: 44 | C86: dam | D86: 11
A87: Carter Lake Dam 2 | B87: 45 | C87: dam | D87: 11
A88: Carter Lake Dam 3 | B88: 46 | C88: dam | D88: 11
A89: Carter Lake Filter Plant 1 | B89: 47 | C89: water filter plant | D89: 11
A90: Carter Lake Filter Plant 2 | B90: 48 | C90: water filter plant | D90: 11
A91: St. Vrain Supply Canal | B91: 49 | C91: canal | D91: 11
A92: Boulder Feeder Canal | B92: 50 | C92: canal | D92: 11
A93: Southern Water Supply Project Pipeline | B93: 51 | C93: pipeline | D93: 11
A94: West Longmont Pumping Plant | B94: 52 | C94: pump plant | D94: 11
A95: Louisville/Superior Pumping Plant | B95: 53 | C95: pump plant | D95: 11
A96: Town of Berthoud | B96: 54 | C96: water filter plant | D96: 11
A97: City of Longmont 1 | B97: 55 | C97: water filter plant | D97: 11
A98: City of Longmont 2 | B98: 56 | C98: water filter plant | D98: 11
A99: Louisville 1 | B99: 57 | C99: water filter plant | D99: 11
A100: Louisville 2 | B100: 58 | C100: water filter plant | D100: 11
A101: Superior | B101: 59 | C101: water filter plant | D101: 11
A102: Town of Erie | B102: 60 | C102: water filter plant | D102: 11
A103: Broomfield | B103: 61 | C103: water filter plant | D103: 11
A104: City of Fort Lupton | B104: 62 | C104: water filter plant | D104: 11
A105: City of Fort Morgan | B105: 63 | C105: water filter plant | D105: 11
A106: Boulder Creek Supply Canal | B106: 64 | C106: canal | D106: 12
A107: South Platte Supply Canal | B107: 65 | C107: canal | D107: 12
A108: City of Boulder | B108: 66 | C108: water filter plant | D108: 12
A109: City of Laffeyette | B109: 67 | C109: water filter plant | D109: 12

Sheet Control Cost Schedules
A1: Structure/Facility Details
A2: Structure/Facility Name | B2: Structure/Facility ID | C2: Structure/Facility Classification | D2: Upstream Water Body | E2: Density Upstream Water Body | F2: Capacity (mgd) | G2: No. of Pumps | H2: No. of Generators | I2: Megawatts of Generation | J2: Length of Penstock(s) (feet) | K2: No. of Trash Racks | L2: Length (miles) | M2: Length (km) | N2: Dry for at least one month each year?
A3: Windy Gap Pump Plant | B3: 0 | C3: pump plant | D3: 0 | E3: =IF(INDEX(CalciumLevel,D3+1)="very low",density_vl,IF(INDEX(CalciumLevel,D3+1)="low",density_l,IF(INDEX(CalciumLevel,D3+1)="moderate",density_m,IF(INDEX(CalciumLevel,D3+1)="high",density_h,IF(AND(INDEX(CalciumLevel,D3+1)="unknown",'Model Input'!$B$52="Model as very low calcium"),density_vl,IF(AND(INDEX(CalciumLevel,D3+1)="unknown",'Model Input'!$B$52="Model as low calcium"),density_l,IF(AND(INDEX(CalciumLevel,D3+1)="unknown",'Model Input'!$B$52="Model as moderate calcium"),density_m,"error"))))))) -> 22 | G3: 4 | K3: 4 | N3: no
A4: Windy Gap Pipeline | B4: 1 | C4: pipeline | D4: 0 | E4: =IF(INDEX(CalciumLevel,D4+1)="very low",density_vl,IF(INDEX(CalciumLevel,D4+1)="low",density_l,IF(INDEX(CalciumLevel,D4+1)="moderate",density_m,IF(INDEX(CalciumLevel,D4+1)="high",density_h,IF(AND(INDEX(CalciumLevel,D4+1)="unknown",'Model Input'!$B$52="Model as very low calcium"),density_vl,IF(AND(INDEX(CalciumLevel,D4+1)="unknown",'Model Input'!$B$52="Model as low calcium"),density_l,IF(AND(INDEX(CalciumLevel,D4+1)="unknown",'Model Input'!$B$52="Model as moderate calcium"),density_m,"error"))))))) -> 22 | L4: 5.87 | M4: 9.4507 | N4: yes
A5: Willow Creek Dam | B5: 2 | C5: dam | D5: 1 | E5: =IF(INDEX(CalciumLevel,D5+1)="very low",density_vl,IF(INDEX(CalciumLevel,D5+1)="low",density_l,IF(INDEX(CalciumLevel,D5+1)="moderate",density_m,IF(INDEX(CalciumLevel,D5+1)="high",density_h,IF(AND(INDEX(CalciumLevel,D5+1)="unknown",'Model Input'!$B$52="Model as very low calcium"),density_vl,IF(AND(INDEX(CalciumLevel,D5+1)="unknown",'Model Input'!$B$52="Model as low calcium"),density_l,IF(AND(INDEX(CalciumLevel,D5+1)="unknown",'Model Input'!$B$52="Model as moderate calcium"),density_m,"error"))))))) -> 22 | K5: 1 | N5: no
A6: Willow Creek Pump Canal | B6: 3 | C6: canal | D6: 1 | E6: =IF(INDEX(CalciumLevel,D6+1)="very low",density_vl,IF(INDEX(CalciumLevel,D6+1)="low",density_l,IF(INDEX(CalciumLevel,D6+1)="moderate",density_m,IF(INDEX(CalciumLevel,D6+1)="high",density_h,IF(AND(INDEX(CalciumLevel,D6+1)="unknown",'Model Input'!$B$52="Model as very low calcium"),density_vl,IF(AND(INDEX(CalciumLevel,D6+1)="unknown",'Model Input'!$B$52="Model as low calcium"),density_l,IF(AND(INDEX(CalciumLevel,D6+1)="unknown",'Model Input'!$B$52="Model as moderate calcium"),density_m,"error"))))))) -> 22 | L6: 3.4 | M6: 5.474 | N6: yes
A7: Willow Creek Pump Plant | B7: 4 | C7: pump plant | D7: 1 | E7: =IF(INDEX(CalciumLevel,D7+1)="very low",density_vl,IF(INDEX(CalciumLevel,D7+1)="low",density_l,IF(INDEX(CalciumLevel,D7+1)="moderate",density_m,IF(INDEX(CalciumLevel,D7+1)="high",density_h,IF(AND(INDEX(CalciumLevel,D7+1)="unknown",'Model Input'!$B$52="Model as very low calcium"),density_vl,IF(AND(INDEX(CalciumLevel,D7+1)="unknown",'Model Input'!$B$52="Model as low calcium"),density_l,IF(AND(INDEX(CalciumLevel,D7+1)="unknown",'Model Input'!$B$52="Model as moderate calcium"),density_m,"error"))))))) -> 22 | G7: 2 | K7: 2 | N7: yes
A8: Granby Dam | B8: 5 | C8: dam | D8: 2 | E8: =IF(INDEX(CalciumLevel,D8+1)="very low",density_vl,IF(INDEX(CalciumLevel,D8+1)="low",density_l,IF(INDEX(CalciumLevel,D8+1)="moderate",density_m,IF(INDEX(CalciumLevel,D8+1)="high",density_h,IF(AND(INDEX(CalciumLevel,D8+1)="unknown",'Model Input'!$B$52="Model as very low calcium"),density_vl,IF(AND(INDEX(CalciumLevel,D8+1)="unknown",'Model Input'!$B$52="Model as low calcium"),density_l,IF(AND(INDEX(CalciumLevel,D8+1)="unknown",'Model Input'!$B$52="Model as moderate calcium"),density_m,"error"))))))) -> 22 | K8: 1 | N8: no
A9: Farr Pumping Plant | B9: 6 | C9: pump plant | D9: 2 | E9: =IF(INDEX(CalciumLevel,D9+1)="very low",density_vl,IF(INDEX(CalciumLevel,D9+1)="low",density_l,IF(INDEX(CalciumLevel,D9+1)="moderate",density_m,IF(INDEX(CalciumLevel,D9+1)="high",density_h,IF(AND(INDEX(CalciumLevel,D9+1)="unknown",'Model Input'!$B$52="Model as very low calcium"),density_vl,IF(AND(INDEX(CalciumLevel,D9+1)="unknown",'Model Input'!$B$52="Model as low calcium"),density_l,IF(AND(INDEX(CalciumLevel,D9+1)="unknown",'Model Input'!$B$52="Model as moderate calcium"),density_m,"error"))))))) -> 22 | G9: 3 | K9: 1 | N9: no
A10: Grandby Pump Canal | B10: 7 | C10: canal | D10: 2 | E10: =IF(INDEX(CalciumLevel,D10+1)="very low",density_vl,IF(INDEX(CalciumLevel,D10+1)="low",density_l,IF(INDEX(CalciumLevel,D10+1)="moderate",density_m,IF(INDEX(CalciumLevel,D10+1)="high",density_h,IF(AND(INDEX(CalciumLevel,D10+1)="unknown",'Model Input'!$B$52="Model as very low calcium"),density_vl,IF(AND(INDEX(CalciumLevel,D10+1)="unknown",'Model Input'!$B$52="Model as low calcium"),density_l,IF(AND(INDEX(CalciumLevel,D10+1)="unknown",'Model Input'!$B$52="Model as moderate calcium"),density_m,"error"))))))) -> 22 | L10: 1.8 | M10: 2.898 | N10: no
A11: Shadow Mountain Dam | B11: 8 | C11: dam | D11: 3 | E11: =IF(INDEX(CalciumLevel,D11+1)="very low",density_vl,IF(INDEX(CalciumLevel,D11+1)="low",density_l,IF(INDEX(CalciumLevel,D11+1)="moderate",density_m,IF(INDEX(CalciumLevel,D11+1)="high",density_h,IF(AND(INDEX(CalciumLevel,D11+1)="unknown",'Model Input'!$B$52="Model as very low calcium"),density_vl,IF(AND(INDEX(CalciumLevel,D11+1)="unknown",'Model Input'!$B$52="Model as low calcium"),density_l,IF(AND(INDEX(CalciumLevel,D11+1)="unknown",'Model Input'!$B$52="Model as moderate calcium"),density_m,"error"))))))) -> 22 | K11: 0 | N11: no
A12: Adams Tunnel | B12: 9 | C12: tunnel | D12: 4 | E12: =IF(INDEX(CalciumLevel,D12+1)="very low",density_vl,IF(INDEX(CalciumLevel,D12+1)="low",density_l,IF(INDEX(CalciumLevel,D12+1)="moderate",density_m,IF(INDEX(CalciumLevel,D12+1)="high",density_h,IF(AND(INDEX(CalciumLevel,D12+1)="unknown",'Model Input'!$B$52="Model as very low calcium"),density_vl,IF(AND(INDEX(CalciumLevel,D12+1)="unknown",'Model Input'!$B$52="Model as low calcium"),density_l,IF(AND(INDEX(CalciumLevel,D12+1)="unknown",'Model Input'!$B$52="Model as moderate calcium"),density_m,"error"))))))) -> 22 | K12: 7.5 ft high in a semi-circle with arc length of 240 ft | L12: 13.1 | M12: 21.091 | N12: yes
A13: East Portal Dam | B13: 10 | C13: dam | D13: 5 | E13: =IF(INDEX(CalciumLevel,D13+1)="very low",density_vl,IF(INDEX(CalciumLevel,D13+1)="low",density_l,IF(INDEX(CalciumLevel,D13+1)="moderate",density_m,IF(INDEX(CalciumLevel,D13+1)="high",density_h,IF(AND(INDEX(CalciumLevel,D13+1)="unknown",'Model Input'!$B$52="Model as very low calcium"),density_vl,IF(AND(INDEX(CalciumLevel,D13+1)="unknown",'Model Input'!$B$52="Model as low calcium"),density_l,IF(AND(INDEX(CalciumLevel,D13+1)="unknown",'Model Input'!$B$52="Model as moderate calcium"),density_m,"error"))))))) -> 22 | K13: 1 | N13: no
A14: Rams Horn Tunnel | B14: 11 | C14: tunnel | D14: 5 | E14: =IF(INDEX(CalciumLevel,D14+1)="very low",density_vl,IF(INDEX(CalciumLevel,D14+1)="low",density_l,IF(INDEX(CalciumLevel,D14+1)="moderate",density_m,IF(INDEX(CalciumLevel,D14+1)="high",density_h,IF(AND(INDEX(CalciumLevel,D14+1)="unknown",'Model Input'!$B$52="Model as very low calcium"),density_vl,IF(AND(INDEX(CalciumLevel,D14+1)="unknown",'Model Input'!$B$52="Model as low calcium"),density_l,IF(AND(INDEX(CalciumLevel,D14+1)="unknown",'Model Input'!$B$52="Model as moderate calcium"),density_m,"error"))))))) -> 22 | L14: 1.3 | M14: 2.093 | N14: no
A15: Mary's Lake Hydropower Plant | B15: 12 | C15: hydropower | D15: 5 | E15: =IF(INDEX(CalciumLevel,D15+1)="very low",density_vl,IF(INDEX(CalciumLevel,D15+1)="low",density_l,IF(INDEX(CalciumLevel,D15+1)="moderate",density_m,IF(INDEX(CalciumLevel,D15+1)="high",density_h,IF(AND(INDEX(CalciumLevel,D15+1)="unknown",'Model Input'!$B$52="Model as very low calcium"),density_vl,IF(AND(INDEX(CalciumLevel,D15+1)="unknown",'Model Input'!$B$52="Model as low calcium"),density_l,IF(AND(INDEX(CalciumLevel,D15+1)="unknown",'Model Input'!$B$52="Model as moderate calcium"),density_m,"error"))))))) -> 22 | H15: 1 | I15: 8.1 | J15: 870 | K15: 1 | N15: no
A16: Prospect Mountain Conduit and Tunnel | B16: 13 | C16: tunnel | D16: 6 | E16: =IF(INDEX(CalciumLevel,D16+1)="very low",density_vl,IF(INDEX(CalciumLevel,D16+1)="low",density_l,IF(INDEX(CalciumLevel,D16+1)="moderate",density_m,IF(INDEX(CalciumLevel,D16+1)="high",density_h,IF(AND(INDEX(CalciumLevel,D16+1)="unknown",'Model Input'!$B$52="Model as very low calcium"),density_vl,IF(AND(INDEX(CalciumLevel,D16+1)="unknown",'Model Input'!$B$52="Model as low calcium"),density_l,IF(AND(INDEX(CalciumLevel,D16+1)="unknown",'Model Input'!$B$52="Model as moderate calcium"),density_m,"error"))))))) -> 22 | L16: 1.7 | M16: 2.737 | N16: no
A17: Estes Hydropower Plant | B17: 14 | C17: hydropower | D17: 6 | E17: =IF(INDEX(CalciumLevel,D17+1)="very low",density_vl,IF(INDEX(CalciumLevel,D17+1)="low",density_l,IF(INDEX(CalciumLevel,D17+1)="moderate",density_m,IF(INDEX(CalciumLevel,D17+1)="high",density_h,IF(AND(INDEX(CalciumLevel,D17+1)="unknown",'Model Input'!$B$52="Model as very low calcium"),density_vl,IF(AND(INDEX(CalciumLevel,D17+1)="unknown",'Model Input'!$B$52="Model as low calcium"),density_l,IF(AND(INDEX(CalciumLevel,D17+1)="unknown",'Model Input'!$B$52="Model as moderate calcium"),density_m,"error"))))))) -> 22 | H17: 3 | I17: 45 | J17: 4000 | K17: 1 | N17: no
A18: Town of Estes | B18: 15 | C18: water filter plant | D18: 6 | E18: =IF(INDEX(CalciumLevel,D18+1)="very low",density_vl,IF(INDEX(CalciumLevel,D18+1)="low",density_l,IF(INDEX(CalciumLevel,D18+1)="moderate",density_m,IF(INDEX(CalciumLevel,D18+1)="high",density_h,IF(AND(INDEX(CalciumLevel,D18+1)="unknown",'Model Input'!$B$52="Model as very low calcium"),density_vl,IF(AND(INDEX(CalciumLevel,D18+1)="unknown",'Model Input'!$B$52="Model as low calcium"),density_l,IF(AND(INDEX(CalciumLevel,D18+1)="unknown",'Model Input'!$B$52="Model as moderate calcium"),density_m,"error"))))))) -> 22 | F18: 4 | N18: no
A19: Mary's Lake (Town) | B19: 16 | C19: water filter plant | D19: 6 | E19: =IF(INDEX(CalciumLevel,D19+1)="very low",density_vl,IF(INDEX(CalciumLevel,D19+1)="low",density_l,IF(INDEX(CalciumLevel,D19+1)="moderate",density_m,IF(INDEX(CalciumLevel,D19+1)="high",density_h,IF(AND(INDEX(CalciumLevel,D19+1)="unknown",'Model Input'!$B$52="Model as very low calcium"),density_vl,IF(AND(INDEX(CalciumLevel,D19+1)="unknown",'Model Input'!$B$52="Model as low calcium"),density_l,IF(AND(INDEX(CalciumLevel,D19+1)="unknown",'Model Input'!$B$52="Model as moderate calcium"),density_m,"error"))))))) -> 22 | F19: 2 | N19: no
A20: Olympus Dam | B20: 17 | C20: dam | D20: 7 | E20: =IF(INDEX(CalciumLevel,D20+1)="very low",density_vl,IF(INDEX(CalciumLevel,D20+1)="low",density_l,IF(INDEX(CalciumLevel,D20+1)="moderate",density_m,IF(INDEX(CalciumLevel,D20+1)="high",density_h,IF(AND(INDEX(CalciumLevel,D20+1)="unknown",'Model Input'!$B$52="Model as very low calcium"),density_vl,IF(AND(INDEX(CalciumLevel,D20+1)="unknown",'Model Input'!$B$52="Model as low calcium"),density_l,IF(AND(INDEX(CalciumLevel,D20+1)="unknown",'Model Input'!$B$52="Model as moderate calcium"),density_m,"error"))))))) -> 22 | K20: 1 | N20: no
A21: Olympus Siphon and Tunnel | B21: 18 | C21: tunnel | D21: 7 | E21: =IF(INDEX(CalciumLevel,D21+1)="very low",density_vl,IF(INDEX(CalciumLevel,D21+1)="low",density_l,IF(INDEX(CalciumLevel,D21+1)="moderate",density_m,IF(INDEX(CalciumLevel,D21+1)="high",density_h,IF(AND(INDEX(CalciumLevel,D21+1)="unknown",'Model Input'!$B$52="Model as very low calcium"),density_vl,IF(AND(INDEX(CalciumLevel,D21+1)="unknown",'Model Input'!$B$52="Model as low calcium"),density_l,IF(AND(INDEX(CalciumLevel,D21+1)="unknown",'Model Input'!$B$52="Model as moderate calcium"),density_m,"error"))))))) -> 22 | L21: 0.8 | M21: 1.288 | N21: no
A22: Pole Hill Tunnel | B22: 19 | C22: tunnel | D22: 7 | E22: =IF(INDEX(CalciumLevel,D22+1)="very low",density_vl,IF(INDEX(CalciumLevel,D22+1)="low",density_l,IF(INDEX(CalciumLevel,D22+1)="moderate",density_m,IF(INDEX(CalciumLevel,D22+1)="high",density_h,IF(AND(INDEX(CalciumLevel,D22+1)="unknown",'Model Input'!$B$52="Model as very low calcium"),density_vl,IF(AND(INDEX(CalciumLevel,D22+1)="unknown",'Model Input'!$B$52="Model as low calcium"),density_l,IF(AND(INDEX(CalciumLevel,D22+1)="unknown",'Model Input'!$B$52="Model as moderate calcium"),density_m,"error"))))))) -> 22 | L22: 5.4 | M22: 8.694 | N22: no
A23: Pole Hill Hydropower Plant | B23: 20 | C23: hydropower | D23: 7 | E23: =IF(INDEX(CalciumLevel,D23+1)="very low",density_vl,IF(INDEX(CalciumLevel,D23+1)="low",density_l,IF(INDEX(CalciumLevel,D23+1)="moderate",density_m,IF(INDEX(CalciumLevel,D23+1)="high",density_h,IF(AND(INDEX(CalciumLevel,D23+1)="unknown",'Model Input'!$B$52="Model as very low calcium"),density_vl,IF(AND(INDEX(CalciumLevel,D23+1)="unknown",'Model Input'!$B$52="Model as low calcium"),density_l,IF(AND(INDEX(CalciumLevel,D23+1)="unknown",'Model Input'!$B$52="Model as moderate calcium"),density_m,"error"))))))) -> 22 | H23: 1 | I23: 38.2 | J23: 2040 | K23: 1 | N23: no
A24: Rattlesnake Siphon and Tunnel | B24: 21 | C24: tunnel | D24: 7 | E24: =IF(INDEX(CalciumLevel,D24+1)="very low",density_vl,IF(INDEX(CalciumLevel,D24+1)="low",density_l,IF(INDEX(CalciumLevel,D24+1)="moderate",density_m,IF(INDEX(CalciumLevel,D24+1)="high",density_h,IF(AND(INDEX(CalciumLevel,D24+1)="unknown",'Model Input'!$B$52="Model as very low calcium"),density_vl,IF(AND(INDEX(CalciumLevel,D24+1)="unknown",'Model Input'!$B$52="Model as low calcium"),density_l,IF(AND(INDEX(CalciumLevel,D24+1)="unknown",'Model Input'!$B$52="Model as moderate calcium"),density_m,"error"))))))) -> 22 | K24: 1 | L24: 1.7 | M24: 2.737 | N24: no
A25: Rattlesnake Dam | B25: 22 | C25: dam | D25: 8 | E25: =IF(INDEX(CalciumLevel,D25+1)="very low",density_vl,IF(INDEX(CalciumLevel,D25+1)="low",density_l,IF(INDEX(CalciumLevel,D25+1)="moderate",density_m,IF(INDEX(CalciumLevel,D25+1)="high",density_h,IF(AND(INDEX(CalciumLevel,D25+1)="unknown",'Model Input'!$B$52="Model as very low calcium"),density_vl,IF(AND(INDEX(CalciumLevel,D25+1)="unknown",'Model Input'!$B$52="Model as low calcium"),density_l,IF(AND(INDEX(CalciumLevel,D25+1)="unknown",'Model Input'!$B$52="Model as moderate calcium"),density_m,"error"))))))) -> 22 | K25: 1 | N25: no
A26: Bald Mountain Tunnel | B26: 23 | C26: tunnel | D26: 8 | E26: =IF(INDEX(CalciumLevel,D26+1)="very low",density_vl,IF(INDEX(CalciumLevel,D26+1)="low",density_l,IF(INDEX(CalciumLevel,D26+1)="moderate",density_m,IF(INDEX(CalciumLevel,D26+1)="high",density_h,IF(AND(INDEX(CalciumLevel,D26+1)="unknown",'Model Input'!$B$52="Model as very low calcium"),density_vl,IF(AND(INDEX(CalciumLevel,D26+1)="unknown",'Model Input'!$B$52="Model as low calcium"),density_l,IF(AND(INDEX(CalciumLevel,D26+1)="unknown",'Model Input'!$B$52="Model as moderate calcium"),density_m,"error"))))))) -> 22 | L26: 1.3 | M26: 2.093 | N26: no
A27: Flatiron Hydropower Plant | B27: 24 | C27: hydropower | D27: 8 | E27: =IF(INDEX(CalciumLevel,D27+1)="very low",density_vl,IF(INDEX(CalciumLevel,D27+1)="low",density_l,IF(INDEX(CalciumLevel,D27+1)="moderate",density_m,IF(INDEX(CalciumLevel,D27+1)="high",density_h,IF(AND(INDEX(CalciumLevel,D27+1)="unknown",'Model Input'!$B$52="Model as very low calcium"),density_vl,IF(AND(INDEX(CalciumLevel,D27+1)="unknown",'Model Input'!$B$52="Model as low calcium"),density_l,IF(AND(INDEX(CalciumLevel,D27+1)="unknown",'Model Input'!$B$52="Model as moderate calcium"),density_m,"error"))))))) -> 22 | H27: 2 | I27: 94.5 | J27: 5790 | K27: 1 | N27: no
A28: Newell Warnock | B28: 25 | C28: water filter plant | D28: 8 | E28: =IF(INDEX(CalciumLevel,D28+1)="very low",density_vl,IF(INDEX(CalciumLevel,D28+1)="low",density_l,IF(INDEX(CalciumLevel,D28+1)="moderate",density_m,IF(INDEX(CalciumLevel,D28+1)="high",density_h,IF(AND(INDEX(CalciumLevel,D28+1)="unknown",'Model Input'!$B$52="Model as very low calcium"),density_vl,IF(AND(INDEX(CalciumLevel,D28+1)="unknown",'Model Input'!$B$52="Model as low calcium"),density_l,IF(AND(INDEX(CalciumLevel,D28+1)="unknown",'Model Input'!$B$52="Model as moderate calcium"),density_m,"error"))))))) -> 22 | F28: <1 | N28: no
A29: Flatiron Reversible Pump | B29: 26 | C29: pump plant | D29: 9 | E29: =IF(INDEX(CalciumLevel,D29+1)="very low",density_vl,IF(INDEX(CalciumLevel,D29+1)="low",density_l,IF(INDEX(CalciumLevel,D29+1)="moderate",density_m,IF(INDEX(CalciumLevel,D29+1)="high",density_h,IF(AND(INDEX(CalciumLevel,D29+1)="unknown",'Model Input'!$B$52="Model as very low calcium"),density_vl,IF(AND(INDEX(CalciumLevel,D29+1)="unknown",'Model Input'!$B$52="Model as low calcium"),density_l,IF(AND(INDEX(CalciumLevel,D29+1)="unknown",'Model Input'!$B$52="Model as moderate calcium"),density_m,"error"))))))) -> 22 | G29: 1 | H29: 1 | N29: yes
A30: Flatiron Dam | B30: 27 | C30: dam | D30: 9 | E30: =IF(INDEX(CalciumLevel,D30+1)="very low",density_vl,IF(INDEX(CalciumLevel,D30+1)="low",density_l,IF(INDEX(CalciumLevel,D30+1)="moderate",density_m,IF(INDEX(CalciumLevel,D30+1)="high",density_h,IF(AND(INDEX(CalciumLevel,D30+1)="unknown",'Model Input'!$B$52="Model as very low calcium"),density_vl,IF(AND(INDEX(CalciumLevel,D30+1)="unknown",'Model Input'!$B$52="Model as low calcium"),density_l,IF(AND(INDEX(CalciumLevel,D30+1)="unknown",'Model Input'!$B$52="Model as moderate calcium"),density_m,"error"))))))) -> 22 | K30: 1 | N30: no
A31: Carter Lake Pressure Tunnel | B31: 28 | C31: tunnel | D31: 9 | E31: =IF(INDEX(CalciumLevel,D31+1)="very low",density_vl,IF(INDEX(CalciumLevel,D31+1)="low",density_l,IF(INDEX(CalciumLevel,D31+1)="moderate",density_m,IF(INDEX(CalciumLevel,D31+1)="high",density_h,IF(AND(INDEX(CalciumLevel,D31+1)="unknown",'Model Input'!$B$52="Model as very low calcium"),density_vl,IF(AND(INDEX(CalciumLevel,D31+1)="unknown",'Model Input'!$B$52="Model as low calcium"),density_l,IF(AND(INDEX(CalciumLevel,D31+1)="unknown",'Model Input'!$B$52="Model as moderate calcium"),density_m,"error"))))))) -> 22 | L31: 1.4 | M31: 2.254 | N31: no
A32: Big Thompson Hydropower Plant | B32: 29 | C32: hydropower | D32: 9 | E32: =IF(INDEX(CalciumLevel,D32+1)="very low",density_vl,IF(INDEX(CalciumLevel,D32+1)="low",density_l,IF(INDEX(CalciumLevel,D32+1)="moderate",density_m,IF(INDEX(CalciumLevel,D32+1)="high",density_h,IF(AND(INDEX(CalciumLevel,D32+1)="unknown",'Model Input'!$B$52="Model as very low calcium"),density_vl,IF(AND(INDEX(CalciumLevel,D32+1)="unknown",'Model Input'!$B$52="Model as low calcium"),density_l,IF(AND(INDEX(CalciumLevel,D32+1)="unknown",'Model Input'!$B$52="Model as moderate calcium"),density_m,"error"))))))) -> 22 | G32: 1 | H32: 1 | I32: 4.5 | J32: 295 | N32: no
A33: Hansen Feeder Canal | B33: 30 | C33: canal | D33: 9 | E33: =IF(INDEX(CalciumLevel,D33+1)="very low",density_vl,IF(INDEX(CalciumLevel,D33+1)="low",density_l,IF(INDEX(CalciumLevel,D33+1)="moderate",density_m,IF(INDEX(CalciumLevel,D33+1)="high",density_h,IF(AND(INDEX(CalciumLevel,D33+1)="unknown",'Model Input'!$B$52="Model as very low calcium"),density_vl,IF(AND(INDEX(CalciumLevel,D33+1)="unknown",'Model Input'!$B$52="Model as low calcium"),density_l,IF(AND(INDEX(CalciumLevel,D33+1)="unknown",'Model Input'!$B$52="Model as moderate calcium"),density_m,"error"))))))) -> 22 | L33: 13.2 | M33: 21.252 | N33: no
A34: City of Loveland | B34: 31 | C34: water filter plant | D34: 9 | E34: =IF(INDEX(CalciumLevel,D34+1)="very low",density_vl,IF(INDEX(CalciumLevel,D34+1)="low",density_l,IF(INDEX(CalciumLevel,D34+1)="moderate",density_m,IF(INDEX(CalciumLevel,D34+1)="high",density_h,IF(AND(INDEX(CalciumLevel,D34+1)="unknown",'Model Input'!$B$52="Model as very low calcium"),density_vl,IF(AND(INDEX(CalciumLevel,D34+1)="unknown",'Model Input'!$B$52="Model as low calcium"),density_l,IF(AND(INDEX(CalciumLevel,D34+1)="unknown",'Model Input'!$B$52="Model as moderate calcium"),density_m,"error"))))))) -> 22 | F34: 30 | N34: no
A35: Emissaries of Divine Light | B35: 32 | C35: water filter plant | D35: 9 | E35: =IF(INDEX(CalciumLevel,D35+1)="very low",density_vl,IF(INDEX(CalciumLevel,D35+1)="low",density_l,IF(INDEX(CalciumLevel,D35+1)="moderate",density_m,IF(INDEX(CalciumLevel,D35+1)="high",density_h,IF(AND(INDEX(CalciumLevel,D35+1)="unknown",'Model Input'!$B$52="Model as very low calcium"),density_vl,IF(AND(INDEX(CalciumLevel,D35+1)="unknown",'Model Input'!$B$52="Model as low calcium"),density_l,IF(AND(INDEX(CalciumLevel,D35+1)="unknown",'Model Input'!$B$52="Model as moderate calcium"),density_m,"error"))))))) -> 22 | F35: <1 | N35: no
A36: Eden Valley | B36: 33 | C36: water filter plant | D36: 9 | E36: =IF(INDEX(CalciumLevel,D36+1)="very low",density_vl,IF(INDEX(CalciumLevel,D36+1)="low",density_l,IF(INDEX(CalciumLevel,D36+1)="moderate",density_m,IF(INDEX(CalciumLevel,D36+1)="high",density_h,IF(AND(INDEX(CalciumLevel,D36+1)="unknown",'Model Input'!$B$52="Model as very low calcium"),density_vl,IF(AND(INDEX(CalciumLevel,D36+1)="unknown",'Model Input'!$B$52="Model as low calcium"),density_l,IF(AND(INDEX(CalciumLevel,D36+1)="unknown",'Model Input'!$B$52="Model as moderate calcium"),density_m,"error"))))))) -> 22 | F36: <1 | N36: no
A37: Spring Canyon | B37: 34 | C37: water filter plant | D37: 9 | E37: =IF(INDEX(CalciumLevel,D37+1)="very low",density_vl,IF(INDEX(CalciumLevel,D37+1)="low",density_l,IF(INDEX(CalciumLevel,D37+1)="moderate",density_m,IF(INDEX(CalciumLevel,D37+1)="high",density_h,IF(AND(INDEX(CalciumLevel,D37+1)="unknown",'Model Input'!$B$52="Model as very low calcium"),density_vl,IF(AND(INDEX(CalciumLevel,D37+1)="unknown",'Model Input'!$B$52="Model as low calcium"),density_l,IF(AND(INDEX(CalciumLevel,D37+1)="unknown",'Model Input'!$B$52="Model as moderate calcium"),density_m,"error"))))))) -> 22 | F37: 0.25 | N37: no
A38: Horsetooth Dam | B38: 35 | C38: dam | D38: 10 | E38: =IF(INDEX(CalciumLevel,D38+1)="very low",density_vl,IF(INDEX(CalciumLevel,D38+1)="low",density_l,IF(INDEX(CalciumLevel,D38+1)="moderate",density_m,IF(INDEX(CalciumLevel,D38+1)="high",density_h,IF(AND(INDEX(CalciumLevel,D38+1)="unknown",'Model Input'!$B$52="Model as very low calcium"),density_vl,IF(AND(INDEX(CalciumLevel,D38+1)="unknown",'Model Input'!$B$52="Model as low calcium"),density_l,IF(AND(INDEX(CalciumLevel,D38+1)="unknown",'Model Input'!$B$52="Model as moderate calcium"),density_m,"error"))))))) -> 22 | K38: 1 | N38: no
A39: Soldier Dam | B39: 36 | C39: dam | D39: 10 | E39: =IF(INDEX(CalciumLevel,D39+1)="very low",density_vl,IF(INDEX(CalciumLevel,D39+1)="low",density_l,IF(INDEX(CalciumLevel,D39+1)="moderate",density_m,IF(INDEX(CalciumLevel,D39+1)="high",density_h,IF(AND(INDEX(CalciumLevel,D39+1)="unknown",'Model Input'!$B$52="Model as very low calcium"),density_vl,IF(AND(INDEX(CalciumLevel,D39+1)="unknown",'Model Input'!$B$52="Model as low calcium"),density_l,IF(AND(INDEX(CalciumLevel,D39+1)="unknown",'Model Input'!$B$52="Model as moderate calcium"),density_m,"error"))))))) -> 22 | K39: 1 | N39: no
A40: Dixon Dam | B40: 37 | C40: dam | D40: 10 | E40: =IF(INDEX(CalciumLevel,D40+1)="very low",density_vl,IF(INDEX(CalciumLevel,D40+1)="low",density_l,IF(INDEX(CalciumLevel,D40+1)="moderate",density_m,IF(INDEX(CalciumLevel,D40+1)="high",density_h,IF(AND(INDEX(CalciumLevel,D40+1)="unknown",'Model Input'!$B$52="Model as very low calcium"),density_vl,IF(AND(INDEX(CalciumLevel,D40+1)="unknown",'Model Input'!$B$52="Model as low calcium"),density_l,IF(AND(INDEX(CalciumLevel,D40+1)="unknown",'Model Input'!$B$52="Model as moderate calcium"),density_m,"error"))))))) -> 22 | K40: 0 | N40: no
A41: Spring Canyon Dam | B41: 38 | C41: dam | D41: 10 | E41: =IF(INDEX(CalciumLevel,D41+1)="very low",density_vl,IF(INDEX(CalciumLevel,D41+1)="low",density_l,IF(INDEX(CalciumLevel,D41+1)="moderate",density_m,IF(INDEX(CalciumLevel,D41+1)="high",density_h,IF(AND(INDEX(CalciumLevel,D41+1)="unknown",'Model Input'!$B$52="Model as very low calcium"),density_vl,IF(AND(INDEX(CalciumLevel,D41+1)="unknown",'Model Input'!$B$52="Model as low calcium"),density_l,IF(AND(INDEX(CalciumLevel,D41+1)="unknown",'Model Input'!$B$52="Model as moderate calcium"),density_m,"error"))))))) -> 22 | K41: 0 | N41: no
A42: Charles Hansen Supply Canal | B42: 39 | C42: canal | D42: 10 | E42: =IF(INDEX(CalciumLevel,D42+1)="very low",density_vl,IF(INDEX(CalciumLevel,D42+1)="low",density_l,IF(INDEX(CalciumLevel,D42+1)="moderate",density_m,IF(INDEX(CalciumLevel,D42+1)="high",density_h,IF(AND(INDEX(CalciumLevel,D42+1)="unknown",'Model Input'!$B$52="Model as very low calcium"),density_vl,IF(AND(INDEX(CalciumLevel,D42+1)="unknown",'Model Input'!$B$52="Model as low calcium"),density_l,IF(AND(INDEX(CalciumLevel,D42+1)="unknown",'Model Input'!$B$52="Model as moderate calcium"),density_m,"error"))))))) -> 22 | L42: 5.1 | M42: 8.211 | N42: yes
A43: Northern Poudre Supply Canal | B43: 40 | C43: canal | D43: 10 | E43: =IF(INDEX(CalciumLevel,D43+1)="very low",density_vl,IF(INDEX(CalciumLevel,D43+1)="low",density_l,IF(INDEX(CalciumLevel,D43+1)="moderate",density_m,IF(INDEX(CalciumLevel,D43+1)="high",density_h,IF(AND(INDEX(CalciumLevel,D43+1)="unknown",'Model Input'!$B$52="Model as very low calcium"),density_vl,IF(AND(INDEX(CalciumLevel,D43+1)="unknown",'Model Input'!$B$52="Model as low calcium"),density_l,IF(AND(INDEX(CalciumLevel,D43+1)="unknown",'Model Input'!$B$52="Model as moderate calcium"),density_m,"error"))))))) -> 22 | L43: 12.5 | M43: 20.125 | N43: yes
A44: Fort Collins | B44: 41 | C44: water filter plant | D44: 10 | E44: =IF(INDEX(CalciumLevel,D44+1)="very low",density_vl,IF(INDEX(CalciumLevel,D44+1)="low",density_l,IF(INDEX(CalciumLevel,D44+1)="moderate",density_m,IF(INDEX(CalciumLevel,D44+1)="high",density_h,IF(AND(INDEX(CalciumLevel,D44+1)="unknown",'Model Input'!$B$52="Model as very low calcium"),density_vl,IF(AND(INDEX(CalciumLevel,D44+1)="unknown",'Model Input'!$B$52="Model as low calcium"),density_l,IF(AND(INDEX(CalciumLevel,D44+1)="unknown",'Model Input'!$B$52="Model as moderate calcium"),density_m,"error"))))))) -> 22 | F44: 87 | N44: no
A45: Soldier Canyon | B45: 42 | C45: water filter plant | D45: 10 | E45: =IF(INDEX(CalciumLevel,D45+1)="very low",density_vl,IF(INDEX(CalciumLevel,D45+1)="low",density_l,IF(INDEX(CalciumLevel,D45+1)="moderate",density_m,IF(INDEX(CalciumLevel,D45+1)="high",density_h,IF(AND(INDEX(CalciumLevel,D45+1)="unknown",'Model Input'!$B$52="Model as very low calcium"),density_vl,IF(AND(INDEX(CalciumLevel,D45+1)="unknown",'Model Input'!$B$52="Model as low calcium"),density_l,IF(AND(INDEX(CalciumLevel,D45+1)="unknown",'Model Input'!$B$52="Model as moderate calcium"),density_m,"error"))))))) -> 22 | F45: 50 | N45: no
A46: Greeley | B46: 43 | C46: water filter plant | D46: 10 | E46: =IF(INDEX(CalciumLevel,D46+1)="very low",density_vl,IF(INDEX(CalciumLevel,D46+1)="low",density_l,IF(INDEX(CalciumLevel,D46+1)="moderate",density_m,IF(INDEX(CalciumLevel,D46+1)="high",density_h,IF(AND(INDEX(CalciumLevel,D46+1)="unknown",'Model Input'!$B$52="Model as very low calcium"),density_vl,IF(AND(INDEX(CalciumLevel,D46+1)="unknown",'Model Input'!$B$52="Model as low calcium"),density_l,IF(AND(INDEX(CalciumLevel,D46+1)="unknown",'Model Input'!$B$52="Model as moderate calcium"),density_m,"error"))))))) -> 22 | F46: 21 | N46: no
A47: Carter Lake Dam 1 | B47: 44 | C47: dam | D47: 11 | E47: =IF(INDEX(CalciumLevel,D47+1)="very low",density_vl,IF(INDEX(CalciumLevel,D47+1)="low",density_l,IF(INDEX(CalciumLevel,D47+1)="moderate",density_m,IF(INDEX(CalciumLevel,D47+1)="high",density_h,IF(AND(INDEX(CalciumLevel,D47+1)="unknown",'Model Input'!$B$52="Model as very low calcium"),density_vl,IF(AND(INDEX(CalciumLevel,D47+1)="unknown",'Model Input'!$B$52="Model as low calcium"),density_l,IF(AND(INDEX(CalciumLevel,D47+1)="unknown",'Model Input'!$B$52="Model as moderate calcium"),density_m,"error"))))))) -> 22 | K47: 1 | N47: no
A48: Carter Lake Dam 2 | B48: 45 | C48: dam | D48: 11 | E48: =IF(INDEX(CalciumLevel,D48+1)="very low",density_vl,IF(INDEX(CalciumLevel,D48+1)="low",density_l,IF(INDEX(CalciumLevel,D48+1)="moderate",density_m,IF(INDEX(CalciumLevel,D48+1)="high",density_h,IF(AND(INDEX(CalciumLevel,D48+1)="unknown",'Model Input'!$B$52="Model as very low calcium"),density_vl,IF(AND(INDEX(CalciumLevel,D48+1)="unknown",'Model Input'!$B$52="Model as low calcium"),density_l,IF(AND(INDEX(CalciumLevel,D48+1)="unknown",'Model Input'!$B$52="Model as moderate calcium"),density_m,"error"))))))) -> 22 | K48: 0 | N48: no
A49: Carter Lake Dam 3 | B49: 46 | C49: dam | D49: 11 | E49: =IF(INDEX(CalciumLevel,D49+1)="very low",density_vl,IF(INDEX(CalciumLevel,D49+1)="low",density_l,IF(INDEX(CalciumLevel,D49+1)="moderate",density_m,IF(INDEX(CalciumLevel,D49+1)="high",density_h,IF(AND(INDEX(CalciumLevel,D49+1)="unknown",'Model Input'!$B$52="Model as very low calcium"),density_vl,IF(AND(INDEX(CalciumLevel,D49+1)="unknown",'Model Input'!$B$52="Model as low calcium"),density_l,IF(AND(INDEX(CalciumLevel,D49+1)="unknown",'Model Input'!$B$52="Model as moderate calcium"),density_m,"error"))))))) -> 22 | K49: 0 | N49: no
A50: Carter Lake Filter Plant 1 | B50: 47 | C50: water filter plant | D50: 11 | E50: =IF(INDEX(CalciumLevel,D50+1)="very low",density_vl,IF(INDEX(CalciumLevel,D50+1)="low",density_l,IF(INDEX(CalciumLevel,D50+1)="moderate",density_m,IF(INDEX(CalciumLevel,D50+1)="high",density_h,IF(AND(INDEX(CalciumLevel,D50+1)="unknown",'Model Input'!$B$52="Model as very low calcium"),density_vl,IF(AND(INDEX(CalciumLevel,D50+1)="unknown",'Model Input'!$B$52="Model as low calcium"),density_l,IF(AND(INDEX(CalciumLevel,D50+1)="unknown",'Model Input'!$B$52="Model as moderate calcium"),density_m,"error"))))))) -> 22 | F50: 20 | N50: no
A51: Carter Lake Filter Plant 2 | B51: 48 | C51: water filter plant | D51: 11 | E51: =IF(INDEX(CalciumLevel,D51+1)="very low",density_vl,IF(INDEX(CalciumLevel,D51+1)="low",density_l,IF(INDEX(CalciumLevel,D51+1)="moderate",density_m,IF(INDEX(CalciumLevel,D51+1)="high",density_h,IF(AND(INDEX(CalciumLevel,D51+1)="unknown",'Model Input'!$B$52="Model as very low calcium"),density_vl,IF(AND(INDEX(CalciumLevel,D51+1)="unknown",'Model Input'!$B$52="Model as low calcium"),density_l,IF(AND(INDEX(CalciumLevel,D51+1)="unknown",'Model Input'!$B$52="Model as moderate calcium"),density_m,"error"))))))) -> 22 | F51: 20 | N51: no
A52: St. Vrain Supply Canal | B52: 49 | C52: canal | D52: 11 | E52: =IF(INDEX(CalciumLevel,D52+1)="very low",density_vl,IF(INDEX(CalciumLevel,D52+1)="low",density_l,IF(INDEX(CalciumLevel,D52+1)="moderate",density_m,IF(INDEX(CalciumLevel,D52+1)="high",density_h,IF(AND(INDEX(CalciumLevel,D52+1)="unknown",'Model Input'!$B$52="Model as very low calcium"),density_vl,IF(AND(INDEX(CalciumLevel,D52+1)="unknown",'Model Input'!$B$52="Model as low calcium"),density_l,IF(AND(INDEX(CalciumLevel,D52+1)="unknown",'Model Input'!$B$52="Model as moderate calcium"),density_m,"error"))))))) -> 22 | L52: 9.8 | M52: 15.778 | N52: yes
A53: Boulder Feeder Canal | B53: 50 | C53: canal | D53: 11 | E53: =IF(INDEX(CalciumLevel,D53+1)="very low",density_vl,IF(INDEX(CalciumLevel,D53+1)="low",density_l,IF(INDEX(CalciumLevel,D53+1)="moderate",density_m,IF(INDEX(CalciumLevel,D53+1)="high",density_h,IF(AND(INDEX(CalciumLevel,D53+1)="unknown",'Model Input'!$B$52="Model as very low calcium"),density_vl,IF(AND(INDEX(CalciumLevel,D53+1)="unknown",'Model Input'!$B$52="Model as low calcium"),density_l,IF(AND(INDEX(CalciumLevel,D53+1)="unknown",'Model Input'!$B$52="Model as moderate calcium"),density_m,"error"))))))) -> 22 | L53: 13 | M53: 20.93 | N53: yes
A54: Southern Water Supply Project Pipeline | B54: 51 | C54: pipeline | D54: 11 | E54: =IF(INDEX(CalciumLevel,D54+1)="very low",density_vl,IF(INDEX(CalciumLevel,D54+1)="low",density_l,IF(INDEX(CalciumLevel,D54+1)="moderate",density_m,IF(INDEX(CalciumLevel,D54+1)="high",density_h,IF(AND(INDEX(CalciumLevel,D54+1)="unknown",'Model Input'!$B$52="Model as very low calcium"),density_vl,IF(AND(INDEX(CalciumLevel,D54+1)="unknown",'Model Input'!$B$52="Model as low calcium"),density_l,IF(AND(INDEX(CalciumLevel,D54+1)="unknown",'Model Input'!$B$52="Model as moderate calcium"),density_m,"error"))))))) -> 22 | K54: 1 | L54: 110 | M54: 177.1 | N54: no
A55: West Longmont Pumping Plant | B55: 52 | C55: pump plant | D55: 11 | E55: =IF(INDEX(CalciumLevel,D55+1)="very low",density_vl,IF(INDEX(CalciumLevel,D55+1)="low",density_l,IF(INDEX(CalciumLevel,D55+1)="moderate",density_m,IF(INDEX(CalciumLevel,D55+1)="high",density_h,IF(AND(INDEX(CalciumLevel,D55+1)="unknown",'Model Input'!$B$52="Model as very low calcium"),density_vl,IF(AND(INDEX(CalciumLevel,D55+1)="unknown",'Model Input'!$B$52="Model as low calcium"),density_l,IF(AND(INDEX(CalciumLevel,D55+1)="unknown",'Model Input'!$B$52="Model as moderate calcium"),density_m,"error"))))))) -> 22 | G55: 4 | K55: 0 | N55: no
A56: Louisville/Superior Pumping Plant | B56: 53 | C56: pump plant | D56: 11 | E56: =IF(INDEX(CalciumLevel,D56+1)="very low",density_vl,IF(INDEX(CalciumLevel,D56+1)="low",density_l,IF(INDEX(CalciumLevel,D56+1)="moderate",density_m,IF(INDEX(CalciumLevel,D56+1)="high",density_h,IF(AND(INDEX(CalciumLevel,D56+1)="unknown",'Model Input'!$B$52="Model as very low calcium"),density_vl,IF(AND(INDEX(CalciumLevel,D56+1)="unknown",'Model Input'!$B$52="Model as low calcium"),density_l,IF(AND(INDEX(CalciumLevel,D56+1)="unknown",'Model Input'!$B$52="Model as moderate calcium"),density_m,"error"))))))) -> 22 | G56: 3 | K56: 1 | N56: no
A57: Town of Berthoud | B57: 54 | C57: water filter plant | D57: 11 | E57: =IF(INDEX(CalciumLevel,D57+1)="very low",density_vl,IF(INDEX(CalciumLevel,D57+1)="low",density_l,IF(INDEX(CalciumLevel,D57+1)="moderate",density_m,IF(INDEX(CalciumLevel,D57+1)="high",density_h,IF(AND(INDEX(CalciumLevel,D57+1)="unknown",'Model Input'!$B$52="Model as very low calcium"),density_vl,IF(AND(INDEX(CalciumLevel,D57+1)="unknown",'Model Input'!$B$52="Model as low calcium"),density_l,IF(AND(INDEX(CalciumLevel,D57+1)="unknown",'Model Input'!$B$52="Model as moderate calcium"),density_m,"error"))))))) -> 22 | F57: 4 | N57: no
A58: City of Longmont 1 | B58: 55 | C58: water filter plant | D58: 11 | E58: =IF(INDEX(CalciumLevel,D58+1)="very low",density_vl,IF(INDEX(CalciumLevel,D58+1)="low",density_l,IF(INDEX(CalciumLevel,D58+1)="moderate",density_m,IF(INDEX(CalciumLevel,D58+1)="high",density_h,IF(AND(INDEX(CalciumLevel,D58+1)="unknown",'Model Input'!$B$52="Model as very low calcium"),density_vl,IF(AND(INDEX(CalciumLevel,D58+1)="unknown",'Model Input'!$B$52="Model as low calcium"),density_l,IF(AND(INDEX(CalciumLevel,D58+1)="unknown",'Model Input'!$B$52="Model as moderate calcium"),density_m,"error"))))))) -> 22 | F58: 32 | N58: no
A59: City of Longmont 2 | B59: 56 | C59: water filter plant | D59: 11 | E59: =IF(INDEX(CalciumLevel,D59+1)="very low",density_vl,IF(INDEX(CalciumLevel,D59+1)="low",density_l,IF(INDEX(CalciumLevel,D59+1)="moderate",density_m,IF(INDEX(CalciumLevel,D59+1)="high",density_h,IF(AND(INDEX(CalciumLevel,D59+1)="unknown",'Model Input'!$B$52="Model as very low calcium"),density_vl,IF(AND(INDEX(CalciumLevel,D59+1)="unknown",'Model Input'!$B$52="Model as low calcium"),density_l,IF(AND(INDEX(CalciumLevel,D59+1)="unknown",'Model Input'!$B$52="Model as moderate calcium"),density_m,"error"))))))) -> 22 | F59: 15 | N59: yes
A60: Louisville 1 | B60: 57 | C60: water filter plant | D60: 11 | E60: =IF(INDEX(CalciumLevel,D60+1)="very low",density_vl,IF(INDEX(CalciumLevel,D60+1)="low",density_l,IF(INDEX(CalciumLevel,D60+1)="moderate",density_m,IF(INDEX(CalciumLevel,D60+1)="high",density_h,IF(AND(INDEX(CalciumLevel,D60+1)="unknown",'Model Input'!$B$52="Model as very low calcium"),density_vl,IF(AND(INDEX(CalciumLevel,D60+1)="unknown",'Model Input'!$B$52="Model as low calcium"),density_l,IF(AND(INDEX(CalciumLevel,D60+1)="unknown",'Model Input'!$B$52="Model as moderate calcium"),density_m,"error"))))))) -> 22 | F60: 8 | N60: no
A61: Louisville 2 | B61: 58 | C61: water filter plant | D61: 11 | E61: =IF(INDEX(CalciumLevel,D61+1)="very low",density_vl,IF(INDEX(CalciumLevel,D61+1)="low",density_l,IF(INDEX(CalciumLevel,D61+1)="moderate",density_m,IF(INDEX(CalciumLevel,D61+1)="high",density_h,IF(AND(INDEX(CalciumLevel,D61+1)="unknown",'Model Input'!$B$52="Model as very low calcium"),density_vl,IF(AND(INDEX(CalciumLevel,D61+1)="unknown",'Model Input'!$B$52="Model as low calcium"),density_l,IF(AND(INDEX(CalciumLevel,D61+1)="unknown",'Model Input'!$B$52="Model as moderate calcium"),density_m,"error"))))))) -> 22 | F61: 5
A62: Superior | B62: 59 | C62: water filter plant | D62: 11 | E62: =IF(INDEX(CalciumLevel,D62+1)="very low",density_vl,IF(INDEX(CalciumLevel,D62+1)="low",density_l,IF(INDEX(CalciumLevel,D62+1)="moderate",density_m,IF(INDEX(CalciumLevel,D62+1)="high",density_h,IF(AND(INDEX(CalciumLevel,D62+1)="unknown",'Model Input'!$B$52="Model as very low calcium"),density_vl,IF(AND(INDEX(CalciumLevel,D62+1)="unknown",'Model Input'!$B$52="Model as low calcium"),density_l,IF(AND(INDEX(CalciumLevel,D62+1)="unknown",'Model Input'!$B$52="Model as moderate calcium"),density_m,"error"))))))) -> 22 | F62: 5.5 | N62: no
A63: Town of Erie | B63: 60 | C63: water filter plant | D63: 11 | E63: =IF(INDEX(CalciumLevel,D63+1)="very low",density_vl,IF(INDEX(CalciumLevel,D63+1)="low",density_l,IF(INDEX(CalciumLevel,D63+1)="moderate",density_m,IF(INDEX(CalciumLevel,D63+1)="high",density_h,IF(AND(INDEX(CalciumLevel,D63+1)="unknown",'Model Input'!$B$52="Model as very low calcium"),density_vl,IF(AND(INDEX(CalciumLevel,D63+1)="unknown",'Model Input'!$B$52="Model as low calcium"),density_l,IF(AND(INDEX(CalciumLevel,D63+1)="unknown",'Model Input'!$B$52="Model as moderate calcium"),density_m,"error"))))))) -> 22 | F63: 12.3 | N63: no
A64: Broomfield | B64: 61 | C64: water filter plant | D64: 11 | E64: =IF(INDEX(CalciumLevel,D64+1)="very low",density_vl,IF(INDEX(CalciumLevel,D64+1)="low",density_l,IF(INDEX(CalciumLevel,D64+1)="moderate",density_m,IF(INDEX(CalciumLevel,D64+1)="high",density_h,IF(AND(INDEX(CalciumLevel,D64+1)="unknown",'Model Input'!$B$52="Model as very low calcium"),density_vl,IF(AND(INDEX(CalciumLevel,D64+1)="unknown",'Model Input'!$B$52="Model as low calcium"),density_l,IF(AND(INDEX(CalciumLevel,D64+1)="unknown",'Model Input'!$B$52="Model as moderate calcium"),density_m,"error"))))))) -> 22 | F64: 20 | N64: no
A65: City of Fort Lupton | B65: 62 | C65: water filter plant | D65: 11 | E65: =IF(INDEX(CalciumLevel,D65+1)="very low",density_vl,IF(INDEX(CalciumLevel,D65+1)="low",density_l,IF(INDEX(CalciumLevel,D65+1)="moderate",density_m,IF(INDEX(CalciumLevel,D65+1)="high",density_h,IF(AND(INDEX(CalciumLevel,D65+1)="unknown",'Model Input'!$B$52="Model as very low calcium"),density_vl,IF(AND(INDEX(CalciumLevel,D65+1)="unknown",'Model Input'!$B$52="Model as low calcium"),density_l,IF(AND(INDEX(CalciumLevel,D65+1)="unknown",'Model Input'!$B$52="Model as moderate calcium"),density_m,"error"))))))) -> 22 | F65: 5 | N65: no
A66: City of Fort Morgan | B66: 63 | C66: water filter plant | D66: 11 | E66: =IF(INDEX(CalciumLevel,D66+1)="very low",density_vl,IF(INDEX(CalciumLevel,D66+1)="low",density_l,IF(INDEX(CalciumLevel,D66+1)="moderate",density_m,IF(INDEX(CalciumLevel,D66+1)="high",density_h,IF(AND(INDEX(CalciumLevel,D66+1)="unknown",'Model Input'!$B$52="Model as very low calcium"),density_vl,IF(AND(INDEX(CalciumLevel,D66+1)="unknown",'Model Input'!$B$52="Model as low calcium"),density_l,IF(AND(INDEX(CalciumLevel,D66+1)="unknown",'Model Input'!$B$52="Model as moderate calcium"),density_m,"error"))))))) -> 22 | F66: 10 | N66: no
A67: Boulder Creek Supply Canal | B67: 64 | C67: canal | D67: 12 | E67: =IF(INDEX(CalciumLevel,D67+1)="very low",density_vl,IF(INDEX(CalciumLevel,D67+1)="low",density_l,IF(INDEX(CalciumLevel,D67+1)="moderate",density_m,IF(INDEX(CalciumLevel,D67+1)="high",density_h,IF(AND(INDEX(CalciumLevel,D67+1)="unknown",'Model Input'!$B$52="Model as very low calcium"),density_vl,IF(AND(INDEX(CalciumLevel,D67+1)="unknown",'Model Input'!$B$52="Model as low calcium"),density_l,IF(AND(INDEX(CalciumLevel,D67+1)="unknown",'Model Input'!$B$52="Model as moderate calcium"),density_m,"error"))))))) -> 7500 | L67: 2.7 | M67: 4.347 | N67: yes
A68: South Platte Supply Canal | B68: 65 | C68: canal | D68: 12 | E68: =IF(INDEX(CalciumLevel,D68+1)="very low",density_vl,IF(INDEX(CalciumLevel,D68+1)="low",density_l,IF(INDEX(CalciumLevel,D68+1)="moderate",density_m,IF(INDEX(CalciumLevel,D68+1)="high",density_h,IF(AND(INDEX(CalciumLevel,D68+1)="unknown",'Model Input'!$B$52="Model as very low calcium"),density_vl,IF(AND(INDEX(CalciumLevel,D68+1)="unknown",'Model Input'!$B$52="Model as low calcium"),density_l,IF(AND(INDEX(CalciumLevel,D68+1)="unknown",'Model Input'!$B$52="Model as moderate calcium"),density_m,"error"))))))) -> 7500 | L68: 32.2 | M68: 51.842 | N68: yes
A69: City of Boulder | B69: 66 | C69: water filter plant | D69: 12 | E69: =IF(INDEX(CalciumLevel,D69+1)="very low",density_vl,IF(INDEX(CalciumLevel,D69+1)="low",density_l,IF(INDEX(CalciumLevel,D69+1)="moderate",density_m,IF(INDEX(CalciumLevel,D69+1)="high",density_h,IF(AND(INDEX(CalciumLevel,D69+1)="unknown",'Model Input'!$B$52="Model as very low calcium"),density_vl,IF(AND(INDEX(CalciumLevel,D69+1)="unknown",'Model Input'!$B$52="Model as low calcium"),density_l,IF(AND(INDEX(CalciumLevel,D69+1)="unknown",'Model Input'!$B$52="Model as moderate calcium"),density_m,"error"))))))) -> 7500 | F69: 16 | N69: no
A70: City of Lafayette | B70: 67 | C70: water filter plant | D70: 12 | E70: =IF(INDEX(CalciumLevel,D70+1)="very low",density_vl,IF(INDEX(CalciumLevel,D70+1)="low",density_l,IF(INDEX(CalciumLevel,D70+1)="moderate",density_m,IF(INDEX(CalciumLevel,D70+1)="high",density_h,IF(AND(INDEX(CalciumLevel,D70+1)="unknown",'Model Input'!$B$52="Model as very low calcium"),density_vl,IF(AND(INDEX(CalciumLevel,D70+1)="unknown",'Model Input'!$B$52="Model as low calcium"),density_l,IF(AND(INDEX(CalciumLevel,D70+1)="unknown",'Model Input'!$B$52="Model as moderate calcium"),density_m,"error"))))))) -> 7500 | F70: 13
A74: Control Costs: Water Treatment Plants
A75: Connelly Values (per facility values)
A76: Average impacts, 1989-2004 | B76: Average Expenditures per facility
B77: ≤ 1 MGD | C77: 2-10 MGD | D77: ≥ 11 MGD
A78: Capital Expenditures
A79: Planning, design, and engineering | B79: 23297 | C79: 17564 | D79: 114866
A80: Retrofit and/or reconstruction | B80: 28056 | C80: 40479 | D80: 72068
A81: Total Capital Expenditures | B81: =SUM(B79:B80) -> 51353 | C81: =SUM(C79:C80) -> 58043 | D81: 186934
A82: Yearly Principal and Interest Payment | B82: =(B81*i_rate*(1+i_rate)^(term_length)/((1+i_rate)^(term_length)-1)) -> 4033.802145 | C82: =(C81*i_rate*(1+i_rate)^(term_length)/((1+i_rate)^(term_length)-1)) -> 4559.304771 | D82: =(D81*i_rate*(1+i_rate)^(term_length)/((1+i_rate)^(term_length)-1)) -> 14683.75305
A84: Variable Costs (average yearly values)
A85: Lost production and revenues | B85: 0 | C85: 121 | D85: 0
A86: Chemical treatment | B86: 2224 | C86: 1837 | D86: 5408
A87: Filtration or other mechanical exclusion | B87: 242 | C87: 243 | D87: 3957
A88: Monitoring and inspection | B88: 1472 | C88: 952 | D88: 2288
A89: Mechanical removal | B89: 247 | C89: 381 | D89: 1603
A90: Nonchemical treatment | B90: 17 | C90: 0 | D90: 0
A91: Research and development | B91: 0.6875 | C91: 0 | D91: 683
A92: Personnel training | B92: 76 | C92: 148 | D92: 254
A93: Customer education | B93: 298 | C93: 8 | D93: 287
A94: Other | B94: 0 | C94: 0 | D94: 3328
A95: Total Average Yearly Variable Costs | B95: =SUM(B85:B94) -> 4576.6875 | C95: =SUM(C85:C94) -> 3690 | D95: =SUM(D85:D94) -> 17808
A97: Westminster Values (per intake)
A98: Capital Expenditures
A99: Chemical Feed System to Supply Oxidizing Agent at Intake | B99: 3200000
A100: Coat Existing Trash Racks (2) | B100: 250000
A101: Redundant Feed System at Discharge Facility to Big Dry Creek | B101: 2250000
A102: Cathodic Protection of Valves | B102: 200000
A103: Administration and Engineering | B103: 2360000
A104: Total Capital Expenditures | B104: 8260000
A105: Yearly Principal and Interest Payment* | B105: =(B104*i_rate*(1+i_rate)^(term_length)/((1+i_rate)^(term_length)-1)) -> 648826.8596
A107: Variable Costs (average yearly values)
A108: Chloramination of Total Flow | B108: 2100000
A109: Breakpoint Chlorination of Municipal Water Supply Flow | B109: 400000
A110: Total Yearly Variable Costs | B110: 2500000
A112: Option in Use: | B112: ='Model Input'!B158 -> Connelly and Westminster
B114: Year of Incurred Cost
A115: Connelly Values (per facility values) | B115: 0 | C115: 1 | D115: 2 | E115: 3 | F115: 4 | G115: 5 | H115: 6 | I115: 7 | J115: 8 | K115: 9 | L115: 10 | M115: 11 | N115: 12 | O115: 13 | P115: 14 | Q115: 15 | R115: 16 | S115: 17 | T115: 18 | U115: 19 | V115: 20 | W115: 21 | X115: 22 | Y115: 23 | Z115: 24 | AA115: 25 | AB115: 26 | AC115: 27 | AD115: 28 | AE115: 29 | AF115: 30 | AG115: 31 | AH115: 32 | AI115: 33 | AJ115: 34 | AK115: 35 | AL115: 36 | AM115: 37 | AN115: 38 | AO115: 39 | AP115: 40 | AQ115: 41 | AR115: 42 | AS115: 43 | AT115: 44 | AU115: 45 | AV115: 46 | AW115: 47 | AX115: 48 | AY115: 49
A116: Cost Schedule for Water Treatment Plant (≤ 1 MGD) | B116: =IF(B115<=term_length,$B$95+$B$82,$B$95) -> 8610.489645 | C116: 8610.489645 | D116: 8610.489645 | E116: 8610.489645 | F116: 8610.489645 | G116: 8610.489645 | H116: 8610.489645 | I116: 8610.489645 | J116: 8610.489645 | K116: 8610.489645 | L116: 8610.489645 | M116: 8610.489645 | N116: 8610.489645 | O116: 8610.489645 | P116: 8610.489645 | Q116: 8610.489645 | R116: 8610.489645 | S116: 8610.489645 | T116: 8610.489645 | U116: 8610.489645 | V116: 8610.489645 | W116: 4576.6875 | X116: 4576.6875 | Y116: 4576.6875 | Z116: 4576.6875 | AA116: 4576.6875 | AB116: 4576.6875 | AC116: 4576.6875 | AD116: 4576.6875 | AE116: 4576.6875 | AF116: 4576.6875 | AG116: 4576.6875 | AH116: =IF(AH115<=term_length,$B$95+$B$82,$B$95) -> 4576.6875 | AI116: 4576.6875 | AJ116: 4576.6875 | AK116: 4576.6875 | AL116: 4576.6875 | AM116: 4576.6875 | AN116: 4576.6875 | AO116: 4576.6875 | AP116: 4576.6875 | AQ116: 4576.6875 | AR116: 4576.6875 | AS116: 4576.6875 | AT116: 4576.6875 | AU116: 4576.6875 | AV116: 4576.6875 | AW116: 4576.6875 | AX116: 4576.6875 | AY116: =IF(AY115<=term_length,$B$95+$B$82,$B$95) -> 4576.6875
A117: Cost Schedule for Water Treatment Plant (2-10 MGD) | B117: =IF(B115<=term_length,$C$95+$C$82,$C$95) -> 8249.304771 | C117: 8249.304771 | D117: 8249.304771 | E117: 8249.304771 | F117: 8249.304771 | G117: 8249.304771 | H117: 8249.304771 | I117: 8249.304771 | J117: 8249.304771 | K117: 8249.304771 | L117: 8249.304771 | M117: 8249.304771 | N117: 8249.304771 | O117: 8249.304771 | P117: 8249.304771 | Q117: 8249.304771 | R117: 8249.304771 | S117: 8249.304771 | T117: 8249.304771 | U117: 8249.304771 | V117: 8249.304771 | W117: 3690 | X117: 3690 | Y117: 3690 | Z117: 3690 | AA117: 3690 | AB117: 3690 | AC117: 3690 | AD117: 3690 | AE117: 3690 | AF117: 3690 | AG117: 3690 | AH117: =IF(AH115<=term_length,$C$95+$C$82,$C$95) -> 3690 | AI117: 3690 | AJ117: 3690 | AK117: 3690 | AL117: 3690 | AM117: 3690 | AN117: 3690 | AO117: 3690 | AP117: 3690 | AQ117: 3690 | AR117: 3690 | AS117: 3690 | AT117: 3690 | AU117: 3690 | AV117: 3690 | AW117: 3690 | AX117: 3690 | AY117: =IF(AY115<=term_length,$C$95+$C$82,$C$95) -> 3690
A118: Cost Schedule for Water Treatment Plant (≥ 11 MGD) | B118: =IF(B115<=term_length,$D$95+$D$82,$D$95) -> 32491.75305 | C118: 32491.75305 | D118: 32491.75305 | E118: 32491.75305 | F118: 32491.75305 | G118: 32491.75305 | H118: 32491.75305 | I118: 32491.75305 | J118: 32491.75305 | K118: 32491.75305 | L118: 32491.75305 | M118: 32491.75305 | N118: 32491.75305 | O118: 32491.75305 | P118: 32491.75305 | Q118: 32491.75305 | R118: 32491.75305 | S118: 32491.75305 | T118: 32491.75305 | U118: 32491.75305 | V118: 32491.75305 | W118: 17808 | X118: 17808 | Y118: 17808 | Z118: 17808 | AA118: 17808 | AB118: 17808 | AC118: 17808 | AD118: 17808 | AE118: 17808 | AF118: 17808 | AG118: 17808 | AH118: =IF(AH115<=term_length,$D$95+$D$82,$D$95) -> 17808 | AI118: 17808 | AJ118: 17808 | AK118: 17808 | AL118: 17808 | AM118: 17808 | AN118: 17808 | AO118: 17808 | AP118: 17808 | AQ118: 17808 | AR118: 17808 | AS118: 17808 | AT118: 17808 | AU118: 17808 | AV118: 17808 | AW118: 17808 | AX118: 17808 | AY118: =IF(AY115<=term_length,$D$95+$D$82,$D$95) -> 17808
B119: Year of Incurred Cost
A120: Westminster (per intake values) | B120: 0 | C120: 1 | D120: 2 | E120: 3 | F120: 4 | G120: 5 | H120: 6 | I120: 7 | J120: 8 | K120: 9 | L120: 10 | M120: 11 | N120: 12 | O120: 13 | P120: 14 | Q120: 15 | R120: 16 | S120: 17 | T120: 18 | U120: 19 | V120: 20 | W120: 21 | X120: 22 | Y120: 23 | Z120: 24 | AA120: 25 | AB120: 26 | AC120: 27 | AD120: 28 | AE120: 29 | AF120: 30 | AG120: 31 | AH120: 32 | AI120: 33 | AJ120: 34 | AK120: 35 | AL120: 36 | AM120: 37 | AN120: 38 | AO120: 39 | AP120: 40 | AQ120: 41 | AR120: 42 | AS120: 43 | AT120: 44 | AU120: 45 | AV120: 46 | AW120: 47 | AX120: 48 | AY120: 49
A121: Cost Schedule for Front Range Reservoirs | B121: =IF(B120<=term_length,$B$105+$B$110,$B$110) -> 3148826.86 | C121: 3148826.86 | D121: 3148826.86 | E121: 3148826.86 | F121: 3148826.86 | G121: 3148826.86 | H121: 3148826.86 | I121: 3148826.86 | J121: 3148826.86 | K121: 3148826.86 | L121: 3148826.86 | M121: 3148826.86 | N121: 3148826.86 | O121: 3148826.86 | P121: 3148826.86 | Q121: 3148826.86 | R121: 3148826.86 | S121: 3148826.86 | T121: 3148826.86 | U121: 3148826.86 | V121: 3148826.86 | W121: 2500000 | X121: 2500000 | Y121: 2500000 | Z121: 2500000 | AA121: 2500000 | AB121: 2500000 | AC121: 2500000 | AD121: 2500000 | AE121: 2500000 | AF121: 2500000 | AG121: 2500000 | AH121: =IF(AH120<=term_length,$B$105+$B$110,$B$110) -> 2500000 | AI121: 2500000 | AJ121: 2500000 | AK121: 2500000 | AL121: 2500000 | AM121: 2500000 | AN121: 2500000 | AO121: 2500000 | AP121: 2500000 | AQ121: 2500000 | AR121: 2500000 | AS121: 2500000 | AT121: 2500000 | AU121: 2500000 | AV121: 2500000 | AW121: 2500000 | AX121: 2500000 | AY121: 2500000
A123: Source, Formula, and Assumption Information for this Section
A124: *Water treatment plant control costs data is from Connelly2007
A125: *Costs of capital are assumed to be borrow. Yearly principal and interest payments are calculated with the amortization formula: A=12*P*r/12(1+r/12)^n/((1+r/12)^n-1).
A126: *Westminster costs are applied to Boulder, Carter, and Horsetooth.
A127: *Carter Lake has two filter plants right on the lake, when using Westminster per intake values, Carter is charges with an intake value and with 2 filter plants.
A128: Control Costs: Hydropower Facilities
B129: Low | C129: Base | D129: High | E129: Source
A130: Capital Expenditures (per megawatt capacity)
A131: Retrofit Costs | B131: 1000 | C131: 1500 | D131: 2000
A132: Yearly principal and Interest Payment | B132: =(B131*i_rate*(1+i_rate)^(term_length)/((1+i_rate)^(term_length)-1)) -> 78.55046726 | C132: =(C131*i_rate*(1+i_rate)^(term_length)/((1+i_rate)^(term_length)-1)) -> 117.8257009 | D132: =(D131*i_rate*(1+i_rate)^(term_length)/((1+i_rate)^(term_length)-1)) -> 157.1009345
A134: Variable Costs (per megawatt capacity)
A135: Increase in annual operating expenditures | B135: 50 | C135: 75 | D135: 100
B137: Year of Incurred Cost
B138: 0 | C138: 1 | D138: 2 | E138: 3 | F138: 4 | G138: 5 | H138: 6 | I138: 7 | J138: 8 | K138: 9 | L138: 10 | M138: 11 | N138: 12 | O138: 13 | P138: 14 | Q138: 15 | R138: 16 | S138: 17 | T138: 18 | U138: 19 | V138: 20 | W138: 21 | X138: 22 | Y138: 23 | Z138: 24 | AA138: 25 | AB138: 26 | AC138: 27 | AD138: 28 | AE138: 29 | AF138: 30 | AG138: 31 | AH138: 32 | AI138: 33 | AJ138: 34 | AK138: 35 | AL138: 36 | AM138: 37 | AN138: 38 | AO138: 39 | AP138: 40 | AQ138: 41 | AR138: 42 | AS138: 43 | AT138: 44 | AU138: 45 | AV138: 46 | AW138: 47 | AX138: 48 | AY138: 49
A139: Low Cost Schedule for Hydropower (per megawatt capacity) | B139: =IF(B138<=term_length,$B$132+$B$135,$B$135) -> 128.5504673 | C139: 128.5504673 | D139: 128.5504673 | E139: 128.5504673 | F139: 128.5504673 | G139: 128.5504673 | H139: 128.5504673 | I139: 128.5504673 | J139: 128.5504673 | K139: 128.5504673 | L139: 128.5504673 | M139: 128.5504673 | N139: 128.5504673 | O139: 128.5504673 | P139: 128.5504673 | Q139: 128.5504673 | R139: 128.5504673 | S139: 128.5504673 | T139: 128.5504673 | U139: 128.5504673 | V139: 128.5504673 | W139: 50 | X139: 50 | Y139: 50 | Z139: 50 | AA139: 50 | AB139: 50 | AC139: 50 | AD139: 50 | AE139: 50 | AF139: 50 | AG139: 50 | AH139: =IF(AH138<=term_length,$B$132+$B$135,$B$135) -> 50 | AI139: 50 | AJ139: 50 | AK139: 50 | AL139: 50 | AM139: 50 | AN139: 50 | AO139: 50 | AP139: 50 | AQ139: 50 | AR139: 50 | AS139: 50 | AT139: 50 | AU139: 50 | AV139: 50 | AW139: 50 | AX139: 50 | AY139: =IF(AY138<=term_length,$B$132+$B$135,$B$135) -> 50
A140: Base Cost Schedule for Hydropower (per megawatt capacity) | B140: =IF(B138<=term_length,$C$132+$C$135,$C$135) -> 192.8257009 | C140: 192.8257009 | D140: 192.8257009 | E140: 192.8257009 | F140: 192.8257009 | G140: 192.8257009 | H140: 192.8257009 | I140: 192.8257009 | J140: 192.8257009 | K140: 192.8257009 | L140: 192.8257009 | M140: 192.8257009 | N140: 192.8257009 | O140: 192.8257009 | P140: 192.8257009 | Q140: 192.8257009 | R140: 192.8257009 | S140: 192.8257009 | T140: 192.8257009 | U140: 192.8257009 | V140: 192.8257009 | W140: 75 | X140: 75 | Y140: 75 | Z140: 75 | AA140: 75 | AB140: 75 | AC140: 75 | AD140: 75 | AE140: 75 | AF140: 75 | AG140: 75 | AH140: =IF(AH138<=term_length,$C$132+$C$135,$C$135) -> 75 | AI140: 75 | AJ140: 75 | AK140: 75 | AL140: 75 | AM140: 75 | AN140: 75 | AO140: 75 | AP140: 75 | AQ140: 75 | AR140: 75 | AS140: 75 | AT140: 75 | AU140: 75 | AV140: 75 | AW140: 75 | AX140: 75 | AY140: =IF(AY138<=term_length,$C$132+$C$135,$C$135) -> 75
A141: High Cost Schedule for Hydropower (per megawatt capacity) | B141: =IF(B138<=term_length,$D$132+$D$135,$D$135) -> 257.1009345 | C141: 257.1009345 | D141: 257.1009345 | E141: 257.1009345 | F141: 257.1009345 | G141: 257.1009345 | H141: 257.1009345 | I141: 257.1009345 | J141: 257.1009345 | K141: 257.1009345 | L141: 257.1009345 | M141: 257.1009345 | N141: 257.1009345 | O141: 257.1009345 | P141: 257.1009345 | Q141: 257.1009345 | R141: 257.1009345 | S141: 257.1009345 | T141: 257.1009345 | U141: 257.1009345 | V141: 257.1009345 | W141: 100 | X141: 100 | Y141: 100 | Z141: 100 | AA141: 100 | AB141: 100 | AC141: 100 | AD141: 100 | AE141: 100 | AF141: 100 | AG141: 100 | AH141: =IF(AH138<=term_length,$D$132+$D$135,$D$135) -> 100 | AI141: 100 | AJ141: 100 | AK141: 100 | AL141: 100 | AM141: 100 | AN141: 100 | AO141: 100 | AP141: 100 | AQ141: 100 | AR141: 100 | AS141: 100 | AT141: 100 | AU141: 100 | AV141: 100 | AW141: 100 | AX141: 100 | AY141: =IF(AY138<=term_length,$D$132+$D$135,$D$135) -> 100
A143: Source, Formula, and Assumption Information for this Section
A144: *Cost of capital are assumed to be borrow. Yearly principal and interest payments are calculated with the amortization formula: A=P*r(1+r)^n/((1+r)^n-1).
A146: Control Costs: Dams
B147: Value | C147: Source
A148: Maintenance Expenditures (per trash rack)
A149: Cost of applying coating | B149: 25000
A150: Cost of divers | B150: 100000
A151: Total Costs | B151: =SUM(B149:B150) -> 125000 | C151: Westminster
A152: Useful life of paint(years) | B152: 5 | C152: Phillips
A156: Source, Formula, and Assumption Information for this Section
A157: *Dams will require additional inspections. It is assumed that the cost of these inspections will be small and absorbed in normal operation costs.
A158: *Trash rack painting costs are taken from City of Westminster (2010)
A159: *Assume that money is not borrowed for these costs (i.e. they are not capital costs)
A160: Control Costs: Pump Plants
A162: *Data is not available about the costs to pump plants.
A163: *Pump plants that are dry for at least 1 month each year are assumed to have zero control costs
A164: *With the exception of the Farr Pump Plant, the control costs for all other pump plants are set equal to those for Mary's Lake Hydropower plant.
A165: *Costs for the Farr Pump Plant are set equal to Lake Estes Power Plant
A166: Source, Formula, and Assumption Information for this Section
A167: *Mussels are assumed to die from desiccation in pump plants that are dry for at least one month.
A168: *Discharge piping is at risk of mussel fouling. Even small amounts of settlement could increase required pumping power. An analysis is needed to evaluate the increased pumping costs versus the increased maintenance costs of manually removing mussel accumulation.
A170: Control Cost Schedules
D171: Total Costs {ControlCostSchedules}
D172: Year of Incurred Cost
A173: Structure/Facility Name | B173: Structure/Facility ID | C173: Structure/Facility Classification | D173: 0 | E173: 1 | F173: 2 | G173: 3 | H173: 4 | I173: 5 | J173: 6 | K173: 8 | L173: 9 | M173: 10 | N173: 11 | O173: 12 | P173: 13 | Q173: 14 | R173: 15 | S173: 16 | T173: 17 | U173: 18 | V173: 19 | W173: 20 | X173: 21 | Y173: 22 | Z173: 23 | AA173: 24 | AB173: 25 | AC173: 26 | AD173: 27 | AE173: 28 | AF173: 29 | AG173: 30 | AH173: 31 | AI173: 32 | AJ173: 33 | AK173: 34 | AL173: 35 | AM173: 36 | AN173: 37 | AO173: 38 | AP173: 39 | AQ173: 40 | AR173: 41 | AS173: 42 | AT173: 43 | AU173: 44 | AV173: 45 | AW173: 46 | AX173: 47 | AY173: 48 | AZ173: 49
A174: Windy Gap Pump Plant | B174: 0 | C174: pump plant | D174: =D188 -> 8677.15654 | E174: =E188 -> 8677.15654 | F174: 8677.15654 | G174: 8677.15654 | H174: 8677.15654 | I174: 8677.15654 | J174: 8677.15654 | K174: 8677.15654 | L174: 8677.15654 | M174: 8677.15654 | N174: 8677.15654 | O174: 8677.15654 | P174: 8677.15654 | Q174: 8677.15654 | R174: 8677.15654 | S174: 8677.15654 | T174: 8677.15654 | U174: 8677.15654 | V174: 8677.15654 | W174: 8677.15654 | X174: 8677.15654 | Y174: 3375 | Z174: 3375 | AA174: 3375 | AB174: 3375 | AC174: 3375 | AD174: 3375 | AE174: 3375 | AF174: 3375 | AG174: 3375 | AH174: 3375 | AI174: 3375 | AJ174: 3375 | AK174: 3375 | AL174: 3375 | AM174: 3375 | AN174: 3375 | AO174: 3375 | AP174: 3375 | AQ174: 3375 | AR174: 3375 | AS174: 3375 | AT174: 3375 | AU174: 3375 | AV174: 3375 | AW174: 3375 | AX174: 3375 | AY174: 3375 | AZ174: 3375
A175: Windy Gap Pipeline | B175: 1 | C175: pipeline
A176: Willow Creek Dam | B176: 2 | C176: dam | D176: =IF(AND(INDEX($N$3:$N$70,$B176+1)="no",OR(D$173=0,D$173=$B$152)),$B$151*INDEX($K$3:$K$70,$B176+1),IF(AND(INDEX($N$3:$N$70,$B176+1)="no",(MOD(D$173-1,$B$152)=0),D$173<>1,D$173<>$B$152+1),$B$151*INDEX($K$3:$K$70,$B176+1),0)) -> 125000 | E176: 0 | F176: 0 | G176: 0 | H176: 0 | I176: 125000 | J176: 0 | K176: 0 | L176: 0 | M176: 0 | N176: 125000 | O176: 0 | P176: 0 | Q176: 0 | R176: 0 | S176: 125000 | T176: 0 | U176: 0 | V176: 0 | W176: 0 | X176: 125000 | Y176: 0 | Z176: 0 | AA176: 0 | AB176: 0 | AC176: 125000 | AD176: 0 | AE176: 0 | AF176: 0 | AG176: 0 | AH176: 125000 | AI176: 0 | AJ176: =IF(AND(INDEX($N$3:$N$70,$B176+1)="no",OR(AJ$173=0,AJ$173=$B$152)),$B$151*INDEX($K$3:$K$70,$B176+1),IF(AND(INDEX($N$3:$N$70,$B176+1)="no",(MOD(AJ$173-1,$B$152)=0),AJ$173<>1,AJ$173<>$B$152+1),$B$151*INDEX($K$3:$K$70,$B176+1),0)) -> 0 | AK176: 0 | AL176: 0 | AM176: 125000 | AN176: 0 | AO176: 0 | AP176: 0 | AQ176: 0 | AR176: 125000 | AS176: 0 | AT176: 0 | AU176: 0 | AV176: 0 | AW176: 125000 | AX176: 0 | AY176: 0 | AZ176: 0
A177: Willow Creek Pump Canal | B177: 3 | C177: canal
A178: Willow Creek Pump Plant | B178: 4 | C178: pump plant | D178: 0
A179: Granby Dam | B179: 5 | C179: dam | D179: =IF(AND(INDEX($N$3:$N$70,$B179+1)="no",OR(D$173=0,D$173=$B$152)),$B$151*INDEX($K$3:$K$70,$B179+1),IF(AND(INDEX($N$3:$N$70,$B179+1)="no",(MOD(D$173-1,$B$152)=0),D$173<>1,D$173<>$B$152+1),$B$151*INDEX($K$3:$K$70,$B179+1),0)) -> 125000 | E179: 0 | F179: 0 | G179: 0 | H179: 0 | I179: 125000 | J179: 0 | K179: 0 | L179: 0 | M179: 0 | N179: 125000 | O179: 0 | P179: 0 | Q179: 0 | R179: 0 | S179: 125000 | T179: 0 | U179: 0 | V179: 0 | W179: 0 | X179: 125000 | Y179: 0 | Z179: 0 | AA179: 0 | AB179: 0 | AC179: 125000 | AD179: 0 | AE179: 0 | AF179: 0 | AG179: 0 | AH179: 125000 | AI179: 0 | AJ179: =IF(AND(INDEX($N$3:$N$70,$B179+1)="no",OR(AJ$173=0,AJ$173=$B$152)),$B$151*INDEX($K$3:$K$70,$B179+1),IF(AND(INDEX($N$3:$N$70,$B179+1)="no",(MOD(AJ$173-1,$B$152)=0),AJ$173<>1,AJ$173<>$B$152+1),$B$151*INDEX($K$3:$K$70,$B179+1),0)) -> 0 | AK179: 0 | AL179: 0 | AM179: 125000 | AN179: 0 | AO179: 0 | AP179: 0 | AQ179: 0 | AR179: 125000 | AS179: 0 | AT179: 0 | AU179: 0 | AV179: 0 | AW179: 125000 | AX179: 0 | AY179: 0 | AZ179: 0
A180: Farr Pumping Plant | B180: 6 | C180: pump plant | D180: =D188 -> 8677.15654 | E180: 8677.15654 | F180: 8677.15654 | G180: 8677.15654 | H180: 8677.15654 | I180: 8677.15654 | J180: 8677.15654 | K180: 8677.15654 | L180: 8677.15654 | M180: 8677.15654 | N180: 8677.15654 | O180: 8677.15654 | P180: 8677.15654 | Q180: 8677.15654 | R180: 8677.15654 | S180: 8677.15654 | T180: 8677.15654 | U180: 8677.15654 | V180: 8677.15654 | W180: 8677.15654 | X180: 8677.15654 | Y180: 3375 | Z180: 3375 | AA180: 3375 | AB180: 3375 | AC180: 3375 | AD180: 3375 | AE180: 3375 | AF180: 3375 | AG180: 3375 | AH180: 3375 | AI180: 3375 | AJ180: =AJ188 -> 3375 | AK180: 3375 | AL180: 3375 | AM180: 3375 | AN180: 3375 | AO180: 3375 | AP180: 3375 | AQ180: 3375 | AR180: 3375 | AS180: 3375 | AT180: 3375 | AU180: 3375 | AV180: 3375 | AW180: 3375 | AX180: 3375 | AY180: 3375 | AZ180: 3375
A181: Grandby Pump Canal | B181: 7 | C181: canal
A182: Shadow Mountain Dam | B182: 8 | C182: dam | D182: =IF(AND(INDEX($N$3:$N$70,$B182+1)="no",OR(D$173=0,D$173=$B$152)),$B$151*INDEX($K$3:$K$70,$B182+1),IF(AND(INDEX($N$3:$N$70,$B182+1)="no",(MOD(D$173-1,$B$152)=0),D$173<>1,D$173<>$B$152+1),$B$151*INDEX($K$3:$K$70,$B182+1),0)) -> 0 | E182: 0 | F182: 0 | G182: 0 | H182: 0 | I182: 0 | J182: 0 | K182: 0 | L182: 0 | M182: 0 | N182: 0 | O182: 0 | P182: 0 | Q182: 0 | R182: 0 | S182: 0 | T182: 0 | U182: 0 | V182: 0 | W182: 0 | X182: 0 | Y182: 0 | Z182: 0 | AA182: 0 | AB182: 0 | AC182: 0 | AD182: 0 | AE182: 0 | AF182: 0 | AG182: 0 | AH182: 0 | AI182: 0 | AJ182: =IF(AND(INDEX($N$3:$N$70,$B182+1)="no",OR(AJ$173=0,AJ$173=$B$152)),$B$151*INDEX($K$3:$K$70,$B182+1),IF(AND(INDEX($N$3:$N$70,$B182+1)="no",(MOD(AJ$173-1,$B$152)=0),AJ$173<>1,AJ$173<>$B$152+1),$B$151*INDEX($K$3:$K$70,$B182+1),0)) -> 0 | AK182: 0 | AL182: 0 | AM182: 0 | AN182: 0 | AO182: 0 | AP182: 0 | AQ182: 0 | AR182: 0 | AS182: 0 | AT182: 0 | AU182: 0 | AV182: 0 | AW182: 0 | AX182: 0 | AY182: 0 | AZ182: 0
A183: Adams Tunnel | B183: 9 | C183: tunnel | D183: =D184*2 -> 250000 | E183: =E184*2 -> 0 | F183: 0 | G183: 0 | H183: 0 | I183: 250000 | J183: 0 | K183: 0 | L183: 0 | M183: 0 | N183: 250000 | O183: 0 | P183: 0 | Q183: 0 | R183: 0 | S183: 250000 | T183: 0 | U183: 0 | V183: 0 | W183: 0 | X183: 250000 | Y183: 0 | Z183: 0 | AA183: 0 | AB183: 0 | AC183: 250000 | AD183: 0 | AE183: 0 | AF183: 0 | AG183: 0 | AH183: 250000 | AI183: 0 | AJ183: 0 | AK183: 0 | AL183: 0 | AM183: 250000 | AN183: 0 | AO183: 0 | AP183: 0 | AQ183: 0 | AR183: 250000 | AS183: 0 | AT183: 0 | AU183: 0 | AV183: 0 | AW183: 250000 | AX183: 0 | AY183: 0 | AZ183: 0
A184: East Portal Dam | B184: 10 | C184: dam | D184: =IF(AND(INDEX($N$3:$N$70,$B184+1)="no",OR(D$173=0,D$173=$B$152)),$B$151*INDEX($K$3:$K$70,$B184+1),IF(AND(INDEX($N$3:$N$70,$B184+1)="no",(MOD(D$173-1,$B$152)=0),D$173<>1,D$173<>$B$152+1),$B$151*INDEX($K$3:$K$70,$B184+1),0)) -> 125000 | E184: 0 | F184: 0 | G184: 0 | H184: 0 | I184: 125000 | J184: 0 | K184: 0 | L184: 0 | M184: 0 | N184: 125000 | O184: 0 | P184: 0 | Q184: 0 | R184: 0 | S184: 125000 | T184: 0 | U184: 0 | V184: 0 | W184: 0 | X184: 125000 | Y184: 0 | Z184: 0 | AA184: 0 | AB184: 0 | AC184: 125000 | AD184: 0 | AE184: 0 | AF184: 0 | AG184: 0 | AH184: 125000 | AI184: 0 | AJ184: =IF(AND(INDEX($N$3:$N$70,$B184+1)="no",OR(AJ$173=0,AJ$173=$B$152)),$B$151*INDEX($K$3:$K$70,$B184+1),IF(AND(INDEX($N$3:$N$70,$B184+1)="no",(MOD(AJ$173-1,$B$152)=0),AJ$173<>1,AJ$173<>$B$152+1),$B$151*INDEX($K$3:$K$70,$B184+1),0)) -> 0 | AK184: 0 | AL184: 0 | AM184: 125000 | AN184: 0 | AO184: 0 | AP184: 0 | AQ184: 0 | AR184: 125000 | AS184: 0 | AT184: 0 | AU184: 0 | AV184: 0 | AW184: 125000 | AX184: 0 | AY184: 0 | AZ184: 0
A185: Rams Horn Tunnel | B185: 11 | C185: tunnel
A186: Mary's Lake Hydropower Plant | B186: 12 | C186: hydropower | D186: =B$140*INDEX($I$3:$I$70,$B186+1) -> 1561.888177 | E186: =C$140*INDEX($I$3:$I$70,$B186+1) -> 1561.888177 | F186: 1561.888177 | G186: 1561.888177 | H186: 1561.888177 | I186: 1561.888177 | J186: 1561.888177 | K186: 1561.888177 | L186: 1561.888177 | M186: 1561.888177 | N186: 1561.888177 | O186: 1561.888177 | P186: 1561.888177 | Q186: 1561.888177 | R186: 1561.888177 | S186: 1561.888177 | T186: 1561.888177 | U186: 1561.888177 | V186: 1561.888177 | W186: 1561.888177 | X186: 1561.888177 | Y186: 607.5 | Z186: 607.5 | AA186: 607.5 | AB186: 607.5 | AC186: 607.5 | AD186: 607.5 | AE186: 607.5 | AF186: 607.5 | AG186: 607.5 | AH186: 607.5 | AI186: 607.5 | AJ186: 607.5 | AK186: 607.5 | AL186: 607.5 | AM186: 607.5 | AN186: 607.5 | AO186: 607.5 | AP186: 607.5 | AQ186: 607.5 | AR186: 607.5 | AS186: 607.5 | AT186: 607.5 | AU186: 607.5 | AV186: 607.5 | AW186: 607.5 | AX186: 607.5 | AY186: 607.5 | AZ186: 607.5
A187: Prospect Mountain Tunnel | B187: 13 | C187: tunnel
A188: Estes Hydropower Plant | B188: 14 | C188: hydropower | D188: =B$140*INDEX($I$3:$I$70,$B188+1) -> 8677.15654 | E188: =C$140*INDEX($I$3:$I$70,$B188+1) -> 8677.15654 | F188: 8677.15654 | G188: 8677.15654 | H188: 8677.15654 | I188: 8677.15654 | J188: 8677.15654 | K188: 8677.15654 | L188: 8677.15654 | M188: 8677.15654 | N188: 8677.15654 | O188: 8677.15654 | P188: 8677.15654 | Q188: 8677.15654 | R188: 8677.15654 | S188: 8677.15654 | T188: 8677.15654 | U188: 8677.15654 | V188: 8677.15654 | W188: 8677.15654 | X188: 8677.15654 | Y188: 3375 | Z188: 3375 | AA188: 3375 | AB188: 3375 | AC188: 3375 | AD188: 3375 | AE188: 3375 | AF188: 3375 | AG188: 3375 | AH188: 3375 | AI188: 3375 | AJ188: 3375 | AK188: 3375 | AL188: 3375 | AM188: 3375 | AN188: 3375 | AO188: 3375 | AP188: 3375 | AQ188: 3375 | AR188: 3375 | AS188: 3375 | AT188: 3375 | AU188: 3375 | AV188: 3375 | AW188: 3375 | AX188: 3375 | AY188: 3375 | AZ188: 3375
A189: Town of Estes | B189: 15 | C189: water filter plant | D189: =IF(OR(INDEX($F$3:$F$70,$B189+1)<=1,INDEX($F$3:$F$70,$B189+1)="<1"),B$116,IF(INDEX($F$3:$F$70,$B189+1)>=11,B$118,B$117)) -> 8249.304771 | E189: 8249.304771 | F189: 8249.304771 | G189: 8249.304771 | H189: 8249.304771 | I189: 8249.304771 | J189: 8249.304771 | K189: 8249.304771 | L189: 8249.304771 | M189: 8249.304771 | N189: =IF(OR(INDEX($F$3:$F$70,$B189+1)<=1,INDEX($F$3:$F$70,$B189+1)="<1"),L$116,IF(INDEX($F$3:$F$70,$B189+1)>=11,L$118,L$117)) -> 8249.304771 | O189: 8249.304771 | P189: 8249.304771 | Q189: 8249.304771 | R189: 8249.304771 | S189: 8249.304771 | T189: 8249.304771 | U189: 8249.304771 | V189: 8249.304771 | W189: 8249.304771 | X189: =IF(OR(INDEX($F$3:$F$70,$B189+1)<=1,INDEX($F$3:$F$70,$B189+1)="<1"),V$116,IF(INDEX($F$3:$F$70,$B189+1)>=11,V$118,V$117)) -> 8249.304771 | Y189: 3690 | Z189: 3690 | AA189: 3690 | AB189: 3690 | AC189: 3690 | AD189: 3690 | AE189: 3690 | AF189: 3690 | AG189: 3690 | AH189: =IF(OR(INDEX($F$3:$F$70,$B189+1)<=1,INDEX($F$3:$F$70,$B189+1)="<1"),AF$116,IF(INDEX($F$3:$F$70,$B189+1)>=11,AF$118,AF$117)) -> 3690 | AI189: 3690 | AJ189: 3690 | AK189: 3690 | AL189: 3690 | AM189: 3690 | AN189: 3690 | AO189: 3690 | AP189: 3690 | AQ189: 3690 | AR189: =IF(OR(INDEX($F$3:$F$70,$B189+1)<=1,INDEX($F$3:$F$70,$B189+1)="<1"),AP$116,IF(INDEX($F$3:$F$70,$B189+1)>=11,AP$118,AP$117)) -> 3690 | AS189: 3690 | AT189: 3690 | AU189: 3690 | AV189: 3690 | AW189: 3690 | AX189: 3690 | AY189: 3690 | AZ189: 3690
A190: Mary's Lake (Town) | B190: 16 | C190: water filter plant | D190: 8249.304771 | E190: 8249.304771 | F190: 8249.304771 | G190: 8249.304771 | H190: 8249.304771 | I190: 8249.304771 | J190: 8249.304771 | K190: 8249.304771 | L190: 8249.304771 | M190: 8249.304771 | N190: 8249.304771 | O190: 8249.304771 | P190: 8249.304771 | Q190: 8249.304771 | R190: 8249.304771 | S190: 8249.304771 | T190: 8249.304771 | U190: 8249.304771 | V190: 8249.304771 | W190: 8249.304771 | X190: 8249.304771 | Y190: 3690 | Z190: 3690 | AA190: 3690 | AB190: 3690 | AC190: 3690 | AD190: 3690 | AE190: 3690 | AF190: 3690 | AG190: 3690 | AH190: 3690 | AI190: 3690 | AJ190: 3690 | AK190: 3690 | AL190: 3690 | AM190: 3690 | AN190: 3690 | AO190: 3690 | AP190: 3690 | AQ190: 3690 | AR190: 3690 | AS190: 3690 | AT190: 3690 | AU190: 3690 | AV190: 3690 | AW190: 3690 | AX190: 3690 | AY190: 3690 | AZ190: 3690
A191: Olympus Dam | B191: 17 | C191: dam | D191: =IF(AND(INDEX($N$3:$N$70,$B191+1)="no",OR(D$173=0,D$173=$B$152)),$B$151*INDEX($K$3:$K$70,$B191+1),IF(AND(INDEX($N$3:$N$70,$B191+1)="no",(MOD(D$173-1,$B$152)=0),D$173<>1,D$173<>$B$152+1),$B$151*INDEX($K$3:$K$70,$B191+1),0)) -> 125000 | E191: 0 | F191: 0 | G191: 0 | H191: 0 | I191: 125000 | J191: 0 | K191: 0 | L191: 0 | M191: 0 | N191: 125000 | O191: 0 | P191: 0 | Q191: 0 | R191: 0 | S191: 125000 | T191: 0 | U191: 0 | V191: 0 | W191: 0 | X191: 125000 | Y191: 0 | Z191: 0 | AA191: 0 | AB191: 0 | AC191: 125000 | AD191: 0 | AE191: 0 | AF191: 0 | AG191: 0 | AH191: 125000 | AI191: 0 | AJ191: =IF(AND(INDEX($N$3:$N$70,$B191+1)="no",OR(AJ$173=0,AJ$173=$B$152)),$B$151*INDEX($K$3:$K$70,$B191+1),IF(AND(INDEX($N$3:$N$70,$B191+1)="no",(MOD(AJ$173-1,$B$152)=0),AJ$173<>1,AJ$173<>$B$152+1),$B$151*INDEX($K$3:$K$70,$B191+1),0)) -> 0 | AK191: 0 | AL191: 0 | AM191: 125000 | AN191: 0 | AO191: 0 | AP191: 0 | AQ191: 0 | AR191: 125000 | AS191: 0 | AT191: 0 | AU191: 0 | AV191: 0 | AW191: 125000 | AX191: 0 | AY191: 0 | AZ191: 0
A192: Olympus Tunnel | B192: 18 | C192: tunnel
A193: Pole Hill Tunnel | B193: 19 | C193: tunnel
A194: Pole Hill Hydropower Plant | B194: 20 | C194: hydropower | D194: =B$140*INDEX($I$3:$I$70,$B194+1) -> 7365.941774 | E194: =C$140*INDEX($I$3:$I$70,$B194+1) -> 7365.941774 | F194: 7365.941774 | G194: 7365.941774 | H194: 7365.941774 | I194: 7365.941774 | J194: 7365.941774 | K194: 7365.941774 | L194: 7365.941774 | M194: 7365.941774 | N194: 7365.941774 | O194: 7365.941774 | P194: 7365.941774 | Q194: 7365.941774 | R194: 7365.941774 | S194: 7365.941774 | T194: 7365.941774 | U194: 7365.941774 | V194: 7365.941774 | W194: 7365.941774 | X194: 7365.941774 | Y194: 2865 | Z194: 2865 | AA194: 2865 | AB194: 2865 | AC194: 2865 | AD194: 2865 | AE194: 2865 | AF194: 2865 | AG194: 2865 | AH194: 2865 | AI194: 2865 | AJ194: 2865 | AK194: 2865 | AL194: 2865 | AM194: 2865 | AN194: 2865 | AO194: 2865 | AP194: 2865 | AQ194: 2865 | AR194: 2865 | AS194: 2865 | AT194: 2865 | AU194: 2865 | AV194: 2865 | AW194: 2865 | AX194: 2865 | AY194: 2865 | AZ194: 2865
A195: Rattlesnake Tunnel | B195: 21 | C195: tunnel
A196: Rattlesnake Dam | B196: 22 | C196: dam | D196: =IF(AND(INDEX($N$3:$N$70,$B196+1)="no",OR(D$173=0,D$173=$B$152)),$B$151*INDEX($K$3:$K$70,$B196+1),IF(AND(INDEX($N$3:$N$70,$B196+1)="no",(MOD(D$173-1,$B$152)=0),D$173<>1,D$173<>$B$152+1),$B$151*INDEX($K$3:$K$70,$B196+1),0)) -> 125000 | E196: 0 | F196: 0 | G196: 0 | H196: 0 | I196: 125000 | J196: 0 | K196: 0 | L196: 0 | M196: 0 | N196: 125000 | O196: 0 | P196: 0 | Q196: 0 | R196: 0 | S196: 125000 | T196: 0 | U196: 0 | V196: 0 | W196: 0 | X196: 125000 | Y196: 0 | Z196: 0 | AA196: 0 | AB196: 0 | AC196: 125000 | AD196: 0 | AE196: 0 | AF196: 0 | AG196: 0 | AH196: 125000 | AI196: 0 | AJ196: =IF(AND(INDEX($N$3:$N$70,$B196+1)="no",OR(AJ$173=0,AJ$173=$B$152)),$B$151*INDEX($K$3:$K$70,$B196+1),IF(AND(INDEX($N$3:$N$70,$B196+1)="no",(MOD(AJ$173-1,$B$152)=0),AJ$173<>1,AJ$173<>$B$152+1),$B$151*INDEX($K$3:$K$70,$B196+1),0)) -> 0 | AK196: 0 | AL196: 0 | AM196: 125000 | AN196: 0 | AO196: 0 | AP196: 0 | AQ196: 0 | AR196: 125000 | AS196: 0 | AT196: 0 | AU196: 0 | AV196: 0 | AW196: 125000 | AX196: 0 | AY196: 0 | AZ196: 0
A197: Bald Mountain Tunnel | B197: 23 | C197: tunnel
A198: Flatiron Hydropower Plant | B198: 24 | C198: hydropower | D198: =B$140*INDEX($I$3:$I$70,$B198+1) -> 18222.02873 | E198: =C$140*INDEX($I$3:$I$70,$B198+1) -> 18222.02873 | F198: 18222.02873 | G198: 18222.02873 | H198: 18222.02873 | I198: 18222.02873 | J198: 18222.02873 | K198: 18222.02873 | L198: 18222.02873 | M198: 18222.02873 | N198: 18222.02873 | O198: 18222.02873 | P198: 18222.02873 | Q198: 18222.02873 | R198: 18222.02873 | S198: 18222.02873 | T198: 18222.02873 | U198: 18222.02873 | V198: 18222.02873 | W198: 18222.02873 | X198: 18222.02873 | Y198: 7087.5 | Z198: 7087.5 | AA198: 7087.5 | AB198: 7087.5 | AC198: 7087.5 | AD198: 7087.5 | AE198: 7087.5 | AF198: 7087.5 | AG198: 7087.5 | AH198: 7087.5 | AI198: 7087.5 | AJ198: 7087.5 | AK198: 7087.5 | AL198: 7087.5 | AM198: 7087.5 | AN198: 7087.5 | AO198: 7087.5 | AP198: 7087.5 | AQ198: 7087.5 | AR198: 7087.5 | AS198: 7087.5 | AT198: 7087.5 | AU198: 7087.5 | AV198: 7087.5 | AW198: 7087.5 | AX198: 7087.5 | AY198: 7087.5 | AZ198: 7087.5
A199: Newell Warnock | B199: 25 | C199: water filter plant | D199: =IF(OR(INDEX($F$3:$F$70,$B199+1)<=1,INDEX($F$3:$F$70,$B199+1)="<1"),B$116,IF(INDEX($F$3:$F$70,$B199+1)>=11,B$118,B$117)) -> 8610.489645 | E199: 8610.489645 | F199: 8610.489645 | G199: 8610.489645 | H199: 8610.489645 | I199: 8610.489645 | J199: 8610.489645 | K199: 8610.489645 | L199: 8610.489645 | M199: 8610.489645 | N199: 8610.489645 | O199: 8610.489645 | P199: 8610.489645 | Q199: 8610.489645 | R199: 8610.489645 | S199: 8610.489645 | T199: 8610.489645 | U199: 8610.489645 | V199: 8610.489645 | W199: 8610.489645 | X199: 8610.489645 | Y199: 4576.6875 | Z199: 4576.6875 | AA199: 4576.6875 | AB199: 4576.6875 | AC199: 4576.6875 | AD199: 4576.6875 | AE199: 4576.6875 | AF199: 4576.6875 | AG199: 4576.6875 | AH199: 4576.6875 | AI199: 4576.6875 | AJ199: =IF(OR(INDEX($F$3:$F$70,$B199+1)<=1,INDEX($F$3:$F$70,$B199+1)="<1"),AH$116,IF(INDEX($F$3:$F$70,$B199+1)>=11,AH$118,AH$117)) -> 4576.6875 | AK199: 4576.6875 | AL199: 4576.6875 | AM199: 4576.6875 | AN199: 4576.6875 | AO199: 4576.6875 | AP199: 4576.6875 | AQ199: 4576.6875 | AR199: 4576.6875 | AS199: 4576.6875 | AT199: 4576.6875 | AU199: 4576.6875 | AV199: 4576.6875 | AW199: 4576.6875 | AX199: 4576.6875 | AY199: 4576.6875 | AZ199: 4576.6875
A200: Flatiron Reversible Pump | B200: 26 | C200: pump plant | D200: 0
A201: Flatiron Dam | B201: 27 | C201: dam | D201: =IF(AND(INDEX($N$3:$N$70,$B201+1)="no",OR(D$173=0,D$173=$B$152)),$B$151*INDEX($K$3:$K$70,$B201+1),IF(AND(INDEX($N$3:$N$70,$B201+1)="no",(MOD(D$173-1,$B$152)=0),D$173<>1,D$173<>$B$152+1),$B$151*INDEX($K$3:$K$70,$B201+1),0)) -> 125000 | E201: 0 | F201: 0 | G201: 0 | H201: 0 | I201: 125000 | J201: 0 | K201: 0 | L201: 0 | M201: 0 | N201: 125000 | O201: 0 | P201: 0 | Q201: 0 | R201: 0 | S201: 125000 | T201: 0 | U201: 0 | V201: 0 | W201: 0 | X201: 125000 | Y201: 0 | Z201: 0 | AA201: 0 | AB201: 0 | AC201: 125000 | AD201: 0 | AE201: 0 | AF201: 0 | AG201: 0 | AH201: 125000 | AI201: 0 | AJ201: =IF(AND(INDEX($N$3:$N$70,$B201+1)="no",OR(AJ$173=0,AJ$173=$B$152)),$B$151*INDEX($K$3:$K$70,$B201+1),IF(AND(INDEX($N$3:$N$70,$B201+1)="no",(MOD(AJ$173-1,$B$152)=0),AJ$173<>1,AJ$173<>$B$152+1),$B$151*INDEX($K$3:$K$70,$B201+1),0)) -> 0 | AK201: 0 | AL201: 0 | AM201: 125000 | AN201: 0 | AO201: 0 | AP201: 0 | AQ201: 0 | AR201: 125000 | AS201: 0 | AT201: 0 | AU201: 0 | AV201: 0 | AW201: 125000 | AX201: 0 | AY201: 0 | AZ201: 0
A202: Carter Lake Pressure Tunnel | B202: 28 | C202: tunnel
A203: Big Thompson Hydropower Plant | B203: 29 | C203: hydropower | D203: =B$140*INDEX($I$3:$I$70,$B203+1) -> 867.715654 | E203: =C$140*INDEX($I$3:$I$70,$B203+1) -> 867.715654 | F203: 867.715654 | G203: 867.715654 | H203: 867.715654 | I203: 867.715654 | J203: 867.715654 | K203: 867.715654 | L203: 867.715654 | M203: 867.715654 | N203: 867.715654 | O203: 867.715654 | P203: 867.715654 | Q203: 867.715654 | R203: 867.715654 | S203: 867.715654 | T203: 867.715654 | U203: 867.715654 | V203: 867.715654 | W203: 867.715654 | X203: 867.715654 | Y203: 337.5 | Z203: 337.5 | AA203: 337.5 | AB203: 337.5 | AC203: 337.5 | AD203: 337.5 | AE203: 337.5 | AF203: 337.5 | AG203: 337.5 | AH203: 337.5 | AI203: 337.5 | AJ203: 337.5 | AK203: 337.5 | AL203: 337.5 | AM203: 337.5 | AN203: 337.5 | AO203: 337.5 | AP203: 337.5 | AQ203: 337.5 | AR203: 337.5 | AS203: 337.5 | AT203: 337.5 | AU203: 337.5 | AV203: 337.5 | AW203: 337.5 | AX203: 337.5 | AY203: 337.5 | AZ203: 337.5
A204: Hansen Feeder Canal | B204: 30 | C204: canal
A205: City of Loveland | B205: 31 | C205: water filter plant | D205: =IF(OR(INDEX($F$3:$F$70,$B205+1)<=1,INDEX($F$3:$F$70,$B205+1)="<1"),B$116,IF(INDEX($F$3:$F$70,$B205+1)>=11,B$118,B$117)) -> 32491.75305 | E205: 32491.75305 | F205: 32491.75305 | G205: 32491.75305 | H205: 32491.75305 | I205: 32491.75305 | J205: 32491.75305 | K205: 32491.75305 | L205: 32491.75305 | M205: 32491.75305 | N205: =IF(OR(INDEX($F$3:$F$70,$B205+1)<=1,INDEX($F$3:$F$70,$B205+1)="<1"),L$116,IF(INDEX($F$3:$F$70,$B205+1)>=11,L$118,L$117)) -> 32491.75305 | O205: 32491.75305 | P205: 32491.75305 | Q205: 32491.75305 | R205: 32491.75305 | S205: 32491.75305 | T205: 32491.75305 | U205: 32491.75305 | V205: 32491.75305 | W205: 32491.75305 | X205: =IF(OR(INDEX($F$3:$F$70,$B205+1)<=1,INDEX($F$3:$F$70,$B205+1)="<1"),V$116,IF(INDEX($F$3:$F$70,$B205+1)>=11,V$118,V$117)) -> 32491.75305 | Y205: 17808 | Z205: 17808 | AA205: 17808 | AB205: 17808 | AC205: 17808 | AD205: 17808 | AE205: 17808 | AF205: 17808 | AG205: 17808 | AH205: =IF(OR(INDEX($F$3:$F$70,$B205+1)<=1,INDEX($F$3:$F$70,$B205+1)="<1"),AF$116,IF(INDEX($F$3:$F$70,$B205+1)>=11,AF$118,AF$117)) -> 17808 | AI205: 17808 | AJ205: 17808 | AK205: 17808 | AL205: 17808 | AM205: 17808 | AN205: 17808 | AO205: 17808 | AP205: 17808 | AQ205: 17808 | AR205: =IF(OR(INDEX($F$3:$F$70,$B205+1)<=1,INDEX($F$3:$F$70,$B205+1)="<1"),AP$116,IF(INDEX($F$3:$F$70,$B205+1)>=11,AP$118,AP$117)) -> 17808 | AS205: 17808 | AT205: 17808 | AU205: 17808 | AV205: 17808 | AW205: 17808 | AX205: 17808 | AY205: 17808 | AZ205: 17808
A206: Emissaries of Divine Light | B206: 32 | C206: water filter plant | D206: 8610.489645 | E206: 8610.489645 | F206: 8610.489645 | G206: 8610.489645 | H206: 8610.489645 | I206: 8610.489645 | J206: 8610.489645 | K206: 8610.489645 | L206: 8610.489645 | M206: 8610.489645 | N206: 8610.489645 | O206: 8610.489645 | P206: 8610.489645 | Q206: 8610.489645 | R206: 8610.489645 | S206: 8610.489645 | T206: 8610.489645 | U206: 8610.489645 | V206: 8610.489645 | W206: 8610.489645 | X206: 8610.489645 | Y206: 4576.6875 | Z206: 4576.6875 | AA206: 4576.6875 | AB206: 4576.6875 | AC206: 4576.6875 | AD206: 4576.6875 | AE206: 4576.6875 | AF206: 4576.6875 | AG206: 4576.6875 | AH206: 4576.6875 | AI206: 4576.6875 | AJ206: 4576.6875 | AK206: 4576.6875 | AL206: 4576.6875 | AM206: 4576.6875 | AN206: 4576.6875 | AO206: 4576.6875 | AP206: 4576.6875 | AQ206: 4576.6875 | AR206: 4576.6875 | AS206: 4576.6875 | AT206: 4576.6875 | AU206: 4576.6875 | AV206: 4576.6875 | AW206: 4576.6875 | AX206: 4576.6875 | AY206: 4576.6875 | AZ206: 4576.6875
A207: Eden Valley | B207: 33 | C207: water filter plant | D207: 8610.489645 | E207: 8610.489645 | F207: 8610.489645 | G207: 8610.489645 | H207: 8610.489645 | I207: 8610.489645 | J207: 8610.489645 | K207: 8610.489645 | L207: 8610.489645 | M207: 8610.489645 | N207: 8610.489645 | O207: 8610.489645 | P207: 8610.489645 | Q207: 8610.489645 | R207: 8610.489645 | S207: 8610.489645 | T207: 8610.489645 | U207: 8610.489645 | V207: 8610.489645 | W207: 8610.489645 | X207: 8610.489645 | Y207: 4576.6875 | Z207: 4576.6875 | AA207: 4576.6875 | AB207: 4576.6875 | AC207: 4576.6875 | AD207: 4576.6875 | AE207: 4576.6875 | AF207: 4576.6875 | AG207: 4576.6875 | AH207: 4576.6875 | AI207: 4576.6875 | AJ207: 4576.6875 | AK207: 4576.6875 | AL207: 4576.6875 | AM207: 4576.6875 | AN207: 4576.6875 | AO207: 4576.6875 | AP207: 4576.6875 | AQ207: 4576.6875 | AR207: 4576.6875 | AS207: 4576.6875 | AT207: 4576.6875 | AU207: 4576.6875 | AV207: 4576.6875 | AW207: 4576.6875 | AX207: 4576.6875 | AY207: 4576.6875 | AZ207: 4576.6875
A208: Spring Canyon | B208: 34 | C208: water filter plant | D208: 8610.489645 | E208: 8610.489645 | F208: 8610.489645 | G208: 8610.489645 | H208: 8610.489645 | I208: 8610.489645 | J208: 8610.489645 | K208: 8610.489645 | L208: 8610.489645 | M208: 8610.489645 | N208: 8610.489645 | O208: 8610.489645 | P208: 8610.489645 | Q208: 8610.489645 | R208: 8610.489645 | S208: 8610.489645 | T208: 8610.489645 | U208: 8610.489645 | V208: 8610.489645 | W208: 8610.489645 | X208: 8610.489645 | Y208: 4576.6875 | Z208: 4576.6875 | AA208: 4576.6875 | AB208: 4576.6875 | AC208: 4576.6875 | AD208: 4576.6875 | AE208: 4576.6875 | AF208: 4576.6875 | AG208: 4576.6875 | AH208: 4576.6875 | AI208: 4576.6875 | AJ208: 4576.6875 | AK208: 4576.6875 | AL208: 4576.6875 | AM208: 4576.6875 | AN208: 4576.6875 | AO208: 4576.6875 | AP208: 4576.6875 | AQ208: 4576.6875 | AR208: 4576.6875 | AS208: 4576.6875 | AT208: 4576.6875 | AU208: 4576.6875 | AV208: 4576.6875 | AW208: 4576.6875 | AX208: 4576.6875 | AY208: 4576.6875 | AZ208: 4576.6875
A209: Horsetooth Dam | B209: 35 | C209: dam | D209: =IF(AND(INDEX($N$3:$N$70,$B209+1)="no",OR(D$173=0,D$173=$B$152)),$B$151*INDEX($K$3:$K$70,$B209+1),IF(AND(INDEX($N$3:$N$70,$B209+1)="no",(MOD(D$173-1,$B$152)=0),D$173<>1,D$173<>$B$152+1),$B$151*INDEX($K$3:$K$70,$B209+1),0)) -> 125000 | E209: 0 | F209: 0 | G209: 0 | H209: 0 | I209: 125000 | J209: 0 | K209: 0 | L209: 0 | M209: 0 | N209: =IF(AND(INDEX($N$3:$N$70,$B209+1)="no",OR(N$173=0,N$173=$B$152)),$B$151*INDEX($K$3:$K$70,$B209+1),IF(AND(INDEX($N$3:$N$70,$B209+1)="no",(MOD(N$173-1,$B$152)=0),N$173<>1,N$173<>$B$152+1),$B$151*INDEX($K$3:$K$70,$B209+1),0)) -> 125000 | O209: 0 | P209: 0 | Q209: 0 | R209: 0 | S209: 125000 | T209: 0 | U209: 0 | V209: 0 | W209: 0 | X209: =IF(AND(INDEX($N$3:$N$70,$B209+1)="no",OR(X$173=0,X$173=$B$152)),$B$151*INDEX($K$3:$K$70,$B209+1),IF(AND(INDEX($N$3:$N$70,$B209+1)="no",(MOD(X$173-1,$B$152)=0),X$173<>1,X$173<>$B$152+1),$B$151*INDEX($K$3:$K$70,$B209+1),0)) -> 125000 | Y209: 0 | Z209: 0 | AA209: 0 | AB209: 0 | AC209: 125000 | AD209: 0 | AE209: 0 | AF209: 0 | AG209: 0 | AH209: =IF(AND(INDEX($N$3:$N$70,$B209+1)="no",OR(AH$173=0,AH$173=$B$152)),$B$151*INDEX($K$3:$K$70,$B209+1),IF(AND(INDEX($N$3:$N$70,$B209+1)="no",(MOD(AH$173-1,$B$152)=0),AH$173<>1,AH$173<>$B$152+1),$B$151*INDEX($K$3:$K$70,$B209+1),0)) -> 125000 | AI209: 0 | AJ209: 0 | AK209: 0 | AL209: 0 | AM209: 125000 | AN209: 0 | AO209: 0 | AP209: 0 | AQ209: 0 | AR209: =IF(AND(INDEX($N$3:$N$70,$B209+1)="no",OR(AR$173=0,AR$173=$B$152)),$B$151*INDEX($K$3:$K$70,$B209+1),IF(AND(INDEX($N$3:$N$70,$B209+1)="no",(MOD(AR$173-1,$B$152)=0),AR$173<>1,AR$173<>$B$152+1),$B$151*INDEX($K$3:$K$70,$B209+1),0)) -> 125000 | AS209: 0 | AT209: 0 | AU209: 0 | AV209: 0 | AW209: 125000 | AX209: 0 | AY209: 0 | AZ209: 0
A210: Soldier Dam | B210: 36 | C210: dam | D210: 125000 | E210: 0 | F210: 0 | G210: 0 | H210: 0 | I210: 125000 | J210: 0 | K210: 0 | L210: 0 | M210: 0 | N210: 125000 | O210: 0 | P210: 0 | Q210: 0 | R210: 0 | S210: 125000 | T210: 0 | U210: 0 | V210: 0 | W210: 0 | X210: 125000 | Y210: 0 | Z210: 0 | AA210: 0 | AB210: 0 | AC210: 125000 | AD210: 0 | AE210: 0 | AF210: 0 | AG210: 0 | AH210: 125000 | AI210: 0 | AJ210: 0 | AK210: 0 | AL210: 0 | AM210: 125000 | AN210: 0 | AO210: 0 | AP210: 0 | AQ210: 0 | AR210: 125000 | AS210: 0 | AT210: 0 | AU210: 0 | AV210: 0 | AW210: 125000 | AX210: 0 | AY210: 0 | AZ210: 0
A211: Dixon Dam | B211: 37 | C211: dam | D211: 0 | E211: 0 | F211: 0 | G211: 0 | H211: 0 | I211: 0 | J211: 0 | K211: 0 | L211: 0 | M211: 0 | N211: 0 | O211: 0 | P211: 0 | Q211: 0 | R211: 0 | S211: 0 | T211: 0 | U211: 0 | V211: 0 | W211: 0 | X211: 0 | Y211: 0 | Z211: 0 | AA211: 0 | AB211: 0 | AC211: 0 | AD211: 0 | AE211: 0 | AF211: 0 | AG211: 0 | AH211: 0 | AI211: 0 | AJ211: 0 | AK211: 0 | AL211: 0 | AM211: 0 | AN211: 0 | AO211: 0 | AP211: 0 | AQ211: 0 | AR211: 0 | AS211: 0 | AT211: 0 | AU211: 0 | AV211: 0 | AW211: 0 | AX211: 0 | AY211: 0 | AZ211: 0
A212: Spring Canyon Dam | B212: 38 | C212: dam | D212: 0 | E212: 0 | F212: 0 | G212: 0 | H212: 0 | I212: 0 | J212: 0 | K212: 0 | L212: 0 | M212: 0 | N212: 0 | O212: 0 | P212: 0 | Q212: 0 | R212: 0 | S212: 0 | T212: 0 | U212: 0 | V212: 0 | W212: 0 | X212: 0 | Y212: 0 | Z212: 0 | AA212: 0 | AB212: 0 | AC212: 0 | AD212: 0 | AE212: 0 | AF212: 0 | AG212: 0 | AH212: 0 | AI212: 0 | AJ212: 0 | AK212: 0 | AL212: 0 | AM212: 0 | AN212: 0 | AO212: 0 | AP212: 0 | AQ212: 0 | AR212: 0 | AS212: 0 | AT212: 0 | AU212: 0 | AV212: 0 | AW212: 0 | AX212: 0 | AY212: 0 | AZ212: 0
A213: Charles Hansen Supply Canal | B213: 39 | C213: canal
A214: Northern Poudre Supply Canal | B214: 40 | C214: canal
A215: Fort Collins | B215: 41 | C215: water filter plant | D215: =IF($B$112="Connelly and Westminster",B$121/3,IF(OR(INDEX($F$3:$F$70,$B215+1)<=1,INDEX($F$3:$F$70,$B215+1)="<1"),B$116,IF(INDEX($F$3:$F$70,$B215+1)>=11,B$118,B$117))) -> 1049608.953 | E215: 1049608.953 | F215: 1049608.953 | G215: 1049608.953 | H215: 1049608.953 | I215: 1049608.953 | J215: 1049608.953 | K215: 1049608.953 | L215: 1049608.953 | M215: 1049608.953 | N215: =IF($B$112="Connelly and Westminster",L$121/3,IF(OR(INDEX($F$3:$F$70,$B215+1)<=1,INDEX($F$3:$F$70,$B215+1)="<1"),L$116,IF(INDEX($F$3:$F$70,$B215+1)>=11,L$118,L$117))) -> 1049608.953 | O215: 1049608.953 | P215: 1049608.953 | Q215: 1049608.953 | R215: 1049608.953 | S215: 1049608.953 | T215: 1049608.953 | U215: 1049608.953 | V215: 1049608.953 | W215: 1049608.953 | X215: =IF($B$112="Connelly and Westminster",V$121/3,IF(OR(INDEX($F$3:$F$70,$B215+1)<=1,INDEX($F$3:$F$70,$B215+1)="<1"),V$116,IF(INDEX($F$3:$F$70,$B215+1)>=11,V$118,V$117))) -> 1049608.953 | Y215: 833333.3333 | Z215: 833333.3333 | AA215: 833333.3333 | AB215: 833333.3333 | AC215: 833333.3333 | AD215: 833333.3333 | AE215: 833333.3333 | AF215: 833333.3333 | AG215: 833333.3333 | AH215: =IF($B$112="Connelly and Westminster",AF$121/3,IF(OR(INDEX($F$3:$F$70,$B215+1)<=1,INDEX($F$3:$F$70,$B215+1)="<1"),AF$116,IF(INDEX($F$3:$F$70,$B215+1)>=11,AF$118,AF$117))) -> 833333.3333 | AI215: 833333.3333 | AJ215: 833333.3333 | AK215: 833333.3333 | AL215: 833333.3333 | AM215: 833333.3333 | AN215: 833333.3333 | AO215: 833333.3333 | AP215: 833333.3333 | AQ215: 833333.3333 | AR215: =IF($B$112="Connelly and Westminster",AP$121/3,IF(OR(INDEX($F$3:$F$70,$B215+1)<=1,INDEX($F$3:$F$70,$B215+1)="<1"),AP$116,IF(INDEX($F$3:$F$70,$B215+1)>=11,AP$118,AP$117))) -> 833333.3333 | AS215: 833333.3333 | AT215: 833333.3333 | AU215: 833333.3333 | AV215: 833333.3333 | AW215: 833333.3333 | AX215: 833333.3333 | AY215: 833333.3333 | AZ215: 833333.3333
A216: Soldier Canyon | B216: 42 | C216: water filter plant | D216: 1049608.953 | E216: 1049608.953 | F216: 1049608.953 | G216: 1049608.953 | H216: 1049608.953 | I216: 1049608.953 | J216: 1049608.953 | K216: 1049608.953 | L216: 1049608.953 | M216: 1049608.953 | N216: 1049608.953 | O216: 1049608.953 | P216: 1049608.953 | Q216: 1049608.953 | R216: 1049608.953 | S216: 1049608.953 | T216: 1049608.953 | U216: 1049608.953 | V216: 1049608.953 | W216: 1049608.953 | X216: 1049608.953 | Y216: 833333.3333 | Z216: 833333.3333 | AA216: 833333.3333 | AB216: 833333.3333 | AC216: 833333.3333 | AD216: 833333.3333 | AE216: 833333.3333 | AF216: 833333.3333 | AG216: 833333.3333 | AH216: 833333.3333 | AI216: 833333.3333 | AJ216: 833333.3333 | AK216: 833333.3333 | AL216: 833333.3333 | AM216: 833333.3333 | AN216: 833333.3333 | AO216: 833333.3333 | AP216: 833333.3333 | AQ216: 833333.3333 | AR216: 833333.3333 | AS216: 833333.3333 | AT216: 833333.3333 | AU216: 833333.3333 | AV216: 833333.3333 | AW216: 833333.3333 | AX216: 833333.3333 | AY216: 833333.3333 | AZ216: 833333.3333
A217: Greeley | B217: 43 | C217: water filter plant | D217: 1049608.953 | E217: 1049608.953 | F217: 1049608.953 | G217: 1049608.953 | H217: 1049608.953 | I217: 1049608.953 | J217: 1049608.953 | K217: 1049608.953 | L217: 1049608.953 | M217: 1049608.953 | N217: 1049608.953 | O217: 1049608.953 | P217: 1049608.953 | Q217: 1049608.953 | R217: 1049608.953 | S217: 1049608.953 | T217: 1049608.953 | U217: 1049608.953 | V217: 1049608.953 | W217: 1049608.953 | X217: 1049608.953 | Y217: 833333.3333 | Z217: 833333.3333 | AA217: 833333.3333 | AB217: 833333.3333 | AC217: 833333.3333 | AD217: 833333.3333 | AE217: 833333.3333 | AF217: 833333.3333 | AG217: 833333.3333 | AH217: 833333.3333 | AI217: 833333.3333 | AJ217: 833333.3333 | AK217: 833333.3333 | AL217: 833333.3333 | AM217: 833333.3333 | AN217: 833333.3333 | AO217: 833333.3333 | AP217: 833333.3333 | AQ217: 833333.3333 | AR217: 833333.3333 | AS217: 833333.3333 | AT217: 833333.3333 | AU217: 833333.3333 | AV217: 833333.3333 | AW217: 833333.3333 | AX217: 833333.3333 | AY217: 833333.3333 | AZ217: 833333.3333
A218: Carter Lake Dam 1 | B218: 44 | C218: dam | D218: =IF(AND(INDEX($N$3:$N$70,$B218+1)="no",OR(D$173=0,D$173=$B$152)),$B$151*INDEX($K$3:$K$70,$B218+1),IF(AND(INDEX($N$3:$N$70,$B218+1)="no",(MOD(D$173-1,$B$152)=0),D$173<>1,D$173<>$B$152+1),$B$151*INDEX($K$3:$K$70,$B218+1),0)) -> 125000 | E218: 0 | F218: 0 | G218: 0 | H218: 0 | I218: 125000 | J218: 0 | K218: 0 | L218: 0 | M218: 0 | N218: =IF(AND(INDEX($N$3:$N$70,$B218+1)="no",OR(N$173=0,N$173=$B$152)),$B$151*INDEX($K$3:$K$70,$B218+1),IF(AND(INDEX($N$3:$N$70,$B218+1)="no",(MOD(N$173-1,$B$152)=0),N$173<>1,N$173<>$B$152+1),$B$151*INDEX($K$3:$K$70,$B218+1),0)) -> 125000 | O218: 0 | P218: 0 | Q218: 0 | R218: 0 | S218: 125000 | T218: 0 | U218: 0 | V218: 0 | W218: 0 | X218: =IF(AND(INDEX($N$3:$N$70,$B218+1)="no",OR(X$173=0,X$173=$B$152)),$B$151*INDEX($K$3:$K$70,$B218+1),IF(AND(INDEX($N$3:$N$70,$B218+1)="no",(MOD(X$173-1,$B$152)=0),X$173<>1,X$173<>$B$152+1),$B$151*INDEX($K$3:$K$70,$B218+1),0)) -> 125000 | Y218: 0 | Z218: 0 | AA218: 0 | AB218: 0 | AC218: 125000 | AD218: 0 | AE218: 0 | AF218: 0 | AG218: 0 | AH218: =IF(AND(INDEX($N$3:$N$70,$B218+1)="no",OR(AH$173=0,AH$173=$B$152)),$B$151*INDEX($K$3:$K$70,$B218+1),IF(AND(INDEX($N$3:$N$70,$B218+1)="no",(MOD(AH$173-1,$B$152)=0),AH$173<>1,AH$173<>$B$152+1),$B$151*INDEX($K$3:$K$70,$B218+1),0)) -> 125000 | AI218: 0 | AJ218: 0 | AK218: 0 | AL218: 0 | AM218: 125000 | AN218: 0 | AO218: 0 | AP218: 0 | AQ218: 0 | AR218: =IF(AND(INDEX($N$3:$N$70,$B218+1)="no",OR(AR$173=0,AR$173=$B$152)),$B$151*INDEX($K$3:$K$70,$B218+1),IF(AND(INDEX($N$3:$N$70,$B218+1)="no",(MOD(AR$173-1,$B$152)=0),AR$173<>1,AR$173<>$B$152+1),$B$151*INDEX($K$3:$K$70,$B218+1),0)) -> 125000 | AS218: 0 | AT218: 0 | AU218: 0 | AV218: 0 | AW218: 125000 | AX218: 0 | AY218: 0 | AZ218: 0
... 23 more rows

Sheet InvasionRecordTestSheet (hidden)
A1: InvasionRecord(no inspections)(Run999) | B1: Year
A2: WaterBody | B2: 0 | C2: 1 | D2: 2 | E2: 3 | F2: 4 | G2: 5 | H2: 6 | I2: 7 | J2: 8 | K2: 9 | L2: 10 | M2: 11 | N2: 12 | O2: 13 | P2: 14 | Q2: 15 | R2: 16 | S2: 17 | T2: 18 | U2: 19 | V2: 20 | W2: 21 | X2: 22 | Y2: 23 | Z2: 24 | AA2: 25 | AB2: 26 | AC2: 27 | AD2: 28 | AE2: 29 | AF2: 30 | AG2: 31 | AH2: 32 | AI2: 33 | AJ2: 34 | AK2: 35 | AL2: 36 | AM2: 37 | AN2: 38 | AO2: 39 | AP2: 40 | AQ2: 41 | AR2: 42 | AS2: 43 | AT2: 44 | AU2: 45 | AV2: 46 | AW2: 47 | AX2: 48 | AY2: 49
A3: 0 | B3: FALSE | C3: FALSE | D3: FALSE | E3: FALSE | F3: FALSE | G3: FALSE | H3: FALSE | I3: FALSE | J3: FALSE | K3: FALSE | L3: FALSE | M3: FALSE | N3: FALSE | O3: FALSE | P3: FALSE | Q3: FALSE | R3: FALSE | S3: FALSE | T3: FALSE | U3: FALSE | V3: FALSE | W3: FALSE | X3: FALSE | Y3: FALSE | Z3: FALSE | AA3: FALSE | AB3: FALSE | AC3: FALSE | AD3: FALSE | AE3: FALSE | AF3: FALSE | AG3: FALSE | AH3: FALSE | AI3: FALSE | AJ3: FALSE | AK3: FALSE | AL3: FALSE | AM3: FALSE | AN3: FALSE | AO3: FALSE | AP3: FALSE | AQ3: FALSE | AR3: FALSE | AS3: FALSE | AT3: FALSE | AU3: FALSE | AV3: FALSE | AW3: FALSE | AX3: FALSE | AY3: FALSE
A4: 1 | B4: TRUE | C4: TRUE | D4: TRUE | E4: TRUE | F4: TRUE | G4: TRUE | H4: TRUE | I4: TRUE | J4: TRUE | K4: TRUE | L4: TRUE | M4: TRUE | N4: TRUE | O4: TRUE | P4: TRUE | Q4: TRUE | R4: TRUE | S4: TRUE | T4: TRUE | U4: TRUE | V4: TRUE | W4: TRUE | X4: TRUE | Y4: TRUE | Z4: TRUE | AA4: TRUE | AB4: TRUE | AC4: TRUE | AD4: TRUE | AE4: TRUE | AF4: TRUE | AG4: TRUE | AH4: TRUE | AI4: TRUE | AJ4: TRUE | AK4: TRUE | AL4: TRUE | AM4: TRUE | AN4: TRUE | AO4: TRUE | AP4: TRUE | AQ4: TRUE | AR4: TRUE | AS4: TRUE | AT4: TRUE | AU4: TRUE | AV4: TRUE | AW4: TRUE | AX4: TRUE | AY4: TRUE
A5: 2 | B5: TRUE | C5: TRUE | D5: TRUE | E5: TRUE | F5: TRUE | G5: TRUE | H5: TRUE | I5: TRUE | J5: TRUE | K5: TRUE | L5: TRUE | M5: TRUE | N5: TRUE | O5: TRUE | P5: TRUE | Q5: TRUE | R5: TRUE | S5: TRUE | T5: TRUE | U5: TRUE | V5: TRUE | W5: TRUE | X5: TRUE | Y5: TRUE | Z5: TRUE | AA5: TRUE | AB5: TRUE | AC5: TRUE | AD5: TRUE | AE5: TRUE | AF5: TRUE | AG5: TRUE | AH5: TRUE | AI5: TRUE | AJ5: TRUE | AK5: TRUE | AL5: TRUE | AM5: TRUE | AN5: TRUE | AO5: TRUE | AP5: TRUE | AQ5: TRUE | AR5: TRUE | AS5: TRUE | AT5: TRUE | AU5: TRUE | AV5: TRUE | AW5: TRUE | AX5: TRUE | AY5: TRUE
A6: 3 | B6: TRUE | C6: TRUE | D6: TRUE | E6: TRUE | F6: TRUE | G6: TRUE | H6: TRUE | I6: TRUE | J6: TRUE | K6: TRUE | L6: TRUE | M6: TRUE | N6: TRUE | O6: TRUE | P6: TRUE | Q6: TRUE | R6: TRUE | S6: TRUE | T6: TRUE | U6: TRUE | V6: TRUE | W6: TRUE | X6: TRUE | Y6: TRUE | Z6: TRUE | AA6: TRUE | AB6: TRUE | AC6: TRUE | AD6: TRUE | AE6: TRUE | AF6: TRUE | AG6: TRUE | AH6: TRUE | AI6: TRUE | AJ6: TRUE | AK6: TRUE | AL6: TRUE | AM6: TRUE | AN6: TRUE | AO6: TRUE | AP6: TRUE | AQ6: TRUE | AR6: TRUE | AS6: TRUE | AT6: TRUE | AU6: TRUE | AV6: TRUE | AW6: TRUE | AX6: TRUE | AY6: TRUE
A7: 4 | B7: TRUE | C7: TRUE | D7: TRUE | E7: TRUE | F7: TRUE | G7: TRUE | H7: TRUE | I7: TRUE | J7: TRUE | K7: TRUE | L7: TRUE | M7: TRUE | N7: TRUE | O7: TRUE | P7: TRUE | Q7: TRUE | R7: TRUE | S7: TRUE | T7: TRUE | U7: TRUE | V7: TRUE | W7: TRUE | X7: TRUE | Y7: TRUE | Z7: TRUE | AA7: TRUE | AB7: TRUE | AC7: TRUE | AD7: TRUE | AE7: TRUE | AF7: TRUE | AG7: TRUE | AH7: TRUE | AI7: TRUE | AJ7: TRUE | AK7: TRUE | AL7: TRUE | AM7: TRUE | AN7: TRUE | AO7: TRUE | AP7: TRUE | AQ7: TRUE | AR7: TRUE | AS7: TRUE | AT7: TRUE | AU7: TRUE | AV7: TRUE | AW7: TRUE | AX7: TRUE | AY7: TRUE
A8: 5 | B8: FALSE | C8: FALSE | D8: FALSE | E8: FALSE | F8: FALSE | G8: FALSE | H8: FALSE | I8: FALSE | J8: FALSE | K8: FALSE | L8: FALSE | M8: FALSE | N8: FALSE | O8: FALSE | P8: FALSE | Q8: FALSE | R8: FALSE | S8: FALSE | T8: FALSE | U8: FALSE | V8: FALSE | W8: FALSE | X8: FALSE | Y8: FALSE | Z8: FALSE | AA8: FALSE | AB8: FALSE | AC8: FALSE | AD8: FALSE | AE8: FALSE | AF8: FALSE | AG8: FALSE | AH8: FALSE | AI8: FALSE | AJ8: FALSE | AK8: FALSE | AL8: FALSE | AM8: FALSE | AN8: FALSE | AO8: FALSE | AP8: FALSE | AQ8: FALSE | AR8: FALSE | AS8: FALSE | AT8: FALSE | AU8: FALSE | AV8: FALSE | AW8: FALSE | AX8: FALSE | AY8: FALSE
A9: 6 | B9: FALSE | C9: FALSE | D9: FALSE | E9: FALSE | F9: FALSE | G9: FALSE | H9: FALSE | I9: FALSE | J9: FALSE | K9: FALSE | L9: FALSE | M9: FALSE | N9: FALSE | O9: FALSE | P9: FALSE | Q9: FALSE | R9: FALSE | S9: FALSE | T9: FALSE | U9: FALSE | V9: FALSE | W9: FALSE | X9: FALSE | Y9: FALSE | Z9: FALSE | AA9: FALSE | AB9: FALSE | AC9: FALSE | AD9: FALSE | AE9: FALSE | AF9: FALSE | AG9: FALSE | AH9: FALSE | AI9: FALSE | AJ9: FALSE | AK9: FALSE | AL9: FALSE | AM9: FALSE | AN9: FALSE | AO9: FALSE | AP9: FALSE | AQ9: FALSE | AR9: FALSE | AS9: FALSE | AT9: FALSE | AU9: FALSE | AV9: FALSE | AW9: FALSE | AX9: FALSE | AY9: FALSE
A10: 7 | B10: FALSE | C10: FALSE | D10: FALSE | E10: FALSE | F10: FALSE | G10: FALSE | H10: FALSE | I10: FALSE | J10: FALSE | K10: FALSE | L10: FALSE | M10: FALSE | N10: FALSE | O10: FALSE | P10: FALSE | Q10: FALSE | R10: FALSE | S10: FALSE | T10: FALSE | U10: FALSE | V10: FALSE | W10: FALSE | X10: FALSE | Y10: FALSE | Z10: FALSE | AA10: FALSE | AB10: FALSE | AC10: FALSE | AD10: FALSE | AE10: FALSE | AF10: FALSE | AG10: FALSE | AH10: FALSE | AI10: FALSE | AJ10: FALSE | AK10: FALSE | AL10: FALSE | AM10: FALSE | AN10: FALSE | AO10: FALSE | AP10: FALSE | AQ10: FALSE | AR10: FALSE | AS10: FALSE | AT10: FALSE | AU10: FALSE | AV10: FALSE | AW10: FALSE | AX10: FALSE | AY10: FALSE
A11: 8 | B11: FALSE | C11: FALSE | D11: FALSE | E11: FALSE | F11: FALSE | G11: FALSE | H11: FALSE | I11: FALSE | J11: FALSE | K11: FALSE | L11: FALSE | M11: FALSE | N11: FALSE | O11: FALSE | P11: FALSE | Q11: FALSE | R11: FALSE | S11: FALSE | T11: FALSE | U11: FALSE | V11: FALSE | W11: FALSE | X11: FALSE | Y11: FALSE | Z11: FALSE | AA11: FALSE | AB11: FALSE | AC11: FALSE | AD11: FALSE | AE11: FALSE | AF11: FALSE | AG11: FALSE | AH11: FALSE | AI11: FALSE | AJ11: FALSE | AK11: FALSE | AL11: FALSE | AM11: FALSE | AN11: FALSE | AO11: FALSE | AP11: FALSE | AQ11: FALSE | AR11: FALSE | AS11: FALSE | AT11: FALSE | AU11: FALSE | AV11: FALSE | AW11: FALSE | AX11: FALSE | AY11: FALSE
A12: 9 | B12: FALSE | C12: FALSE | D12: FALSE | E12: FALSE | F12: FALSE | G12: FALSE | H12: FALSE | I12: FALSE | J12: FALSE | K12: FALSE | L12: FALSE | M12: FALSE | N12: FALSE | O12: FALSE | P12: FALSE | Q12: FALSE | R12: FALSE | S12: FALSE | T12: FALSE | U12: FALSE | V12: FALSE | W12: FALSE | X12: FALSE | Y12: FALSE | Z12: FALSE | AA12: FALSE | AB12: FALSE | AC12: FALSE | AD12: FALSE | AE12: FALSE | AF12: FALSE | AG12: FALSE | AH12: FALSE | AI12: FALSE | AJ12: FALSE | AK12: FALSE | AL12: FALSE | AM12: FALSE | AN12: FALSE | AO12: FALSE | AP12: FALSE | AQ12: FALSE | AR12: FALSE | AS12: FALSE | AT12: FALSE | AU12: FALSE | AV12: FALSE | AW12: FALSE | AX12: FALSE | AY12: FALSE
A13: 10 | B13: FALSE | C13: FALSE | D13: FALSE | E13: FALSE | F13: FALSE | G13: FALSE | H13: FALSE | I13: FALSE | J13: FALSE | K13: FALSE | L13: FALSE | M13: FALSE | N13: FALSE | O13: FALSE | P13: FALSE | Q13: FALSE | R13: FALSE | S13: TRUE | T13: TRUE | U13: TRUE | V13: TRUE | W13: TRUE | X13: TRUE | Y13: TRUE | Z13: TRUE | AA13: TRUE | AB13: TRUE | AC13: TRUE | AD13: TRUE | AE13: TRUE | AF13: TRUE | AG13: TRUE | AH13: TRUE | AI13: TRUE | AJ13: TRUE | AK13: TRUE | AL13: TRUE | AM13: TRUE | AN13: TRUE | AO13: TRUE | AP13: TRUE | AQ13: TRUE | AR13: TRUE | AS13: TRUE | AT13: TRUE | AU13: TRUE | AV13: TRUE | AW13: TRUE | AX13: TRUE | AY13: TRUE
A14: 11 | B14: FALSE | C14: FALSE | D14: FALSE | E14: FALSE | F14: FALSE | G14: FALSE | H14: FALSE | I14: FALSE | J14: FALSE | K14: FALSE | L14: FALSE | M14: FALSE | N14: FALSE | O14: FALSE | P14: FALSE | Q14: FALSE | R14: FALSE | S14: FALSE | T14: FALSE | U14: FALSE | V14: FALSE | W14: FALSE | X14: FALSE | Y14: FALSE | Z14: FALSE | AA14: FALSE | AB14: FALSE | AC14: FALSE | AD14: FALSE | AE14: FALSE | AF14: FALSE | AG14: FALSE | AH14: FALSE | AI14: FALSE | AJ14: FALSE | AK14: FALSE | AL14: FALSE | AM14: FALSE | AN14: FALSE | AO14: FALSE | AP14: FALSE | AQ14: FALSE | AR14: FALSE | AS14: FALSE | AT14: FALSE | AU14: FALSE | AV14: FALSE | AW14: FALSE | AX14: FALSE | AY14: FALSE
A15: 12 | B15: FALSE | C15: FALSE | D15: FALSE | E15: FALSE | F15: FALSE | G15: FALSE | H15: FALSE | I15: FALSE | J15: FALSE | K15: FALSE | L15: FALSE | M15: FALSE | N15: FALSE | O15: FALSE | P15: FALSE | Q15: FALSE | R15: FALSE | S15: FALSE | T15: FALSE | U15: FALSE | V15: FALSE | W15: FALSE | X15: FALSE | Y15: FALSE | Z15: FALSE | AA15: FALSE | AB15: FALSE | AC15: FALSE | AD15: FALSE | AE15: FALSE | AF15: FALSE | AG15: FALSE | AH15: FALSE | AI15: FALSE | AJ15: FALSE | AK15: FALSE | AL15: FALSE | AM15: FALSE | AN15: FALSE | AO15: FALSE | AP15: FALSE | AQ15: FALSE | AR15: FALSE | AS15: FALSE | AT15: FALSE | AU15: FALSE | AV15: FALSE | AW15: FALSE | AX15: FALSE | AY15: FALSE
A16: InvasionRecord (with inspections)(Run999)
A17: WaterBody | B17: 0 | C17: 1 | D17: 2 | E17: 3 | F17: 4 | G17: 5 | H17: 6 | I17: 7 | J17: 8 | K17: 9 | L17: 10 | M17: 11 | N17: 12 | O17: 13 | P17: 14 | Q17: 15 | R17: 16 | S17: 17 | T17: 18 | U17: 19 | V17: 20 | W17: 21 | X17: 22 | Y17: 23 | Z17: 24 | AA17: 25 | AB17: 26 | AC17: 27 | AD17: 28 | AE17: 29 | AF17: 30 | AG17: 31 | AH17: 32 | AI17: 33 | AJ17: 34 | AK17: 35 | AL17: 36 | AM17: 37 | AN17: 38 | AO17: 39 | AP17: 40 | AQ17: 41 | AR17: 42 | AS17: 43 | AT17: 44 | AU17: 45 | AV17: 46 | AW17: 47 | AX17: 48 | AY17: 49
A18: 0 | B18: FALSE | C18: FALSE | D18: FALSE | E18: FALSE | F18: FALSE | G18: FALSE | H18: FALSE | I18: FALSE | J18: FALSE | K18: FALSE | L18: FALSE | M18: FALSE | N18: FALSE | O18: FALSE | P18: FALSE | Q18: FALSE | R18: FALSE | S18: FALSE | T18: FALSE | U18: FALSE | V18: FALSE | W18: FALSE | X18: FALSE | Y18: FALSE | Z18: FALSE | AA18: FALSE | AB18: FALSE | AC18: FALSE | AD18: FALSE | AE18: FALSE | AF18: FALSE | AG18: FALSE | AH18: FALSE | AI18: FALSE | AJ18: FALSE | AK18: FALSE | AL18: FALSE | AM18: FALSE | AN18: FALSE | AO18: FALSE | AP18: FALSE | AQ18: FALSE | AR18: FALSE | AS18: FALSE | AT18: FALSE | AU18: FALSE | AV18: FALSE | AW18: FALSE | AX18: FALSE | AY18: FALSE
A19: 1 | B19: TRUE | C19: TRUE | D19: TRUE | E19: TRUE | F19: TRUE | G19: TRUE | H19: TRUE | I19: TRUE | J19: TRUE | K19: TRUE | L19: TRUE | M19: TRUE | N19: TRUE | O19: TRUE | P19: TRUE | Q19: TRUE | R19: TRUE | S19: TRUE | T19: TRUE | U19: TRUE | V19: TRUE | W19: TRUE | X19: TRUE | Y19: TRUE | Z19: TRUE | AA19: TRUE | AB19: TRUE | AC19: TRUE | AD19: TRUE | AE19: TRUE | AF19: TRUE | AG19: TRUE | AH19: TRUE | AI19: TRUE | AJ19: TRUE | AK19: TRUE | AL19: TRUE | AM19: TRUE | AN19: TRUE | AO19: TRUE | AP19: TRUE | AQ19: TRUE | AR19: TRUE | AS19: TRUE | AT19: TRUE | AU19: TRUE | AV19: TRUE | AW19: TRUE | AX19: TRUE | AY19: TRUE
A20: 2 | B20: TRUE | C20: TRUE | D20: TRUE | E20: TRUE | F20: TRUE | G20: TRUE | H20: TRUE | I20: TRUE | J20: TRUE | K20: TRUE | L20: TRUE | M20: TRUE | N20: TRUE | O20: TRUE | P20: TRUE | Q20: TRUE | R20: TRUE | S20: TRUE | T20: TRUE | U20: TRUE | V20: TRUE | W20: TRUE | X20: TRUE | Y20: TRUE | Z20: TRUE | AA20: TRUE | AB20: TRUE | AC20: TRUE | AD20: TRUE | AE20: TRUE | AF20: TRUE | AG20: TRUE | AH20: TRUE | AI20: TRUE | AJ20: TRUE | AK20: TRUE | AL20: TRUE | AM20: TRUE | AN20: TRUE | AO20: TRUE | AP20: TRUE | AQ20: TRUE | AR20: TRUE | AS20: TRUE | AT20: TRUE | AU20: TRUE | AV20: TRUE | AW20: TRUE | AX20: TRUE | AY20: TRUE
A21: 3 | B21: TRUE | C21: TRUE | D21: TRUE | E21: TRUE | F21: TRUE | G21: TRUE | H21: TRUE | I21: TRUE | J21: TRUE | K21: TRUE | L21: TRUE | M21: TRUE | N21: TRUE | O21: TRUE | P21: TRUE | Q21: TRUE | R21: TRUE | S21: TRUE | T21: TRUE | U21: TRUE | V21: TRUE | W21: TRUE | X21: TRUE | Y21: TRUE | Z21: TRUE | AA21: TRUE | AB21: TRUE | AC21: TRUE | AD21: TRUE | AE21: TRUE | AF21: TRUE | AG21: TRUE | AH21: TRUE | AI21: TRUE | AJ21: TRUE | AK21: TRUE | AL21: TRUE | AM21: TRUE | AN21: TRUE | AO21: TRUE | AP21: TRUE | AQ21: TRUE | AR21: TRUE | AS21: TRUE | AT21: TRUE | AU21: TRUE | AV21: TRUE | AW21: TRUE | AX21: TRUE | AY21: TRUE
A22: 4 | B22: TRUE | C22: TRUE | D22: TRUE | E22: TRUE | F22: TRUE | G22: TRUE | H22: TRUE | I22: TRUE | J22: TRUE | K22: TRUE | L22: TRUE | M22: TRUE | N22: TRUE | O22: TRUE | P22: TRUE | Q22: TRUE | R22: TRUE | S22: TRUE | T22: TRUE | U22: TRUE | V22: TRUE | W22: TRUE | X22: TRUE | Y22: TRUE | Z22: TRUE | AA22: TRUE | AB22: TRUE | AC22: TRUE | AD22: TRUE | AE22: TRUE | AF22: TRUE | AG22: TRUE | AH22: TRUE | AI22: TRUE | AJ22: TRUE | AK22: TRUE | AL22: TRUE | AM22: TRUE | AN22: TRUE | AO22: TRUE | AP22: TRUE | AQ22: TRUE | AR22: TRUE | AS22: TRUE | AT22: TRUE | AU22: TRUE | AV22: TRUE | AW22: TRUE | AX22: TRUE | AY22: TRUE
A23: 5 | B23: FALSE | C23: FALSE | D23: FALSE | E23: FALSE | F23: FALSE | G23: FALSE | H23: FALSE | I23: FALSE | J23: FALSE | K23: FALSE | L23: FALSE | M23: FALSE | N23: FALSE | O23: FALSE | P23: FALSE | Q23: FALSE | R23: FALSE | S23: FALSE | T23: FALSE | U23: FALSE | V23: FALSE | W23: FALSE | X23: FALSE | Y23: FALSE | Z23: FALSE | AA23: FALSE | AB23: FALSE | AC23: FALSE | AD23: FALSE | AE23: FALSE | AF23: FALSE | AG23: FALSE | AH23: FALSE | AI23: FALSE | AJ23: FALSE | AK23: FALSE | AL23: FALSE | AM23: FALSE | AN23: FALSE | AO23: FALSE | AP23: FALSE | AQ23: FALSE | AR23: FALSE | AS23: FALSE | AT23: FALSE | AU23: FALSE | AV23: FALSE | AW23: FALSE | AX23: FALSE | AY23: FALSE
A24: 6 | B24: FALSE | C24: FALSE | D24: FALSE | E24: FALSE | F24: FALSE | G24: FALSE | H24: FALSE | I24: FALSE | J24: FALSE | K24: FALSE | L24: FALSE | M24: FALSE | N24: FALSE | O24: FALSE | P24: FALSE | Q24: FALSE | R24: FALSE | S24: FALSE | T24: FALSE | U24: FALSE | V24: FALSE | W24: FALSE | X24: FALSE | Y24: FALSE | Z24: FALSE | AA24: FALSE | AB24: FALSE | AC24: FALSE | AD24: FALSE | AE24: FALSE | AF24: FALSE | AG24: FALSE | AH24: FALSE | AI24: FALSE | AJ24: FALSE | AK24: FALSE | AL24: FALSE | AM24: FALSE | AN24: FALSE | AO24: FALSE | AP24: FALSE | AQ24: FALSE | AR24: FALSE | AS24: FALSE | AT24: FALSE | AU24: FALSE | AV24: FALSE | AW24: FALSE | AX24: FALSE | AY24: FALSE
A25: 7 | B25: FALSE | C25: FALSE | D25: FALSE | E25: FALSE | F25: FALSE | G25: FALSE | H25: FALSE | I25: FALSE | J25: FALSE | K25: FALSE | L25: FALSE | M25: FALSE | N25: FALSE | O25: FALSE | P25: FALSE | Q25: FALSE | R25: FALSE | S25: FALSE | T25: FALSE | U25: FALSE | V25: FALSE | W25: FALSE | X25: FALSE | Y25: FALSE | Z25: FALSE | AA25: FALSE | AB25: FALSE | AC25: FALSE | AD25: FALSE | AE25: FALSE | AF25: FALSE | AG25: FALSE | AH25: FALSE | AI25: FALSE | AJ25: FALSE | AK25: FALSE | AL25: FALSE | AM25: FALSE | AN25: FALSE | AO25: FALSE | AP25: FALSE | AQ25: FALSE | AR25: FALSE | AS25: FALSE | AT25: FALSE | AU25: FALSE | AV25: FALSE | AW25: FALSE | AX25: FALSE | AY25: FALSE
A26: 8 | B26: FALSE | C26: FALSE | D26: FALSE | E26: FALSE | F26: FALSE | G26: FALSE | H26: FALSE | I26: FALSE | J26: FALSE | K26: FALSE | L26: FALSE | M26: FALSE | N26: FALSE | O26: FALSE | P26: FALSE | Q26: FALSE | R26: FALSE | S26: FALSE | T26: FALSE | U26: FALSE | V26: FALSE | W26: FALSE | X26: FALSE | Y26: FALSE | Z26: FALSE | AA26: FALSE | AB26: FALSE | AC26: FALSE | AD26: FALSE | AE26: FALSE | AF26: FALSE | AG26: FALSE | AH26: FALSE | AI26: FALSE | AJ26: FALSE | AK26: FALSE | AL26: FALSE | AM26: FALSE | AN26: FALSE | AO26: FALSE | AP26: FALSE | AQ26: FALSE | AR26: FALSE | AS26: FALSE | AT26: FALSE | AU26: FALSE | AV26: FALSE | AW26: FALSE | AX26: FALSE | AY26: FALSE
A27: 9 | B27: FALSE | C27: FALSE | D27: FALSE | E27: FALSE | F27: FALSE | G27: FALSE | H27: FALSE | I27: FALSE | J27: FALSE | K27: FALSE | L27: FALSE | M27: FALSE | N27: FALSE | O27: FALSE | P27: FALSE | Q27: FALSE | R27: FALSE | S27: FALSE | T27: FALSE | U27: FALSE | V27: FALSE | W27: FALSE | X27: FALSE | Y27: FALSE | Z27: FALSE | AA27: FALSE | AB27: FALSE | AC27: FALSE | AD27: FALSE | AE27: FALSE | AF27: FALSE | AG27: FALSE | AH27: FALSE | AI27: FALSE | AJ27: FALSE | AK27: FALSE | AL27: FALSE | AM27: FALSE | AN27: FALSE | AO27: FALSE | AP27: FALSE | AQ27: FALSE | AR27: FALSE | AS27: FALSE | AT27: FALSE | AU27: FALSE | AV27: FALSE | AW27: FALSE | AX27: FALSE | AY27: FALSE
A28: 10 | B28: FALSE | C28: FALSE | D28: FALSE | E28: FALSE | F28: FALSE | G28: FALSE | H28: FALSE | I28: FALSE | J28: FALSE | K28: FALSE | L28: FALSE | M28: FALSE | N28: FALSE | O28: FALSE | P28: FALSE | Q28: FALSE | R28: FALSE | S28: FALSE | T28: FALSE | U28: FALSE | V28: FALSE | W28: FALSE | X28: FALSE | Y28: FALSE | Z28: FALSE | AA28: FALSE | AB28: FALSE | AC28: FALSE | AD28: FALSE | AE28: FALSE | AF28: FALSE | AG28: FALSE | AH28: FALSE | AI28: FALSE | AJ28: FALSE | AK28: FALSE | AL28: FALSE | AM28: FALSE | AN28: FALSE | AO28: FALSE | AP28: FALSE | AQ28: FALSE | AR28: FALSE | AS28: FALSE | AT28: FALSE | AU28: FALSE | AV28: FALSE | AW28: FALSE | AX28: FALSE | AY28: FALSE
A29: 11 | B29: FALSE | C29: FALSE | D29: FALSE | E29: FALSE | F29: FALSE | G29: FALSE | H29: FALSE | I29: FALSE | J29: FALSE | K29: FALSE | L29: FALSE | M29: FALSE | N29: FALSE | O29: FALSE | P29: FALSE | Q29: FALSE | R29: FALSE | S29: FALSE | T29: FALSE | U29: FALSE | V29: FALSE | W29: FALSE | X29: FALSE | Y29: FALSE | Z29: FALSE | AA29: FALSE | AB29: FALSE | AC29: FALSE | AD29: FALSE | AE29: FALSE | AF29: FALSE | AG29: FALSE | AH29: FALSE | AI29: FALSE | AJ29: FALSE | AK29: FALSE | AL29: FALSE | AM29: FALSE | AN29: FALSE | AO29: FALSE | AP29: FALSE | AQ29: FALSE | AR29: FALSE | AS29: FALSE | AT29: FALSE | AU29: FALSE | AV29: FALSE | AW29: FALSE | AX29: FALSE | AY29: FALSE
A30: 12 | B30: FALSE | C30: FALSE | D30: FALSE | E30: FALSE | F30: FALSE | G30: FALSE | H30: FALSE | I30: FALSE | J30: FALSE | K30: FALSE | L30: FALSE | M30: FALSE | N30: FALSE | O30: FALSE | P30: FALSE | Q30: FALSE | R30: FALSE | S30: FALSE | T30: FALSE | U30: FALSE | V30: FALSE | W30: FALSE | X30: FALSE | Y30: FALSE | Z30: FALSE | AA30: FALSE | AB30: FALSE | AC30: FALSE | AD30: FALSE | AE30: FALSE | AF30: FALSE | AG30: FALSE | AH30: FALSE | AI30: FALSE | AJ30: FALSE | AK30: FALSE | AL30: FALSE | AM30: FALSE | AN30: FALSE | AO30: FALSE | AP30: FALSE | AQ30: FALSE | AR30: FALSE | AS30: FALSE | AT30: FALSE | AU30: FALSE | AV30: FALSE | AW30: FALSE | AX30: FALSE | AY30: FALSE
A31: JointProb_Boats(no inspection)(Run999)
A32: WaterBody | B32: 0 | C32: 1 | D32: 2 | E32: 3 | F32: 4 | G32: 5 | H32: 6 | I32: 7 | J32: 8 | K32: 9 | L32: 10 | M32: 11 | N32: 12 | O32: 13 | P32: 14 | Q32: 15 | R32: 16 | S32: 17 | T32: 18 | U32: 19 | V32: 20 | W32: 21 | X32: 22 | Y32: 23 | Z32: 24 | AA32: 25 | AB32: 26 | AC32: 27 | AD32: 28 | AE32: 29 | AF32: 30 | AG32: 31 | AH32: 32 | AI32: 33 | AJ32: 34 | AK32: 35 | AL32: 36 | AM32: 37 | AN32: 38 | AO32: 39 | AP32: 40 | AQ32: 41 | AR32: 42 | AS32: 43 | AT32: 44 | AU32: 45 | AV32: 46 | AW32: 47 | AX32: 48 | AY32: 49
A33: 0 | B33: 0 | C33: 0 | D33: 0 | E33: 0 | F33: 0 | G33: 0 | H33: 0 | I33: 0 | J33: 0 | K33: 0 | L33: 0 | M33: 0 | N33: 0 | O33: 0 | P33: 0 | Q33: 0 | R33: 0 | S33: 0 | T33: 0 | U33: 0 | V33: 0 | W33: 0 | X33: 0 | Y33: 0 | Z33: 0 | AA33: 0 | AB33: 0 | AC33: 0 | AD33: 0 | AE33: 0 | AF33: 0 | AG33: 0 | AH33: 0 | AI33: 0 | AJ33: 0 | AK33: 0 | AL33: 0 | AM33: 0 | AN33: 0 | AO33: 0 | AP33: 0 | AQ33: 0 | AR33: 0 | AS33: 0 | AT33: 0 | AU33: 0 | AV33: 0 | AW33: 0 | AX33: 0 | AY33: 0
A34: 1 | B34: 0 | C34: 0 | D34: 0 | E34: 0 | F34: 0 | G34: 0 | H34: 0 | I34: 0 | J34: 0 | K34: 0 | L34: 0 | M34: 0 | N34: 0 | O34: 0 | P34: 0 | Q34: 0 | R34: 0 | S34: 0 | T34: 0 | U34: 0 | V34: 0 | W34: 0 | X34: 0 | Y34: 0 | Z34: 0 | AA34: 0 | AB34: 0 | AC34: 0 | AD34: 0 | AE34: 0 | AF34: 0 | AG34: 0 | AH34: 0 | AI34: 0 | AJ34: 0 | AK34: 0 | AL34: 0 | AM34: 0 | AN34: 0 | AO34: 0 | AP34: 0 | AQ34: 0 | AR34: 0 | AS34: 0 | AT34: 0 | AU34: 0 | AV34: 0 | AW34: 0 | AX34: 0 | AY34: 0
A35: 2 | B35: 4.408303257e-06 | C35: 3.318022575e-05 | D35: 9.526069334e-05 | E35: 0.0001571481415 | F35: 0.0002188431703 | G35: 0.0002803463781 | H35: 0.0003416583613 | I35: 0.0004027797144 | J35: 0.00046371103 | K35: 0.0005244528992 | L35: 0.0005850059109 | M35: 0.0006453706522 | N35: 0.0007055477086 | O35: 0.0007655376637 | P35: 0.000825341099 | Q35: 0.0008849585947 | R35: 0.0009443907287 | S35: 0.001003638077 | T35: 0.001062701215 | U35: 0.001121580715 | V35: 0.001180277148 | W35: 0.001238791083 | X35: 0.001297123088 | Y35: 0.001355273727 | Z35: 0.001413243566 | AA35: 0.001471033166 | AB35: 0.001528643088 | AC35: 0.00158607389 | AD35: 0.00164332613 | AE35: 0.001700400361 | AF35: 0.001757297139 | AG35: 0.001814017014 | AH35: 0.001870560537 | AI35: 0.001926928255 | AJ35: 0.001983120716 | AK35: 0.002039138465 | AL35: 0.002094982044 | AM35: 0.002150651996 | AN35: 0.002206148859 | AO35: 0.002261473173 | AP35: 0.002316625473 | AQ35: 0.002371606295 | AR35: 0.002426416171 | AS35: 0.002481055634 | AT35: 0.002535525212 | AU35: 0.002589825435 | AV35: 0.002643956829 | AW35: 0.002697919918 | AX35: 0.002751715226 | AY35: 0.002805343275
A36: 3 | B36: 2.408855809e-07 | C36: 1.895636299e-06 | D36: 5.412909945e-06 | E36: 8.929564972e-06 | F36: 1.244560149e-05 | G36: 1.59610196e-05 | H36: 1.947581942e-05 | I36: 2.299000106e-05 | J36: 2.650356462e-05 | K36: 3.001651022e-05 | L36: 3.352883796e-05 | M36: 3.704054794e-05 | N36: 4.055164029e-05 | O36: 4.40621151e-05 | P36: 4.75719725e-05 | Q36: 5.108121257e-05 | R36: 5.458983544e-05 | S36: 5.809784121e-05 | T36: 6.160523e-05 | U36: 6.51120019e-05 | V36: 6.861815703e-05 | W36: 7.212369549e-05 | X36: 7.56286174e-05 | Y36: 7.913292287e-05 | Z36: 8.263661199e-05 | AA36: 8.613968489e-05 | AB36: 8.964214166e-05 | AC36: 9.314398242e-05 | AD36: 9.664520727e-05 | AE36: 0.0001001458163 | AF36: 0.0001036458097 | AG36: 0.0001071451875 | AH36: 0.0001106439498 | AI36: 0.0001141420968 | AJ36: 0.0001176396285 | AK36: 0.000121136545 | AL36: 0.0001246328465 | AM36: 0.0001281285331 | AN36: 0.0001316236049 | AO36: 0.0001351180619 | AP36: 0.0001386119044 | AQ36: 0.0001421051323 | AR36: 0.0001455977458 | AS36: 0.0001490897451 | AT36: 0.0001525811302 | AU36: 0.0001560719012 | AV36: 0.0001595620583 | AW36: 0.0001630516015 | AX36: 0.000166540531 | AY36: 0.0001700288469
A37: 4 | B37: 9.497875843e-07 | C37: 7.228828944e-06 | D37: 2.07664839e-05 | E37: 3.429497214e-05 | F37: 4.781429987e-05 | G37: 6.132447328e-05 | H37: 7.482549859e-05 | I37: 8.831738199e-05 | J37: 0.0001018001297 | K37: 0.0001152737478 | L37: 0.0001287382426 | M37: 0.0001421936201 | N37: 0.0001556398867 | O37: 0.0001690770485 | P37: 0.0001825051116 | Q37: 0.0001959240821 | R37: 0.0002093339663 | S37: 0.0002227347704 | T37: 0.0002361265003 | U37: 0.0002495091624 | V37: 0.0002628827626 | W37: 0.0002762473073 | X37: 0.0002896028024 | Y37: 0.0003029492542 | Z37: 0.0003162866687 | AA37: 0.0003296150521 | AB37: 0.0003429344105 | AC37: 0.00035624475 | AD37: 0.0003695460767 | AE37: 0.0003828383967 | AF37: 0.0003961217161 | AG37: 0.000409396041 | AH37: 0.0004226613774 | AI37: 0.0004359177316 | AJ37: 0.0004491651095 | AK37: 0.0004624035173 | AL37: 0.0004756329609 | AM37: 0.0004888534466 | AN37: 0.0005020649803 | AO37: 0.0005152675681 | AP37: 0.000528461216 | AQ37: 0.0005416459302 | AR37: 0.0005548217166 | AS37: 0.0005679885814 | AT37: 0.0005811465305 | AU37: 0.00059429557 | AV37: 0.0006074357059 | AW37: 0.0006205669443 | AX37: 0.0006336892912 | AY37: 0.0006468027525
A38: 5 | B38: 0 | C38: 0 | D38: 0 | E38: 0 | F38: 0 | G38: 0 | H38: 0 | I38: 0 | J38: 0 | K38: 0 | L38: 0 | M38: 0 | N38: 0 | O38: 0 | P38: 0 | Q38: 0 | R38: 0 | S38: 0 | T38: 0 | U38: 0 | V38: 0 | W38: 0 | X38: 0 | Y38: 0 | Z38: 0 | AA38: 0 | AB38: 0 | AC38: 0 | AD38: 0 | AE38: 0 | AF38: 0 | AG38: 0 | AH38: 0 | AI38: 0 | AJ38: 0 | AK38: 0 | AL38: 0 | AM38: 0 | AN38: 0 | AO38: 0 | AP38: 0 | AQ38: 0 | AR38: 0 | AS38: 0 | AT38: 0 | AU38: 0 | AV38: 0 | AW38: 0 | AX38: 0 | AY38: 0
A39: 6 | B39: 0 | C39: 0 | D39: 0 | E39: 0 | F39: 0 | G39: 0 | H39: 0 | I39: 0 | J39: 0 | K39: 0 | L39: 0 | M39: 0 | N39: 0 | O39: 0 | P39: 0 | Q39: 0 | R39: 0 | S39: 0 | T39: 0 | U39: 0 | V39: 0 | W39: 0 | X39: 0 | Y39: 0 | Z39: 0 | AA39: 0 | AB39: 0 | AC39: 0 | AD39: 0 | AE39: 0 | AF39: 0 | AG39: 0 | AH39: 0 | AI39: 0 | AJ39: 0 | AK39: 0 | AL39: 0 | AM39: 0 | AN39: 0 | AO39: 0 | AP39: 0 | AQ39: 0 | AR39: 0 | AS39: 0 | AT39: 0 | AU39: 0 | AV39: 0 | AW39: 0 | AX39: 0 | AY39: 0
A40: 7 | B40: 2.686447384e-07 | C40: 1.93389113e-06 | D40: 5.753149032e-06 | E40: 9.572348586e-06 | F40: 1.339148979e-05 | G40: 1.721057266e-05 | H40: 2.102959717e-05 | I40: 2.484856335e-05 | J40: 2.866747118e-05 | K40: 3.248632067e-05 | L40: 3.630511181e-05 | M40: 4.012384462e-05 | N40: 4.394251909e-05 | O40: 4.776113522e-05 | P40: 5.157969301e-05 | Q40: 5.539819247e-05 | R40: 5.921663359e-05 | S40: 6.303501637e-05 | T40: 6.685334082e-05 | U40: 7.067160694e-05 | V40: 7.448981473e-05 | W40: 7.830796418e-05 | X40: 8.21260553e-05 | Y40: 8.59440881e-05 | Z40: 8.976206256e-05 | AA40: 9.35799787e-05 | AB40: 9.739783651e-05 | AC40: 0.000101215636 | AD40: 0.0001050333772 | AE40: 0.00010885106 | AF40: 0.0001126686845 | AG40: 0.0001164862507 | AH40: 0.0001203037586 | AI40: 0.0001241212081 | AJ40: 0.0001279385993 | AK40: 0.0001317559322 | AL40: 0.0001355732068 | AM40: 0.0001393904231 | AN40: 0.0001432075811 | AO40: 0.0001470246807 | AP40: 0.000150841722 | AQ40: 0.0001546587051 | AR40: 0.0001584756298 | AS40: 0.0001622924961 | AT40: 0.0001661093042 | AU40: 0.000169926054 | AV40: 0.0001737427455 | AW40: 0.0001775593786 | AX40: 0.0001813759534 | AY40: 0.00018519247
A41: 8 | B41: 0 | C41: 0 | D41: 0 | E41: 0 | F41: 0 | G41: 0 | H41: 0 | I41: 0 | J41: 0 | K41: 0 | L41: 0 | M41: 0 | N41: 0 | O41: 0 | P41: 0 | Q41: 0 | R41: 0 | S41: 0 | T41: 0 | U41: 0 | V41: 0 | W41: 0 | X41: 0 | Y41: 0 | Z41: 0 | AA41: 0 | AB41: 0 | AC41: 0 | AD41: 0 | AE41: 0 | AF41: 0 | AG41: 0 | AH41: 0 | AI41: 0 | AJ41: 0 | AK41: 0 | AL41: 0 | AM41: 0 | AN41: 0 | AO41: 0 | AP41: 0 | AQ41: 0 | AR41: 0 | AS41: 0 | AT41: 0 | AU41: 0 | AV41: 0 | AW41: 0 | AX41: 0 | AY41: 0
A42: 9 | B42: 0 | C42: 0 | D42: 0 | E42: 0 | F42: 0 | G42: 0 | H42: 0 | I42: 0 | J42: 0 | K42: 0 | L42: 0 | M42: 0 | N42: 0 | O42: 0 | P42: 0 | Q42: 0 | R42: 0 | S42: 0 | T42: 0 | U42: 0 | V42: 0 | W42: 0 | X42: 0 | Y42: 0 | Z42: 0 | AA42: 0 | AB42: 0 | AC42: 0 | AD42: 0 | AE42: 0 | AF42: 0 | AG42: 0 | AH42: 0 | AI42: 0 | AJ42: 0 | AK42: 0 | AL42: 0 | AM42: 0 | AN42: 0 | AO42: 0 | AP42: 0 | AQ42: 0 | AR42: 0 | AS42: 0 | AT42: 0 | AU42: 0 | AV42: 0 | AW42: 0 | AX42: 0 | AY42: 0
A43: 10 | B43: 0.0001445680718 | C43: 0.001068561251 | D43: 0.002918668892 | E43: 0.00458797156 | F43: 0.006094138733 | G43: 0.00745311311 | H43: 0.008679279363 | I43: 0.009785616394 | J43: 0.01078383472 | K43: 0.01168450044 | L43: 0.01249714703 | M43: 0.01323037634 | N43: 0.01389194953 | O43: 0.01448886934 | P43: 0.01502745413 | Q43: 0.01551340479 | R43: 0.01595186508 | S43: 0.01634747607 | T43: 0.0167044253 | U43: 0.01702649105 | V43: 0.01731708236 | W43: 0.01757927513 | X43: 0.01781584466 | Y43: 0.01802929503 | Z43: 0.01822188558 | AA43: 0.01839565489 | AB43: 0.0185524423 | AC43: 0.01869390738 | AD43: 0.01882154755 | AE43: 0.01893671385 | AF43: 0.01904062533 | AG43: 0.01913438188 | AH43: 0.01921897591 | AI43: 0.01929530284 | AJ43: 0.01936417059 | AK43: 0.01942630812 | AL43: 0.01948237316 | AM43: 0.01953295914 | AN43: 0.01957860151 | AO43: 0.01961978341 | AP43: 0.01965694074 | AQ43: 0.0196904668 | AR43: 0.01972071646 | AS43: 0.01974800993 | AT43: 0.0197726361 | AU43: 0.01979485563 | AV43: 0.01981490372 | AW43: 0.01983299257 | AX43: 0.01984931366 | AY43: 0.01986403975
A44: 11 | B44: 5.053337059e-06 | C44: 3.824057775e-05 | D44: 0.0001095916894 | E44: 0.0001806877643 | F44: 0.0002515297141 | G44: 0.0003221184472 | H44: 0.0003924548686 | I44: 0.0004625398802 | J44: 0.0005323743806 | K44: 0.0006019592654 | L44: 0.0006712954266 | M44: 0.0007403837533 | N44: 0.0008092251314 | O44: 0.0008778204436 | P44: 0.0009461705694 | Q44: 0.001014276385 | R44: 0.001082138764 | S44: 0.001149758577 | T44: 0.00121713669 | U44: 0.001284273967 | V44: 0.001351171269 | W44: 0.001417829455 | X44: 0.001484249378 | Y44: 0.00155043189 | Z44: 0.00161637784 | AA44: 0.001682088074 | AB44: 0.001747563434 | AC44: 0.001812804759 | AD44: 0.001877812886 | AE44: 0.001942588649 | AF44: 0.002007132878 | AG44: 0.002071446401 | AH44: 0.002135530042 | AI44: 0.002199384623 | AJ44: 0.002263010964 | AK44: 0.002326409878 | AL44: 0.002389582181 | AM44: 0.002452528681 | AN44: 0.002515250185 | AO44: 0.002577747499 | AP44: 0.002640021422 | AQ44: 0.002702072755 | AR44: 0.002763902291 | AS44: 0.002825510825 | AT44: 0.002886899146 | AU44: 0.002948068041 | AV44: 0.003009018295 | AW44: 0.003069750689 | AX44: 0.003130266001 | AY44: 0.003190565008
A45: 12 | B45: 1.06200934e-05 | C45: 8.032508657e-05 | D45: 0.0002312803539 | E45: 0.0003822052346 | F45: 0.0005330997348 | G45: 0.0006839638607 | H45: 0.0008347976184 | I45: 0.000985601014 | J45: 0.001136374054 | K45: 0.001287116743 | L45: 0.001437829089 | M45: 0.001588511097 | N45: 0.001739162774 | O45: 0.001889784125 | P45: 0.002040375157 | Q45: 0.002190935875 | R45: 0.002341466287 | S45: 0.002491966397 | T45: 0.002642436212 | U45: 0.002792875739 | V45: 0.002943284983 | W45: 0.00309366395 | X45: 0.003244012646 | Y45: 0.003394331078 | Z45: 0.003544619252 | AA45: 0.003694877173 | AB45: 0.003845104848 | AC45: 0.003995302283 | AD45: 0.004145469484 | AE45: 0.004295606457 | AF45: 0.004445713208 | AG45: 0.004595789744 | AH45: 0.00474583607 | AI45: 0.004895852192 | AJ45: 0.005045838116 | AK45: 0.005195793849 | AL45: 0.005345719397 | AM45: 0.005495614766 | AN45: 0.005645479961 | AO45: 0.005795314989 | AP45: 0.005945119856 | AQ45: 0.006094894568 | AR45: 0.006244639131 | AS45: 0.006394353551 | AT45: 0.006544037834 | AU45: 0.006693691987 | AV45: 0.006843316015 | AW45: 0.006992909924 | AX45: 0.007142473721 | AY45: 0.007292007411
A46: JointProb_Boats(with inspection)(Run999)
A47: WaterBody | B47: 0 | C47: 1 | D47: 2 | E47: 3 | F47: 4 | G47: 5 | H47: 6 | I47: 7 | J47: 8 | K47: 9 | L47: 10 | M47: 11 | N47: 12 | O47: 13 | P47: 14 | Q47: 15 | R47: 16 | S47: 17 | T47: 18 | U47: 19 | V47: 20 | W47: 21 | X47: 22 | Y47: 23 | Z47: 24 | AA47: 25 | AB47: 26 | AC47: 27 | AD47: 28 | AE47: 29 | AF47: 30 | AG47: 31 | AH47: 32 | AI47: 33 | AJ47: 34 | AK47: 35 | AL47: 36 | AM47: 37 | AN47: 38 | AO47: 39 | AP47: 40 | AQ47: 41 | AR47: 42 | AS47: 43 | AT47: 44 | AU47: 45 | AV47: 46 | AW47: 47 | AX47: 48 | AY47: 49
A48: 0 | B48: 0 | C48: 0 | D48: 0 | E48: 0 | F48: 0 | G48: 0 | H48: 0 | I48: 0 | J48: 0 | K48: 0 | L48: 0 | M48: 0 | N48: 0 | O48: 0 | P48: 0 | Q48: 0 | R48: 0 | S48: 0 | T48: 0 | U48: 0 | V48: 0 | W48: 0 | X48: 0 | Y48: 0 | Z48: 0 | AA48: 0 | AB48: 0 | AC48: 0 | AD48: 0 | AE48: 0 | AF48: 0 | AG48: 0 | AH48: 0 | AI48: 0 | AJ48: 0 | AK48: 0 | AL48: 0 | AM48: 0 | AN48: 0 | AO48: 0 | AP48: 0 | AQ48: 0 | AR48: 0 | AS48: 0 | AT48: 0 | AU48: 0 | AV48: 0 | AW48: 0 | AX48: 0 | AY48: 0
A49: 1 | B49: 0 | C49: 0 | D49: 0 | E49: 0 | F49: 0 | G49: 0 | H49: 0 | I49: 0 | J49: 0 | K49: 0 | L49: 0 | M49: 0 | N49: 0 | O49: 0 | P49: 0 | Q49: 0 | R49: 0 | S49: 0 | T49: 0 | U49: 0 | V49: 0 | W49: 0 | X49: 0 | Y49: 0 | Z49: 0 | AA49: 0 | AB49: 0 | AC49: 0 | AD49: 0 | AE49: 0 | AF49: 0 | AG49: 0 | AH49: 0 | AI49: 0 | AJ49: 0 | AK49: 0 | AL49: 0 | AM49: 0 | AN49: 0 | AO49: 0 | AP49: 0 | AQ49: 0 | AR49: 0 | AS49: 0 | AT49: 0 | AU49: 0 | AV49: 0 | AW49: 0 | AX49: 0 | AY49: 0
